Workbook

Sheet Cover
B3: BU mobilný LRIC model
B6: BU mobilný LRIC model je matematický model pripravený spoločnosťou PricewaterhouseCoopers Advisory, s.r.o. v rámci projektu „Aktualizácia vzostupného hospodársko-technického modulu LRIC-pure pre stanovenie ceny prepojovacích poplatkov za službu ukončenia volania v jednotlivých mobilných telefónnych sieťach z dôvodu zmien na telekomunikačnom trhu (používanie technológie LTE)“ (tzv. „LRIC – pure“ podľa odporúčania EK o regulačnom zaobchádzaní s prepojovacími poplatkami v pevných a mobilných telefónnych sieťach v EÚ zo 7. mája 2009). Slúži ako matematický model pre výpočet cien na základe dlhodobých prírastkových nákladov (vrátene modelu LRIC) pre službu ukončenia volaní vo verejných mobilných sieťach. Ide o aktualizáciu funkčného modelu, ktorý bude v súlade so zmluvou z 22.3.2016 v nasledujúcich fázach projektu prechádzať naplnením vstupmi operátorov pôsobiacich na trhu mobilných komunikácií v Slovenskej republike. Vzhľadom na uvedený postup v nasledujúcich fázach projektu môže dôjsť k jeho modifikácii smerujúcej k naplneniu modelu optimálnymi vstupmi a prípadného nasledujúceho zapracovania významných pripomienok zo strany RÚ alebo operátorov.

Sheet A. Výber
A1: A. Voľba parametrov | H1: Selections
D2: ='0. Hlavné vstupy'!BB9 -> 0
B5: Výberové kritériá | H5: Criteria (repeated) | I5: List | J5: Selection
C6: Počet operátorov | H6: Odpisová metoda | I6: Jednoduchá anuita | J6: 4
I7: Naklonená anuita
C8: Metóda anualizácie investičných výdavkov | I8: Modifikovaná jednoduchá anuita
I9: Modifikovaná naklonená anuita
C10: Rok | H10: Rok | I10: Rok 0 | J10: 2
I11: Rok 1
C12: Model operátora | I12: Rok 2
I13: Rok 3
C14: Migrácia 2G / 3G | H14: Model operátora | I14: Model teoretického operátora | J14: 1
C15: Konverzné faktory | I15: Model operátora 1
C16: Migrácia 3G/4G | I16: Model operátora 2
I17: Model operátora 3
I18: Model operátora 4
C20: Distribúcia prevádzky GSM / UMTS / LTE | D20: Hlas % | E20: Dáta % | H20: Migrace 2G / 3G | I20: Zahrnúť | J20: 1
C21: Prevádzka v GSM rádiovej sieti | D21: ='2. Dopyt'!E46 -> 0 | E21: ='2. Dopyt'!E81 -> 0 | I21: Nezahrnúť
C22: Prevádzka v UMTS rádiovej sieti | D22: ='2. Dopyt'!E47 -> 0 | E22: ='2. Dopyt'!E82 -> 0 | H22: Konverzné faktory | I22: návrh operátorov | J22: 1
C23: Prevádzka v LTE rádiovej sieti | D23: ='2. Dopyt'!E48 -> 0 | E23: ='2. Dopyt'!E83 -> 0 | I23: návrh dodávateľa
H24: Migrácia 3G/4G | I24: Zahrnúť | J24: 1
I25: Nezahrnúť
C26: Calibration for Dual GSM (Y/N) | D26: Y | H26: počet operátorov | I26: 3 | J26: 2
I27: 4

Sheet B. Výsledky & citlivosť
A1: B. Výsledky v zvolenom roku
B3: 1. Výpočet hodnoty Pure LRIC
B5: Název služby | C5: -3.936032884e-06 | R5: 29722898.9 | S5: =R5-'11. Anualizácia nákladov'!E302 -> 
B6: Příchozí - hovory od jiných mobilních operátorů | C6: -3.635593882e-06 | R6: 29722898.9 | S6: =R6-'11. Anualizácia nákladov'!E302 -> 
B7: Příchozí - hovory z pevné sítě | C7: -3.424116137e-06 | R7: 29722898.9 | S7: =R7-'11. Anualizácia nákladov'!E302 -> 
B8: Příchozí - hovory ze zahraničí | C8: -3.380177653e-06 | R8: 29722898.9 | S8: =R8-'11. Anualizácia nákladov'!E302 -> 
B9: Příchozí - příchozí roaming | S9: =R9-'11. Anualizácia nákladov'!E307 -> 
B10: Vstup | C10: Hodnota
B11: Náklady všetkých služieb
B12: Náklady služieb bez inkrementu
B13: Objem terminácie | C13: =SUM('2. Dopyt'!E38:E41) -> 0
B14: PureLRIC cena terminácie v EUR bez variabilných nákladov licenčných / administratívnych poplatkov | C14: =(C11-C12)/C13 -> 
B15: PureLRIC cena terminácie v EUR vrátane variabilných nákladov licenčných / administratívnych poplatkov | C15: =C14+((0.0008*'0. Hlavné vstupy'!BB157)/'B. Výsledky & citlivosť'!C13) -> 
B16: LRAIC cena terminácie | C16: =C31 -> 
B17: 2. Výpočet hodnoty vrátane služby MTR
C19: Základný prepočet | H19: Modelovanie scenára
B20: Hlavné služby | C20: Jednotka siete | D20: Jednotkový maloobchodný náklad | E20: Outpayments | F20: Jednotkový náklad celkom | H20: Jednotka siete | I20: Jednotkový maloobchodný náklad | J20: Outpayments | K20: Jednotkový náklad celkom | M20: Rozdiel
B21: Jednotka | C21: EUR | D21: EUR | E21: EUR | F21: EUR | H21: EUR | I21: EUR | J21: EUR | K21: EUR | M21: %
B22: ='12. Náklady služieb'!B44 -> Odchádzajúce - hovory v sieti (on-net) | C22: ='12. Náklady služieb'!C110 ->  | D22: ='12. Náklady služieb'!D110 ->  | F22: =SUM(C22:E22) ->  | K22: =SUM(H22:J22) -> 0 | M22: =F22/K22-1 -> 
B23: ='12. Náklady služieb'!B45 -> Odchádzajúce - hovory do sietí iných mobilných operátorov | C23: ='12. Náklady služieb'!C111 ->  | D23: ='12. Náklady služieb'!D111 ->  | E23: =C31 ->  | J23: =H31 -> 0 | K23: 0 | M23: =F23/K23-1 -> 
B24: ='12. Náklady služieb'!B46 -> Odchádzajúce - hovory do pevnej siete | C24: ='12. Náklady služieb'!C112 ->  | D24: ='12. Náklady služieb'!D112 ->  | E24: =C32 ->  | J24: =H32 -> 0 | K24: 0
B25: ='12. Náklady služieb'!B47 -> Odchádzajúce - hovory do zahraničia | C25: ='12. Náklady služieb'!C113 ->  | D25: ='12. Náklady služieb'!D113 ->  | E25: ='12. Náklady služieb'!E113 -> 0 | J25: ='12. Náklady služieb'!J113 -> 0 | K25: 0
B26: ='12. Náklady služieb'!B48 -> Odchádzajúce - hovory na tiesňové čísla | C26: ='12. Náklady služieb'!C114 ->  | D26: ='12. Náklady služieb'!D114 ->  | K26: 0
B27: ='12. Náklady služieb'!B49 -> Odchádzajúce - hovory do hlasovej schránky | C27: ='12. Náklady služieb'!C115 ->  | D27: ='12. Náklady služieb'!D115 ->  | K27: 0
B28: ='12. Náklady služieb'!B50 -> Odchádzajúce - hovory na bezplatné čísla | C28: ='12. Náklady služieb'!C116 ->  | D28: ='12. Náklady služieb'!D116 ->  | K28: 0
B29: ='12. Náklady služieb'!B51 -> Odchádzajúce - hovory na čísla Premium | C29: ='12. Náklady služieb'!C117 ->  | D29: ='12. Náklady služieb'!D117 ->  | K29: 0
B30: ='12. Náklady služieb'!B52 -> Odchádzajúce - prichádzajúci roaming | C30: ='12. Náklady služieb'!C118 ->  | D30: ='12. Náklady služieb'!D118 ->  | K30: 0
B31: ='12. Náklady služieb'!B53 -> Prichádzajúce - hovory od iných mobilných operátorov | C31: ='12. Náklady služieb'!C119 ->  | D31: ='12. Náklady služieb'!D119 ->  | K31: 0
B32: ='12. Náklady služieb'!B54 -> Prichádzajúce - hovory z pevnej siete | C32: ='12. Náklady služieb'!C120 ->  | D32: ='12. Náklady služieb'!D120 ->  | K32: 0
B33: ='12. Náklady služieb'!B55 -> Prichádzajúce - hovory zo zahraničia | C33: ='12. Náklady služieb'!C121 ->  | D33: ='12. Náklady služieb'!D121 ->  | K33: 0
B34: ='12. Náklady služieb'!B56 -> Prichádzajúce - prichádzajúci roaming | C34: ='12. Náklady služieb'!C122 ->  | D34: ='12. Náklady služieb'!D122 ->  | K34: 0
B35: ='12. Náklady služieb'!B57 -> Odchádzajúce - SMS v rámci siete | C35: ='12. Náklady služieb'!C123 ->  | D35: ='12. Náklady služieb'!D123 ->  | K35: 0
B36: ='12. Náklady služieb'!B58 -> Odchádzajúce - SMS do sietí iných mobilných operátorov | C36: ='12. Náklady služieb'!C124 ->  | D36: ='12. Náklady služieb'!D124 ->  | E36: =C38 ->  | J36: =H38 -> 0 | K36: 0
B37: ='12. Náklady služieb'!B59 -> Odchádzajúce - SMS do zahraničia | C37: ='12. Náklady služieb'!C125 ->  | D37: ='12. Náklady služieb'!D125 ->  | E37: ='12. Náklady služieb'!E125 -> 0 | J37: ='12. Náklady služieb'!J125 -> 0 | K37: 0
B38: ='12. Náklady služieb'!B60 -> Prichádzajúce - SMS z iných sietí mobilných operátorov | C38: ='12. Náklady služieb'!C126 ->  | D38: ='12. Náklady služieb'!D126 ->  | K38: 0
B39: ='12. Náklady služieb'!B61 -> Prichádzajúce - SMS zo zahraničia | C39: ='12. Náklady služieb'!C127 ->  | D39: ='12. Náklady služieb'!D127 ->  | K39: 0
B40: ='12. Náklady služieb'!B62 -> Odchádzajúce - MMS v rámci siete | C40: ='12. Náklady služieb'!C128 ->  | D40: ='12. Náklady služieb'!D128 ->  | K40: 0
B41: ='12. Náklady služieb'!B63 -> Odchádzajúce - MMS do sietí iných mobilných operátorov | C41: ='12. Náklady služieb'!C129 ->  | D41: ='12. Náklady služieb'!D129 ->  | K41: 0
B42: ='12. Náklady služieb'!B64 -> Odchádzajúce - MMS do zahraničia | C42: ='12. Náklady služieb'!C130 ->  | D42: ='12. Náklady služieb'!D130 ->  | K42: 0
B43: ='12. Náklady služieb'!B65 -> Prichádzajúce - MMS z iných sietí mobilných operátorov | C43: ='12. Náklady služieb'!C131 ->  | D43: ='12. Náklady služieb'!D131 ->  | K43: 0
B44: ='12. Náklady služieb'!B66 -> Prichádzajúce - MMS zo zahraničia | C44: ='12. Náklady služieb'!C132 ->  | D44: ='12. Náklady služieb'!D132 ->  | K44: 0
B45: ='12. Náklady služieb'!B67 -> Mobilné dáta | C45: ='12. Náklady služieb'!C133 ->  | D45: ='12. Náklady služieb'!D133 ->  | K45: 0

Sheet C. Grafy
A1: C. Grafy

Sheet E. Schéma
A1: E. Návrh modelu

Sheet 12. Náklady služieb
A1: 12. Náklady na služby
A3: Popis
A4: Výpočet nákladov na služby
A6: 12.1 Jednotkový náklad na základe sieťových prvkov
G7: Routing factors
B8: Služba | C8: Jednotka | D8: Objem v aktuálnom roku | E8: Konverzný faktor | F8: Ekvivalent hlasových minút | G8: ='3. Smerovacie faktory'!C8 -> Access Sites | H8: ='3. Smerovacie faktory'!D8 -> BTS | I8: ='3. Smerovacie faktory'!E8 -> BSC | J8: ='3. Smerovacie faktory'!F8 -> Node B | K8: ='3. Smerovacie faktory'!G8 -> RNC | L8: ='3. Smerovacie faktory'!H8 -> eNode B (RU a DU) | M8: ='3. Smerovacie faktory'!I8 -> HLR/HSS | N8: ='3. Smerovacie faktory'!J8 -> MSS / MME | O8: ='3. Smerovacie faktory'!K8 -> MGW - SGW,PGW | P8: ='3. Smerovacie faktory'!L8 -> BTS - BSC | Q8: ='3. Smerovacie faktory'!M8 -> Node B - RNC | R8: ='3. Smerovacie faktory'!N8 -> eNodeB RU - DU | S8: ='3. Smerovacie faktory'!O8 -> BSC - MGW | T8: ='3. Smerovacie faktory'!P8 -> RNC - MGW | U8: ='3. Smerovacie faktory'!R8 -> MGW - MGW / SGW, PGW - SGW, PGW | V8: ='3. Smerovacie faktory'!T8 -> Mobile voicemail platform | W8: ='3. Smerovacie faktory'!U8 -> SMSC Platform | X8: ='3. Smerovacie faktory'!V8 -> MMSC Platform | Y8: ='3. Smerovacie faktory'!W8 -> Intelligent Network | Z8: ='3. Smerovacie faktory'!X8 -> SGSN Platform | AA8: ='3. Smerovacie faktory'!Y8 -> GGSN Platform | AB8: ='3. Smerovacie faktory'!Z8 -> Interconnection | AC8: ='3. Smerovacie faktory'!AA8 -> IMS | AD8: ='3. Smerovacie faktory'!AB8 -> PCRF
B9: ='3. Smerovacie faktory'!B9 -> Odchádzajúce - hovory v sieti (on-net) | C9: # minút | D9: =VLOOKUP(B9,'2. Dopyt'!$B$29:$G$41,4,0) -> 0 | E9: 1 | F9: =D9*E9 -> 0 | G9: ='3. Smerovacie faktory'!C9 -> 2 | H9: ='3. Smerovacie faktory'!D9 -> 2 | I9: ='3. Smerovacie faktory'!E9 -> 2 | J9: ='3. Smerovacie faktory'!F9 -> 2 | K9: ='3. Smerovacie faktory'!G9 -> 2 | L9: ='3. Smerovacie faktory'!H9 -> 2 | M9: ='3. Smerovacie faktory'!I9 -> 1 | N9: ='3. Smerovacie faktory'!J9 -> 1.5 | O9: ='3. Smerovacie faktory'!K9 -> 1.5 | P9: ='3. Smerovacie faktory'!L9 -> 2 | Q9: ='3. Smerovacie faktory'!M9 -> 2 | R9: ='3. Smerovacie faktory'!N9 -> 2 | S9: ='3. Smerovacie faktory'!O9 -> 2 | T9: ='3. Smerovacie faktory'!P9 -> 2 | U9: ='3. Smerovacie faktory'!R9 -> 0.5 | V9: ='3. Smerovacie faktory'!T9 -> 0 | W9: ='3. Smerovacie faktory'!U9 -> 0 | X9: ='3. Smerovacie faktory'!V9 -> 0 | Y9: ='3. Smerovacie faktory'!W9 -> 1 | Z9: ='3. Smerovacie faktory'!X9 -> 0 | AA9: ='3. Smerovacie faktory'!Y9 -> 0 | AB9: ='3. Smerovacie faktory'!Z9 -> 0 | AC9: ='3. Smerovacie faktory'!AA9 -> 1 | AD9: ='3. Smerovacie faktory'!AB9 -> 1
B10: ='3. Smerovacie faktory'!B10 -> Odchádzajúce - hovory do sietí iných mobilných operátorov | C10: # minút | D10: =VLOOKUP(B10,'2. Dopyt'!$B$29:$G$41,4,0) -> 0 | E10: 1 | F10: 0 | G10: ='3. Smerovacie faktory'!C10 -> 1 | H10: ='3. Smerovacie faktory'!D10 -> 1 | I10: ='3. Smerovacie faktory'!E10 -> 1 | J10: ='3. Smerovacie faktory'!F10 -> 1 | K10: ='3. Smerovacie faktory'!G10 -> 1 | L10: ='3. Smerovacie faktory'!H10 -> 1 | M10: ='3. Smerovacie faktory'!I10 -> 1 | N10: ='3. Smerovacie faktory'!J10 -> 1.5 | O10: ='3. Smerovacie faktory'!K10 -> 1.5 | P10: ='3. Smerovacie faktory'!L10 -> 1 | Q10: ='3. Smerovacie faktory'!M10 -> 1 | R10: ='3. Smerovacie faktory'!N10 -> 1 | S10: ='3. Smerovacie faktory'!O10 -> 1 | T10: ='3. Smerovacie faktory'!P10 -> 1 | U10: ='3. Smerovacie faktory'!R10 -> 0.5 | V10: ='3. Smerovacie faktory'!T10 -> 0 | W10: ='3. Smerovacie faktory'!U10 -> 0 | X10: ='3. Smerovacie faktory'!V10 -> 0 | Y10: ='3. Smerovacie faktory'!W10 -> 1 | Z10: ='3. Smerovacie faktory'!X10 -> 0 | AA10: ='3. Smerovacie faktory'!Y10 -> 0 | AB10: ='3. Smerovacie faktory'!Z10 -> 1 | AC10: ='3. Smerovacie faktory'!AA10 -> 1 | AD10: ='3. Smerovacie faktory'!AB10 -> 1
B11: ='3. Smerovacie faktory'!B11 -> Odchádzajúce - hovory do pevnej siete | C11: # minút | D11: =VLOOKUP(B11,'2. Dopyt'!$B$29:$G$41,4,0) -> 0 | E11: 1 | F11: 0 | G11: ='3. Smerovacie faktory'!C11 -> 1 | H11: ='3. Smerovacie faktory'!D11 -> 1 | I11: ='3. Smerovacie faktory'!E11 -> 1 | J11: ='3. Smerovacie faktory'!F11 -> 1 | K11: ='3. Smerovacie faktory'!G11 -> 1 | L11: ='3. Smerovacie faktory'!H11 -> 1 | M11: ='3. Smerovacie faktory'!I11 -> 1 | N11: ='3. Smerovacie faktory'!J11 -> 1.5 | O11: ='3. Smerovacie faktory'!K11 -> 1.5 | P11: ='3. Smerovacie faktory'!L11 -> 1 | Q11: ='3. Smerovacie faktory'!M11 -> 1 | R11: ='3. Smerovacie faktory'!N11 -> 1 | S11: ='3. Smerovacie faktory'!O11 -> 1 | T11: ='3. Smerovacie faktory'!P11 -> 1 | U11: ='3. Smerovacie faktory'!R11 -> 0.5 | V11: ='3. Smerovacie faktory'!T11 -> 0 | W11: ='3. Smerovacie faktory'!U11 -> 0 | X11: ='3. Smerovacie faktory'!V11 -> 0 | Y11: ='3. Smerovacie faktory'!W11 -> 1 | Z11: ='3. Smerovacie faktory'!X11 -> 0 | AA11: ='3. Smerovacie faktory'!Y11 -> 0 | AB11: ='3. Smerovacie faktory'!Z11 -> 1 | AC11: ='3. Smerovacie faktory'!AA11 -> 1 | AD11: ='3. Smerovacie faktory'!AB11 -> 1
B12: ='3. Smerovacie faktory'!B12 -> Odchádzajúce - hovory do zahraničia | C12: # minút | D12: =VLOOKUP(B12,'2. Dopyt'!$B$29:$G$41,4,0) -> 0 | E12: 1 | F12: 0 | G12: ='3. Smerovacie faktory'!C12 -> 1 | H12: ='3. Smerovacie faktory'!D12 -> 1 | I12: ='3. Smerovacie faktory'!E12 -> 1 | J12: ='3. Smerovacie faktory'!F12 -> 1 | K12: ='3. Smerovacie faktory'!G12 -> 1 | L12: ='3. Smerovacie faktory'!H12 -> 1 | M12: ='3. Smerovacie faktory'!I12 -> 1 | N12: ='3. Smerovacie faktory'!J12 -> 1.5 | O12: ='3. Smerovacie faktory'!K12 -> 1.5 | P12: ='3. Smerovacie faktory'!L12 -> 1 | Q12: ='3. Smerovacie faktory'!M12 -> 1 | R12: ='3. Smerovacie faktory'!N12 -> 1 | S12: ='3. Smerovacie faktory'!O12 -> 1 | T12: ='3. Smerovacie faktory'!P12 -> 1 | U12: ='3. Smerovacie faktory'!R12 -> 0.5 | V12: ='3. Smerovacie faktory'!T12 -> 0 | W12: ='3. Smerovacie faktory'!U12 -> 0 | X12: ='3. Smerovacie faktory'!V12 -> 0 | Y12: ='3. Smerovacie faktory'!W12 -> 1 | Z12: ='3. Smerovacie faktory'!X12 -> 0 | AA12: ='3. Smerovacie faktory'!Y12 -> 0 | AB12: ='3. Smerovacie faktory'!Z12 -> 1 | AC12: ='3. Smerovacie faktory'!AA12 -> 1 | AD12: ='3. Smerovacie faktory'!AB12 -> 1
B13: ='3. Smerovacie faktory'!B13 -> Odchádzajúce - hovory na tiesňové čísla | C13: # minút | D13: =VLOOKUP(B13,'2. Dopyt'!$B$29:$G$41,4,0) -> 0 | E13: 1 | F13: 0 | G13: ='3. Smerovacie faktory'!C13 -> 1 | H13: ='3. Smerovacie faktory'!D13 -> 1 | I13: ='3. Smerovacie faktory'!E13 -> 1 | J13: ='3. Smerovacie faktory'!F13 -> 1 | K13: ='3. Smerovacie faktory'!G13 -> 1 | L13: ='3. Smerovacie faktory'!H13 -> 1 | M13: ='3. Smerovacie faktory'!I13 -> 1 | N13: ='3. Smerovacie faktory'!J13 -> 1.5 | O13: ='3. Smerovacie faktory'!K13 -> 1.5 | P13: ='3. Smerovacie faktory'!L13 -> 1 | Q13: ='3. Smerovacie faktory'!M13 -> 1 | R13: ='3. Smerovacie faktory'!N13 -> 1 | S13: ='3. Smerovacie faktory'!O13 -> 1 | T13: ='3. Smerovacie faktory'!P13 -> 1 | U13: ='3. Smerovacie faktory'!R13 -> 0.5 | V13: ='3. Smerovacie faktory'!T13 -> 0 | W13: ='3. Smerovacie faktory'!U13 -> 0 | X13: ='3. Smerovacie faktory'!V13 -> 0 | Y13: ='3. Smerovacie faktory'!W13 -> 1 | Z13: ='3. Smerovacie faktory'!X13 -> 0 | AA13: ='3. Smerovacie faktory'!Y13 -> 0 | AB13: ='3. Smerovacie faktory'!Z13 -> 1 | AC13: ='3. Smerovacie faktory'!AA13 -> 1 | AD13: ='3. Smerovacie faktory'!AB13 -> 1
B14: ='3. Smerovacie faktory'!B14 -> Odchádzajúce - hovory do hlasovej schránky | C14: # minút | D14: =VLOOKUP(B14,'2. Dopyt'!$B$29:$G$41,4,0) -> 0 | E14: 1 | F14: 0 | G14: ='3. Smerovacie faktory'!C14 -> 1 | H14: ='3. Smerovacie faktory'!D14 -> 1 | I14: ='3. Smerovacie faktory'!E14 -> 1 | J14: ='3. Smerovacie faktory'!F14 -> 1 | K14: ='3. Smerovacie faktory'!G14 -> 1 | L14: ='3. Smerovacie faktory'!H14 -> 1 | M14: ='3. Smerovacie faktory'!I14 -> 1 | N14: ='3. Smerovacie faktory'!J14 -> 1.5 | O14: ='3. Smerovacie faktory'!K14 -> 1.5 | P14: ='3. Smerovacie faktory'!L14 -> 1 | Q14: ='3. Smerovacie faktory'!M14 -> 1 | R14: ='3. Smerovacie faktory'!N14 -> 1 | S14: ='3. Smerovacie faktory'!O14 -> 1 | T14: ='3. Smerovacie faktory'!P14 -> 1 | U14: ='3. Smerovacie faktory'!R14 -> 0.5 | V14: ='3. Smerovacie faktory'!T14 -> 1 | W14: ='3. Smerovacie faktory'!U14 -> 0 | X14: ='3. Smerovacie faktory'!V14 -> 0 | Y14: ='3. Smerovacie faktory'!W14 -> 1 | Z14: ='3. Smerovacie faktory'!X14 -> 0 | AA14: ='3. Smerovacie faktory'!Y14 -> 0 | AB14: ='3. Smerovacie faktory'!Z14 -> 0 | AC14: ='3. Smerovacie faktory'!AA14 -> 1 | AD14: ='3. Smerovacie faktory'!AB14 -> 1
B15: ='3. Smerovacie faktory'!B15 -> Odchádzajúce - hovory na bezplatné čísla | C15: # minút | D15: =VLOOKUP(B15,'2. Dopyt'!$B$29:$G$41,4,0) -> 0 | E15: 1 | F15: 0 | G15: ='3. Smerovacie faktory'!C15 -> 1 | H15: ='3. Smerovacie faktory'!D15 -> 1 | I15: ='3. Smerovacie faktory'!E15 -> 1 | J15: ='3. Smerovacie faktory'!F15 -> 1 | K15: ='3. Smerovacie faktory'!G15 -> 1 | L15: ='3. Smerovacie faktory'!H15 -> 1 | M15: ='3. Smerovacie faktory'!I15 -> 1 | N15: ='3. Smerovacie faktory'!J15 -> 1.5 | O15: ='3. Smerovacie faktory'!K15 -> 1.5 | P15: ='3. Smerovacie faktory'!L15 -> 1 | Q15: ='3. Smerovacie faktory'!M15 -> 1 | R15: ='3. Smerovacie faktory'!N15 -> 1 | S15: ='3. Smerovacie faktory'!O15 -> 1 | T15: ='3. Smerovacie faktory'!P15 -> 1 | U15: ='3. Smerovacie faktory'!R15 -> 0.5 | V15: ='3. Smerovacie faktory'!T15 -> 0 | W15: ='3. Smerovacie faktory'!U15 -> 0 | X15: ='3. Smerovacie faktory'!V15 -> 0 | Y15: ='3. Smerovacie faktory'!W15 -> 1 | Z15: ='3. Smerovacie faktory'!X15 -> 0 | AA15: ='3. Smerovacie faktory'!Y15 -> 0 | AB15: ='3. Smerovacie faktory'!Z15 -> 1 | AC15: ='3. Smerovacie faktory'!AA15 -> 1 | AD15: ='3. Smerovacie faktory'!AB15 -> 1
B16: ='3. Smerovacie faktory'!B16 -> Odchádzajúce - hovory na čísla Premium | C16: # minút | D16: =VLOOKUP(B16,'2. Dopyt'!$B$29:$G$41,4,0) -> 0 | E16: 1 | F16: 0 | G16: ='3. Smerovacie faktory'!C16 -> 1 | H16: ='3. Smerovacie faktory'!D16 -> 1 | I16: ='3. Smerovacie faktory'!E16 -> 1 | J16: ='3. Smerovacie faktory'!F16 -> 1 | K16: ='3. Smerovacie faktory'!G16 -> 1 | L16: ='3. Smerovacie faktory'!H16 -> 1 | M16: ='3. Smerovacie faktory'!I16 -> 1 | N16: ='3. Smerovacie faktory'!J16 -> 1.5 | O16: ='3. Smerovacie faktory'!K16 -> 1.5 | P16: ='3. Smerovacie faktory'!L16 -> 1 | Q16: ='3. Smerovacie faktory'!M16 -> 1 | R16: ='3. Smerovacie faktory'!N16 -> 1 | S16: ='3. Smerovacie faktory'!O16 -> 1 | T16: ='3. Smerovacie faktory'!P16 -> 1 | U16: ='3. Smerovacie faktory'!R16 -> 0.5 | V16: ='3. Smerovacie faktory'!T16 -> 0 | W16: ='3. Smerovacie faktory'!U16 -> 0 | X16: ='3. Smerovacie faktory'!V16 -> 0 | Y16: ='3. Smerovacie faktory'!W16 -> 1 | Z16: ='3. Smerovacie faktory'!X16 -> 0 | AA16: ='3. Smerovacie faktory'!Y16 -> 0 | AB16: ='3. Smerovacie faktory'!Z16 -> 1 | AC16: ='3. Smerovacie faktory'!AA16 -> 1 | AD16: ='3. Smerovacie faktory'!AB16 -> 1
B17: ='3. Smerovacie faktory'!B17 -> Odchádzajúce - prichádzajúci roaming | C17: # minút | D17: =VLOOKUP(B17,'2. Dopyt'!$B$29:$G$41,4,0) -> 0 | E17: 1 | F17: 0 | G17: ='3. Smerovacie faktory'!C17 -> 1 | H17: ='3. Smerovacie faktory'!D17 -> 1 | I17: ='3. Smerovacie faktory'!E17 -> 1 | J17: ='3. Smerovacie faktory'!F17 -> 1 | K17: ='3. Smerovacie faktory'!G17 -> 1 | L17: ='3. Smerovacie faktory'!H17 -> 1 | M17: ='3. Smerovacie faktory'!I17 -> 1 | N17: ='3. Smerovacie faktory'!J17 -> 1.5 | O17: ='3. Smerovacie faktory'!K17 -> 1.5 | P17: ='3. Smerovacie faktory'!L17 -> 1 | Q17: ='3. Smerovacie faktory'!M17 -> 1 | R17: ='3. Smerovacie faktory'!N17 -> 1 | S17: ='3. Smerovacie faktory'!O17 -> 1 | T17: ='3. Smerovacie faktory'!P17 -> 1 | U17: ='3. Smerovacie faktory'!R17 -> 0.5 | V17: ='3. Smerovacie faktory'!T17 -> 0 | W17: ='3. Smerovacie faktory'!U17 -> 0 | X17: ='3. Smerovacie faktory'!V17 -> 0 | Y17: ='3. Smerovacie faktory'!W17 -> 1 | Z17: ='3. Smerovacie faktory'!X17 -> 0 | AA17: ='3. Smerovacie faktory'!Y17 -> 0 | AB17: ='3. Smerovacie faktory'!Z17 -> 1 | AC17: ='3. Smerovacie faktory'!AA17 -> 1 | AD17: ='3. Smerovacie faktory'!AB17 -> 1
B18: ='3. Smerovacie faktory'!B18 -> Prichádzajúce - hovory od iných mobilných operátorov | C18: # minút | D18: =VLOOKUP(B18,'2. Dopyt'!$B$29:$G$41,4,0) -> 0 | E18: 1 | F18: 0 | G18: ='3. Smerovacie faktory'!C18 -> 1 | H18: ='3. Smerovacie faktory'!D18 -> 1 | I18: ='3. Smerovacie faktory'!E18 -> 1 | J18: ='3. Smerovacie faktory'!F18 -> 1 | K18: ='3. Smerovacie faktory'!G18 -> 1 | L18: ='3. Smerovacie faktory'!H18 -> 1 | M18: ='3. Smerovacie faktory'!I18 -> 1 | N18: ='3. Smerovacie faktory'!J18 -> 1.5 | O18: ='3. Smerovacie faktory'!K18 -> 1.5 | P18: ='3. Smerovacie faktory'!L18 -> 1 | Q18: ='3. Smerovacie faktory'!M18 -> 1 | R18: ='3. Smerovacie faktory'!N18 -> 1 | S18: ='3. Smerovacie faktory'!O18 -> 1 | T18: ='3. Smerovacie faktory'!P18 -> 1 | U18: ='3. Smerovacie faktory'!R18 -> 0.5 | V18: ='3. Smerovacie faktory'!T18 -> 0 | W18: ='3. Smerovacie faktory'!U18 -> 0 | X18: ='3. Smerovacie faktory'!V18 -> 0 | Y18: ='3. Smerovacie faktory'!W18 -> 1 | Z18: ='3. Smerovacie faktory'!X18 -> 0 | AA18: ='3. Smerovacie faktory'!Y18 -> 0 | AB18: ='3. Smerovacie faktory'!Z18 -> 1 | AC18: ='3. Smerovacie faktory'!AA18 -> 1 | AD18: ='3. Smerovacie faktory'!AB18 -> 1
B19: ='3. Smerovacie faktory'!B19 -> Prichádzajúce - hovory z pevnej siete | C19: # minút | D19: =VLOOKUP(B19,'2. Dopyt'!$B$29:$G$41,4,0) -> 0 | E19: 1 | F19: 0 | G19: ='3. Smerovacie faktory'!C19 -> 1 | H19: ='3. Smerovacie faktory'!D19 -> 1 | I19: ='3. Smerovacie faktory'!E19 -> 1 | J19: ='3. Smerovacie faktory'!F19 -> 1 | K19: ='3. Smerovacie faktory'!G19 -> 1 | L19: ='3. Smerovacie faktory'!H19 -> 1 | M19: ='3. Smerovacie faktory'!I19 -> 1 | N19: ='3. Smerovacie faktory'!J19 -> 1.5 | O19: ='3. Smerovacie faktory'!K19 -> 1.5 | P19: ='3. Smerovacie faktory'!L19 -> 1 | Q19: ='3. Smerovacie faktory'!M19 -> 1 | R19: ='3. Smerovacie faktory'!N19 -> 1 | S19: ='3. Smerovacie faktory'!O19 -> 1 | T19: ='3. Smerovacie faktory'!P19 -> 1 | U19: ='3. Smerovacie faktory'!R19 -> 0.5 | V19: ='3. Smerovacie faktory'!T19 -> 0 | W19: ='3. Smerovacie faktory'!U19 -> 0 | X19: ='3. Smerovacie faktory'!V19 -> 0 | Y19: ='3. Smerovacie faktory'!W19 -> 1 | Z19: ='3. Smerovacie faktory'!X19 -> 0 | AA19: ='3. Smerovacie faktory'!Y19 -> 0 | AB19: ='3. Smerovacie faktory'!Z19 -> 1 | AC19: ='3. Smerovacie faktory'!AA19 -> 1 | AD19: ='3. Smerovacie faktory'!AB19 -> 1
B20: ='3. Smerovacie faktory'!B20 -> Prichádzajúce - hovory zo zahraničia | C20: # minút | D20: =VLOOKUP(B20,'2. Dopyt'!$B$29:$G$41,4,0) -> 0 | E20: 1 | F20: 0 | G20: ='3. Smerovacie faktory'!C20 -> 1 | H20: ='3. Smerovacie faktory'!D20 -> 1 | I20: ='3. Smerovacie faktory'!E20 -> 1 | J20: ='3. Smerovacie faktory'!F20 -> 1 | K20: ='3. Smerovacie faktory'!G20 -> 1 | L20: ='3. Smerovacie faktory'!H20 -> 1 | M20: ='3. Smerovacie faktory'!I20 -> 1 | N20: ='3. Smerovacie faktory'!J20 -> 1.5 | O20: ='3. Smerovacie faktory'!K20 -> 1.5 | P20: ='3. Smerovacie faktory'!L20 -> 1 | Q20: ='3. Smerovacie faktory'!M20 -> 1 | R20: ='3. Smerovacie faktory'!N20 -> 1 | S20: ='3. Smerovacie faktory'!O20 -> 1 | T20: ='3. Smerovacie faktory'!P20 -> 1 | U20: ='3. Smerovacie faktory'!R20 -> 0.5 | V20: ='3. Smerovacie faktory'!T20 -> 0 | W20: ='3. Smerovacie faktory'!U20 -> 0 | X20: ='3. Smerovacie faktory'!V20 -> 0 | Y20: ='3. Smerovacie faktory'!W20 -> 1 | Z20: ='3. Smerovacie faktory'!X20 -> 0 | AA20: ='3. Smerovacie faktory'!Y20 -> 0 | AB20: ='3. Smerovacie faktory'!Z20 -> 1 | AC20: ='3. Smerovacie faktory'!AA20 -> 1 | AD20: ='3. Smerovacie faktory'!AB20 -> 1
B21: ='3. Smerovacie faktory'!B21 -> Prichádzajúce - prichádzajúci roaming | C21: # minút | D21: =VLOOKUP(B21,'2. Dopyt'!$B$29:$G$41,4,0) -> 0 | E21: 1 | F21: 0 | G21: ='3. Smerovacie faktory'!C21 -> 1 | H21: ='3. Smerovacie faktory'!D21 -> 1 | I21: ='3. Smerovacie faktory'!E21 -> 1 | J21: ='3. Smerovacie faktory'!F21 -> 1 | K21: ='3. Smerovacie faktory'!G21 -> 1 | L21: ='3. Smerovacie faktory'!H21 -> 1 | M21: ='3. Smerovacie faktory'!I21 -> 1 | N21: ='3. Smerovacie faktory'!J21 -> 1.5 | O21: ='3. Smerovacie faktory'!K21 -> 1.5 | P21: ='3. Smerovacie faktory'!L21 -> 1 | Q21: ='3. Smerovacie faktory'!M21 -> 1 | R21: ='3. Smerovacie faktory'!N21 -> 1 | S21: ='3. Smerovacie faktory'!O21 -> 1 | T21: ='3. Smerovacie faktory'!P21 -> 1 | U21: ='3. Smerovacie faktory'!R21 -> 0.5 | V21: ='3. Smerovacie faktory'!T21 -> 0 | W21: ='3. Smerovacie faktory'!U21 -> 0 | X21: ='3. Smerovacie faktory'!V21 -> 0 | Y21: ='3. Smerovacie faktory'!W21 -> 1 | Z21: ='3. Smerovacie faktory'!X21 -> 0 | AA21: ='3. Smerovacie faktory'!Y21 -> 0 | AB21: ='3. Smerovacie faktory'!Z21 -> 1 | AC21: ='3. Smerovacie faktory'!AA21 -> 1 | AD21: ='3. Smerovacie faktory'!AB21 -> 1
B22: ='3. Smerovacie faktory'!B22 -> Odchádzajúce - SMS v rámci siete | C22: # SMS | D22: =VLOOKUP(B22,'2. Dopyt'!$B$53:$G$57,4,0) -> 0 | E22: =I_SMS_Conversion -> 0.0260756193 | F22: 0 | G22: ='3. Smerovacie faktory'!C22 -> 2 | H22: ='3. Smerovacie faktory'!D22 -> 2 | I22: ='3. Smerovacie faktory'!E22 -> 2 | J22: ='3. Smerovacie faktory'!F22 -> 2 | K22: ='3. Smerovacie faktory'!G22 -> 2 | L22: ='3. Smerovacie faktory'!H22 -> 2 | M22: ='3. Smerovacie faktory'!I22 -> 1 | N22: ='3. Smerovacie faktory'!J22 -> 1.5 | O22: ='3. Smerovacie faktory'!K22 -> 1.5 | P22: ='3. Smerovacie faktory'!L22 -> 2 | Q22: ='3. Smerovacie faktory'!M22 -> 2 | R22: ='3. Smerovacie faktory'!N22 -> 2 | S22: ='3. Smerovacie faktory'!O22 -> 2 | T22: ='3. Smerovacie faktory'!P22 -> 2 | U22: ='3. Smerovacie faktory'!R22 -> 0.5 | V22: ='3. Smerovacie faktory'!T22 -> 0 | W22: ='3. Smerovacie faktory'!U22 -> 1 | X22: ='3. Smerovacie faktory'!V22 -> 0 | Y22: ='3. Smerovacie faktory'!W22 -> 1 | Z22: ='3. Smerovacie faktory'!X22 -> 0 | AA22: ='3. Smerovacie faktory'!Y22 -> 0 | AB22: ='3. Smerovacie faktory'!Z22 -> 0 | AC22: ='3. Smerovacie faktory'!AA22 -> 0 | AD22: ='3. Smerovacie faktory'!AB22 -> 1
B23: ='3. Smerovacie faktory'!B23 -> Odchádzajúce - SMS do sietí iných mobilných operátorov | C23: # SMS | D23: =VLOOKUP(B23,'2. Dopyt'!$B$53:$G$57,4,0) -> 0 | E23: =I_SMS_Conversion -> 0.0260756193 | F23: 0 | G23: ='3. Smerovacie faktory'!C23 -> 1 | H23: ='3. Smerovacie faktory'!D23 -> 1 | I23: ='3. Smerovacie faktory'!E23 -> 1 | J23: ='3. Smerovacie faktory'!F23 -> 1 | K23: ='3. Smerovacie faktory'!G23 -> 1 | L23: ='3. Smerovacie faktory'!H23 -> 1 | M23: ='3. Smerovacie faktory'!I23 -> 1 | N23: ='3. Smerovacie faktory'!J23 -> 1 | O23: ='3. Smerovacie faktory'!K23 -> 0 | P23: ='3. Smerovacie faktory'!L23 -> 1 | Q23: ='3. Smerovacie faktory'!M23 -> 1 | R23: ='3. Smerovacie faktory'!N23 -> 1 | S23: ='3. Smerovacie faktory'!O23 -> 1 | T23: ='3. Smerovacie faktory'!P23 -> 1 | U23: ='3. Smerovacie faktory'!R23 -> 0 | V23: ='3. Smerovacie faktory'!T23 -> 0 | W23: ='3. Smerovacie faktory'!U23 -> 1 | X23: ='3. Smerovacie faktory'!V23 -> 0 | Y23: ='3. Smerovacie faktory'!W23 -> 1 | Z23: ='3. Smerovacie faktory'!X23 -> 0 | AA23: ='3. Smerovacie faktory'!Y23 -> 0 | AB23: ='3. Smerovacie faktory'!Z23 -> 1 | AC23: ='3. Smerovacie faktory'!AA23 -> 0 | AD23: ='3. Smerovacie faktory'!AB23 -> 1
B24: ='3. Smerovacie faktory'!B24 -> Odchádzajúce - SMS do zahraničia | C24: # SMS | D24: =VLOOKUP(B24,'2. Dopyt'!$B$53:$G$57,4,0) -> 0 | E24: =I_SMS_Conversion -> 0.0260756193 | F24: 0 | G24: ='3. Smerovacie faktory'!C24 -> 1 | H24: ='3. Smerovacie faktory'!D24 -> 1 | I24: ='3. Smerovacie faktory'!E24 -> 1 | J24: ='3. Smerovacie faktory'!F24 -> 1 | K24: ='3. Smerovacie faktory'!G24 -> 1 | L24: ='3. Smerovacie faktory'!H24 -> 1 | M24: ='3. Smerovacie faktory'!I24 -> 1 | N24: ='3. Smerovacie faktory'!J24 -> 1 | O24: ='3. Smerovacie faktory'!K24 -> 0 | P24: ='3. Smerovacie faktory'!L24 -> 1 | Q24: ='3. Smerovacie faktory'!M24 -> 1 | R24: ='3. Smerovacie faktory'!N24 -> 1 | S24: ='3. Smerovacie faktory'!O24 -> 1 | T24: ='3. Smerovacie faktory'!P24 -> 1 | U24: ='3. Smerovacie faktory'!R24 -> 0 | V24: ='3. Smerovacie faktory'!T24 -> 0 | W24: ='3. Smerovacie faktory'!U24 -> 1 | X24: ='3. Smerovacie faktory'!V24 -> 0 | Y24: ='3. Smerovacie faktory'!W24 -> 1 | Z24: ='3. Smerovacie faktory'!X24 -> 0 | AA24: ='3. Smerovacie faktory'!Y24 -> 0 | AB24: ='3. Smerovacie faktory'!Z24 -> 1 | AC24: ='3. Smerovacie faktory'!AA24 -> 0 | AD24: ='3. Smerovacie faktory'!AB24 -> 1
B25: ='3. Smerovacie faktory'!B25 -> Prichádzajúce - SMS z iných sietí mobilných operátorov | C25: # SMS | D25: =VLOOKUP(B25,'2. Dopyt'!$B$53:$G$57,4,0) -> 0 | E25: =I_SMS_Conversion -> 0.0260756193 | F25: 0 | G25: ='3. Smerovacie faktory'!C25 -> 1 | H25: ='3. Smerovacie faktory'!D25 -> 1 | I25: ='3. Smerovacie faktory'!E25 -> 1 | J25: ='3. Smerovacie faktory'!F25 -> 1 | K25: ='3. Smerovacie faktory'!G25 -> 1 | L25: ='3. Smerovacie faktory'!H25 -> 1 | M25: ='3. Smerovacie faktory'!I25 -> 1 | N25: ='3. Smerovacie faktory'!J25 -> 1 | O25: ='3. Smerovacie faktory'!K25 -> 0 | P25: ='3. Smerovacie faktory'!L25 -> 1 | Q25: ='3. Smerovacie faktory'!M25 -> 1 | R25: ='3. Smerovacie faktory'!N25 -> 1 | S25: ='3. Smerovacie faktory'!O25 -> 1 | T25: ='3. Smerovacie faktory'!P25 -> 1 | U25: ='3. Smerovacie faktory'!R25 -> 0 | V25: ='3. Smerovacie faktory'!T25 -> 0 | W25: ='3. Smerovacie faktory'!U25 -> 1 | X25: ='3. Smerovacie faktory'!V25 -> 0 | Y25: ='3. Smerovacie faktory'!W25 -> 0 | Z25: ='3. Smerovacie faktory'!X25 -> 0 | AA25: ='3. Smerovacie faktory'!Y25 -> 0 | AB25: ='3. Smerovacie faktory'!Z25 -> 1 | AC25: ='3. Smerovacie faktory'!AA25 -> 0 | AD25: ='3. Smerovacie faktory'!AB25 -> 1
B26: ='3. Smerovacie faktory'!B26 -> Prichádzajúce - SMS zo zahraničia | C26: # SMS | D26: =VLOOKUP(B26,'2. Dopyt'!$B$53:$G$57,4,0) -> 0 | E26: =I_SMS_Conversion -> 0.0260756193 | F26: 0 | G26: ='3. Smerovacie faktory'!C26 -> 1 | H26: ='3. Smerovacie faktory'!D26 -> 1 | I26: ='3. Smerovacie faktory'!E26 -> 1 | J26: ='3. Smerovacie faktory'!F26 -> 1 | K26: ='3. Smerovacie faktory'!G26 -> 1 | L26: ='3. Smerovacie faktory'!H26 -> 1 | M26: ='3. Smerovacie faktory'!I26 -> 1 | N26: ='3. Smerovacie faktory'!J26 -> 1 | O26: ='3. Smerovacie faktory'!K26 -> 0 | P26: ='3. Smerovacie faktory'!L26 -> 1 | Q26: ='3. Smerovacie faktory'!M26 -> 1 | R26: ='3. Smerovacie faktory'!N26 -> 1 | S26: ='3. Smerovacie faktory'!O26 -> 1 | T26: ='3. Smerovacie faktory'!P26 -> 1 | U26: ='3. Smerovacie faktory'!R26 -> 0 | V26: ='3. Smerovacie faktory'!T26 -> 0 | W26: ='3. Smerovacie faktory'!U26 -> 1 | X26: ='3. Smerovacie faktory'!V26 -> 0 | Y26: ='3. Smerovacie faktory'!W26 -> 0 | Z26: ='3. Smerovacie faktory'!X26 -> 0 | AA26: ='3. Smerovacie faktory'!Y26 -> 0 | AB26: ='3. Smerovacie faktory'!Z26 -> 1 | AC26: ='3. Smerovacie faktory'!AA26 -> 0 | AD26: ='3. Smerovacie faktory'!AB26 -> 1
B27: ='3. Smerovacie faktory'!B27 -> Odchádzajúce - MMS v rámci siete | C27: # MMS | D27: =VLOOKUP(B27,'2. Dopyt'!$B$61:$G$65,4,0) -> 0 | E27: ='A. Výber'!$E$21*'6. NE Dopyt'!G41+(1-'A. Výber'!$E$21)*'6. NE Dopyt'!H41 -> 2.26 | F27: 0 | G27: ='3. Smerovacie faktory'!C27 -> 2 | H27: ='3. Smerovacie faktory'!D27 -> 2 | I27: ='3. Smerovacie faktory'!E27 -> 2 | J27: ='3. Smerovacie faktory'!F27 -> 2 | K27: ='3. Smerovacie faktory'!G27 -> 2 | L27: ='3. Smerovacie faktory'!H27 -> 2 | M27: ='3. Smerovacie faktory'!I27 -> 1 | N27: ='3. Smerovacie faktory'!J27 -> 0 | O27: ='3. Smerovacie faktory'!K27 -> 0 | P27: ='3. Smerovacie faktory'!L27 -> 2 | Q27: ='3. Smerovacie faktory'!M27 -> 2 | R27: ='3. Smerovacie faktory'!N27 -> 2 | S27: ='3. Smerovacie faktory'!O27 -> 2 | T27: ='3. Smerovacie faktory'!P27 -> 2 | U27: ='3. Smerovacie faktory'!R27 -> 0 | V27: ='3. Smerovacie faktory'!T27 -> 0 | W27: ='3. Smerovacie faktory'!U27 -> 0 | X27: ='3. Smerovacie faktory'!V27 -> 1 | Y27: ='3. Smerovacie faktory'!W27 -> 1 | Z27: ='3. Smerovacie faktory'!X27 -> 1 | AA27: ='3. Smerovacie faktory'!Y27 -> 1 | AB27: ='3. Smerovacie faktory'!Z27 -> 0 | AC27: ='3. Smerovacie faktory'!AA27 -> 0 | AD27: ='3. Smerovacie faktory'!AB27 -> 1
B28: ='3. Smerovacie faktory'!B28 -> Odchádzajúce - MMS do sietí iných mobilných operátorov | C28: # MMS | D28: =VLOOKUP(B28,'2. Dopyt'!$B$61:$G$65,4,0) -> 0 | E28: ='A. Výber'!$E$21*'6. NE Dopyt'!G42+(1-'A. Výber'!$E$21)*'6. NE Dopyt'!H42 -> 2.26 | F28: 0 | G28: ='3. Smerovacie faktory'!C28 -> 1 | H28: ='3. Smerovacie faktory'!D28 -> 1 | I28: ='3. Smerovacie faktory'!E28 -> 1 | J28: ='3. Smerovacie faktory'!F28 -> 1 | K28: ='3. Smerovacie faktory'!G28 -> 1 | L28: ='3. Smerovacie faktory'!H28 -> 1 | M28: ='3. Smerovacie faktory'!I28 -> 1 | N28: ='3. Smerovacie faktory'!J28 -> 0 | O28: ='3. Smerovacie faktory'!K28 -> 0 | P28: ='3. Smerovacie faktory'!L28 -> 1 | Q28: ='3. Smerovacie faktory'!M28 -> 1 | R28: ='3. Smerovacie faktory'!N28 -> 1 | S28: ='3. Smerovacie faktory'!O28 -> 1 | T28: ='3. Smerovacie faktory'!P28 -> 1 | U28: ='3. Smerovacie faktory'!R28 -> 0 | V28: ='3. Smerovacie faktory'!T28 -> 0 | W28: ='3. Smerovacie faktory'!U28 -> 0 | X28: ='3. Smerovacie faktory'!V28 -> 1 | Y28: ='3. Smerovacie faktory'!W28 -> 1 | Z28: ='3. Smerovacie faktory'!X28 -> 1 | AA28: ='3. Smerovacie faktory'!Y28 -> 1 | AB28: ='3. Smerovacie faktory'!Z28 -> 1 | AC28: ='3. Smerovacie faktory'!AA28 -> 0 | AD28: ='3. Smerovacie faktory'!AB28 -> 1
B29: ='3. Smerovacie faktory'!B29 -> Odchádzajúce - MMS do zahraničia | C29: # MMS | D29: =VLOOKUP(B29,'2. Dopyt'!$B$61:$G$65,4,0) -> 0 | E29: ='A. Výber'!$E$21*'6. NE Dopyt'!G43+(1-'A. Výber'!$E$21)*'6. NE Dopyt'!H43 -> 2.26 | F29: 0 | G29: ='3. Smerovacie faktory'!C29 -> 1 | H29: ='3. Smerovacie faktory'!D29 -> 1 | I29: ='3. Smerovacie faktory'!E29 -> 1 | J29: ='3. Smerovacie faktory'!F29 -> 1 | K29: ='3. Smerovacie faktory'!G29 -> 1 | L29: ='3. Smerovacie faktory'!H29 -> 1 | M29: ='3. Smerovacie faktory'!I29 -> 1 | N29: ='3. Smerovacie faktory'!J29 -> 0 | O29: ='3. Smerovacie faktory'!K29 -> 0 | P29: ='3. Smerovacie faktory'!L29 -> 1 | Q29: ='3. Smerovacie faktory'!M29 -> 1 | R29: ='3. Smerovacie faktory'!N29 -> 1 | S29: ='3. Smerovacie faktory'!O29 -> 1 | T29: ='3. Smerovacie faktory'!P29 -> 1 | U29: ='3. Smerovacie faktory'!R29 -> 0 | V29: ='3. Smerovacie faktory'!T29 -> 0 | W29: ='3. Smerovacie faktory'!U29 -> 0 | X29: ='3. Smerovacie faktory'!V29 -> 1 | Y29: ='3. Smerovacie faktory'!W29 -> 1 | Z29: ='3. Smerovacie faktory'!X29 -> 1 | AA29: ='3. Smerovacie faktory'!Y29 -> 1 | AB29: ='3. Smerovacie faktory'!Z29 -> 1 | AC29: ='3. Smerovacie faktory'!AA29 -> 0 | AD29: ='3. Smerovacie faktory'!AB29 -> 1
B30: ='3. Smerovacie faktory'!B30 -> Prichádzajúce - MMS z iných sietí mobilných operátorov | C30: # MMS | D30: =VLOOKUP(B30,'2. Dopyt'!$B$61:$G$65,4,0) -> 0 | E30: ='A. Výber'!$E$21*'6. NE Dopyt'!G44+(1-'A. Výber'!$E$21)*'6. NE Dopyt'!H44 -> 2.26 | F30: 0 | G30: ='3. Smerovacie faktory'!C30 -> 1 | H30: ='3. Smerovacie faktory'!D30 -> 1 | I30: ='3. Smerovacie faktory'!E30 -> 1 | J30: ='3. Smerovacie faktory'!F30 -> 1 | K30: ='3. Smerovacie faktory'!G30 -> 1 | L30: ='3. Smerovacie faktory'!H30 -> 1 | M30: ='3. Smerovacie faktory'!I30 -> 1 | N30: ='3. Smerovacie faktory'!J30 -> 0 | O30: ='3. Smerovacie faktory'!K30 -> 0 | P30: ='3. Smerovacie faktory'!L30 -> 1 | Q30: ='3. Smerovacie faktory'!M30 -> 1 | R30: ='3. Smerovacie faktory'!N30 -> 1 | S30: ='3. Smerovacie faktory'!O30 -> 1 | T30: ='3. Smerovacie faktory'!P30 -> 1 | U30: ='3. Smerovacie faktory'!R30 -> 0 | V30: ='3. Smerovacie faktory'!T30 -> 0 | W30: ='3. Smerovacie faktory'!U30 -> 0 | X30: ='3. Smerovacie faktory'!V30 -> 1 | Y30: ='3. Smerovacie faktory'!W30 -> 0 | Z30: ='3. Smerovacie faktory'!X30 -> 1 | AA30: ='3. Smerovacie faktory'!Y30 -> 1 | AB30: ='3. Smerovacie faktory'!Z30 -> 1 | AC30: ='3. Smerovacie faktory'!AA30 -> 0 | AD30: ='3. Smerovacie faktory'!AB30 -> 1
B31: ='3. Smerovacie faktory'!B31 -> Prichádzajúce - MMS zo zahraničia | C31: # MMS | D31: =VLOOKUP(B31,'2. Dopyt'!$B$61:$G$65,4,0) -> 0 | E31: ='A. Výber'!$E$21*'6. NE Dopyt'!G45+(1-'A. Výber'!$E$21)*'6. NE Dopyt'!H45 -> 2.26 | F31: 0 | G31: ='3. Smerovacie faktory'!C31 -> 1 | H31: ='3. Smerovacie faktory'!D31 -> 1 | I31: ='3. Smerovacie faktory'!E31 -> 1 | J31: ='3. Smerovacie faktory'!F31 -> 1 | K31: ='3. Smerovacie faktory'!G31 -> 1 | L31: ='3. Smerovacie faktory'!H31 -> 1 | M31: ='3. Smerovacie faktory'!I31 -> 1 | N31: ='3. Smerovacie faktory'!J31 -> 0 | O31: ='3. Smerovacie faktory'!K31 -> 0 | P31: ='3. Smerovacie faktory'!L31 -> 1 | Q31: ='3. Smerovacie faktory'!M31 -> 1 | R31: ='3. Smerovacie faktory'!N31 -> 1 | S31: ='3. Smerovacie faktory'!O31 -> 1 | T31: ='3. Smerovacie faktory'!P31 -> 1 | U31: ='3. Smerovacie faktory'!R31 -> 0 | V31: ='3. Smerovacie faktory'!T31 -> 0 | W31: ='3. Smerovacie faktory'!U31 -> 0 | X31: ='3. Smerovacie faktory'!V31 -> 1 | Y31: ='3. Smerovacie faktory'!W31 -> 0 | Z31: ='3. Smerovacie faktory'!X31 -> 1 | AA31: ='3. Smerovacie faktory'!Y31 -> 1 | AB31: ='3. Smerovacie faktory'!Z31 -> 1 | AC31: ='3. Smerovacie faktory'!AA31 -> 0 | AD31: ='3. Smerovacie faktory'!AB31 -> 1
B32: ='3. Smerovacie faktory'!B32 -> Mobilné dáta | C32: Mb | D32: =VLOOKUP(B32,'2. Dopyt'!$B$77:$G$77,4,0) -> 0 | E32: =I_Data_Conversion*'A. Výber'!E21+I_Data_Conversion3G*(1-'A. Výber'!E21) -> 2.26 | F32: 0 | G32: ='3. Smerovacie faktory'!C32 -> 1 | H32: ='3. Smerovacie faktory'!D32 -> 1 | I32: ='3. Smerovacie faktory'!E32 -> 1 | J32: ='3. Smerovacie faktory'!F32 -> 1 | K32: ='3. Smerovacie faktory'!G32 -> 1 | L32: ='3. Smerovacie faktory'!H32 -> 1 | M32: ='3. Smerovacie faktory'!I32 -> 1 | N32: ='3. Smerovacie faktory'!J32 -> 0 | O32: ='3. Smerovacie faktory'!K32 -> 0 | P32: ='3. Smerovacie faktory'!L32 -> 1 | Q32: ='3. Smerovacie faktory'!M32 -> 1 | R32: ='3. Smerovacie faktory'!N32 -> 1 | S32: ='3. Smerovacie faktory'!O32 -> 1 | T32: ='3. Smerovacie faktory'!P32 -> 1 | U32: ='3. Smerovacie faktory'!R32 -> 0 | V32: ='3. Smerovacie faktory'!T32 -> 0 | W32: ='3. Smerovacie faktory'!U32 -> 0 | X32: ='3. Smerovacie faktory'!V32 -> 0 | Y32: ='3. Smerovacie faktory'!W32 -> 1 | Z32: ='3. Smerovacie faktory'!X32 -> 1 | AA32: ='3. Smerovacie faktory'!Y32 -> 1 | AB32: ='3. Smerovacie faktory'!Z32 -> 0 | AC32: ='3. Smerovacie faktory'!AA32 -> 0 | AD32: ='3. Smerovacie faktory'!AB32 -> 1
F33: =SUM(F9:F32) -> 0
F35: Objem na zákalde smerovacích faktorov | G35: =SUMPRODUCT(G9:G32,$F$9:$F$32) -> 0 | H35: =SUMPRODUCT(H9:H32,$F$9:$F$32) -> 0 | I35: 0 | J35: 0 | K35: 0 | L35: 0 | M35: 0 | N35: 0 | O35: 0 | P35: 0 | Q35: 0 | R35: 0 | S35: 0 | T35: 0 | U35: 0 | V35: 0 | W35: 0 | X35: 0 | Y35: 0 | Z35: 0 | AA35: 0 | AB35: 0 | AC35: =SUMPRODUCT(AC9:AC32,$F$9:$F$32) -> 0 | AD35: 0
F36: Celkové náklady | G36: =VLOOKUP(G8,'11. Anualizácia nákladov'!$B$282:$E$306,4,0) ->  | H36: =VLOOKUP(H8,'11. Anualizácia nákladov'!$B$282:$E$306,4,0) ->  | I36: =VLOOKUP(I8,'11. Anualizácia nákladov'!$B$282:$E$306,4,0) ->  | J36: =VLOOKUP(J8,'11. Anualizácia nákladov'!$B$282:$E$306,4,0) ->  | K36: =VLOOKUP(K8,'11. Anualizácia nákladov'!$B$282:$E$306,4,0) ->  | L36: =VLOOKUP(L8,'11. Anualizácia nákladov'!$B$282:$E$306,4,0) ->  | M36: =VLOOKUP(M8,'11. Anualizácia nákladov'!$B$282:$E$306,4,0) ->  | N36: =VLOOKUP(N8,'11. Anualizácia nákladov'!$B$282:$E$306,4,0) ->  | O36: =VLOOKUP(O8,'11. Anualizácia nákladov'!$B$282:$E$306,4,0) ->  | P36: =VLOOKUP(P8,'11. Anualizácia nákladov'!$B$282:$E$306,4,0) ->  | Q36: =VLOOKUP(Q8,'11. Anualizácia nákladov'!$B$282:$E$306,4,0) ->  | R36: =VLOOKUP(R8,'11. Anualizácia nákladov'!$B$282:$E$306,4,0) ->  | S36: =VLOOKUP(S8,'11. Anualizácia nákladov'!$B$282:$E$306,4,0) ->  | T36: =VLOOKUP(T8,'11. Anualizácia nákladov'!$B$282:$E$306,4,0) ->  | U36: =VLOOKUP(U8,'11. Anualizácia nákladov'!$B$282:$E$306,4,0) ->  | V36: =VLOOKUP(V8,'11. Anualizácia nákladov'!$B$282:$E$306,4,0) ->  | W36: =VLOOKUP(W8,'11. Anualizácia nákladov'!$B$282:$E$306,4,0) ->  | X36: =VLOOKUP(X8,'11. Anualizácia nákladov'!$B$282:$E$306,4,0) ->  | Y36: =VLOOKUP(Y8,'11. Anualizácia nákladov'!$B$282:$E$306,4,0) ->  | Z36: =VLOOKUP(Z8,'11. Anualizácia nákladov'!$B$282:$E$306,4,0) ->  | AA36: =VLOOKUP(AA8,'11. Anualizácia nákladov'!$B$282:$E$306,4,0) ->  | AB36: =VLOOKUP(AB8,'11. Anualizácia nákladov'!$B$282:$E$306,4,0) ->  | AC36: =VLOOKUP(AC8,'11. Anualizácia nákladov'!$B$282:$E$306,4,0) ->  | AD36: =VLOOKUP(AD8,'11. Anualizácia nákladov'!$B$282:$E$306,4,0) -> 
F37: NE jednotkové náklady | G37: =G36/G35 ->  | H37: =H36/H35 ->  | R37: =IF(ISERROR(R36/R35),0,(R36/R35)) -> 0 | V37: =IF(ISERROR(V36/V35),0,(V36/V35)) -> 0 | AC37: =AC36/AC35 -> 
A40: 12.2 Jednotkový náklad na základe služieb | G40: Rozloženie nákladov na základe sieťových prvkov
G41: RAN | H41: RAN | I41: RAN | J41: RAN | K41: RAN | L41: RAN | M41: Switching | N41: Switching | O41: Switching | P41: Transmission | Q41: Transmission | R41: Transmission | S41: Transmission | T41: Transmission | U41: Transmission | V41: Switching | W41: Switching | X41: Switching | Y41: Switching | Z41: Switching | AA41: Switching | AB41: Switching | AC41: Switching | AD41: Switching
B42: Služba | C42: Sieťový náklad na službu | D42: Sieťový jednotkový náklad | G42: =G8 -> Access Sites | H42: BTS | I42: BSC | J42: Node B | K42: RNC | L42: eNode B (RU a DU) | M42: HLR/HSS | N42: MSS / MME | O42: MGW - SGW,PGW | P42: BTS - BSC | Q42: Node B - RNC | R42: eNodeB RU - DU | S42: BSC - MGW | T42: RNC - MGW | U42: MGW - MGW / SGW, PGW - SGW, PGW | V42: Mobile voicemail platform | W42: SMSC Platform | X42: MMSC Platform | Y42: Intelligent Network | Z42: SGSN Platform | AA42: GGSN Platform | AB42: Interconnection | AC42: =AC8 -> IMS | AD42: PCRF
C43: EUR | D43: EUR | F43: Jednotka | G43: EUR | H43: EUR | I43: EUR | J43: EUR | K43: EUR | L43: EUR | M43: EUR | N43: EUR | O43: EUR | P43: EUR | Q43: EUR | R43: EUR | S43: EUR | T43: EUR | U43: EUR | V43: EUR | W43: EUR | X43: EUR | Y43: EUR | Z43: EUR | AA43: EUR | AB43: EUR | AC43: EUR | AD43: EUR
B44: =B9 -> Odchádzajúce - hovory v sieti (on-net) | C44: =SUMPRODUCT(G9:AD9,$G$37:$AD$37)*F9 ->  | D44: =C44/D9 ->  | F44: za minutu | G44: =G9*G$37*$F9/$D9 ->  | AA44: =AA9*AA$37*$F9/$D9 ->  | AB44: =AB9*AB$37*$F9/$D9 ->  | AC44: =AC9*AC$37*$F9/$D9 -> 
B45: =B10 -> Odchádzajúce - hovory do sietí iných mobilných operátorov | C45: =SUMPRODUCT(G10:AD10,$G$37:$AD$37)*F10 ->  | E45: =D45/ExchangeRate*100 ->  | F45: za minutu | G45: =G10*G$37*$F10/$D10 ->  | S45: =S10*S$37*$F10/$D10 ->  | AC45: =AC10*AC$37*$F10/$D10 -> 
B46: Odchádzajúce - hovory do pevnej siete | F46: za minutu | AC46: =AC11*AC$37*$F11/$D11 -> 
B47: Odchádzajúce - hovory do zahraničia | F47: za minutu | R47: =R12*R$37*$F12/$D12 ->  | AC47: =AC12*AC$37*$F12/$D12 -> 
B48: Odchádzajúce - hovory na tiesňové čísla | F48: za minutu | AC48: =AC13*AC$37*$F13/$D13 -> 
B49: Odchádzajúce - hovory do hlasovej schránky | F49: za minutu | AC49: =AC14*AC$37*$F14/$D14 -> 
B50: Odchádzajúce - hovory na bezplatné čísla | F50: za minutu | AC50: =AC15*AC$37*$F15/$D15 -> 
B51: Odchádzajúce - hovory na čísla Premium | F51: za minutu | AC51: =AC16*AC$37*$F16/$D16 -> 
B52: Odchádzajúce - prichádzajúci roaming | F52: za minutu | AC52: =AC17*AC$37*$F17/$D17 -> 
B53: Prichádzajúce - hovory od iných mobilných operátorov | F53: za minutu | AC53: =AC18*AC$37*$F18/$D18 -> 
B54: Prichádzajúce - hovory z pevnej siete | F54: za minutu | AC54: =AC19*AC$37*$F19/$D19 -> 
B55: Prichádzajúce - hovory zo zahraničia | F55: za minutu | AC55: =AC20*AC$37*$F20/$D20 -> 
B56: Prichádzajúce - prichádzajúci roaming | F56: za minutu | AC56: =AC21*AC$37*$F21/$D21 -> 
B57: Odchádzajúce - SMS v rámci siete | F57: za SMS | AC57: =AC22*AC$37*$F22/$D22 -> 
B58: Odchádzajúce - SMS do sietí iných mobilných operátorov | F58: za SMS | AC58: =AC23*AC$37*$F23/$D23 -> 
B59: Odchádzajúce - SMS do zahraničia | F59: za SMS | AC59: =AC24*AC$37*$F24/$D24 -> 
B60: Prichádzajúce - SMS z iných sietí mobilných operátorov | F60: za SMS | AC60: =AC25*AC$37*$F25/$D25 -> 
B61: Prichádzajúce - SMS zo zahraničia | F61: za SMS | AC61: =AC26*AC$37*$F26/$D26 -> 
B62: Odchádzajúce - MMS v rámci siete | F62: za MMS | AC62: =AC27*AC$37*$F27/$D27 -> 
B63: Odchádzajúce - MMS do sietí iných mobilných operátorov | F63: za MMS | AC63: =AC28*AC$37*$F28/$D28 -> 
B64: Odchádzajúce - MMS do zahraničia | F64: za MMS | AC64: =AC29*AC$37*$F29/$D29 -> 
B65: Prichádzajúce - MMS z iných sietí mobilných operátorov | D65: =C65/D30 ->  | F65: za MMS | S65: =S30*S$37*$F30/$D30 ->  | T65: =T30*T$37*$F30/$D30 ->  | AC65: =AC30*AC$37*$F30/$D30 -> 
B66: Prichádzajúce - MMS zo zahraničia | D66: =C66/D31 ->  | F66: za MMS | AC66: =AC31*AC$37*$F31/$D31 -> 
B67: Mobilné dáta | D67: =C67/D32 ->  | F67: za Mb | AC67: =AC32*AC$37*$F32/$D32 -> 
C68: =SUM(C44:C67)-'11. Anualizácia nákladov'!E307 -> 
A105: 12.3 Celkové jednotkové náklady podľa služby
B108: Služba | C108: Jednotka sítě | D108: Jednotkový maloobchodní náklad | E108: Outpayments | F108: Jednotkový náklad celkom | G108: Jednotka
C109: EUR | D109: EUR | E109: EUR | F109: EUR
B110: =B9 -> Odchádzajúce - hovory v sieti (on-net) | C110: =D44 ->  | D110: =C110*'0. Hlavné vstupy'!BC241 ->  | F110: =SUM(C110:E110) ->  | G110: za minutu | H110: =C110*'0. Hlavné vstupy'!BC241 -> 
B111: =B10 -> Odchádzajúce - hovory do sietí iných mobilných operátorov | C111: =D45 ->  | D111: =C111*'0. Hlavné vstupy'!BC242 ->  | E111: =C119 ->  | G111: za minutu | H111: =C111*'0. Hlavné vstupy'!BC242 -> 
B112: Odchádzajúce - hovory do pevnej siete | D112: =C112*'0. Hlavné vstupy'!BC243 ->  | E112: =C120 ->  | G112: za minutu | H112: =C112*'0. Hlavné vstupy'!BC243 -> 
B113: Odchádzajúce - hovory do zahraničia | D113: =C113*'0. Hlavné vstupy'!BC244 ->  | E113: 0 | G113: za minutu | H113: =C113*'0. Hlavné vstupy'!BC244 -> 
B114: Odchádzajúce - hovory na tiesňové čísla | D114: =C114*'0. Hlavné vstupy'!BC245 ->  | E114: 0 | G114: za minutu | H114: =C114*'0. Hlavné vstupy'!BC245 -> 
B115: Odchádzajúce - hovory do hlasovej schránky | D115: =C115*'0. Hlavné vstupy'!BC246 ->  | E115: 0 | G115: za minutu | H115: =C115*'0. Hlavné vstupy'!BC246 -> 
B116: Odchádzajúce - hovory na bezplatné čísla | D116: =C116*'0. Hlavné vstupy'!BC247 ->  | E116: 0 | G116: za minutu | H116: =C116*'0. Hlavné vstupy'!BC247 -> 
B117: Odchádzajúce - hovory na čísla Premium | D117: =C117*'0. Hlavné vstupy'!BC248 ->  | E117: 0 | G117: za minutu | H117: =C117*'0. Hlavné vstupy'!BC248 -> 
B118: Odchádzajúce - prichádzajúci roaming | D118: =C118*'0. Hlavné vstupy'!BC249 ->  | E118: 0 | G118: za minutu | H118: =C118*'0. Hlavné vstupy'!BC249 -> 
B119: Prichádzajúce - hovory od iných mobilných operátorov | D119: =C119*'0. Hlavné vstupy'!BC250 ->  | G119: za minutu | H119: =C119*'0. Hlavné vstupy'!BC250 -> 
B120: Prichádzajúce - hovory z pevnej siete | D120: =C120*'0. Hlavné vstupy'!BC251 ->  | G120: za minutu | H120: =C120*'0. Hlavné vstupy'!BC251 -> 
B121: Prichádzajúce - hovory zo zahraničia | D121: =C121*'0. Hlavné vstupy'!BC252 ->  | G121: za minutu | H121: =C121*'0. Hlavné vstupy'!BC252 -> 
B122: Prichádzajúce - prichádzajúci roaming | D122: =C122*'0. Hlavné vstupy'!BC253 ->  | G122: za minutu | H122: =C122*'0. Hlavné vstupy'!BC253 -> 
B123: Odchádzajúce - SMS v rámci siete | D123: =C123*'0. Hlavné vstupy'!BC254 ->  | G123: za SMS | H123: =C123*'0. Hlavné vstupy'!BC254 -> 
B124: Odchádzajúce - SMS do sietí iných mobilných operátorov | D124: =C124*'0. Hlavné vstupy'!BC255 ->  | E124: =C126 ->  | G124: za SMS | H124: =C124*'0. Hlavné vstupy'!BC255 -> 
B125: Odchádzajúce - SMS do zahraničia | D125: =C125*'0. Hlavné vstupy'!BC256 ->  | E125: 0 | G125: za SMS | H125: =C125*'0. Hlavné vstupy'!BC256 -> 
B126: Prichádzajúce - SMS z iných sietí mobilných operátorov | D126: =C126*'0. Hlavné vstupy'!BC257 ->  | G126: za SMS | H126: =C126*'0. Hlavné vstupy'!BC257 -> 
B127: Prichádzajúce - SMS zo zahraničia | D127: =C127*'0. Hlavné vstupy'!BC258 ->  | G127: za SMS | H127: =C127*'0. Hlavné vstupy'!BC258 -> 
B128: Odchádzajúce - MMS v rámci siete | D128: =C128*'0. Hlavné vstupy'!BC259 ->  | G128: za MMS | H128: =C128*'0. Hlavné vstupy'!BC259 -> 
B129: Odchádzajúce - MMS do sietí iných mobilných operátorov | D129: =C129*'0. Hlavné vstupy'!BC260 ->  | G129: za MMS | H129: =C129*'0. Hlavné vstupy'!BC260 -> 
B130: Odchádzajúce - MMS do zahraničia | D130: =C130*'0. Hlavné vstupy'!BC261 ->  | G130: za MMS | H130: =C130*'0. Hlavné vstupy'!BC261 -> 
B131: Prichádzajúce - MMS z iných sietí mobilných operátorov | D131: =C131*'0. Hlavné vstupy'!BC262 ->  | G131: za MMS | H131: =C131*'0. Hlavné vstupy'!BC262 -> 
B132: Prichádzajúce - MMS zo zahraničia | D132: =C132*'0. Hlavné vstupy'!BC263 ->  | G132: za MMS | H132: =C132*'0. Hlavné vstupy'!BC263 -> 
B133: Mobilné dáta | D133: =C133*'0. Hlavné vstupy'!BC264 ->  | G133: za Mb | H133: =C133*'0. Hlavné vstupy'!BC264 -> 

Sheet 11. Anualizácia nákladov
A1: 11. Anualizácia sieťových nákladov
A3: Popis
A4: Kalkulácia nákladov
A6: Vstupy z predchádzajúcich kalkulácií
A8: 11.1 Výber
B10: Výber | C10: Zvolený scenár
B11: Odpisová metóda | C11: =IF(D_DepMethod=1,'A. Výber'!$I$6,IF(D_DepMethod=2,'A. Výber'!$I$7,'A. Výber'!$I$9)) -> Modifikovaná naklonená anuita
B12: Model operátora | C12: =IF('A. Výber'!J14=1,'A. Výber'!I14,IF('A. Výber'!J14=2,'A. Výber'!I15,IF('A. Výber'!J14=3,'A. Výber'!I17,'A. Výber'!I19))) -> Model teoretického operátora
A14: 11.2 WACC
B16: WACC | C16: Hodnota
B17: WACC
B38: Licenčné poplatky | D38: EUR
D39: 0
D40: 0
A42: Výpočet
A44: 11.3 Mark-up pre veľkoobchodné služby
B47: Mark-up pre veľkoobchodné služby | C47: Jednotka | D47: Hodnota
B48: Mark-up Opex prenosové média | C48: % | D48: =IF([0]!D_Act_Dim=1,'0. Hlavné vstupy'!BB232,IF(D_Act_Dim=2,'0. Hlavné vstupy'!BC232,(IF(D_Act_Dim=3,'0. Hlavné vstupy'!BD232,'0. Hlavné vstupy'!BE232))))+D52 ->  | E48: C_MarkUp_OPEX
B49: Mark-up Opex sieťové prvky Backbone | D49: =IF([0]!D_Act_Dim=1,'0. Hlavné vstupy'!BB233,IF(D_Act_Dim=2,'0. Hlavné vstupy'!BC233,(IF(D_Act_Dim=3,'0. Hlavné vstupy'!BD233,'0. Hlavné vstupy'!BE233))))+D52 -> 
B50: Mark-up Opex sieťové prvky RAN | D50: =IF([0]!D_Act_Dim=1,'0. Hlavné vstupy'!BB234,IF(D_Act_Dim=2,'0. Hlavné vstupy'!BC234,(IF(D_Act_Dim=3,'0. Hlavné vstupy'!BD234,'0. Hlavné vstupy'!BE234))))+D52 -> 
B51: Mark-up nepriame aktíva | C51: % | D51: =IF([0]!D_Act_Dim=1,'0. Hlavné vstupy'!BB235,IF(D_Act_Dim=2,'0. Hlavné vstupy'!BC235,(IF(D_Act_Dim=3,'0. Hlavné vstupy'!BD235,'0. Hlavné vstupy'!BE235)))) ->  | E51: C_MarkUp_Indirect CAPEX
B52: Mark-up wholesale Billing | D52: =IF([0]!D_Act_Dim=1,'0. Hlavné vstupy'!BB236,IF(D_Act_Dim=2,'0. Hlavné vstupy'!BC236,(IF(D_Act_Dim=3,'0. Hlavné vstupy'!BD236,'0. Hlavné vstupy'!BE236)))) -> 
B53: Mark-up pracovný kapitál | C53: % | D53: =IF([0]!D_Act_Dim=1,'0. Hlavné vstupy'!BB237,IF(D_Act_Dim=2,'0. Hlavné vstupy'!BC237,(IF(D_Act_Dim=3,'0. Hlavné vstupy'!BD237,'0. Hlavné vstupy'!BE237)))) ->  | E53: C_MarkUp_WC
A56: 11.4 Anualizácia nákladov na rádiovú sieť a nákladov na spojovanie
B58: Náklady na rádiovú a spojovaciu sieť | C58: Jednotka množstva | D58: Dimenzovaný počet | E58: Skutočný počet | F58: Zvolené množstvo | G58: Priemerná jednotková cena | H58: Priama hodnota aktíva | I58: Nepriamy CAPEX | J58: Hodnota aktíva | K58: Životnosť aktíva | L58: Inflácia ceny aktíva (ročná zmena ceny aktíva) | M58: Priemerný čas potrebný na vytvorenie aktíva (Roky) | N58: Anualizácia nákladov - modifikovaná jednoduchá anuita | O58: Anualizácia nákladov - modifikovaná naklonená anuita | P58: Zvolené Capex náklady | Q58: Pracovný kapitál | R58: Sieťový OPEX | S58: Celkom | U58: Naklonená anuita | V58: Jednoduchá anuita
G59: EUR | H59: =SUM(H60:H94) ->  | I59: =SUM(I60:I94) ->  | J59: =SUM(J60:J94) ->  | M59: Počet rokov | N59: =SUM(N60:N94) ->  | R59: =SUM(R60:R92) ->  | U59: =SUM(U60:U94) ->  | V59: =SUM(V60:V94) -> 
B60: ='5. Jednotkové investície & Opex'!B11 -> Radio Access Sites - strecha | C60: # | D60: ='7a. Radiová sieť 2G'!G196+'7b. Radiová sieť 3G'!G170+'7c. Radiová sieť 4G NEW'!G157 ->  | E60: ='0. Hlavné vstupy'!BB271 ->  | F60: =IF($C$12="Model teoretického operátora",D60,E60) ->  | G60: =VLOOKUP($B60,'5. Jednotkové investície & Opex'!$B$11:$H$49,4,0) ->  | H60: =F60*G60 ->  | I60: =C_Markup_IndirectCAPEX*H60 ->  | J60: =H60+I60 ->  | K60: =VLOOKUP($B60,'5. Jednotkové investície & Opex'!$B$11:$H$50,5,0) ->  | L60: =VLOOKUP($B60,'5. Jednotkové investície & Opex'!$B$11:$H$50,6,0) ->  | M60: =VLOOKUP($B60,'5. Jednotkové investície & Opex'!$B$11:$H$50,7,0)/12 ->  | N60: =IF(F60=0,0,J60*((1+$C$17)/(1+L60))^M60*$C$17/(1-(1+$C$17)^(-K60))) ->  | O60: =(IF(F60=0,0,J60*((1+$C$17)/(1+L60))^M60*($C$17-L60)/(1-((1+L60)/(1+$C$17))^K60))) ->  | P60: =IF('A. Výber'!$J$6=1,V60,(IF('A. Výber'!$J$6=2,'11. Anualizácia nákladov'!U60,(IF('A. Výber'!$J$6=3,'11. Anualizácia nákladov'!N60,'11. Anualizácia nákladov'!O60))))) ->  | Q60: =H60*C_MarkUp_WC*$C$17 ->  | R60: =H60*$D$50 ->  | S60: =SUM(P60:R60) ->  | U60: =IF(F60=0,0,J60*($C$17-L60)/(1-((1+L60)/(1+$C$17))^K60)) ->  | V60: =IF(F60=0,0,J60*(($C$17)/(1-(1+$C$17)^(-K60)))) -> 
B61: ='5. Jednotkové investície & Opex'!B12 -> Radio Access Sites - samostatný pylón | C61: # | D61: ='7a. Radiová sieť 2G'!G197+'7b. Radiová sieť 3G'!G171+'7c. Radiová sieť 4G NEW'!G158 ->  | E61: ='0. Hlavné vstupy'!BB272 ->  | F61: =IF($C$12="Model teoretického operátora",D61,E61) ->  | G61: =VLOOKUP($B61,'5. Jednotkové investície & Opex'!$B$11:$H$49,4,0) ->  | H61: =F61*G61 ->  | J61: =H61+I61 ->  | K61: =VLOOKUP($B61,'5. Jednotkové investície & Opex'!$B$11:$H$50,5,0) ->  | L61: =VLOOKUP($B61,'5. Jednotkové investície & Opex'!$B$11:$H$50,6,0) ->  | M61: =VLOOKUP($B61,'5. Jednotkové investície & Opex'!$B$11:$H$50,7,0)/12 ->  | N61: =IF(F61=0,0,J61*((1+$C$17)/(1+L61))^M61*$C$17/(1-(1+$C$17)^(-K61))) ->  | O61: =IF(F61=0,0,J61*((1+$C$17)/(1+L61))^M61*($C$17-L61)/(1-((1+L61)/(1+$C$17))^K61)) ->  | P61: =IF('A. Výber'!$J$6=1,V61,(IF('A. Výber'!$J$6=2,'11. Anualizácia nákladov'!U61,(IF('A. Výber'!$J$6=3,'11. Anualizácia nákladov'!N61,'11. Anualizácia nákladov'!O61))))) ->  | S61: =IF(ISERROR(SUM(P61:R61)),0,(SUM(P61:R61))) -> 0 | U61: =IF(J61=0,0,J61*($C$17-L61)/(1-((1+L61)/(1+$C$17))^K61)) ->  | V61: =IF(F61=0,0,J61*(($C$17)/(1-(1+$C$17)^(-K61)))) -> 
B62: ='5. Jednotkové investície & Opex'!B13 -> BTS Cabinet | C62: # | D62: ='7a. Radiová sieť 2G'!G139 ->  | E62: ='0. Hlavné vstupy'!BB273 ->  | F62: =IF($C$12="Model teoretického operátora",D62,E62) ->  | G62: =VLOOKUP($B62,'5. Jednotkové investície & Opex'!$B$11:$H$49,4,0) ->  | K62: =VLOOKUP($B62,'5. Jednotkové investície & Opex'!$B$11:$H$50,5,0) ->  | L62: =VLOOKUP($B62,'5. Jednotkové investície & Opex'!$B$11:$H$50,6,0) ->  | M62: =VLOOKUP($B62,'5. Jednotkové investície & Opex'!$B$11:$H$50,7,0)/12 ->  | P62: =IF('A. Výber'!$J$6=1,V62,(IF('A. Výber'!$J$6=2,'11. Anualizácia nákladov'!U62,(IF('A. Výber'!$J$6=3,'11. Anualizácia nákladov'!N62,'11. Anualizácia nákladov'!O62))))) ->  | S62: =SUM(P62:R62) -> 
B63: ='5. Jednotkové investície & Opex'!B14 -> TRX 2G | C63: # | D63: ='7a. Radiová sieť 2G'!G156 ->  | E63: ='0. Hlavné vstupy'!BB274 ->  | G63: =VLOOKUP($B63,'5. Jednotkové investície & Opex'!$B$11:$H$49,4,0) ->  | K63: =VLOOKUP($B63,'5. Jednotkové investície & Opex'!$B$11:$H$50,5,0) ->  | L63: =VLOOKUP($B63,'5. Jednotkové investície & Opex'!$B$11:$H$50,6,0) ->  | M63: =VLOOKUP($B63,'5. Jednotkové investície & Opex'!$B$11:$H$50,7,0)/12 ->  | P63: =IF('A. Výber'!$J$6=1,V63,(IF('A. Výber'!$J$6=2,'11. Anualizácia nákladov'!U63,(IF('A. Výber'!$J$6=3,'11. Anualizácia nákladov'!N63,'11. Anualizácia nákladov'!O63))))) -> 
B64: ='5. Jednotkové investície & Opex'!B15 -> BSC | C64: # | D64: ='7a. Radiová sieť 2G'!O213 ->  | E64: ='0. Hlavné vstupy'!BB275 ->  | G64: =VLOOKUP($B64,'5. Jednotkové investície & Opex'!$B$11:$H$49,4,0) ->  | K64: =VLOOKUP($B64,'5. Jednotkové investície & Opex'!$B$11:$H$50,5,0) ->  | L64: =VLOOKUP($B64,'5. Jednotkové investície & Opex'!$B$11:$H$50,6,0) ->  | M64: =VLOOKUP($B64,'5. Jednotkové investície & Opex'!$B$11:$H$50,7,0)/12 ->  | P64: =IF('A. Výber'!$J$6=1,V64,(IF('A. Výber'!$J$6=2,'11. Anualizácia nákladov'!U64,(IF('A. Výber'!$J$6=3,'11. Anualizácia nákladov'!N64,'11. Anualizácia nákladov'!O64))))) -> 
B65: ='5. Jednotkové investície & Opex'!B16 -> NodeB Cabinet | C65: # | D65: ='7b. Radiová sieť 3G'!G120 ->  | E65: ='0. Hlavné vstupy'!BB276 ->  | G65: =VLOOKUP($B65,'5. Jednotkové investície & Opex'!$B$11:$H$49,4,0) ->  | K65: =VLOOKUP($B65,'5. Jednotkové investície & Opex'!$B$11:$H$50,5,0) ->  | L65: =VLOOKUP($B65,'5. Jednotkové investície & Opex'!$B$11:$H$50,6,0) ->  | M65: =VLOOKUP($B65,'5. Jednotkové investície & Opex'!$B$11:$H$50,7,0)/12 ->  | P65: =IF('A. Výber'!$J$6=1,V65,(IF('A. Výber'!$J$6=2,'11. Anualizácia nákladov'!U65,(IF('A. Výber'!$J$6=3,'11. Anualizácia nákladov'!N65,'11. Anualizácia nákladov'!O65))))) -> 
B66: ='5. Jednotkové investície & Opex'!B17 -> NodeB Carrier | C66: # | D66: ='7b. Radiová sieť 3G'!G155 ->  | E66: ='0. Hlavné vstupy'!BB277 ->  | G66: =VLOOKUP($B66,'5. Jednotkové investície & Opex'!$B$11:$H$49,4,0) ->  | K66: =VLOOKUP($B66,'5. Jednotkové investície & Opex'!$B$11:$H$50,5,0) ->  | L66: =VLOOKUP($B66,'5. Jednotkové investície & Opex'!$B$11:$H$50,6,0) ->  | M66: =VLOOKUP($B66,'5. Jednotkové investície & Opex'!$B$11:$H$50,7,0)/12 ->  | N66: =IF(F66=0,0,J66*((1+$C$17)/(1+L66))^M66*$C$17/(1-(1+$C$17)^(-K66))) ->  | P66: =IF('A. Výber'!$J$6=1,V66,(IF('A. Výber'!$J$6=2,'11. Anualizácia nákladov'!U66,(IF('A. Výber'!$J$6=3,'11. Anualizácia nákladov'!N66,'11. Anualizácia nákladov'!O66))))) -> 
B67: ='5. Jednotkové investície & Opex'!B18 -> NodeB Channel Kit | C67: # | D67: ='7b. Radiová sieť 3G'!G142 ->  | E67: ='0. Hlavné vstupy'!BB278 ->  | G67: =VLOOKUP($B67,'5. Jednotkové investície & Opex'!$B$11:$H$49,4,0) ->  | K67: =VLOOKUP($B67,'5. Jednotkové investície & Opex'!$B$11:$H$50,5,0) ->  | L67: =VLOOKUP($B67,'5. Jednotkové investície & Opex'!$B$11:$H$50,6,0) ->  | M67: =VLOOKUP($B67,'5. Jednotkové investície & Opex'!$B$11:$H$50,7,0)/12 ->  | P67: =IF('A. Výber'!$J$6=1,V67,(IF('A. Výber'!$J$6=2,'11. Anualizácia nákladov'!U67,(IF('A. Výber'!$J$6=3,'11. Anualizácia nákladov'!N67,'11. Anualizácia nákladov'!O67))))) -> 
B68: ='5. Jednotkové investície & Opex'!B19 -> NodeB HSPA Upgrade | C68: # | D68: ='7b. Radiová sieť 3G'!G159 ->  | E68: ='0. Hlavné vstupy'!BB279 ->  | G68: =VLOOKUP($B68,'5. Jednotkové investície & Opex'!$B$11:$H$49,4,0) ->  | K68: =VLOOKUP($B68,'5. Jednotkové investície & Opex'!$B$11:$H$50,5,0) ->  | L68: =VLOOKUP($B68,'5. Jednotkové investície & Opex'!$B$11:$H$50,6,0) ->  | M68: =VLOOKUP($B68,'5. Jednotkové investície & Opex'!$B$11:$H$50,7,0)/12 ->  | P68: =IF('A. Výber'!$J$6=1,V68,(IF('A. Výber'!$J$6=2,'11. Anualizácia nákladov'!U68,(IF('A. Výber'!$J$6=3,'11. Anualizácia nákladov'!N68,'11. Anualizácia nákladov'!O68))))) -> 
B69: ='5. Jednotkové investície & Opex'!B20 -> eNode B coverage | C69: # | D69: ='7c. Radiová sieť 4G NEW'!G143 ->  | E69: ='0. Hlavné vstupy'!BB280 ->  | G69: =(VLOOKUP($B69,'5. Jednotkové investície & Opex'!$B$11:$H$49,4,0)) ->  | K69: =VLOOKUP($B69,'5. Jednotkové investície & Opex'!$B$11:$H$50,5,0) ->  | L69: =VLOOKUP($B69,'5. Jednotkové investície & Opex'!$B$11:$H$50,6,0) ->  | M69: =VLOOKUP($B69,'5. Jednotkové investície & Opex'!$B$11:$H$50,7,0)/12 ->  | P69: =IF('A. Výber'!$J$6=1,V69,(IF('A. Výber'!$J$6=2,'11. Anualizácia nákladov'!U69,(IF('A. Výber'!$J$6=3,'11. Anualizácia nákladov'!N69,'11. Anualizácia nákladov'!O69))))) ->  | U69: =IF(ISERROR(IF(J69=0,0,J69*($C$17-L69)/(1-((1+L69)/(1+$C$17))^K69))),0,(IF(J69=0,0,J69*($C$17-L69)/(1-((1+L69)/(1+$C$17))^K69)))) -> 0
B70: ='5. Jednotkové investície & Opex'!B21 -> eNode B capacity | C70: # | D70: ='7c. Radiová sieť 4G NEW'!G144 -> 0 | E70: ='0. Hlavné vstupy'!BB281 ->  | F70: 0 | G70: =(VLOOKUP($B70,'5. Jednotkové investície & Opex'!$B$11:$H$49,4,0)) ->  | H70: =F70*G70 ->  | I70: =C_Markup_IndirectCAPEX*H70 ->  | J70: =H70+I70 ->  | K70: =VLOOKUP($B70,'5. Jednotkové investície & Opex'!$B$11:$H$50,5,0) ->  | L70: =VLOOKUP($B70,'5. Jednotkové investície & Opex'!$B$11:$H$50,6,0) ->  | M70: =VLOOKUP($B70,'5. Jednotkové investície & Opex'!$B$11:$H$50,7,0)/12 ->  | N70: =IF(F70=0,0,J70*((1+$C$17)/(1+L70))^M70*$C$17/(1-(1+$C$17)^(-K70))) -> 0 | O70: =IF(F70=0,0,J70*((1+$C$17)/(1+L70))^M70*($C$17-L70)/(1-((1+L70)/(1+$C$17))^K70)) -> 0 | P70: =IF('A. Výber'!$J$6=1,V70,(IF('A. Výber'!$J$6=2,'11. Anualizácia nákladov'!U70,(IF('A. Výber'!$J$6=3,'11. Anualizácia nákladov'!N70,'11. Anualizácia nákladov'!O70))))) -> 0 | Q70: =H70*C_MarkUp_WC*$C$17 ->  | R70: =H70*$D$50 ->  | S70: =SUM(P70:R70) ->  | U70: =IF(ISERROR(IF(J70=0,0,J70*($C$17-L70)/(1-((1+L70)/(1+$C$17))^K70))),0,(IF(J70=0,0,J70*($C$17-L70)/(1-((1+L70)/(1+$C$17))^K70)))) -> 0 | V70: =IF(F70=0,0,J70*(($C$17)/(1-(1+$C$17)^(-K70)))) -> 0
B71: ='5. Jednotkové investície & Opex'!B22 -> eNodeB capacity 5 MHz channel sector | C71: # | D71: ='7c. Radiová sieť 4G NEW'!G145 ->  | E71: ='0. Hlavné vstupy'!BB282 ->  | G71: =(VLOOKUP($B71,'5. Jednotkové investície & Opex'!$B$11:$H$49,4,0)) ->  | H71: =F71*G71 ->  | I71: =C_Markup_IndirectCAPEX*H71 ->  | J71: =H71+I71 ->  | K71: =VLOOKUP($B71,'5. Jednotkové investície & Opex'!$B$11:$H$50,5,0) ->  | L71: =VLOOKUP($B71,'5. Jednotkové investície & Opex'!$B$11:$H$50,6,0) ->  | M71: =VLOOKUP($B71,'5. Jednotkové investície & Opex'!$B$11:$H$50,7,0)/12 ->  | N71: =IF(F71=0,0,J71*((1+$C$17)/(1+L71))^M71*$C$17/(1-(1+$C$17)^(-K71))) ->  | O71: =IF(F71=0,0,J71*((1+$C$17)/(1+L71))^M71*($C$17-L71)/(1-((1+L71)/(1+$C$17))^K71)) ->  | P71: =IF('A. Výber'!$J$6=1,V71,(IF('A. Výber'!$J$6=2,'11. Anualizácia nákladov'!U71,(IF('A. Výber'!$J$6=3,'11. Anualizácia nákladov'!N71,'11. Anualizácia nákladov'!O71))))) ->  | Q71: =H71*C_MarkUp_WC*$C$17 ->  | R71: =H71*$D$50 ->  | S71: =SUM(P71:R71) ->  | U71: =IF(ISERROR(IF(J71=0,0,J71*($C$17-L71)/(1-((1+L71)/(1+$C$17))^K71))),0,(IF(J71=0,0,J71*($C$17-L71)/(1-((1+L71)/(1+$C$17))^K71)))) -> 0 | V71: =IF(F71=0,0,J71*(($C$17)/(1-(1+$C$17)^(-K71)))) -> 
B72: ='5. Jednotkové investície & Opex'!B23 -> Digital unit | C72: # | D72: ='7c. Radiová sieť 4G NEW'!N187 ->  | E72: ='0. Hlavné vstupy'!BB283 ->  | F72: =IF($C$12="Model teoretického operátora",D72,E72) ->  | G72: =(VLOOKUP($B72,'5. Jednotkové investície & Opex'!$B$11:$H$49,4,0)) ->  | H72: =F72*G72 ->  | I72: =C_Markup_IndirectCAPEX*H72 ->  | J72: =H72+I72 ->  | K72: =VLOOKUP($B72,'5. Jednotkové investície & Opex'!$B$11:$H$50,5,0) ->  | L72: =VLOOKUP($B72,'5. Jednotkové investície & Opex'!$B$11:$H$50,6,0) ->  | M72: =VLOOKUP($B72,'5. Jednotkové investície & Opex'!$B$11:$H$50,7,0)/12 ->  | N72: =IF(F72=0,0,J72*((1+$C$17)/(1+L72))^M72*$C$17/(1-(1+$C$17)^(-K72))) ->  | O72: =IF(F72=0,0,J72*((1+$C$17)/(1+L72))^M72*($C$17-L72)/(1-((1+L72)/(1+$C$17))^K72)) ->  | P72: =IF('A. Výber'!$J$6=1,V72,(IF('A. Výber'!$J$6=2,'11. Anualizácia nákladov'!U72,(IF('A. Výber'!$J$6=3,'11. Anualizácia nákladov'!N72,'11. Anualizácia nákladov'!O72))))) ->  | Q72: =H72*C_MarkUp_WC*$C$17 ->  | R72: =H72*$D$50 ->  | S72: =SUM(P72:R72) ->  | U72: =IF(ISERROR(IF(J72=0,0,J72*($C$17-L72)/(1-((1+L72)/(1+$C$17))^K72))),0,(IF(J72=0,0,J72*($C$17-L72)/(1-((1+L72)/(1+$C$17))^K72)))) -> 0 | V72: =IF(F72=0,0,J72*(($C$17)/(1-(1+$C$17)^(-K72)))) -> 
B73: ='5. Jednotkové investície & Opex'!B24 -> Propojení RU - DU - Fibre | C73: # | D73: ='7c. Radiová sieť 4G NEW'!D216 ->  | E73: ='0. Hlavné vstupy'!BB284 ->  | F73: =IF($C$12="Model teoretického operátora",D73,E73) ->  | G73: =(VLOOKUP($B73,'5. Jednotkové investície & Opex'!$B$11:$H$49,4,0)) ->  | H73: =F73*G73 ->  | I73: =C_Markup_IndirectCAPEX*H73 ->  | J73: =H73+I73 ->  | K73: =VLOOKUP($B73,'5. Jednotkové investície & Opex'!$B$11:$H$50,5,0) ->  | L73: =VLOOKUP($B73,'5. Jednotkové investície & Opex'!$B$11:$H$50,6,0) ->  | M73: =VLOOKUP($B73,'5. Jednotkové investície & Opex'!$B$11:$H$50,7,0)/12 ->  | N73: =IF(F73=0,0,J73*((1+$C$17)/(1+L73))^M73*$C$17/(1-(1+$C$17)^(-K73))) ->  | O73: =IF(F73=0,0,J73*((1+$C$17)/(1+L73))^M73*($C$17-L73)/(1-((1+L73)/(1+$C$17))^K73)) ->  | P73: =IF('A. Výber'!$J$6=1,V73,(IF('A. Výber'!$J$6=2,'11. Anualizácia nákladov'!U73,(IF('A. Výber'!$J$6=3,'11. Anualizácia nákladov'!N73,'11. Anualizácia nákladov'!O73))))) ->  | Q73: =H73*C_MarkUp_WC*$C$17 ->  | R73: =H73*$D$50 ->  | S73: =SUM(P73:R73) ->  | U73: =IF(ISERROR(IF(J73=0,0,J73*($C$17-L73)/(1-((1+L73)/(1+$C$17))^K73))),0,(IF(J73=0,0,J73*($C$17-L73)/(1-((1+L73)/(1+$C$17))^K73)))) -> 0 | V73: =IF(F73=0,0,J73*(($C$17)/(1-(1+$C$17)^(-K73)))) -> 
B74: ='5. Jednotkové investície & Opex'!B25 -> Propojení RU - DU Add Drop Multiplexer - STM1 | C74: # | D74: ='7c. Radiová sieť 4G NEW'!N209 -> 0 | E74: ='0. Hlavné vstupy'!BB285 ->  | F74: 0 | G74: =(VLOOKUP($B74,'5. Jednotkové investície & Opex'!$B$11:$H$49,4,0)) ->  | K74: =VLOOKUP($B74,'5. Jednotkové investície & Opex'!$B$11:$H$50,5,0) ->  | L74: =VLOOKUP($B74,'5. Jednotkové investície & Opex'!$B$11:$H$50,6,0) ->  | M74: =VLOOKUP($B74,'5. Jednotkové investície & Opex'!$B$11:$H$50,7,0)/12 ->  | N74: 0 | O74: 0 | P74: =IF('A. Výber'!$J$6=1,V74,(IF('A. Výber'!$J$6=2,'11. Anualizácia nákladov'!U74,(IF('A. Výber'!$J$6=3,'11. Anualizácia nákladov'!N74,'11. Anualizácia nákladov'!O74))))) -> 0 | U74: 0 | V74: 0
B75: ='5. Jednotkové investície & Opex'!B26 -> Propojení RU - DU Add Drop Multiplexer - STM4 | C75: # | D75: ='7c. Radiová sieť 4G NEW'!N210 -> 0 | E75: ='0. Hlavné vstupy'!BB286 ->  | F75: 0 | G75: =(VLOOKUP($B75,'5. Jednotkové investície & Opex'!$B$11:$H$49,4,0)) ->  | K75: =VLOOKUP($B75,'5. Jednotkové investície & Opex'!$B$11:$H$50,5,0) ->  | L75: =VLOOKUP($B75,'5. Jednotkové investície & Opex'!$B$11:$H$50,6,0) ->  | M75: =VLOOKUP($B75,'5. Jednotkové investície & Opex'!$B$11:$H$50,7,0)/12 ->  | N75: 0 | O75: 0 | P75: =IF('A. Výber'!$J$6=1,V75,(IF('A. Výber'!$J$6=2,'11. Anualizácia nákladov'!U75,(IF('A. Výber'!$J$6=3,'11. Anualizácia nákladov'!N75,'11. Anualizácia nákladov'!O75))))) -> 0 | U75: 0 | V75: 0
B76: ='5. Jednotkové investície & Opex'!B27 -> Propojení RU - DU Add Drop Multiplexer - STM16 | C76: # | D76: ='7c. Radiová sieť 4G NEW'!N211 -> 0 | E76: ='0. Hlavné vstupy'!BB287 ->  | F76: 0 | G76: =(VLOOKUP($B76,'5. Jednotkové investície & Opex'!$B$11:$H$49,4,0)) ->  | K76: =VLOOKUP($B76,'5. Jednotkové investície & Opex'!$B$11:$H$50,5,0) ->  | L76: =VLOOKUP($B76,'5. Jednotkové investície & Opex'!$B$11:$H$50,6,0) ->  | M76: =VLOOKUP($B76,'5. Jednotkové investície & Opex'!$B$11:$H$50,7,0)/12 ->  | N76: 0 | O76: 0 | P76: =IF('A. Výber'!$J$6=1,V76,(IF('A. Výber'!$J$6=2,'11. Anualizácia nákladov'!U76,(IF('A. Výber'!$J$6=3,'11. Anualizácia nákladov'!N76,'11. Anualizácia nákladov'!O76))))) -> 0 | U76: 0 | V76: 0
B77: ='5. Jednotkové investície & Opex'!B28 -> Propojení RU - DU Add Drop Multiplexer - STM64 | C77: # | D77: ='7c. Radiová sieť 4G NEW'!N212 -> 0 | E77: ='0. Hlavné vstupy'!BB288 ->  | F77: 0 | G77: =(VLOOKUP($B77,'5. Jednotkové investície & Opex'!$B$11:$H$49,4,0)) ->  | K77: =VLOOKUP($B77,'5. Jednotkové investície & Opex'!$B$11:$H$50,5,0) ->  | L77: =VLOOKUP($B77,'5. Jednotkové investície & Opex'!$B$11:$H$50,6,0) ->  | M77: =VLOOKUP($B77,'5. Jednotkové investície & Opex'!$B$11:$H$50,7,0)/12 ->  | N77: 0 | O77: 0 | P77: =IF('A. Výber'!$J$6=1,V77,(IF('A. Výber'!$J$6=2,'11. Anualizácia nákladov'!U77,(IF('A. Výber'!$J$6=3,'11. Anualizácia nákladov'!N77,'11. Anualizácia nákladov'!O77))))) -> 0 | U77: 0 | V77: 0
B78: ='5. Jednotkové investície & Opex'!B29 -> Propojení RU - DU Add Drop Multiplexer - STM256 | C78: # | D78: ='7c. Radiová sieť 4G NEW'!N213 -> 0 | E78: ='0. Hlavné vstupy'!BB289 ->  | F78: 0 | G78: =(VLOOKUP($B78,'5. Jednotkové investície & Opex'!$B$11:$H$49,4,0)) ->  | K78: =VLOOKUP($B78,'5. Jednotkové investície & Opex'!$B$11:$H$50,5,0) ->  | L78: =VLOOKUP($B78,'5. Jednotkové investície & Opex'!$B$11:$H$50,6,0) ->  | M78: =VLOOKUP($B78,'5. Jednotkové investície & Opex'!$B$11:$H$50,7,0)/12 ->  | N78: 0 | O78: 0 | P78: =IF('A. Výber'!$J$6=1,V78,(IF('A. Výber'!$J$6=2,'11. Anualizácia nákladov'!U78,(IF('A. Výber'!$J$6=3,'11. Anualizácia nákladov'!N78,'11. Anualizácia nákladov'!O78))))) -> 0 | U78: 0 | V78: 0
B79: ='5. Jednotkové investície & Opex'!B30 -> RNC | C79: # | D79: ='7b. Radiová sieť 3G'!N199 ->  | E79: ='0. Hlavné vstupy'!BB290 ->  | F79: =IF($C$12="Model teoretického operátora",D79,E79) ->  | G79: =(VLOOKUP($B79,'5. Jednotkové investície & Opex'!$B$11:$H$49,4,0)) ->  | H79: =F79*G79 ->  | I79: =C_Markup_IndirectCAPEX*H79 ->  | J79: =H79+I79 ->  | K79: =VLOOKUP($B79,'5. Jednotkové investície & Opex'!$B$11:$H$50,5,0) ->  | L79: =VLOOKUP($B79,'5. Jednotkové investície & Opex'!$B$11:$H$50,6,0) ->  | M79: =VLOOKUP($B79,'5. Jednotkové investície & Opex'!$B$11:$H$50,7,0)/12 ->  | N79: =IF(F79=0,0,J79*((1+$C$17)/(1+L79))^M79*$C$17/(1-(1+$C$17)^(-K79))) ->  | O79: =IF(F79=0,0,J79*((1+$C$17)/(1+L79))^M79*($C$17-L79)/(1-((1+L79)/(1+$C$17))^K79)) ->  | P79: =IF('A. Výber'!$J$6=1,V79,(IF('A. Výber'!$J$6=2,'11. Anualizácia nákladov'!U79,(IF('A. Výber'!$J$6=3,'11. Anualizácia nákladov'!N79,'11. Anualizácia nákladov'!O79))))) ->  | Q79: =H79*C_MarkUp_WC*$C$17 ->  | R79: =H79*$D$50 ->  | S79: =SUM(P79:R79) ->  | U79: =IF(ISERROR(IF(J79=0,0,J79*($C$17-L79)/(1-((1+L79)/(1+$C$17))^K79))),0,(IF(J79=0,0,J79*($C$17-L79)/(1-((1+L79)/(1+$C$17))^K79)))) -> 0 | V79: =IF(F79=0,0,J79*(($C$17)/(1-(1+$C$17)^(-K79)))) -> 
B80: ='5. Jednotkové investície & Opex'!B31 -> HLR / HSS | C80: # | D80: ='9. Ostatné NE'!D136 ->  | E80: ='0. Hlavné vstupy'!BB291 ->  | G80: =(VLOOKUP($B80,'5. Jednotkové investície & Opex'!$B$11:$H$49,4,0)) ->  | K80: =VLOOKUP($B80,'5. Jednotkové investície & Opex'!$B$11:$H$50,5,0) ->  | L80: =VLOOKUP($B80,'5. Jednotkové investície & Opex'!$B$11:$H$50,6,0) ->  | M80: =VLOOKUP($B80,'5. Jednotkové investície & Opex'!$B$11:$H$50,7,0)/12 ->  | P80: =IF('A. Výber'!$J$6=1,V80,(IF('A. Výber'!$J$6=2,'11. Anualizácia nákladov'!U80,(IF('A. Výber'!$J$6=3,'11. Anualizácia nákladov'!N80,'11. Anualizácia nákladov'!O80))))) ->  | R80: =H80*$D$51 ->  | U80: 0
B81: ='5. Jednotkové investície & Opex'!B32 -> MSS | C81: # | D81: ='9. Ostatné NE'!D117 ->  | E81: ='0. Hlavné vstupy'!BB292 ->  | G81: =(VLOOKUP($B81,'5. Jednotkové investície & Opex'!$B$11:$H$49,4,0)) ->  | K81: =VLOOKUP($B81,'5. Jednotkové investície & Opex'!$B$11:$H$50,5,0) ->  | L81: =VLOOKUP($B81,'5. Jednotkové investície & Opex'!$B$11:$H$50,6,0) ->  | M81: =VLOOKUP($B81,'5. Jednotkové investície & Opex'!$B$11:$H$50,7,0)/12 ->  | P81: =IF('A. Výber'!$J$6=1,V81,(IF('A. Výber'!$J$6=2,'11. Anualizácia nákladov'!U81,(IF('A. Výber'!$J$6=3,'11. Anualizácia nákladov'!N81,'11. Anualizácia nákladov'!O81))))) ->  | R81: =H81*$D$51 ->  | U81: 0
B82: ='5. Jednotkové investície & Opex'!B33 -> SGW, PGW | C82: # | D82: ='9. Ostatné NE'!D124 ->  | E82: ='0. Hlavné vstupy'!BB293 ->  | G82: =(VLOOKUP($B82,'5. Jednotkové investície & Opex'!$B$11:$H$49,4,0)) ->  | K82: =VLOOKUP($B82,'5. Jednotkové investície & Opex'!$B$11:$H$50,5,0) ->  | L82: =VLOOKUP($B82,'5. Jednotkové investície & Opex'!$B$11:$H$50,6,0) ->  | M82: =VLOOKUP($B82,'5. Jednotkové investície & Opex'!$B$11:$H$50,7,0)/12 ->  | P82: =IF('A. Výber'!$J$6=1,V82,(IF('A. Výber'!$J$6=2,'11. Anualizácia nákladov'!U82,(IF('A. Výber'!$J$6=3,'11. Anualizácia nákladov'!N82,'11. Anualizácia nákladov'!O82))))) ->  | U82: 0
B83: MME | C83: # | D83: ='9. Ostatné NE'!D137 ->  | E83: ='0. Hlavné vstupy'!BB294 ->  | G83: =(VLOOKUP($B83,'5. Jednotkové investície & Opex'!$B$11:$H$49,4,0)) ->  | K83: =VLOOKUP($B83,'5. Jednotkové investície & Opex'!$B$11:$H$50,5,0) ->  | L83: =VLOOKUP($B83,'5. Jednotkové investície & Opex'!$B$11:$H$50,6,0) ->  | M83: =VLOOKUP($B83,'5. Jednotkové investície & Opex'!$B$11:$H$50,7,0)/12 ->  | N83: =IF(F83=0,0,J83*((1+$C$17)/(1+L83))^M83*$C$17/(1-(1+$C$17)^(-K83))) ->  | O83: =IF(F83=0,0,J83*((1+$C$17)/(1+L83))^M83*($C$17-L83)/(1-((1+L83)/(1+$C$17))^K83)) ->  | P83: =IF('A. Výber'!$J$6=1,V83,(IF('A. Výber'!$J$6=2,'11. Anualizácia nákladov'!U83,(IF('A. Výber'!$J$6=3,'11. Anualizácia nákladov'!N83,'11. Anualizácia nákladov'!O83))))) ->  | U83: =IF(ISERROR(IF(J83=0,0,J83*($C$17-L83)/(1-((1+L83)/(1+$C$17))^K83))),0,(IF(J83=0,0,J83*($C$17-L83)/(1-((1+L83)/(1+$C$17))^K83)))) -> 0 | V83: =IF(F83=0,0,J83*(($C$17)/(1-(1+$C$17)^(-K83)))) -> 
B84: ='5. Jednotkové investície & Opex'!B35 -> Mobile voicemail platform | C84: # | D84: ='9. Ostatné NE'!D138 ->  | E84: ='0. Hlavné vstupy'!BB295 ->  | G84: =(VLOOKUP($B84,'5. Jednotkové investície & Opex'!$B$11:$H$49,4,0)) ->  | K84: =VLOOKUP($B84,'5. Jednotkové investície & Opex'!$B$11:$H$50,5,0) ->  | L84: =VLOOKUP($B84,'5. Jednotkové investície & Opex'!$B$11:$H$50,6,0) ->  | M84: =VLOOKUP($B84,'5. Jednotkové investície & Opex'!$B$11:$H$50,7,0)/12 ->  | P84: =IF('A. Výber'!$J$6=1,V84,(IF('A. Výber'!$J$6=2,'11. Anualizácia nákladov'!U84,(IF('A. Výber'!$J$6=3,'11. Anualizácia nákladov'!N84,'11. Anualizácia nákladov'!O84))))) ->  | U84: 0
B85: ='5. Jednotkové investície & Opex'!B36 -> SMS Centrum | C85: # | D85: ='9. Ostatné NE'!D139 ->  | E85: ='0. Hlavné vstupy'!BB296 ->  | G85: =(VLOOKUP($B85,'5. Jednotkové investície & Opex'!$B$11:$H$49,4,0)) ->  | K85: =VLOOKUP($B85,'5. Jednotkové investície & Opex'!$B$11:$H$50,5,0) ->  | L85: =VLOOKUP($B85,'5. Jednotkové investície & Opex'!$B$11:$H$50,6,0) ->  | M85: =VLOOKUP($B85,'5. Jednotkové investície & Opex'!$B$11:$H$50,7,0)/12 ->  | P85: =IF('A. Výber'!$J$6=1,V85,(IF('A. Výber'!$J$6=2,'11. Anualizácia nákladov'!U85,(IF('A. Výber'!$J$6=3,'11. Anualizácia nákladov'!N85,'11. Anualizácia nákladov'!O85))))) ->  | U85: 0
B86: ='5. Jednotkové investície & Opex'!B37 -> MMS Centrum | C86: # | D86: ='9. Ostatné NE'!D140 ->  | E86: ='0. Hlavné vstupy'!BB297 ->  | G86: =(VLOOKUP($B86,'5. Jednotkové investície & Opex'!$B$11:$H$49,4,0)) ->  | K86: =VLOOKUP($B86,'5. Jednotkové investície & Opex'!$B$11:$H$50,5,0) ->  | L86: =VLOOKUP($B86,'5. Jednotkové investície & Opex'!$B$11:$H$50,6,0) ->  | M86: =VLOOKUP($B86,'5. Jednotkové investície & Opex'!$B$11:$H$50,7,0)/12 ->  | P86: =IF('A. Výber'!$J$6=1,V86,(IF('A. Výber'!$J$6=2,'11. Anualizácia nákladov'!U86,(IF('A. Výber'!$J$6=3,'11. Anualizácia nákladov'!N86,'11. Anualizácia nákladov'!O86))))) ->  | U86: 0
B87: ='5. Jednotkové investície & Opex'!B38 -> Intelligent Network | C87: # | D87: ='9. Ostatné NE'!D141 ->  | E87: ='0. Hlavné vstupy'!BB290 ->  | G87: =(VLOOKUP($B87,'5. Jednotkové investície & Opex'!$B$11:$H$49,4,0)) ->  | K87: =VLOOKUP($B87,'5. Jednotkové investície & Opex'!$B$11:$H$50,5,0) ->  | L87: =VLOOKUP($B87,'5. Jednotkové investície & Opex'!$B$11:$H$50,6,0) ->  | M87: =VLOOKUP($B87,'5. Jednotkové investície & Opex'!$B$11:$H$50,7,0)/12 ->  | P87: =IF('A. Výber'!$J$6=1,V87,(IF('A. Výber'!$J$6=2,'11. Anualizácia nákladov'!U87,(IF('A. Výber'!$J$6=3,'11. Anualizácia nákladov'!N87,'11. Anualizácia nákladov'!O87))))) ->  | U87: 0
B88: ='5. Jednotkové investície & Opex'!B39 -> SGSN Platform | C88: # | D88: ='9. Ostatné NE'!D142 ->  | E88: ='0. Hlavné vstupy'!BB291 ->  | G88: =(VLOOKUP($B88,'5. Jednotkové investície & Opex'!$B$11:$H$49,4,0)) ->  | K88: =VLOOKUP($B88,'5. Jednotkové investície & Opex'!$B$11:$H$50,5,0) ->  | L88: =VLOOKUP($B88,'5. Jednotkové investície & Opex'!$B$11:$H$50,6,0) ->  | M88: =VLOOKUP($B88,'5. Jednotkové investície & Opex'!$B$11:$H$50,7,0)/12 ->  | P88: =IF('A. Výber'!$J$6=1,V88,(IF('A. Výber'!$J$6=2,'11. Anualizácia nákladov'!U88,(IF('A. Výber'!$J$6=3,'11. Anualizácia nákladov'!N88,'11. Anualizácia nákladov'!O88))))) ->  | U88: 0
B89: ='5. Jednotkové investície & Opex'!B40 -> GGSN Platform | C89: # | D89: ='9. Ostatné NE'!D143 ->  | E89: ='0. Hlavné vstupy'!BB292 ->  | G89: =(VLOOKUP($B89,'5. Jednotkové investície & Opex'!$B$11:$H$49,4,0)) ->  | K89: =VLOOKUP($B89,'5. Jednotkové investície & Opex'!$B$11:$H$50,5,0) ->  | L89: =VLOOKUP($B89,'5. Jednotkové investície & Opex'!$B$11:$H$50,6,0) ->  | M89: =VLOOKUP($B89,'5. Jednotkové investície & Opex'!$B$11:$H$50,7,0)/12 ->  | P89: =IF('A. Výber'!$J$6=1,V89,(IF('A. Výber'!$J$6=2,'11. Anualizácia nákladov'!U89,(IF('A. Výber'!$J$6=3,'11. Anualizácia nákladov'!N89,'11. Anualizácia nákladov'!O89))))) ->  | U89: 0
B90: ='5. Jednotkové investície & Opex'!B47 -> Interconnection | C90: # | D90: ='9. Ostatné NE'!D144 -> 0 | E90: ='0. Hlavné vstupy'!BB298 ->  | F90: 0 | G90: =(VLOOKUP($B90,'5. Jednotkové investície & Opex'!$B$11:$H$49,4,0)) ->  | K90: =VLOOKUP($B90,'5. Jednotkové investície & Opex'!$B$11:$H$50,5,0) ->  | L90: =VLOOKUP($B90,'5. Jednotkové investície & Opex'!$B$11:$H$50,6,0) ->  | M90: =VLOOKUP($B90,'5. Jednotkové investície & Opex'!$B$11:$H$50,7,0)/12 ->  | N90: 0 | O90: 0 | P90: =IF('A. Výber'!$J$6=1,V90,(IF('A. Výber'!$J$6=2,'11. Anualizácia nákladov'!U90,(IF('A. Výber'!$J$6=3,'11. Anualizácia nákladov'!N90,'11. Anualizácia nákladov'!O90))))) -> 0 | S90: =IF(ISERROR(SUM(P90:R90)),0,(SUM(P90:R90))) -> 0 | U90: 0 | V90: 0
B91: ='5. Jednotkové investície & Opex'!B48 -> IMS | C91: # | D91: ='9. Ostatné NE'!D145 ->  | E91: ='0. Hlavné vstupy'!BB299 ->  | G91: =(VLOOKUP($B91,'5. Jednotkové investície & Opex'!$B$11:$H$49,4,0)) ->  | K91: =VLOOKUP($B91,'5. Jednotkové investície & Opex'!$B$11:$H$50,5,0) ->  | L91: =VLOOKUP($B91,'5. Jednotkové investície & Opex'!$B$11:$H$50,6,0) ->  | M91: =VLOOKUP($B91,'5. Jednotkové investície & Opex'!$B$11:$H$50,7,0)/12 ->  | P91: =IF('A. Výber'!$J$6=1,V91,(IF('A. Výber'!$J$6=2,'11. Anualizácia nákladov'!U91,(IF('A. Výber'!$J$6=3,'11. Anualizácia nákladov'!N91,'11. Anualizácia nákladov'!O91))))) ->  | U91: 0
B92: ='5. Jednotkové investície & Opex'!B49 -> PCRF | C92: # | D92: ='9. Ostatné NE'!D146 ->  | E92: ='0. Hlavné vstupy'!BB300 ->  | G92: =(VLOOKUP($B92,'5. Jednotkové investície & Opex'!$B$11:$H$49,4,0)) ->  | K92: =VLOOKUP($B92,'5. Jednotkové investície & Opex'!$B$11:$H$50,5,0) ->  | L92: =VLOOKUP($B92,'5. Jednotkové investície & Opex'!$B$11:$H$50,6,0) ->  | M92: =VLOOKUP($B92,'5. Jednotkové investície & Opex'!$B$11:$H$50,7,0)/12 ->  | P92: =IF('A. Výber'!$J$6=1,V92,(IF('A. Výber'!$J$6=2,'11. Anualizácia nákladov'!U92,(IF('A. Výber'!$J$6=3,'11. Anualizácia nákladov'!N92,'11. Anualizácia nákladov'!O92))))) ->  | U92: 0
B93: ='5. Jednotkové investície & Opex'!B50 -> 0 | C93: # | V93: 0
A96: 11.5 Anualizácia nákladov na prenos
B98: BTS/NodeB - BSC/RNC | C98: Jednotka množstva | D98: Dimenzovaný počet | E98: Skutočný počet | F98: Zvolené množstvo | G98: Priemerná jednotková cena | H98: Priama hodnota aktíva | I98: Nepriamy CAPEX | J98: Hodnota aktíva | K98: Životnosť aktíva | L98: Inflácia ceny aktíva (ročná zmena ceny aktíva) | M98: Priemerný čas potrebný na vytvorenie aktíva (Roky) | N98: Anualizácia nákladov - jednoduchá anuita | O98: Anualizácia nákladov - naklonená anuita | P98: Zvolené Capex náklady | Q98: Pracovný kapitál | R98: Sieťový OPEX | S98: Celkom | U98: Naklonená anuita | V98: Jednoduchá anuita
G99: EUR | H99: =SUM(H100:H118) ->  | I99: =SUM(I100:I118) ->  | J99: =SUM(J100:J118) ->  | N99: =SUM(N100:N118) ->  | U99: =SUM(U100:U114) -> 
B100: ='5. Jednotkové investície & Opex'!B55 -> Optické vlákno | C100: km vlastných | D100: ='8. Prístupová sieť'!D405 ->  | E100: ='0. Hlavné vstupy'!BB309 ->  | F100: =IF($C$12="Model teoretického operátora",D100,E100) ->  | G100: =('5. Jednotkové investície & Opex'!C57+'5. Jednotkové investície & Opex'!C56)/2 ->  | H100: =F100*G100 ->  | I100: =C_Markup_IndirectCAPEX*H100 ->  | J100: =H100+I100 ->  | K100: =('5. Jednotkové investície & Opex'!F56+'5. Jednotkové investície & Opex'!F57)/2 ->  | L100: =('5. Jednotkové investície & Opex'!G56+'5. Jednotkové investície & Opex'!G57)/2 ->  | M100: =('5. Jednotkové investície & Opex'!H56+'5. Jednotkové investície & Opex'!H57)/2 ->  | N100: =IF(F100=0,0,J100*((1+$C$17)/(1+L100))^M100*$C$17/(1-(1+$C$17)^(-K100))) ->  | O100: =IF(F100=0,0,J100*((1+$C$17)/(1+L100))^M100*($C$17-L100)/(1-((1+L100)/(1+$C$17))^K100)) ->  | P100: =IF('A. Výber'!$J$6=1,V100,(IF('A. Výber'!$J$6=2,'11. Anualizácia nákladov'!U100,(IF('A. Výber'!$J$6=3,'11. Anualizácia nákladov'!N100,'11. Anualizácia nákladov'!O100))))) ->  | Q100: =H100*C_MarkUp_WC*$C$17 ->  | R100: =H100*C_MarkUp_OPEX ->  | S100: =SUM(P100:R100) ->  | U100: =IF(J100=0,0,J100*($C$17-L100)/(1-((1+L100)/(1+$C$17))^K100)) ->  | V100: =IF(F100=0,0,J100*($C$17/(1-(1+$C$17)^(-K100)))) -> 
B101: ='5. Jednotkové investície & Opex'!B61 -> SDH zariadenie | D101: ='8. Prístupová sieť'!D407 -> 0 | E101: ='0. Hlavné vstupy'!BB310 ->  | F101: 0 | H101: =F101*G101 -> 0 | J101: =H101+I101 ->  | N101: =IF(F101=0,0,J101*((1+$C$17)/(1+L101))^M101*$C$17/(1-(1+$C$17)^(-K101))) -> 0 | O101: =IF(F101=0,0,J101*((1+$C$17)/(1+L101))^M101*($C$17-L101)/(1-((1+L101)/(1+$C$17))^K101)) -> 0 | P101: =IF('A. Výber'!$J$6=1,V101,(IF('A. Výber'!$J$6=2,'11. Anualizácia nákladov'!U101,(IF('A. Výber'!$J$6=3,'11. Anualizácia nákladov'!N101,'11. Anualizácia nákladov'!O101))))) -> 0 | S101: =SUM(P101:R101) ->  | U101: =IF(J101=0,0,J101*($C$17-L101)/(1-((1+L101)/(1+$C$17))^K101)) ->  | V101: =IF(F101=0,0,J101*($C$17/(1-(1+$C$17)^(-K101)))) -> 0
S102: =IF(ISERROR(SUM(P102:R102)),0,(SUM(P102:R102))) -> 0 | U102: =IF(ISERROR(IF(J102=0,0,J102*($C$17-L102)/(1-((1+L102)/(1+$C$17))^K102))),0,(IF(J102=0,0,J102*($C$17-L102)/(1-((1+L102)/(1+$C$17))^K102)))) -> 0 | V102: 0
B103: ='5. Jednotkové investície & Opex'!B63 -> Add Drop Multiplexer - STM1 | C103: # ADM | D103: ='8. Prístupová sieť'!D409 -> 0 | E103: ='0. Hlavné vstupy'!BB312 ->  | F103: 0 | G103: ='5. Jednotkové investície & Opex'!E63 ->  | K103: ='5. Jednotkové investície & Opex'!F63 ->  | L103: ='5. Jednotkové investície & Opex'!G63 ->  | M103: ='5. Jednotkové investície & Opex'!H63/12 ->  | N103: 0 | O103: 0 | P103: =IF('A. Výber'!$J$6=1,V103,(IF('A. Výber'!$J$6=2,'11. Anualizácia nákladov'!U103,(IF('A. Výber'!$J$6=3,'11. Anualizácia nákladov'!N103,'11. Anualizácia nákladov'!O103))))) -> 0 | V103: 0
B104: ='5. Jednotkové investície & Opex'!B64 -> Add Drop Multiplexer - STM4 | C104: # ADM | D104: ='8. Prístupová sieť'!D410 -> 0 | E104: ='0. Hlavné vstupy'!BB313 ->  | F104: 0 | G104: ='5. Jednotkové investície & Opex'!E64 ->  | K104: ='5. Jednotkové investície & Opex'!F64 ->  | L104: ='5. Jednotkové investície & Opex'!G64 ->  | M104: ='5. Jednotkové investície & Opex'!H64/12 ->  | N104: 0 | O104: 0 | P104: =IF('A. Výber'!$J$6=1,V104,(IF('A. Výber'!$J$6=2,'11. Anualizácia nákladov'!U104,(IF('A. Výber'!$J$6=3,'11. Anualizácia nákladov'!N104,'11. Anualizácia nákladov'!O104))))) -> 0 | V104: 0
B105: ='5. Jednotkové investície & Opex'!B65 -> Add Drop Multiplexer - STM16 | C105: # ADM | D105: ='8. Prístupová sieť'!D411 -> 0 | E105: ='0. Hlavné vstupy'!BB314 ->  | F105: 0 | G105: ='5. Jednotkové investície & Opex'!E65 ->  | K105: ='5. Jednotkové investície & Opex'!F65 ->  | L105: ='5. Jednotkové investície & Opex'!G65 ->  | M105: ='5. Jednotkové investície & Opex'!H65/12 ->  | N105: 0 | O105: 0 | P105: =IF('A. Výber'!$J$6=1,V105,(IF('A. Výber'!$J$6=2,'11. Anualizácia nákladov'!U105,(IF('A. Výber'!$J$6=3,'11. Anualizácia nákladov'!N105,'11. Anualizácia nákladov'!O105))))) -> 0 | V105: 0
B106: ='5. Jednotkové investície & Opex'!B66 -> Add Drop Multiplexer - STM64 | C106: # ADM | D106: ='8. Prístupová sieť'!D412 -> 0 | E106: ='0. Hlavné vstupy'!BB315 ->  | F106: 0 | G106: ='5. Jednotkové investície & Opex'!E66 ->  | K106: ='5. Jednotkové investície & Opex'!F66 ->  | L106: ='5. Jednotkové investície & Opex'!G66 ->  | M106: ='5. Jednotkové investície & Opex'!H66/12 ->  | N106: 0 | O106: 0 | P106: =IF('A. Výber'!$J$6=1,V106,(IF('A. Výber'!$J$6=2,'11. Anualizácia nákladov'!U106,(IF('A. Výber'!$J$6=3,'11. Anualizácia nákladov'!N106,'11. Anualizácia nákladov'!O106))))) -> 0 | V106: 0
B107: ='5. Jednotkové investície & Opex'!B67 -> Add Drop Multiplexer - STM256
B108: ='5. Jednotkové investície & Opex'!B68 -> Mikrovlnné zariadenie | D108: ='8. Prístupová sieť'!D413 -> 0 | E108: ='0. Hlavné vstupy'!BB317 ->  | F108: 0 | H108: 0 | N108: 0 | O108: 0 | P108: =IF('A. Výber'!$J$6=1,V108,(IF('A. Výber'!$J$6=2,'11. Anualizácia nákladov'!U108,(IF('A. Výber'!$J$6=3,'11. Anualizácia nákladov'!N108,'11. Anualizácia nákladov'!O108))))) -> 0 | V108: 0
B109: ='5. Jednotkové investície & Opex'!B69 -> Link 2 Mbit/s | C109: # rádio setů | D109: ='8. Prístupová sieť'!D414 -> 0 | E109: ='0. Hlavné vstupy'!BB318 ->  | F109: 0 | G109: ='5. Jednotkové investície & Opex'!E69 ->  | K109: ='5. Jednotkové investície & Opex'!F69 ->  | L109: ='5. Jednotkové investície & Opex'!G69 ->  | M109: ='5. Jednotkové investície & Opex'!H69/12 ->  | N109: 0 | O109: 0 | P109: =IF('A. Výber'!$J$6=1,V109,(IF('A. Výber'!$J$6=2,'11. Anualizácia nákladov'!U109,(IF('A. Výber'!$J$6=3,'11. Anualizácia nákladov'!N109,'11. Anualizácia nákladov'!O109))))) -> 0 | S109: =SUM(P109:R109)+(F109*$D$39) ->  | V109: 0
B110: ='5. Jednotkové investície & Opex'!B70 -> Link 8 Mbit/s | C110: # rádio setů | D110: ='8. Prístupová sieť'!D415 -> 0 | E110: ='0. Hlavné vstupy'!BB340 ->  | F110: 0 | G110: ='5. Jednotkové investície & Opex'!E70 ->  | K110: ='5. Jednotkové investície & Opex'!F70 ->  | L110: ='5. Jednotkové investície & Opex'!G70 ->  | M110: ='5. Jednotkové investície & Opex'!H70/12 ->  | N110: 0 | O110: 0 | P110: =IF('A. Výber'!$J$6=1,V110,(IF('A. Výber'!$J$6=2,'11. Anualizácia nákladov'!U110,(IF('A. Výber'!$J$6=3,'11. Anualizácia nákladov'!N110,'11. Anualizácia nákladov'!O110))))) -> 0 | S110: =SUM(P110:R110)+(F110*$D$39) ->  | V110: 0
B111: ='5. Jednotkové investície & Opex'!B71 -> Link 32 Mbit/s | C111: # rádio setů | D111: ='8. Prístupová sieť'!D416 -> 0 | E111: ='0. Hlavné vstupy'!BB342 ->  | F111: 0 | G111: ='5. Jednotkové investície & Opex'!E71 ->  | K111: ='5. Jednotkové investície & Opex'!F71 ->  | L111: ='5. Jednotkové investície & Opex'!G71 ->  | M111: ='5. Jednotkové investície & Opex'!H71/12 ->  | N111: 0 | O111: 0 | P111: =IF('A. Výber'!$J$6=1,V111,(IF('A. Výber'!$J$6=2,'11. Anualizácia nákladov'!U111,(IF('A. Výber'!$J$6=3,'11. Anualizácia nákladov'!N111,'11. Anualizácia nákladov'!O111))))) -> 0 | S111: =SUM(P111:R111)+(F111*$D$39) ->  | V111: 0
B112: ='5. Jednotkové investície & Opex'!B72 -> Link 128 Mbit/s | C112: # rádio setů | D112: ='8. Prístupová sieť'!D417 -> 0 | E112: ='0. Hlavné vstupy'!BB321 ->  | F112: 0 | G112: ='5. Jednotkové investície & Opex'!$E$72 ->  | K112: ='5. Jednotkové investície & Opex'!F72 ->  | L112: ='5. Jednotkové investície & Opex'!G72 ->  | M112: ='5. Jednotkové investície & Opex'!H72/12 ->  | N112: 0 | O112: 0 | P112: =IF('A. Výber'!$J$6=1,V112,(IF('A. Výber'!$J$6=2,'11. Anualizácia nákladov'!U112,(IF('A. Výber'!$J$6=3,'11. Anualizácia nákladov'!N112,'11. Anualizácia nákladov'!O112))))) -> 0 | S112: =SUM(P112:R112)+(F112*$D$39) ->  | V112: 0
B113: ='5. Jednotkové investície & Opex'!B73 -> Link STM-1 | C113: # rádio setů | D113: ='8. Prístupová sieť'!D418 -> 0 | E113: ='0. Hlavné vstupy'!BB322 ->  | F113: 0 | G113: ='5. Jednotkové investície & Opex'!E73 ->  | H113: =F113*G113 ->  | J113: =H113+I113 ->  | K113: ='5. Jednotkové investície & Opex'!F73 ->  | L113: ='5. Jednotkové investície & Opex'!G73 ->  | M113: ='5. Jednotkové investície & Opex'!H73/12 ->  | N113: 0 | O113: 0 | P113: =IF('A. Výber'!$J$6=1,V113,(IF('A. Výber'!$J$6=2,'11. Anualizácia nákladov'!U113,(IF('A. Výber'!$J$6=3,'11. Anualizácia nákladov'!N113,'11. Anualizácia nákladov'!O113))))) -> 0 | S113: =SUM(P113:R113) ->  | V113: 0
B114: ='5. Jednotkové investície & Opex'!B74 -> Satelitné zariadenie | D114: ='8. Prístupová sieť'!D419 -> 0 | E114: ='0. Hlavné vstupy'!BB323 ->  | F114: 0 | N114: 0 | O114: 0 | P114: =IF('A. Výber'!$J$6=1,V114,(IF('A. Výber'!$J$6=2,'11. Anualizácia nákladov'!U114,(IF('A. Výber'!$J$6=3,'11. Anualizácia nákladov'!N114,'11. Anualizácia nákladov'!O114))))) -> 0 | U114: 0 | V114: 0
B115: ='5. Jednotkové investície & Opex'!B75 -> Link 2 Mbit/s | C115: # linků | D115: ='8. Prístupová sieť'!D420 -> 0 | E115: ='0. Hlavné vstupy'!BB324 ->  | F115: 0 | G115: ='5. Jednotkové investície & Opex'!E75 ->  | H115: =F115*G115 ->  | J115: =H115+I115 ->  | K115: ='5. Jednotkové investície & Opex'!F75 ->  | L115: ='5. Jednotkové investície & Opex'!G75 ->  | M115: ='5. Jednotkové investície & Opex'!H75/12 ->  | N115: 0 | O115: 0 | P115: =IF('A. Výber'!$J$6=1,V115,(IF('A. Výber'!$J$6=2,'11. Anualizácia nákladov'!U115,(IF('A. Výber'!$J$6=3,'11. Anualizácia nákladov'!N115,'11. Anualizácia nákladov'!O115))))) -> 0 | S115: =IF(ISERROR(SUM(P115:R115)),0,(SUM(P115:R115))) -> 0 | U115: =IF(ISERROR((IF(J115=0,0,J115*($C$17-L115)/(1-((1+L115)/(1+$C$17))^K115)))),0,((IF(J115=0,0,J115*($C$17-L115)/(1-((1+L115)/(1+$C$17))^K115))))) -> 0 | V115: 0
B116: ='5. Jednotkové investície & Opex'!B76 -> Link 8 Mbit/s | C116: # linků | D116: ='8. Prístupová sieť'!D421 -> 0 | E116: ='0. Hlavné vstupy'!BB325 ->  | F116: 0 | G116: ='5. Jednotkové investície & Opex'!E76 ->  | H116: =F116*G116 ->  | J116: =H116+I116 ->  | K116: ='5. Jednotkové investície & Opex'!F76 ->  | L116: ='5. Jednotkové investície & Opex'!G76 ->  | M116: ='5. Jednotkové investície & Opex'!H76/12 ->  | N116: 0 | O116: 0 | P116: =IF('A. Výber'!$J$6=1,V116,(IF('A. Výber'!$J$6=2,'11. Anualizácia nákladov'!U116,(IF('A. Výber'!$J$6=3,'11. Anualizácia nákladov'!N116,'11. Anualizácia nákladov'!O116))))) -> 0 | S116: =IF(ISERROR(SUM(P115:R115)),0,(SUM(P115:R115))) -> 0 | U116: =IF(ISERROR(IF(J116=0,0,J116*($C$17-L116)/(1-((1+L116)/(1+$C$17))^K116))),0,(IF(J116=0,0,J116*($C$17-L116)/(1-((1+L116)/(1+$C$17))^K116)))) -> 0 | V116: 0
B117: ='5. Jednotkové investície & Opex'!B77 -> Link 32 Mbit/s | C117: # linků | D117: ='8. Prístupová sieť'!D422 -> 0 | E117: ='0. Hlavné vstupy'!BB326 ->  | F117: 0 | G117: ='5. Jednotkové investície & Opex'!E77 ->  | H117: =F117*G117 ->  | J117: =H117+I117 ->  | K117: ='5. Jednotkové investície & Opex'!F77 ->  | L117: ='5. Jednotkové investície & Opex'!G77 ->  | M117: ='5. Jednotkové investície & Opex'!H77/12 ->  | N117: 0 | O117: 0 | P117: =IF('A. Výber'!$J$6=1,V117,(IF('A. Výber'!$J$6=2,'11. Anualizácia nákladov'!U117,(IF('A. Výber'!$J$6=3,'11. Anualizácia nákladov'!N117,'11. Anualizácia nákladov'!O117))))) -> 0 | S117: =IF(ISERROR(SUM(P117:R117)),0,(SUM(P117:R117))) -> 0 | U117: =IF(ISERROR(IF(J117=0,0,J117*($C$17-L117)/(1-((1+L117)/(1+$C$17))^K117))),0,(ISERROR(IF(J117=0,0,J117*($C$17-L117)/(1-((1+L117)/(1+$C$17))^K117))))) -> 0 | V117: 0
B118: ='5. Jednotkové investície & Opex'!B78 -> Link 128 Mbit/s | C118: # linků | D118: ='8. Prístupová sieť'!D423 -> 0 | E118: ='0. Hlavné vstupy'!BB327 ->  | F118: 0 | G118: ='5. Jednotkové investície & Opex'!E78 ->  | H118: =F118*G118 ->  | J118: =H118+I118 ->  | K118: ='5. Jednotkové investície & Opex'!F78 ->  | L118: ='5. Jednotkové investície & Opex'!G78 ->  | M118: ='5. Jednotkové investície & Opex'!H78/12 ->  | N118: 0 | O118: 0 | P118: =IF('A. Výber'!$J$6=1,V118,(IF('A. Výber'!$J$6=2,'11. Anualizácia nákladov'!U118,(IF('A. Výber'!$J$6=3,'11. Anualizácia nákladov'!N118,'11. Anualizácia nákladov'!O118))))) -> 0 | S118: =IF(ISERROR(SUM(P118:R118)),0,(SUM(P118:R118))) -> 0 | U118: =IF(ISERROR(IF(J118=0,0,J118*($C$17-L118)/(1-((1+L118)/(1+$C$17))^K118))),0,(IF(J118=0,0,J118*($C$17-L118)/(1-((1+L118)/(1+$C$17))^K118)))) -> 0 | V118: 0
B120: BSC/RNC - MGW | C120: Jednotka množstva | D120: Dimenzovaný počet | E120: Skutočný počet | F120: Zvolené množstvo | G120: Priemerná jednotková cena | H120: Priama hodnota aktíva | I120: Nepriamy CAPEX | J120: Hodnota aktíva | K120: Životnosť aktíva | L120: Inflácia ceny aktíva (ročná zmena ceny aktíva) | M120: Priemerný čas potrebný na vytvorenie aktíva (Roky) | N120: Anualizácia nákladov - jednoduchá anuita | O120: Anualizácia nákladov - naklonená anuita | P120: Zvolené Capex náklady | Q120: Pracovný kapitál | R120: Sieťový OPEX | S120: Celkom | U120: Naklonená anuita | V120: Jednoduchá anuita
G121: EUR | H121: =SUM(H122:H140) ->  | I121: =SUM(I122:I140) ->  | J121: =SUM(J122:J140) ->  | N121: =SUM(N122:N140) -> 
B122: =B100 -> Optické vlákno | C122: km vlastných | D122: ='8. Prístupová sieť'!$E$405 ->  | E122: ='0. Hlavné vstupy'!BB331 ->  | F122: =IF($C$12="Model teoretického operátora",D122,E122) ->  | G122: =G100 ->  | H122: =F122*G122 ->  | I122: =C_Markup_IndirectCAPEX*H122 ->  | J122: =H122+I122 ->  | K122: =K100 ->  | N122: =IF(F122=0,0,J122*((1+$C$17)/(1+L122))^M122*$C$17/(1-(1+$C$17)^(-K122))) ->  | O122: =IF(F122=0,0,J122*((1+$C$17)/(1+L122))^M122*($C$17-L122)/(1-((1+L122)/(1+$C$17))^K122)) ->  | P122: =IF('A. Výber'!$J$6=1,V122,(IF('A. Výber'!$J$6=2,'11. Anualizácia nákladov'!U122,(IF('A. Výber'!$J$6=3,'11. Anualizácia nákladov'!N122,'11. Anualizácia nákladov'!O122))))) ->  | Q122: =H122*C_MarkUp_WC*$C$17 ->  | R122: =H122*C_MarkUp_OPEX ->  | S122: =SUM(P122:R122) ->  | U122: =IF(F122=0,0,J122*($C$17-L122)/(1-((1+L122)/(1+$C$17))^K122)) ->  | V122: =IF(F122=0,0,J122*($C$17/(1-(1+$C$17)^(-K122)))) -> 
B123: SDH zariadenie | D123: ='8. Prístupová sieť'!E407 -> 0 | E123: ='0. Hlavné vstupy'!BB332 ->  | F123: 0 | G123: 0 | H123: =F123*G123 -> 0 | J123: =H123+I123 ->  | K123: 0 | L123: 0 | M123: 0 | N123: =IF(F123=0,0,J123*((1+$C$17)/(1+L123))^M123*$C$17/(1-(1+$C$17)^(-K123))) -> 0 | O123: =IF(F123=0,0,J123*((1+$C$17)/(1+L123))^M123*($C$17-L123)/(1-((1+L123)/(1+$C$17))^K123)) -> 0 | P123: =IF('A. Výber'!$J$6=1,V123,(IF('A. Výber'!$J$6=2,'11. Anualizácia nákladov'!U123,(IF('A. Výber'!$J$6=3,'11. Anualizácia nákladov'!N123,'11. Anualizácia nákladov'!O123))))) -> 0 | S123: =SUM(P123:R123) ->  | U123: =IF(F123=0,0,J123*($C$17-L123)/(1-((1+L123)/(1+$C$17))^K123)) -> 0 | V123: =IF(F123=0,0,J123*($C$17/(1-(1+$C$17)^(-K123)))) -> 0
B124: 0 | C124: # DXC | D124: ='8. Prístupová sieť'!E408 -> 0 | E124: ='0. Hlavné vstupy'!BB333 ->  | F124: 0 | G124: 0 | H124: 0 | K124: 0 | L124: 0 | M124: 0 | N124: 0 | O124: 0 | P124: =IF('A. Výber'!$J$6=1,V124,(IF('A. Výber'!$J$6=2,'11. Anualizácia nákladov'!U124,(IF('A. Výber'!$J$6=3,'11. Anualizácia nákladov'!N124,'11. Anualizácia nákladov'!O124))))) -> 0 | S124: =IF(ISERROR(SUM(P124:R124)),0,(SUM(P124:R124))) -> 0 | U124: 0 | V124: 0
B125: Add Drop Multiplexer - STM1 | C125: # ADM | D125: ='8. Prístupová sieť'!E409 -> 0 | E125: ='0. Hlavné vstupy'!BB334 ->  | F125: 0 | N125: 0 | O125: 0 | P125: =IF('A. Výber'!$J$6=1,V125,(IF('A. Výber'!$J$6=2,'11. Anualizácia nákladov'!U125,(IF('A. Výber'!$J$6=3,'11. Anualizácia nákladov'!N125,'11. Anualizácia nákladov'!O125))))) -> 0 | U125: 0 | V125: 0
B126: Add Drop Multiplexer - STM4 | C126: # ADM | D126: ='8. Prístupová sieť'!E410 -> 0 | E126: ='0. Hlavné vstupy'!BB335 ->  | F126: 0 | N126: 0 | O126: 0 | P126: =IF('A. Výber'!$J$6=1,V126,(IF('A. Výber'!$J$6=2,'11. Anualizácia nákladov'!U126,(IF('A. Výber'!$J$6=3,'11. Anualizácia nákladov'!N126,'11. Anualizácia nákladov'!O126))))) -> 0 | U126: 0 | V126: 0
B127: Add Drop Multiplexer - STM16 | C127: # ADM | D127: ='8. Prístupová sieť'!E411 -> 0 | E127: ='0. Hlavné vstupy'!BB336 ->  | F127: 0 | N127: 0 | O127: 0 | P127: =IF('A. Výber'!$J$6=1,V127,(IF('A. Výber'!$J$6=2,'11. Anualizácia nákladov'!U127,(IF('A. Výber'!$J$6=3,'11. Anualizácia nákladov'!N127,'11. Anualizácia nákladov'!O127))))) -> 0 | U127: 0 | V127: 0
B128: Add Drop Multiplexer - STM64 | C128: # ADM | D128: ='8. Prístupová sieť'!E412 -> 0 | E128: ='0. Hlavné vstupy'!BB337 ->  | F128: 0 | N128: 0 | O128: 0 | P128: =IF('A. Výber'!$J$6=1,V128,(IF('A. Výber'!$J$6=2,'11. Anualizácia nákladov'!U128,(IF('A. Výber'!$J$6=3,'11. Anualizácia nákladov'!N128,'11. Anualizácia nákladov'!O128))))) -> 0 | U128: 0 | V128: 0
B129: Add Drop Multiplexer - STM256 | N129: 0
B130: Mikrovlnné zariadenie | D130: ='8. Prístupová sieť'!E413 -> 0 | E130: ='0. Hlavné vstupy'!BB339 ->  | F130: 0 | G130: =G108 -> 0 | H130: 0 | K130: =K108 -> 0 | L130: 0 | M130: 0 | N130: 0 | O130: 0 | P130: =IF('A. Výber'!$J$6=1,V130,(IF('A. Výber'!$J$6=2,'11. Anualizácia nákladov'!U130,(IF('A. Výber'!$J$6=3,'11. Anualizácia nákladov'!N130,'11. Anualizácia nákladov'!O130))))) -> 0 | U130: 0 | V130: 0
B131: Link 2 Mbit/s | C131: # rádio setov | D131: ='8. Prístupová sieť'!E414 -> 0 | E131: ='0. Hlavné vstupy'!BB340 ->  | F131: 0 | N131: 0 | O131: 0 | P131: =IF('A. Výber'!$J$6=1,V131,(IF('A. Výber'!$J$6=2,'11. Anualizácia nákladov'!U131,(IF('A. Výber'!$J$6=3,'11. Anualizácia nákladov'!N131,'11. Anualizácia nákladov'!O131))))) -> 0 | U131: 0 | V131: 0
B132: Link 8 Mbit/s | C132: # rádio setov | D132: ='8. Prístupová sieť'!E415 -> 0 | E132: ='0. Hlavné vstupy'!BB341 ->  | F132: 0 | N132: 0 | O132: 0 | P132: =IF('A. Výber'!$J$6=1,V132,(IF('A. Výber'!$J$6=2,'11. Anualizácia nákladov'!U132,(IF('A. Výber'!$J$6=3,'11. Anualizácia nákladov'!N132,'11. Anualizácia nákladov'!O132))))) -> 0 | U132: 0 | V132: 0
B133: Link 32 Mbit/s | C133: # rádio setov | D133: ='8. Prístupová sieť'!E416 -> 0 | E133: ='0. Hlavné vstupy'!BB342 ->  | F133: 0 | N133: 0 | O133: 0 | P133: =IF('A. Výber'!$J$6=1,V133,(IF('A. Výber'!$J$6=2,'11. Anualizácia nákladov'!U133,(IF('A. Výber'!$J$6=3,'11. Anualizácia nákladov'!N133,'11. Anualizácia nákladov'!O133))))) -> 0 | U133: 0 | V133: 0
B134: Link 128 Mbit/s | C134: # rádio setov | D134: ='8. Prístupová sieť'!E417 -> 0 | E134: ='0. Hlavné vstupy'!BB343 ->  | F134: 0 | N134: 0 | O134: 0 | P134: =IF('A. Výber'!$J$6=1,V134,(IF('A. Výber'!$J$6=2,'11. Anualizácia nákladov'!U134,(IF('A. Výber'!$J$6=3,'11. Anualizácia nákladov'!N134,'11. Anualizácia nákladov'!O134))))) -> 0 | U134: 0 | V134: 0
B135: Link STM-1 | C135: # rádio setov | D135: ='8. Prístupová sieť'!E418 -> 0 | E135: ='0. Hlavné vstupy'!BB344 ->  | F135: 0 | H135: =F135*G135 ->  | J135: =H135+I135 ->  | N135: 0 | O135: 0 | P135: =IF('A. Výber'!$J$6=1,V135,(IF('A. Výber'!$J$6=2,'11. Anualizácia nákladov'!U135,(IF('A. Výber'!$J$6=3,'11. Anualizácia nákladov'!N135,'11. Anualizácia nákladov'!O135))))) -> 0 | S135: =SUM(P135:R135) ->  | U135: 0 | V135: 0
B136: Satelitné zariadenie | D136: ='8. Prístupová sieť'!E419 -> 0 | E136: ='0. Hlavné vstupy'!BB345 ->  | F136: 0 | G136: 0 | K136: 0 | L136: 0 | M136: 0 | N136: 0 | O136: 0 | P136: =IF('A. Výber'!$J$6=1,V136,(IF('A. Výber'!$J$6=2,'11. Anualizácia nákladov'!U136,(IF('A. Výber'!$J$6=3,'11. Anualizácia nákladov'!N136,'11. Anualizácia nákladov'!O136))))) -> 0 | U136: 0 | V136: 0
B137: Link 2 Mbit/s | C137: # linkov | D137: ='8. Prístupová sieť'!E420 -> 0 | E137: ='0. Hlavné vstupy'!BB346 ->  | F137: 0 | H137: =F137*G137 ->  | J137: =H137+I137 ->  | N137: 0 | O137: 0 | P137: =IF('A. Výber'!$J$6=1,V137,(IF('A. Výber'!$J$6=2,'11. Anualizácia nákladov'!U137,(IF('A. Výber'!$J$6=3,'11. Anualizácia nákladov'!N137,'11. Anualizácia nákladov'!O137))))) -> 0 | S137: =IF(ISERROR(SUM(P137:R137)),0,(SUM(P137:R137))) -> 0 | U137: 0 | V137: 0
B138: Link 8 Mbit/s | C138: # linkov | D138: ='8. Prístupová sieť'!E421 -> 0 | E138: ='0. Hlavné vstupy'!BB347 ->  | F138: 0 | H138: =F138*G138 ->  | J138: =H138+I138 ->  | N138: 0 | O138: 0 | P138: =IF('A. Výber'!$J$6=1,V138,(IF('A. Výber'!$J$6=2,'11. Anualizácia nákladov'!U138,(IF('A. Výber'!$J$6=3,'11. Anualizácia nákladov'!N138,'11. Anualizácia nákladov'!O138))))) -> 0 | S138: =IF(ISERROR(SUM(P138:R138)),0,(SUM(P138:R138))) -> 0 | U138: 0 | V138: 0
B139: Link 32 Mbit/s | C139: # linkov | D139: ='8. Prístupová sieť'!E422 -> 0 | E139: ='0. Hlavné vstupy'!BB348 ->  | F139: 0 | H139: =F139*G139 ->  | J139: =H139+I139 ->  | N139: 0 | O139: 0 | P139: =IF('A. Výber'!$J$6=1,V139,(IF('A. Výber'!$J$6=2,'11. Anualizácia nákladov'!U139,(IF('A. Výber'!$J$6=3,'11. Anualizácia nákladov'!N139,'11. Anualizácia nákladov'!O139))))) -> 0 | S139: =IF(ISERROR(SUM(P139:R139)),0,(SUM(P139:R139))) -> 0 | U139: 0 | V139: 0
B140: Link 128 Mbit/s | C140: # linkov | D140: ='8. Prístupová sieť'!E423 -> 0 | E140: ='0. Hlavné vstupy'!BB349 ->  | F140: 0 | H140: =F140*G140 ->  | J140: =H140+I140 ->  | N140: 0 | O140: 0 | P140: =IF('A. Výber'!$J$6=1,V140,(IF('A. Výber'!$J$6=2,'11. Anualizácia nákladov'!U140,(IF('A. Výber'!$J$6=3,'11. Anualizácia nákladov'!N140,'11. Anualizácia nákladov'!O140))))) -> 0 | S140: =IF(ISERROR(SUM(P140:R140)),0,(SUM(P140:R140))) -> 0 | U140: 0 | V140: 0
B142: Spoje chrbticovej siete | C142: Jednotka množstva | D142: Dimenzovaný počet | E142: Skutočný počet | F142: Zvolené množstvo | G142: Priemerná jednotková cena | H142: Priama hodnota aktíva | I142: Nepriamy CAPEX | J142: Hodnota aktíva | K142: Životnosť aktíva | L142: Inflácia ceny aktíva (ročná zmena ceny aktíva) | M142: Priemerný čas potrebný na vytvorenie aktíva (Roky) | N142: Anualizácia nákladov - jednoduchá anuita | O142: Anualizácia nákladov - naklonená anuita | P142: Zvolené Capex náklady | Q142: Pracovný kapitál | R142: Sieťový OPEX | S142: Celkom | U142: Naklonená anuita | V142: Jednoduchá anuita
G143: EUR | H143: =SUM(H144:H155) ->  | I143: =SUM(I144:I155) ->  | J143: =SUM(J144:J155) ->  | N143: =SUM(N144:N155) -> 0 | O143: 0 | P143: 0 | U143: 0 | V143: 0
B144: =B122 -> Optické vlákno | C144: km vlastních | D144: ='10. Chrbticová sieť'!N175 -> 0 | E144: ='0. Hlavné vstupy'!BB353 ->  | F144: =IF($C$12="Model teoretického operátora",D144,E144) -> 0 | G144: =G122 ->  | H144: =F144*G144 ->  | I144: =C_Markup_IndirectCAPEX*H144 ->  | J144: =H144+I144 ->  | K144: =K122 ->  | N144: =IF(F144=0,0,J144*((1+$C$17)/(1+L144))^M144*$C$17/(1-(1+$C$17)^(-K144))) -> 0 | O144: =IF(F144=0,0,J144*((1+$C$17)/(1+L144))^M144*($C$17-L144)/(1-((1+L144)/(1+$C$17))^K144)) -> 0 | P144: =IF('A. Výber'!$J$6=1,V144,(IF('A. Výber'!$J$6=2,'11. Anualizácia nákladov'!U144,(IF('A. Výber'!$J$6=3,'11. Anualizácia nákladov'!N144,'11. Anualizácia nákladov'!O144))))) -> 0 | Q144: =H144*C_MarkUp_WC*$C$17 ->  | R144: =H144*C_MarkUp_OPEX ->  | S144: =SUM(P144:R144) ->  | U144: =IF(F144=0,0,J144*($C$17-L144)/(1-((1+L144)/(1+$C$17))^K144)) -> 0 | V144: =IF(F144=0,0,J144*(($C$17/(1-(1+$C$17)^(-K144))))) -> 0
B145: SDH zariadenie | E145: ='0. Hlavné vstupy'!BB355 ->  | F145: 0 | G145: 0 | H145: =F145*G145 -> 0 | J145: =H145+I145 ->  | K145: 0 | L145: 0 | M145: 0 | N145: =IF(F145=0,0,J145*((1+$C$17)/(1+L145))^M145*$C$17/(1-(1+$C$17)^(-K145))) -> 0 | O145: =IF(F145=0,0,J145*((1+$C$17)/(1+L145))^M145*($C$17-L145)/(1-((1+L145)/(1+$C$17))^K145)) -> 0 | P145: =IF('A. Výber'!$J$6=1,V145,(IF('A. Výber'!$J$6=2,'11. Anualizácia nákladov'!U145,(IF('A. Výber'!$J$6=3,'11. Anualizácia nákladov'!N145,'11. Anualizácia nákladov'!O145))))) -> 0 | S145: =SUM(P145:R145) ->  | U145: =IF(F145=0,0,J145*($C$17-L145)/(1-((1+L145)/(1+$C$17))^K145)) -> 0 | V145: =IF(F145=0,0,J145*(($C$17/(1-(1+$C$17)^(-K145))))) -> 0
B146: 0 | C146: # DXC | E146: ='0. Hlavné vstupy'!BB355 ->  | F146: 0 | G146: 0 | H146: 0 | K146: 0 | L146: 0 | M146: 0 | N146: 0 | O146: 0 | P146: =IF('A. Výber'!$J$6=1,V146,(IF('A. Výber'!$J$6=2,'11. Anualizácia nákladov'!U146,(IF('A. Výber'!$J$6=3,'11. Anualizácia nákladov'!N146,'11. Anualizácia nákladov'!O146))))) -> 0 | S146: =IF(ISERROR(SUM(P146:R146)),0,(SUM(P146:R146))) -> 0 | U146: 0 | V146: 0
B147: Add Drop Multiplexer - STM1 | C147: # ADM | D147: =VLOOKUP(B147,'10. Chrbticová sieť'!$B$167:$D$170,3,0) -> 0 | E147: ='0. Hlavné vstupy'!BB356 ->  | F147: 0 | N147: 0 | O147: 0 | P147: =IF('A. Výber'!$J$6=1,V147,(IF('A. Výber'!$J$6=2,'11. Anualizácia nákladov'!U147,(IF('A. Výber'!$J$6=3,'11. Anualizácia nákladov'!N147,'11. Anualizácia nákladov'!O147))))) -> 0 | U147: 0 | V147: 0
B148: Add Drop Multiplexer - STM4 | C148: # ADM | D148: =VLOOKUP(B148,'10. Chrbticová sieť'!$B$167:$D$170,3,0) -> 0 | E148: ='0. Hlavné vstupy'!BB357 ->  | F148: 0 | N148: 0 | O148: 0 | P148: =IF('A. Výber'!$J$6=1,V148,(IF('A. Výber'!$J$6=2,'11. Anualizácia nákladov'!U148,(IF('A. Výber'!$J$6=3,'11. Anualizácia nákladov'!N148,'11. Anualizácia nákladov'!O148))))) -> 0 | U148: 0 | V148: 0
B149: Add Drop Multiplexer - STM16 | C149: # ADM | D149: =VLOOKUP(B149,'10. Chrbticová sieť'!$B$167:$D$170,3,0) -> 0 | E149: ='0. Hlavné vstupy'!BB358 ->  | F149: 0 | N149: 0 | O149: 0 | P149: =IF('A. Výber'!$J$6=1,V149,(IF('A. Výber'!$J$6=2,'11. Anualizácia nákladov'!U149,(IF('A. Výber'!$J$6=3,'11. Anualizácia nákladov'!N149,'11. Anualizácia nákladov'!O149))))) -> 0 | U149: 0 | V149: 0
B150: Add Drop Multiplexer - STM64 | C150: # ADM | D150: =VLOOKUP(B150,'10. Chrbticová sieť'!$B$167:$D$170,3,0) -> 0 | E150: ='0. Hlavné vstupy'!BB359 ->  | F150: 0 | N150: 0 | O150: 0 | P150: =IF('A. Výber'!$J$6=1,V150,(IF('A. Výber'!$J$6=2,'11. Anualizácia nákladov'!U150,(IF('A. Výber'!$J$6=3,'11. Anualizácia nákladov'!N150,'11. Anualizácia nákladov'!O150))))) -> 0 | U150: 0 | V150: 0
B151: =B130 -> Mikrovlnné zariadenie | D151: ='8. Prístupová sieť'!E448 -> 0 | E151: ='0. Hlavné vstupy'!BB362 ->  | F151: 0 | G151: =G136 -> 0 | H151: 0 | K151: =K136 -> 0 | L151: 0 | M151: 0 | N151: 0 | O151: 0 | P151: =IF('A. Výber'!$J$6=1,V151,(IF('A. Výber'!$J$6=2,'11. Anualizácia nákladov'!U151,(IF('A. Výber'!$J$6=3,'11. Anualizácia nákladov'!N151,'11. Anualizácia nákladov'!O151))))) -> 0 | U151: 0 | V151: 0
B152: =B137 -> Link 2 Mbit/s | C152: # linků | E152: ='0. Hlavné vstupy'!BB363 ->  | F152: 0 | G152: =G137 ->  | N152: 0 | O152: 0 | P152: =IF('A. Výber'!$J$6=1,V152,(IF('A. Výber'!$J$6=2,'11. Anualizácia nákladov'!U152,(IF('A. Výber'!$J$6=3,'11. Anualizácia nákladov'!N152,'11. Anualizácia nákladov'!O152))))) -> 0 | U152: 0 | V152: 0
B153: =B138 -> Link 8 Mbit/s | C153: # linků | E153: ='0. Hlavné vstupy'!BB364 ->  | F153: 0 | G153: =G138 ->  | N153: 0 | O153: 0 | P153: =IF('A. Výber'!$J$6=1,V153,(IF('A. Výber'!$J$6=2,'11. Anualizácia nákladov'!U153,(IF('A. Výber'!$J$6=3,'11. Anualizácia nákladov'!N153,'11. Anualizácia nákladov'!O153))))) -> 0 | S153: =IF(ISERROR(SUM(P153:R153)),0,(SUM(P153:R153))) -> 0 | U153: 0 | V153: 0
B154: =B139 -> Link 32 Mbit/s | C154: # linků | E154: ='0. Hlavné vstupy'!BB365 ->  | F154: 0 | G154: =G139 ->  | N154: 0 | O154: 0 | P154: =IF('A. Výber'!$J$6=1,V154,(IF('A. Výber'!$J$6=2,'11. Anualizácia nákladov'!U154,(IF('A. Výber'!$J$6=3,'11. Anualizácia nákladov'!N154,'11. Anualizácia nákladov'!O154))))) -> 0 | S154: =IF(ISERROR(SUM(P154:R154)),0,(SUM(P154:R154))) -> 0 | U154: 0 | V154: 0
B155: =B140 -> Link 128 Mbit/s | C155: # linků | E155: ='0. Hlavné vstupy'!BB366 -> 0 | F155: 0 | G155: =G140 ->  | N155: 0 | O155: 0 | P155: =IF('A. Výber'!$J$6=1,V155,(IF('A. Výber'!$J$6=2,'11. Anualizácia nákladov'!U155,(IF('A. Výber'!$J$6=3,'11. Anualizácia nákladov'!N155,'11. Anualizácia nákladov'!O155))))) -> 0 | S155: =IF(ISERROR(SUM(P155:R155)),0,(SUM(P155:R155))) -> 0 | U155: 0 | V155: 0
B157: NGN prenosové zariadenie | C157: Jednotka množstva | D157: Dimenzovaný počet | E157: Skutočný počet | F157: Zvolené množstvo | G157: Priemerná jednotková cena | H157: Priama hodnota aktíva | I157: Nepriamy CAPEX | J157: Hodnota aktíva | K157: Životnosť aktíva | L157: Inflácia ceny aktíva (ročná zmena ceny aktíva) | M157: Priemerný čas potrebný na vytvorenie aktíva (Roky) | N157: Anualizácia nákladov - jednoduchá anuita | O157: Anualizácia nákladov - naklonená anuita | P157: Zvolené Capex náklady | Q157: Pracovný kapitál | R157: Sieťový OPEX | S157: Celkom | U157: Naklonená anuita | V157: Jednoduchá anuita
G158: EUR | H158: =SUM(H159:H160) ->  | I158: =SUM(I159:I160) ->  | J158: =SUM(J159:J160) ->  | N158: =SUM(N159:N160) ->  | U158: =SUM(U159:U175) ->  | V158: =SUM(V159:V175) -> 
B159: ='5. Jednotkové investície & Opex'!B59 -> IP Switch | C159: # | D159: ='10. Chrbticová sieť'!N116 ->  | E159: ='0. Hlavné vstupy'!BB369 ->  | F159: =IF($C$12="Model teoretického operátora",D159,E159) ->  | G159: ='5. Jednotkové investície & Opex'!E59 ->  | H159: =F159*G159 ->  | I159: =C_Markup_IndirectCAPEX*H159 ->  | J159: =H159+I159 ->  | K159: ='5. Jednotkové investície & Opex'!F59 ->  | L159: ='5. Jednotkové investície & Opex'!G59 ->  | M159: ='5. Jednotkové investície & Opex'!H59 ->  | N159: =IF(F159=0,0,J159*((1+$C$17)/(1+L159))^M159*$C$17/(1-(1+$C$17)^(-K159))) ->  | O159: =IF(F159=0,0,J159*((1+$C$17)/(1+L159))^M159*($C$17-L159)/(1-((1+L159)/(1+$C$17))^K159)) ->  | P159: =IF('A. Výber'!$J$6=1,V159,(IF('A. Výber'!$J$6=2,'11. Anualizácia nákladov'!U159,(IF('A. Výber'!$J$6=3,'11. Anualizácia nákladov'!N159,'11. Anualizácia nákladov'!O159))))) ->  | Q159: =H159*C_MarkUp_WC*$C$17 ->  | R159: =H159*D49 ->  | S159: =SUM(P159:R159) ->  | U159: =IF(F159=0,0,J159*($C$17-L159)/(1-((1+L159)/(1+$C$17))^K159)) ->  | V159: =IF(F159=0,0,J159*($C$17/(1-(1+$C$17)^(-K159)))) -> 
B160: ='5. Jednotkové investície & Opex'!B60 -> IP Router | C160: # | D160: ='10. Chrbticová sieť'!N139 ->  | E160: ='0. Hlavné vstupy'!BB370 ->  | F160: =IF($C$12="Model teoretického operátora",D160,E160) ->  | G160: ='5. Jednotkové investície & Opex'!E60 ->  | H160: =F160*G160 ->  | I160: =C_Markup_IndirectCAPEX*H160 ->  | J160: =H160+I160 ->  | K160: ='5. Jednotkové investície & Opex'!F60 ->  | L160: ='5. Jednotkové investície & Opex'!G60 ->  | M160: ='5. Jednotkové investície & Opex'!H60 ->  | N160: =IF(F160=0,0,J160*((1+$C$17)/(1+L160))^M160*$C$17/(1-(1+$C$17)^(-K160))) ->  | O160: =IF(F160=0,0,J160*((1+$C$17)/(1+L160))^M160*($C$17-L160)/(1-((1+L160)/(1+$C$17))^K160)) ->  | P160: =IF('A. Výber'!$J$6=1,V160,(IF('A. Výber'!$J$6=2,'11. Anualizácia nákladov'!U160,(IF('A. Výber'!$J$6=3,'11. Anualizácia nákladov'!N160,'11. Anualizácia nákladov'!O160))))) ->  | Q160: =H160*C_MarkUp_WC*$C$17 ->  | R160: =H160*D49 ->  | S160: =SUM(P160:R160) ->  | U160: =IF(F160=0,0,J160*($C$17-L160)/(1-((1+L160)/(1+$C$17))^K160)) ->  | V160: =IF(F160=0,0,J160*($C$17/(1-(1+$C$17)^(-K160)))) -> 
B163: Alokácia zdieľaného prístupu | C163: Mbps | D163: Alokácia Core/Access | E163: Erlang | F163: Alokácia BTS-BSC / BSC-MGW | G163: Prevádzka 2G/3G
B164: Core dopyt | C164: =SUM('10. Chrbticová sieť'!N148:N149) -> 0 | D164: =C164/SUM(C164:C165) -> 
B165: Prístupový dopyt
B166: BTS/NodeB - BSC/RNC | E166: 0 | F166: =IF(ISERROR(E166/SUM($E$166:$E$167)),0,(E166/SUM($E$166:$E$167))) -> 0
B167: BSC/RNC - MGW | E167: 0 | F167: =IF(ISERROR(E167/SUM($E$166:$E$167)),0,(E167/SUM($E$166:$E$167))) -> 0
B168: 2G | G168: ='A. Výber'!D21 -> 0
B169: 3G | G169: ='A. Výber'!D22 -> 0
B170: LTE | G170: ='A. Výber'!D23 -> 0
B172: Sumarizácia nákladov na vlastnené prenosové zariadenie | C172: Total
C173: =SUM(C174:C178) -> 
B174: BTS - BSC | C174: =(S99+S143*D165*F166)*G168 -> 
B175: NodeB - RNC | C175: =(S99+S143*D165*F166)*G169 -> 
B176: BSC - MGW | C176: =(S121+S143*D165*F167)*G168 -> 
B177: RNC - MGW | C177: =(S121+S143*D165*F167)*G169 -> 
B178: MGW - MGW / SGW, PGW - SGW, PGW | C178: =S143+S158 -> 
B179: eNode B - MGW | C179: =(S103+S143*D165*0)*G170 -> 
A181: 11.6 Náklady na prenos využitím prenajatých zariadení
B183: Prenajímacie náklady na prenos | C183: Jednotka množstva | D183: Dimenzovaný počet (vzdialenosť v km) | E183: Skutočný počet (vzdialenosť v km) | F183: Zvolené množstvo | G183: Ročná cena prenájmu | H183: Celkom
G184: =G186+G196+G206 -> 0 | H184: =H186+H196+H206 -> 
B185: RU-DU | C185: km
B186: =B98 -> BTS/NodeB - BSC/RNC | E186: ='0. Hlavné vstupy'!BB394 ->  | F186: =IF($C$12="Model teoretického operátora",D186,E186) -> 0 | G186: =SUM(G187:G195) -> 0 | H186: =SUM(H187:H195) -> 
B187: Kábel | C187: km | D187: ='8. Prístupová sieť'!D406 ->  | E187: ='0. Hlavné vstupy'!BB395 ->  | F187: =IF($C$12="Model teoretického operátora",D187,E187) ->  | H187: =F187*G187 -> 
B188: ='8. Prístupová sieť'!B435 -> Link 2 Mbit/s | C188: # linkov | D188: ='8. Prístupová sieť'!D426 -> 0 | E188: ='0. Hlavné vstupy'!BB396 ->  | F188: 0 | G188: ='5. Jednotkové investície & Opex'!$G$91 -> 0 | H188: =F188*G188 -> 0
B189: ='8. Prístupová sieť'!B436 -> Link 8 Mbit/s | C189: # linkov | D189: ='8. Prístupová sieť'!D427 -> 0 | E189: ='0. Hlavné vstupy'!BB397 ->  | F189: 0 | G189: ='5. Jednotkové investície & Opex'!$G$92 -> 0 | H189: 0
B190: ='8. Prístupová sieť'!B437 -> Link 32 Mbit/s | C190: # linkov | D190: ='8. Prístupová sieť'!D428 -> 0 | E190: ='0. Hlavné vstupy'!BB398 ->  | F190: 0 | G190: ='5. Jednotkové investície & Opex'!$G$93 -> 0 | H190: 0
B191: ='8. Prístupová sieť'!B438 -> Link 128 Mbit/s | C191: # linkov | D191: ='8. Prístupová sieť'!D429 -> 0 | E191: ='0. Hlavné vstupy'!BB399 ->  | F191: 0 | G191: ='5. Jednotkové investície & Opex'!$G$94 -> 0 | H191: 0
B192: ='8. Prístupová sieť'!B439 -> Link STM-1 | C192: # linkov | D192: ='8. Prístupová sieť'!D430 -> 0 | E192: ='0. Hlavné vstupy'!BB400 ->  | F192: 0 | G192: ='5. Jednotkové investície & Opex'!$G$91 -> 0 | H192: 0
B193: ='8. Prístupová sieť'!B440 -> Link STM-4 | C193: # linkov | D193: ='8. Prístupová sieť'!D431 -> 0 | E193: ='0. Hlavné vstupy'!BB401 ->  | F193: 0 | G193: ='5. Jednotkové investície & Opex'!$G$92 -> 0 | H193: 0
B194: ='8. Prístupová sieť'!B441 -> Link STM-16 | C194: # linkov | D194: ='8. Prístupová sieť'!D432 -> 0 | E194: ='0. Hlavné vstupy'!BB402 ->  | F194: 0 | G194: ='5. Jednotkové investície & Opex'!$G$93 -> 0 | H194: 0
B195: ='8. Prístupová sieť'!B442 -> Link STM-64 | C195: # linkov | D195: ='8. Prístupová sieť'!D433 -> 0 | E195: ='0. Hlavné vstupy'!BB403 ->  | F195: 0 | G195: ='5. Jednotkové investície & Opex'!$G$94 -> 0 | H195: 0
B196: =B120 -> BSC/RNC - MGW | E196: ='0. Hlavné vstupy'!BB405 ->  | F196: 0 | H196: =SUM(H197:H205) -> 
B197: Kábel | C197: km | D197: ='8. Prístupová sieť'!E406 ->  | E197: ='0. Hlavné vstupy'!BB406 ->  | G197: ='5. Jednotkové investície & Opex'!$G$90 -> 0 | H197: =F197*G197 -> 
B198: =B188 -> Link 2 Mbit/s | C198: # linkov | D198: ='8. Prístupová sieť'!E426 -> 0 | E198: ='0. Hlavné vstupy'!BB407 ->  | F198: 0 | G198: ='5. Jednotkové investície & Opex'!$G$91 -> 0 | H198: 0
B199: =B189 -> Link 8 Mbit/s | C199: # linkov | D199: ='8. Prístupová sieť'!E427 -> 0 | E199: ='0. Hlavné vstupy'!BB408 ->  | F199: 0 | G199: ='5. Jednotkové investície & Opex'!$G$92 -> 0 | H199: 0
B200: Link 32 Mbit/s | C200: # linkov | D200: ='8. Prístupová sieť'!E428+'8. Prístupová sieť'!E437 -> 0 | E200: ='0. Hlavné vstupy'!BB409 ->  | F200: 0 | G200: ='5. Jednotkové investície & Opex'!$G$93 -> 0 | H200: 0
B201: Link 128 Mbit/s | C201: # linkov | D201: ='8. Prístupová sieť'!E429 -> 0 | E201: ='0. Hlavné vstupy'!BB410 ->  | F201: 0 | G201: ='5. Jednotkové investície & Opex'!$G$94 -> 0 | H201: 0
B202: =B192 -> Link STM-1 | C202: # linkov | D202: ='8. Prístupová sieť'!E430 -> 0 | E202: ='0. Hlavné vstupy'!BB411 ->  | F202: 0 | G202: ='5. Jednotkové investície & Opex'!$G$91 -> 0 | H202: 0
B203: Link STM-4 | C203: # linkov | D203: ='8. Prístupová sieť'!E431 -> 0 | E203: ='0. Hlavné vstupy'!BB412 ->  | F203: 0 | G203: ='5. Jednotkové investície & Opex'!$G$92 -> 0 | H203: 0
B204: Link STM-16 | C204: # linkov | D204: ='8. Prístupová sieť'!E432 -> 0 | E204: ='0. Hlavné vstupy'!BB413 ->  | F204: 0 | G204: ='5. Jednotkové investície & Opex'!$G$93 -> 0 | H204: 0
B205: Link STM-64 | C205: # linkov | D205: ='8. Prístupová sieť'!E433 -> 0 | E205: ='0. Hlavné vstupy'!BB414 ->  | F205: 0 | G205: ='5. Jednotkové investície & Opex'!$G$94 -> 0 | H205: 0
B206: =B142 -> Spoje chrbticovej siete | E206: ='0. Hlavné vstupy'!BB415 ->  | F206: 0 | G206: =SUM(G207:G215) -> 0 | H206: =SUM(H207:H215) -> 0
B207: Kábel | C207: km | D207: ='10. Chrbticová sieť'!N176 -> 0 | E207: ='0. Hlavné vstupy'!BB416 ->  | F207: 0 | G207: ='5. Jednotkové investície & Opex'!$G$90 -> 0 | H207: =F207*G207 -> 0
B208: =B188 -> Link 2 Mbit/s | C208: # linkov | E208: ='0. Hlavné vstupy'!BB417 ->  | F208: 0 | G208: ='5. Jednotkové investície & Opex'!$G$91 -> 0 | H208: 0
B209: =B189 -> Link 8 Mbit/s | C209: # linkov | E209: ='0. Hlavné vstupy'!BB418 ->  | F209: 0 | G209: ='5. Jednotkové investície & Opex'!$G$92 -> 0 | H209: 0
B210: Link 32 Mbit/s | C210: # linkov | E210: ='0. Hlavné vstupy'!BB419 ->  | F210: 0 | G210: ='5. Jednotkové investície & Opex'!$G$93 -> 0 | H210: 0
B211: Link 128 Mbit/s | C211: # linkov | E211: ='0. Hlavné vstupy'!BB420 ->  | F211: 0 | G211: ='5. Jednotkové investície & Opex'!$G$94 -> 0 | H211: 0
B212: Link STM-1 | C212: # linkov | D212: ='10. Chrbticová sieť'!N181 -> 0 | E212: ='0. Hlavné vstupy'!BB421 ->  | F212: 0 | G212: ='5. Jednotkové investície & Opex'!$G$91 -> 0 | H212: 0
B213: Link STM-4 | C213: # linkov | E213: ='0. Hlavné vstupy'!BB422 ->  | F213: 0 | G213: ='5. Jednotkové investície & Opex'!$G$92 -> 0 | H213: 0
B214: Link STM-16 | C214: # linkov | E214: ='0. Hlavné vstupy'!BB423 ->  | F214: 0 | G214: ='5. Jednotkové investície & Opex'!$G$93 -> 0 | H214: 0
B215: Link STM-64 | C215: # linkov | E215: ='0. Hlavné vstupy'!BB424 ->  | F215: 0 | G215: ='5. Jednotkové investície & Opex'!$G$94 -> 0 | H215: 0
B218: Sumarizácia prenosových nákladov | C218: Vlastnené | D218: Prenajaté | E218: Celkom
C219: =SUM(C220:C224) ->  | D219: =SUM(D220:D224) -> 0 | E219: =SUM(E220:E224) -> 
B220: BTS - BSC | C220: =C174 ->  | D220: =$G$186*G168 -> 0 | E220: =SUM(C220:D220) -> 
B221: NodeB - RNC | C221: =C175 ->  | D221: =$G$186*G169 -> 0 | E221: =SUM(C221:D221) -> 
B222: BSC - MGW | C222: =C176 ->  | D222: =$G$196*G168 -> 0 | E222: =SUM(C222:D222) -> 
B223: RNC - MGW | C223: =C177 ->  | D223: =$G$196*G169 -> 0 | E223: =SUM(C223:D223) -> 
B224: MGW - MGW/ SGW, PGW - SGW, PGW | C224: =C178 ->  | D224: =G206 -> 0 | E224: =SUM(C224:D224) -> 
A226: 11.7 Náklady na prenajaté lokácie
B228: Meno aktíva | C228: Jednotka množstva | D228: Dimenzovaný počet | E228: Skutočný počet | F228: Zvolené množstvo | G228: Cena prenájmu | H228: Celkové náklady prenájmu
G229: EUR | H229: =H230 -> 
B230: ='1. Prevodník'!$C$49 -> Access Sites | C230: # prenajatých lokácií | D230: ='7a. Radiová sieť 2G'!G197 ->  | E230: ='0. Hlavné vstupy'!BB439 ->  | F230: =IF($C$12="Model teoretického operátora",D230,E230) ->  | G230: ='5. Jednotkové investície & Opex'!F87 ->  | H230: =F230*G230 -> 
B231: ='1. Prevodník'!$C$49 -> Access Sites | C231: # leased land plots | D231: ='7a. Radiová sieť 2G'!G200 ->  | E231: 400 | F231: =IF($C$12="Bottom-up",D231,E231) -> 400 | G231: ='5. Jednotkové investície & Opex'!#REF! ->  | H231: =F231*G231 -> 
A234: 11.8 Alokácia nákladov
B236: Zariadenie | C236: Total Costs | D236: ='3. Smerovacie faktory'!C8 -> Access Sites | E236: ='3. Smerovacie faktory'!D8 -> BTS | F236: ='3. Smerovacie faktory'!E8 -> BSC | G236: ='3. Smerovacie faktory'!F8 -> Node B | H236: ='3. Smerovacie faktory'!G8 -> RNC | I236: ='3. Smerovacie faktory'!H8 -> eNode B (RU a DU) | J236: ='3. Smerovacie faktory'!I8 -> HLR/HSS | K236: ='3. Smerovacie faktory'!J8 -> MSS / MME | L236: ='3. Smerovacie faktory'!K8 -> MGW - SGW,PGW | M236: ='3. Smerovacie faktory'!L8 -> BTS - BSC | N236: ='3. Smerovacie faktory'!M8 -> Node B - RNC | O236: ='3. Smerovacie faktory'!N8 -> eNodeB RU - DU | P236: ='3. Smerovacie faktory'!O8 -> BSC - MGW | Q236: ='3. Smerovacie faktory'!P8 -> RNC - MGW | R236: ='3. Smerovacie faktory'!R8 -> MGW - MGW / SGW, PGW - SGW, PGW | S236: ='3. Smerovacie faktory'!T8 -> Mobile voicemail platform | T236: ='3. Smerovacie faktory'!U8 -> SMSC Platform | U236: ='3. Smerovacie faktory'!V8 -> MMSC Platform | V236: ='3. Smerovacie faktory'!W8 -> Intelligent Network | W236: ='3. Smerovacie faktory'!X8 -> SGSN Platform | X236: ='3. Smerovacie faktory'!Y8 -> GGSN Platform | Y236: ='3. Smerovacie faktory'!Z8 -> Interconnection | Z236: ='3. Smerovacie faktory'!AA8 -> IMS | AA236: ='3. Smerovacie faktory'!AB8 -> PCRF | AB236: C_CostAllocation
C237: =SUM(C238:C275) ->  | Y237: 0 | Z237: =SUM(Z238:Z275) -> 
B238: =B60 -> Radio Access Sites - strecha | C238: =S60+H230 ->  | D238: =C238 -> 
B239: Radio Access Sites - samostatný pylón | C239: =S61 -> 0 | D239: =C239 -> 0
B240: BTS Cabinet | E240: =C240 -> 
B241: TRX 2G | E241: =C241 -> 
B242: BSC | F242: =C242 -> 
B243: NodeB Cabinet | G243: =C243 -> 
B244: NodeB Carrier | G244: =C244 -> 
B245: NodeB Channel Kit
B246: NodeB HSPA Upgrade
B247: eNode B coverage | I247: =C247 -> 
B248: eNode B capacity | I248: =C248 -> 
B249: eNodeB capacity 5 MHz channel sector
B250: Digital unit
B251: Propojení RU - DU - Fibre | O251: =C251 -> 
... 59 more rows

Sheet 10. Chrbticová sieť
A1: 10. Dimenzovanie chrbticovej prenosovej siete
A3: Popis
A4: Výpočet dimenzovania chrbticovej prístupovej siete
A6: Vstupy z predchádzajúcich kalkulácií
A8: 10.1 Chrbticová prenosová sieť - základné dáta
B10: Vstupné údaje | C10: Jednotky | D10: Hodnota
B11: IP chrbticové zariadenie - využitie portu | C11: % | D11: =I_CapPlan_Trans_Core -> 
B12: Access switch - minimum na core node | C12: # | D12: ='4. Parametre dimenzovania siete'!C207 -> 2
B13: Access switch - maximum # celkový počet kariet na switch | C13: # | D13: =MAX('4. Parametre dimenzovania siete'!D192:D193) -> 0
B14: Access switch - minimum # zariadení - karty na switch | C14: # | D14: 1
B15: Edge Router - minimum na core node | C15: # | D15: ='4. Parametre dimenzovania siete'!C208 -> 4
B16: Edge Router - maximum # kariet na router | C16: # | D16: =MAX('4. Parametre dimenzovania siete'!D195:D195) -> 0
B17: Minimálny počet core spojov medzi lokáciami | C17: # | D17: ='4. Parametre dimenzovania siete'!C209 -> 2
B18: IP Bandwidth per 1 voice erlang / channel | C18: Mbps | D18: 0.095 | E18: Industry benchmark: in the range 30-120 kbps
B20: IP Switch typ karty | C20: Kapacita (mbps) | D20: Porty na sieťovú kartu | E20: Hraničná kapacita (mbps)
B21: ='4. Parametre dimenzovania siete'!B198 -> 1 Gbps card | C21: ='4. Parametre dimenzovania siete'!C198 -> 1000 | D21: ='4. Parametre dimenzovania siete'!D198 -> 2 | E21: ='4. Parametre dimenzovania siete'!E198 -> 10000
B22: ='4. Parametre dimenzovania siete'!B199 -> 100 Mbps card | C22: ='4. Parametre dimenzovania siete'!C199 -> 100 | D22: ='4. Parametre dimenzovania siete'!D199 -> 12 | E22: ='4. Parametre dimenzovania siete'!E199 -> 400
B23: ='4. Parametre dimenzovania siete'!B200 -> 100 Mbps card | C23: ='4. Parametre dimenzovania siete'!C200 -> 100 | D23: ='4. Parametre dimenzovania siete'!D200 -> 4 | E23: ='4. Parametre dimenzovania siete'!E200 -> 400
B25: IP Router typ portu | C25: Kapacita (mbps) | D25: Porty na sieťovú kartu | E25: Hraničná kapacita (mbps)
B26: ='4. Parametre dimenzovania siete'!B203 -> 1 Gbps card | C26: ='4. Parametre dimenzovania siete'!C203 -> 1000 | D26: ='4. Parametre dimenzovania siete'!D203 -> 2 | E26: ='4. Parametre dimenzovania siete'!E203 -> 10000
B27: ='4. Parametre dimenzovania siete'!B204 -> 100 Mbps card | C27: ='4. Parametre dimenzovania siete'!C204 -> 100 | D27: ='4. Parametre dimenzovania siete'!D204 -> 4 | E27: ='4. Parametre dimenzovania siete'!E204 -> 400
A29: 10.2 Kapacitné vstupné údaje
B31: Kapacita | C31: Jednotky | D31: Kapacita
B32: Mbps na E1 | C32: Mbps | D32: 2.048
B33: E1s na STM-1 | C33: E1 | D33: 63
B35: ADMs | C35: E1 Kapacita | D35: Mbps kapacita
B36: ='4. Parametre dimenzovania siete'!$B$295 -> Link STM-256 | C36: =VLOOKUP($B36,I_Link_Capacity,4,0) -> 16128 | D36: =VLOOKUP($B36,I_Link_Capacity,3,0) -> 39813.12
B37: ='4. Parametre dimenzovania siete'!$B$294 -> Link STM-64 | C37: =VLOOKUP($B37,I_Link_Capacity,4,0) -> 4032 | D37: =VLOOKUP($B37,I_Link_Capacity,3,0) -> 9953.28
B38: ='4. Parametre dimenzovania siete'!$B$293 -> Link STM-16 | C38: =VLOOKUP($B38,I_Link_Capacity,4,0) -> 1008 | D38: =VLOOKUP($B38,I_Link_Capacity,3,0) -> 2488.32
B39: ='4. Parametre dimenzovania siete'!$B$292 -> Link STM-4 | C39: =VLOOKUP($B39,I_Link_Capacity,4,0) -> 252 | D39: =VLOOKUP($B39,I_Link_Capacity,3,0) -> 622.08
B40: ='4. Parametre dimenzovania siete'!$B$291 -> Link STM-1 | C40: =VLOOKUP($B40,I_Link_Capacity,4,0) -> 63 | D40: =VLOOKUP($B40,I_Link_Capacity,3,0) -> 155.52
B41: Žiadny | C41: 0 | D41: 0
B43: Výber portu - Ethernet
B44: Typ portu | C44: Kapacita (mbps) | D44: Zvolený limit(mbps)
B45: Remote - connected to IP router | C45: 60 | D45: 60
B46: Remote - connected directly to SGSN | C46: 26 | D46: 26
F47: =D54*D52 -> 
A48: 10.3 Chrbticový prenosový dopyt podľa druhu
B50: Vstup prevádzky na BSC | C50: Jednotky | D50: Bratislava 1 | E50: Bratislava 2 | F50: Košice 1 | G50: Košice 2 | H50: Trnava | I50: Nitra | J50: Trenčín | K50: Žilina | L50: Banská Bystrica | M50: Prešov | N50: Celkom
B51: Počet BSC/RNC | C51: # | D51: ='7a. Radiová sieť 2G'!D213+'7b. Radiová sieť 3G'!D199 ->  | E51: ='7a. Radiová sieť 2G'!E213+'7b. Radiová sieť 3G'!E199 ->  | F51: ='7a. Radiová sieť 2G'!F213+'7b. Radiová sieť 3G'!F199 ->  | G51: ='7a. Radiová sieť 2G'!G213+'7b. Radiová sieť 3G'!G199 ->  | H51: ='7a. Radiová sieť 2G'!H213+'7b. Radiová sieť 3G'!H199 ->  | I51: ='7a. Radiová sieť 2G'!I213+'7b. Radiová sieť 3G'!I199 ->  | J51: ='7a. Radiová sieť 2G'!J213+'7b. Radiová sieť 3G'!J199 ->  | K51: ='7a. Radiová sieť 2G'!K213+'7b. Radiová sieť 3G'!K199 ->  | L51: ='7a. Radiová sieť 2G'!L213+'7b. Radiová sieť 3G'!L199 ->  | M51: ='7a. Radiová sieť 2G'!M213+'7b. Radiová sieť 3G'!N199 ->  | N51: =SUM(D51:M51) -> 
B52: Pomer prevádzky | C52: % | D52: ='4. Parametre dimenzovania siete'!C75 ->  | E52: ='4. Parametre dimenzovania siete'!D75 ->  | F52: ='4. Parametre dimenzovania siete'!E75 ->  | G52: ='4. Parametre dimenzovania siete'!F75 ->  | H52: ='4. Parametre dimenzovania siete'!G75 ->  | I52: ='4. Parametre dimenzovania siete'!H75 ->  | J52: ='4. Parametre dimenzovania siete'!I75 ->  | K52: ='4. Parametre dimenzovania siete'!J75 ->  | L52: ='4. Parametre dimenzovania siete'!K75 ->  | M52: ='4. Parametre dimenzovania siete'!L75 ->  | N52: =SUM(D52:M52) -> 
B54: Chrbticový prenosový dopyt GSM UMTS | C54: BHE | D54: ='6. NE Dopyt'!Q128 ->  | F54: Chrbticový prenosový dopyt LTE | G54: Mbps | H54: ='6. NE Dopyt'!Q132 -> 
B56: Dopyt podľa druhu | C56: Jednotky | D56: Bratislava 1 | E56: Bratislava 2 | F56: Košice 1 | G56: Košice 2 | H56: Trnava | I56: Nitra | J56: Trenčín | K56: Žilina | L56: Banská Bystrica | M56: Prešov | N56: Celkom
B57: Celkem BHE na Core backhaul GSM UMTS | C57: Erlang | D57: =$D$54*D52 ->  | N57: =SUM(D57:M57) -> 
B58: Celkem BHE na Core backhaul, úprava využiteľnosti GSM UMTS | C58: Erlang | D58: =D57/$D$11 ->  | N58: =SUM(D58:M58) -> 
B59: Mbps dopyt po Core backhaul (GSM, UMTS) | C59: Mbps | D59: =$D$58*$D$18 ->  | E59: =E58*$D$18 ->  | N59: =SUM(D59:M59) -> 
B60: Celkom Mbps na Core backhaul (GSM, UMTS, LTE) | C60: Mbps | D60: =D59+D62 ->  | E60: =E59+E62 ->  | N60: =SUM(D60:M60) -> 
B61: Celkom Mbps na Core Backhaul (LTE) | C61: Mbps | D61: =$H$54*D52 ->  | E61: =$H$54*E52 -> 
B62: Celkom Mbps na Core backhaul (LTE), uprava vyuzitelnosti | C62: Mbps | D62: =D61/$D$11 ->  | E62: =E61/$D$11 -> 
B63: Pomer spojov do Network Centra využitím káblu | C63: % | D63: ='4. Parametre dimenzovania siete'!C279 -> 0 | E63: ='4. Parametre dimenzovania siete'!D279 -> 0 | F63: ='4. Parametre dimenzovania siete'!E279 -> 0 | G63: ='4. Parametre dimenzovania siete'!F279 -> 0 | H63: ='4. Parametre dimenzovania siete'!G279 -> 0 | I63: ='4. Parametre dimenzovania siete'!H279 -> 0 | J63: ='4. Parametre dimenzovania siete'!I279 -> 0 | K63: ='4. Parametre dimenzovania siete'!J279 -> 0 | L63: ='4. Parametre dimenzovania siete'!K279 -> 0 | M63: ='4. Parametre dimenzovania siete'!L279 -> 0 | N63: =SUMPRODUCT(D63:M63,$D$59:$M$59)/SUM($D$59:$M$59) -> 
B64: Pomer spojov do Network Centra využitím prenajatých spojov | C64: % | D64: ='4. Parametre dimenzovania siete'!C280 -> 0 | E64: ='4. Parametre dimenzovania siete'!D280 -> 0 | F64: ='4. Parametre dimenzovania siete'!E280 -> 0 | G64: ='4. Parametre dimenzovania siete'!F280 -> 0 | H64: ='4. Parametre dimenzovania siete'!G280 -> 0 | I64: ='4. Parametre dimenzovania siete'!H280 -> 0 | J64: ='4. Parametre dimenzovania siete'!I280 -> 0 | K64: ='4. Parametre dimenzovania siete'!J280 -> 0 | L64: ='4. Parametre dimenzovania siete'!K280 -> 0 | M64: ='4. Parametre dimenzovania siete'!L280 -> 0 | N64: =SUMPRODUCT(D64:M64,$D$59:$M$59)/SUM($D$59:$M$59) -> 
B65: Káblová vzdialenosť do Network Centre | C65: km | D65: ='4. Parametre dimenzovania siete'!C258 -> 0 | E65: ='4. Parametre dimenzovania siete'!D258 -> 0 | F65: ='4. Parametre dimenzovania siete'!E258 -> 0 | G65: ='4. Parametre dimenzovania siete'!F258 -> 0 | H65: ='4. Parametre dimenzovania siete'!G258 -> 0 | I65: ='4. Parametre dimenzovania siete'!H258 -> 0 | J65: ='4. Parametre dimenzovania siete'!I258 -> 0 | K65: ='4. Parametre dimenzovania siete'!J258 -> 0 | L65: ='4. Parametre dimenzovania siete'!K258 -> 0 | M65: ='4. Parametre dimenzovania siete'!L258 -> 0 | N65: =SUM(D65:M65) -> 0
B67: Prenajaté okruhy (kábel) % z celkového použitého káblu | C67: % | D67: ='4. Parametre dimenzovania siete'!F216 -> 0
A69: 10.4 Požiadavky na port na Core Node
B71: Zariadenie vyžadujúce port spojenia - na základe aktuálnej topológie | C71: Jednotky | D71: Bratislava 1 | E71: Bratislava 2 | F71: Košice 1 | G71: Košice 2 | H71: Trnava | I71: Nitra | J71: Trenčín | K71: Žilina | L71: Banská Bystrica | M71: Prešov | N71: Celkom
B72: Počet Core Node na pripojenie na Network Center | C72: # | D72: ='4. Parametre dimenzovania siete'!C74 -> 0 | E72: ='4. Parametre dimenzovania siete'!D74 -> 0 | F72: ='4. Parametre dimenzovania siete'!E74 -> 0 | G72: ='4. Parametre dimenzovania siete'!F74 -> 0 | H72: ='4. Parametre dimenzovania siete'!G74 -> 0 | I72: ='4. Parametre dimenzovania siete'!H74 -> 0 | J72: ='4. Parametre dimenzovania siete'!I74 -> 0 | K72: ='4. Parametre dimenzovania siete'!J74 -> 0 | L72: ='4. Parametre dimenzovania siete'!K74 -> 0 | M72: ='4. Parametre dimenzovania siete'!L74 -> 0 | N72: =SUM(D72:M72) -> 0
B73: Network Center | C73: # | D73: ='4. Parametre dimenzovania siete'!C167 -> 0 | E73: ='4. Parametre dimenzovania siete'!D167 -> 0 | F73: ='4. Parametre dimenzovania siete'!E167 -> 0 | G73: ='4. Parametre dimenzovania siete'!F167 -> 0 | H73: ='4. Parametre dimenzovania siete'!G167 -> 0 | I73: ='4. Parametre dimenzovania siete'!H167 -> 0 | J73: ='4. Parametre dimenzovania siete'!I167 -> 0 | K73: ='4. Parametre dimenzovania siete'!J167 -> 0 | L73: ='4. Parametre dimenzovania siete'!K167 -> 0 | M73: ='4. Parametre dimenzovania siete'!L167 -> 0 | N73: =SUM(D73:M73) -> 0
B74: PoI (prepojenie) | C74: # | D74: ='4. Parametre dimenzovania siete'!C177 -> 0 | E74: ='4. Parametre dimenzovania siete'!D177 -> 0 | F74: ='4. Parametre dimenzovania siete'!E177 -> 0 | G74: ='4. Parametre dimenzovania siete'!F177 -> 0 | H74: ='4. Parametre dimenzovania siete'!G177 -> 0 | I74: ='4. Parametre dimenzovania siete'!H177 -> 0 | J74: ='4. Parametre dimenzovania siete'!I177 -> 0 | K74: ='4. Parametre dimenzovania siete'!J177 -> 0 | L74: ='4. Parametre dimenzovania siete'!K177 -> 0 | M74: ='4. Parametre dimenzovania siete'!L177 -> 0 | N74: =SUM(D74:M74) -> 0
B75: Maintenance / monitoring ports | C75: # | D75: ='4. Parametre dimenzovania siete'!C178 -> 0 | E75: ='4. Parametre dimenzovania siete'!D178 -> 0 | F75: ='4. Parametre dimenzovania siete'!E178 -> 0 | G75: ='4. Parametre dimenzovania siete'!F178 -> 0 | H75: ='4. Parametre dimenzovania siete'!G178 -> 0 | I75: ='4. Parametre dimenzovania siete'!H178 -> 0 | J75: ='4. Parametre dimenzovania siete'!I178 -> 0 | K75: ='4. Parametre dimenzovania siete'!J178 -> 0 | L75: ='4. Parametre dimenzovania siete'!K178 -> 0 | M75: ='4. Parametre dimenzovania siete'!L178 -> 0 | N75: =SUM(D75:M75) -> 0
B77: Zariadenie vyžadujúce port spojenia - na základe dimenzovanej topológie | C77: Jednotky | D77: Bratislava 1 | E77: Bratislava 2 | F77: Košice 1 | G77: Košice 2 | H77: Trnava | I77: Nitra | J77: Trenčín | K77: Žilina | L77: Banská Bystrica | M77: Prešov | N77: Celkom
B78: ='9. Ostatné NE'!B136 -> Home Location Register (HLR) / HSS | C78: # | D78: ='9. Ostatné NE'!E136 ->  | E78: ='9. Ostatné NE'!F136 ->  | F78: ='9. Ostatné NE'!G136 ->  | G78: ='9. Ostatné NE'!H136 ->  | H78: ='9. Ostatné NE'!I136 ->  | I78: ='9. Ostatné NE'!J136 ->  | J78: ='9. Ostatné NE'!K136 ->  | K78: ='9. Ostatné NE'!L136 ->  | L78: ='9. Ostatné NE'!M136 ->  | M78: ='9. Ostatné NE'!N136 ->  | N78: =SUM(D78:M78) -> 
B79: ='9. Ostatné NE'!B138 -> Voicemail platform | C79: # | D79: ='9. Ostatné NE'!E138 ->  | E79: ='9. Ostatné NE'!F138 ->  | F79: ='9. Ostatné NE'!G138 ->  | G79: ='9. Ostatné NE'!H138 ->  | H79: ='9. Ostatné NE'!I138 ->  | I79: ='9. Ostatné NE'!J138 ->  | J79: ='9. Ostatné NE'!K138 ->  | K79: ='9. Ostatné NE'!L138 ->  | L79: ='9. Ostatné NE'!M138 ->  | M79: ='9. Ostatné NE'!N138 ->  | N79: =SUM(D79:M79) -> 
B80: ='9. Ostatné NE'!B139 -> SMSC platform | C80: # | D80: ='9. Ostatné NE'!E139 ->  | E80: ='9. Ostatné NE'!F139 ->  | F80: ='9. Ostatné NE'!G139 ->  | G80: ='9. Ostatné NE'!H139 ->  | H80: ='9. Ostatné NE'!I139 ->  | I80: ='9. Ostatné NE'!J139 ->  | J80: ='9. Ostatné NE'!K139 ->  | K80: ='9. Ostatné NE'!L139 ->  | L80: ='9. Ostatné NE'!M139 ->  | M80: ='9. Ostatné NE'!N139 -> 
B81: ='9. Ostatné NE'!B140 -> MMSC platform | C81: # | D81: ='9. Ostatné NE'!E140 ->  | E81: ='9. Ostatné NE'!F140 ->  | F81: ='9. Ostatné NE'!G140 ->  | G81: ='9. Ostatné NE'!H140 ->  | H81: ='9. Ostatné NE'!I140 ->  | I81: ='9. Ostatné NE'!J140 ->  | J81: ='9. Ostatné NE'!K140 ->  | K81: ='9. Ostatné NE'!L140 ->  | L81: ='9. Ostatné NE'!M140 ->  | M81: ='9. Ostatné NE'!N140 -> 
B82: ='9. Ostatné NE'!B141 -> Mobile IN | C82: # | D82: ='9. Ostatné NE'!E141 ->  | E82: ='9. Ostatné NE'!F141 ->  | F82: ='9. Ostatné NE'!G141 ->  | G82: ='9. Ostatné NE'!H141 ->  | H82: ='9. Ostatné NE'!I141 ->  | I82: ='9. Ostatné NE'!J141 ->  | J82: ='9. Ostatné NE'!K141 ->  | K82: ='9. Ostatné NE'!L141 ->  | L82: ='9. Ostatné NE'!M141 ->  | M82: ='9. Ostatné NE'!N141 -> 
B83: ='9. Ostatné NE'!B142 -> SGSN Platform | C83: # | D83: ='9. Ostatné NE'!E142 ->  | E83: ='9. Ostatné NE'!F142 ->  | F83: ='9. Ostatné NE'!G142 ->  | G83: ='9. Ostatné NE'!H142 ->  | H83: ='9. Ostatné NE'!I142 ->  | I83: ='9. Ostatné NE'!J142 ->  | J83: ='9. Ostatné NE'!K142 ->  | K83: ='9. Ostatné NE'!L142 ->  | L83: ='9. Ostatné NE'!M142 ->  | M83: ='9. Ostatné NE'!N142 -> 
B84: ='9. Ostatné NE'!B143 -> GGSN Platform | C84: # | D84: ='9. Ostatné NE'!E143 ->  | E84: ='9. Ostatné NE'!F143 ->  | F84: ='9. Ostatné NE'!G143 ->  | G84: ='9. Ostatné NE'!H143 ->  | H84: ='9. Ostatné NE'!I143 ->  | I84: ='9. Ostatné NE'!J143 ->  | J84: ='9. Ostatné NE'!K143 ->  | K84: ='9. Ostatné NE'!L143 ->  | L84: ='9. Ostatné NE'!M143 ->  | M84: ='9. Ostatné NE'!N143 -> 
B85: Celkové požiadavky na port | C85: # | D85: =SUM(D72:D84) ->  | N85: =SUM(D85:M85) -> 
B87: Switch na lokácii | C87: # | D87: ='9. Ostatné NE'!E117 ->  | E87: ='9. Ostatné NE'!F117 ->  | F87: ='9. Ostatné NE'!G117 ->  | G87: ='9. Ostatné NE'!H117 ->  | H87: ='9. Ostatné NE'!I117 ->  | I87: ='9. Ostatné NE'!J117 ->  | J87: ='9. Ostatné NE'!K117 ->  | K87: ='9. Ostatné NE'!L117 ->  | L87: ='9. Ostatné NE'!M117 ->  | M87: ='9. Ostatné NE'!N117 ->  | N87: =SUM(D87:M87) -> 
A94: Výpočet
A96: 10.5 Access Switches dimenzovanie (prepája RAN/MGW na Router v IP Backbone)
B98: Počet portov pripájajúcich chrbticové zariadenia | C98: Jednotky | D98: Bratislava 1 | E98: Bratislava 2 | F98: Košice 1 | G98: Košice 2 | H98: Trnava | I98: Nitra | J98: Trenčín | K98: Žilina | L98: Banská Bystrica | M98: Prešov | N98: Celkom
B99: Kapacita MGW zariadenia na porty | C99: Gbps | D99: =IF(D60>$E$21,$B$21,INDEX($B$21:$B$23,MATCH(D60,$E$21:$E$23,-1))) ->  | E99: =IF(E60>$E$21,$B$21,INDEX($B$21:$B$23,MATCH(E60,$E$21:$E$23,-1))) ->  | N99: =SUM(D99:M99) -> 
B100: Access switch porty požadované (kapacita prevádzky z MGW) | C100: # portov | D100: =IF(D99=0,0,ROUNDUP(D60/VLOOKUP(D99,$B$20:$E$23,2,0),0)) ->  | E100: =IF(E99=0,0,ROUNDUP(E60/VLOOKUP(E99,$B$20:$E$23,2,0),0)) ->  | N100: =SUM(D100:M100) -> 
B101: Kapacita z ostatných chrbticových platforiem na porty | C101: Gbps | D101: =$B$22 -> 100 Mbps card | E101: 100 Mbps card | F101: 100 Mbps card | G101: 100 Mbps card | H101: 100 Mbps card | I101: 100 Mbps card | J101: 100 Mbps card | K101: 100 Mbps card | L101: 100 Mbps card | M101: 100 Mbps card | N101: =SUM(D101:M101) -> 0 | O101: PwC Assumption: lower capacity cards used for core platforms
B102: Dodatočné porty | C102: # portov | D102: =D85+D$87 ->  | K102: =K85+K$87 ->  | L102: =L85+L$87 ->  | M102: =M85+M$87 ->  | N102: =SUM(D102:M102) -> 
B103: Access switch porty požadované (na všetky zariadenia siete) | C103: # portov | D103: =D100+D102 ->  | K103: =K100+K102 ->  | L103: =L100+L102 ->  | M103: =M100+M102 ->  | N103: =SUM(D103:M103) -> 
B105: Počet portov na ostatné Core Nodes | C105: Jednotky | D105: Bratislava 1 | E105: Bratislava 2 | F105: Košice 1 | G105: Košice 2 | H105: Trnava | I105: Nitra | J105: Trenčín | K105: Žilina | L105: Banská Bystrica | M105: Prešov | N105: Celkom
B106: Kapacita network facing portov | C106: Gbps | D106: =D99 ->  | E106: =E99 ->  | N106: =SUM(D106:M106) -> 
B107: Počet network facing portov | C107: # portov | D107: =IF(D106=0,0,ROUNDUP(D60/VLOOKUP(D106,$B$20:$E$23,2,0),0)) ->  | E107: =IF(E106=0,0,ROUNDUP(E60/VLOOKUP(E106,$B$20:$E$23,2,0),0)) ->  | N107: =SUM(D107:M107) -> 
B109: Počet požadovaných kariet | C109: Jednotky | D109: Bratislava 1 | E109: Bratislava 2 | F109: Košice 1 | G109: Košice 2 | H109: Trnava | I109: Nitra | J109: Trenčín | K109: Žilina | L109: Banská Bystrica | M109: Prešov | N109: Celkom
B110: Access switch karty na switch prepájacie zariadenie | C110: # kariet | D110: =IF(D103=0,0,MAX(ROUNDUP(D103/VLOOKUP(D99,$B$20:$E$23,3,0),0),$D$14)) ->  | J110: =IF(J103=0,0,MAX(ROUNDUP(J103/VLOOKUP(J99,$B$20:$E$23,3,0),0),$D$14)) ->  | K110: =IF(K103=0,0,MAX(ROUNDUP(K103/VLOOKUP(K99,$B$20:$E$23,3,0),0),$D$14)) ->  | L110: =IF(L103=0,0,MAX(ROUNDUP(L103/VLOOKUP(L99,$B$20:$E$23,3,0),0),$D$14)) ->  | M110: =IF(M103=0,0,MAX(ROUNDUP(M103/VLOOKUP(M99,$B$20:$E$23,3,0),0),$D$14)) ->  | N110: =SUM(D110:M110) -> 
B111: Network facing Access switch karty na switch | C111: # kariet | D111: =IF(D107=0,0,ROUNDUP(D107/VLOOKUP(D106,$B$20:$E$23,3,0),0)) ->  | K111: =IF(K107=0,0,ROUNDUP(K107/VLOOKUP(K106,$B$20:$E$23,3,0),0)) ->  | L111: =IF(L107=0,0,ROUNDUP(L107/VLOOKUP(L106,$B$20:$E$23,3,0),0)) ->  | M111: =IF(M107=0,0,ROUNDUP(M107/VLOOKUP(M106,$B$20:$E$23,3,0),0)) ->  | N111: =SUM(D111:M111) -> 
B112: Počet požadovaných kariet na switch | C112: # kariet | D112: =SUM(D110:D111) ->  | K112: =SUM(K110:K111) ->  | L112: =SUM(L110:L111) ->  | M112: =SUM(M110:M111) ->  | N112: =SUM(D112:M112) -> 
B114: Počet požadovaných Access Switchov | C114: Jednotky | D114: Bratislava 1 | E114: Bratislava 2 | F114: Košice 1 | G114: Košice 2 | H114: Trnava | I114: Nitra | J114: Trenčín | K114: Žilina | L114: Banská Bystrica | M114: Prešov | N114: Celkom
B115: Access switch racks - na základe kapacity | C115: # switchov | D115: =IF(D112=0,0,ROUNDUP((D112)/$D$13,0)) ->  | N115: =SUM(D115:M115) -> 
B116: Access switch racks - na základe funkcie | C116: # switchov | D116: =IF(D112=0,0,MAX(D115,$D$12)) ->  | N116: =SUM(D116:M116) -> 
A118: 10.6 Edge Routers dimenzovanie (súčasť IP Backbone)
B120: Počet portov spájajúcich Access Switche | C120: Jednotky | D120: Bratislava 1 | E120: Bratislava 2 | F120: Košice 1 | G120: Košice 2 | H120: Trnava | I120: Nitra | J120: Trenčín | K120: Žilina | L120: Banská Bystrica | M120: Prešov | N120: Celkom
B121: Kapacita portov (spájajúcich switch) | C121: Gbps | D121: =D106 ->  | K121: =K106 ->  | N121: =SUM(D121:M121) -> 
B122: Počet portov (spájajúcich switch) na router | C122: # | N122: =SUM(D122:M122) -> 
B124: Počet portov do iných Core Node | C124: Jednotky | D124: Bratislava 1 | E124: Bratislava 2 | F124: Košice 1 | G124: Košice 2 | H124: Trnava | I124: Nitra | J124: Trenčín | K124: Žilina | L124: Banská Bystrica | M124: Prešov | N124: Celkom
B125: Počet sieťových spojov na router | C125: # | D125: =IF(D73=1,COUNTA($D$71:$M$71)-1,SUM($D$73:$M$73)) -> 0 | E125: =IF(E73=1,COUNTA($D$71:$M$71)-1,SUM($D$73:$M$73)) -> 0 | F125: =IF(F73=1,COUNTA($D$71:$M$71)-1,SUM($D$73:$M$73)) -> 0 | G125: 0 | H125: 0 | I125: 0 | J125: 0 | K125: 0 | L125: 0 | M125: 0 | N125: =SUM(D125:M125) -> 0
B126: Kapacita na Core Node | C126: Mbps | D126: =IF(D73=1,D60+SUMPRODUCT(1-$D$73:$M$73,$D$60:$M$60),D60+SUMPRODUCT($D$60:$M$60,$D$73:$M$73)*D52/SUMPRODUCT(1-$D$73:$M$73,$D$52:$M$52)) ->  | E126: =IF(E73=1,E60+SUMPRODUCT(1-$D$73:$M$73,$D$60:$M$60),E60+SUMPRODUCT($D$60:$M$60,$D$73:$M$73)*E52/SUMPRODUCT(1-$D$73:$M$73,$D$52:$M$52)) ->  | O126: For Network Centre: traffic of own location + sum of all other locations. For the other Core Nodes: traffic of own location + share of network center traffic
B127: Kapacita na spojene | C127: Mbps | D127: =IF(D125=0,D126/1,D126/D122) ->  | E127: =IF(E125=0,E126/1,E126/E122) ->  | G127: =IF(G126=0,G126/1,G126/G122) ->  | H127: =IF(H126=0,H126/1,H126/H122) -> 
B128: Kapacita portu (spájajúci sieť) | C128: Gbps | D128: =INDEX($B$26:$B$27,MATCH(MAX($D$127:$M$127),$E$26:$E$27,-1)) ->  | E128: =INDEX($B$26:$B$27,MATCH(MAX($D$127:$M$127),$E$26:$E$27,-1)) ->  | F128: =INDEX($B$26:$B$27,MATCH(MAX($D$127:$M$127),$E$26:$E$27,-1)) ->  | O128: PwC assumption: The capacity needs to be same size - max size chosen
B129: Počet portov (spájajúcich network center) na router | D129: =IF(D73=1,$N$73-1,D125*ROUNDUP(D127/VLOOKUP(D128,$B$25:$E$27,2,0),0)) ->  | K129: =IF(K73=1,$N$73-1,K125*ROUNDUP(K127/VLOOKUP(K128,$B$25:$E$27,2,0),0)) ->  | L129: =IF(L73=1,$N$73-1,L125*ROUNDUP(L127/VLOOKUP(L128,$B$25:$E$27,2,0),0)) ->  | M129: =IF(M73=1,$N$73-1,M125*ROUNDUP(M127/VLOOKUP(M128,$B$25:$E$27,2,0),0)) -> 
B130: Počet portov (Network facing) na router | C130: # portov | D130: =IF(D73=1,SUM($D$129:$M$129),D129) ->  | E130: =IF(E73=1,SUM($D$129:$M$129),E129) -> 
B132: Požadovaný počet kariet | C132: Jednotky | D132: Bratislava 1 | E132: Bratislava 2 | F132: Košice 1 | G132: Košice 2 | H132: Trnava | I132: Nitra | J132: Trenčín | K132: Žilina | L132: Banská Bystrica | M132: Prešov | N132: Celkom
B133: Počet kariet (switch facing) na router | C133: # kariet | D133: =IF(D122=0,0,ROUNDUP(D122/VLOOKUP(D121,$B$25:$E$27,3,0),0)) ->  | K133: =IF(K122=0,0,ROUNDUP(K122/VLOOKUP(K121,$B$25:$E$27,3,0),0)) ->  | L133: =IF(L122=0,0,ROUNDUP(L122/VLOOKUP(L121,$B$25:$E$27,3,0),0)) ->  | M133: =IF(M122=0,0,ROUNDUP(M122/VLOOKUP(M121,$B$25:$E$27,3,0),0)) ->  | N133: =SUM(D133:M133) -> 
B134: Počet kariet (Network facing) na router | C134: # kariet | D134: =IF(D130=0,0,ROUNDUP(D130/VLOOKUP(D128,$B$25:$E$27,3,0),0)) ->  | K134: =IF(K130=0,0,ROUNDUP(K130/VLOOKUP(K128,$B$25:$E$27,3,0),0)) ->  | L134: =IF(L130=0,0,ROUNDUP(L130/VLOOKUP(L128,$B$25:$E$27,3,0),0)) ->  | M134: =IF(M130=0,0,ROUNDUP(M130/VLOOKUP(M128,$B$25:$E$27,3,0),0)) ->  | N134: =SUM(D134:M134) -> 
B135: Počet požadovaných kariet na switch | C135: # kariet | D135: =SUM(D133:D134) ->  | K135: =SUM(K133:K134) ->  | L135: =SUM(L133:L134) ->  | M135: =SUM(M133:M134) ->  | N135: =SUM(D135:M135) -> 
B137: Počet požadovaných Edge Router | C137: Jednotky | D137: Bratislava 1 | E137: Bratislava 2 | F137: Košice 1 | G137: Košice 2 | H137: Trnava | I137: Nitra | J137: Trenčín | K137: Žilina | L137: Banská Bystrica | M137: Prešov | N137: Celkom
B138: Edge Router racks - na základe kapacity | C138: # router | D138: =IF(D135=0,0,ROUNDUP((D133+D134)/$D$16,0)) ->  | K138: =IF(K135=0,0,ROUNDUP((K133+K134)/$D$16,0)) ->  | L138: =IF(L135=0,0,ROUNDUP((L133+L134)/$D$16,0)) ->  | M138: =IF(M135=0,0,ROUNDUP((M133+M134)/$D$16,0)) ->  | N138: =SUM(D138:M138) -> 
B139: Edge Router racks - na základe funkcie | C139: # router | D139: =IF(D135=0,0,MAX(D138,$D$15)) ->  | K139: =IF(K135=0,0,MAX(K138,$D$15)) ->  | L139: =IF(L135=0,0,MAX(L138,$D$15)) ->  | M139: =IF(M135=0,0,MAX(M138,$D$15)) ->  | N139: =SUM(D139:M139) -> 
A141: 10.7 Prenosový dopyt na spojoch do network center
B143: Dopyt chrbticová prenosová sieť | C143: Jednotky | D143: Bratislava 1 | E143: Bratislava 2 | F143: Košice 1 | G143: Košice 2 | H143: Trnava | I143: Nitra | J143: Trenčín | K143: Žilina | L143: Banská Bystrica | M143: Prešov | N143: Celkom
B144: Počet Core Nodes na spojenie s Network Center | C144: # | D144: =IF(D72=0,0,$N$73-D73) -> 0 | E144: 0 | F144: 0 | G144: 0 | H144: 0 | I144: 0 | J144: 0 | K144: =IF(K72=0,0,$N$73-K73) -> 0 | L144: =IF(L72=0,0,$N$73-L73) -> 0 | M144: =IF(M72=0,0,$N$73-M73) -> 0 | N144: =SUM(D144:M144) -> 0
B145: Prevádzkový dopyt do Network Center | C145: Mbps | D145: =IF(D73=1,0,IF(D144=0,0,D59+SUMPRODUCT($D$59:$M$59,$D$73:$M$73)*D52/SUMPRODUCT(1-$D$73:$M$73,$D$52:$M$52)/D144)) -> 0 | E145: =IF(E73=1,0,IF(E144=0,0,E59+SUMPRODUCT($D$59:$M$59,$D$73:$M$73)*E52/SUMPRODUCT(1-$D$73:$M$73,$D$52:$M$52)/E144)) -> 0 | F145: 0 | G145: 0 | H145: 0 | I145: 0 | J145: 0 | K145: 0 | L145: 0 | M145: 0 | N145: =SUM(D145:M145) -> 0
B147: Dopyt po chrbticových spojoch do Network Center podľa druhu | C147: Jednotky | D147: Bratislava 1 | E147: Bratislava 2 | F147: Košice 1 | G147: Košice 2 | H147: Trnava | I147: Nitra | J147: Trenčín | K147: Žilina | L147: Banská Bystrica | M147: Prešov | N147: Celkom
B148: Kábel | C148: Mbps | D148: =D$145*D63 -> 0 | E148: 0 | F148: 0 | G148: 0 | H148: 0 | I148: 0 | J148: 0 | K148: =K$145*K63 -> 0 | L148: 0 | M148: 0 | N148: =SUM(D148:M148) -> 0
B149: Prenajatý spoj | C149: Mbps | D149: 0 | E149: 0 | F149: 0 | G149: 0 | H149: 0 | I149: 0 | J149: 0 | K149: 0 | L149: 0 | M149: 0 | N149: =SUM(D149:M149) -> 0
B152: Počet chrbticových prenosových spojov | C152: Jednotky | D152: Bratislava 1 | E152: Bratislava 2 | F152: Košice 1 | G152: Košice 2 | H152: Trnava | I152: Nitra | J152: Trenčín | K152: Žilina | L152: Banská Bystrica | M152: Prešov | N152: Celkom
B153: Počet káblových spojov do Network Center | C153: # | D153: =D$144*$D$17*D63 -> 0 | E153: 0 | F153: 0 | G153: 0 | H153: 0 | I153: 0 | J153: 0 | K153: 0 | L153: 0 | M153: 0 | N153: =SUM(D153:M153) -> 0
B154: Počet prenajatých spojov | C154: # | D154: =D$144*$D$17*D64 -> 0 | E154: 0 | F154: 0 | G154: 0 | H154: 0 | I154: 0 | J154: 0 | K154: 0 | L154: 0 | M154: 0 | N154: =SUM(D154:M154) -> 0
B156: Celkový dopyt po spoji do Network Center podľa druhu | C156: Jednotky | D156: Bratislava 1 | E156: Bratislava 2 | F156: Košice 1 | G156: Košice 2 | H156: Trnava | I156: Nitra | J156: Trenčín | K156: Žilina | L156: Banská Bystrica | M156: Prešov | N156: Celkom
B157: Kábel | C157: Mbps | D157: =IF(D153=0,0,(D148/D153)) -> 0 | E157: =IF(E153=0,0,(E148/E153)) -> 0 | F157: =IF(F153=0,0,(F148/F153)) -> 0 | G157: =IF(G153=0,0,(G148/G153)) -> 0 | H157: =IF(H153=0,0,(H148/H153)) -> 0 | I157: =IF(I153=0,0,(I148)/I153) -> 0 | J157: =IF(J153=0,0,(J148)/J153) -> 0 | K157: =IF(K153=0,0,(K148)/K153) -> 0 | L157: =IF(L153=0,0,(L148)/L153) -> 0 | M157: =IF(M153=0,0,(M148)/M153) -> 0 | N157: =SUM(D157:M157) -> 0
B158: Prenajatý spoj | C158: Mbps | D158: =IF(D154=0,0,(D149)/D154) -> 0 | E158: =IF(E154=0,0,(E149)/E154) -> 0 | F158: 0 | G158: 0 | H158: 0 | I158: 0 | J158: 0 | K158: 0 | L158: 0 | M158: 0 | N158: =SUM(D158:M158) -> 0
A161: 10.8 Chrbticový prenos - kábel
B163: Počet požadovaných ADM | C163: Jednotky | D163: Bratislava 1 | E163: Bratislava 2 | F163: Košice 1 | G163: Košice 2 | H163: Trnava | I163: Nitra | J163: Trenčín | K163: Žilina | L163: Banská Bystrica | M163: Prešov | N163: Total
B164: ADM typ | C164: # | D164: =INDEX($B$37:$B$41,MATCH(IF(D73=1,MAX($D$157:$M$157),D157),$D$37:$D$41,-1)) -> Žiadny | E164: =INDEX($B$37:$B$41,MATCH(IF(E73=1,MAX($D$157:$M$157),E157),$D$37:$D$41,-1)) -> Žiadny | F164: Žiadny | G164: Žiadny | H164: Žiadny | I164: Žiadny | J164: Žiadny | K164: Žiadny | L164: Žiadny | M164: Žiadny | N164: =SUM(D164:M164) -> 0
B165: Počet ADMs | C165: # | D165: =IF(D164="Žiadny",0,2) -> 0 | E165: =IF(E164="Žiadny",0,2) -> 0 | F165: 0 | G165: 0 | H165: 0 | I165: 0 | J165: 0 | K165: 0 | L165: 0 | M165: 0 | N165: =SUM(D165:M165) -> 0
B167: Add Drop Multiplexer - STM1 | C167: Link STM-1 | D167: =SUMIF($D$164:$M$164,C167,$D$165:$M$165) -> 0
B168: Add Drop Multiplexer - STM4 | C168: Link STM-4 | D168: =SUMIF($D$164:$M$164,C168,$D$165:$M$165) -> 0
B169: Add Drop Multiplexer - STM16 | C169: Link STM-16 | D169: =SUMIF($D$164:$M$164,C169,$D$165:$M$165) -> 0
B170: Add Drop Multiplexer - STM64 | C170: Link STM-64 | D170: =SUMIF($D$164:$M$164,C170,$D$165:$M$165) -> 0
B171: Add Drop Multiplexer - STM256 | C171: Link STM-256 | D171: =SUMIF($D$164:$M$164,C171,$D$165:$M$165) -> 0
B173: Distance fibre required | C173: Jednotky | D173: Bratislava 1 | E173: Bratislava 2 | F173: Košice 1 | G173: Košice 2 | H173: Trnava | I173: Nitra | J173: Trenčín | K173: Žilina | L173: Banská Bystrica | M173: Prešov | N173: Total
B174: Káblová vzdialenosť | C174: km | D174: =IF(D164="None",0,D65) -> 0 | E174: =IF(E164="None",0,E65) -> 0 | F174: 0 | G174: 0 | H174: 0 | I174: 0 | J174: 0 | K174: 0 | L174: 0 | M174: 0 | N174: =SUM(D174:M174)/2 -> 0
B175: Vlastnený kábel | C175: km | N175: =N174-N176 -> 0
B176: Prenajatý kábel | C176: km | N176: =N174*D67 -> 0
A178: 10.9 Chrbticový prenos - prenajaté okruhy
B180: Požadované prenajaté spoje | C180: Jednotky | D180: Bratislava 1 | E180: Bratislava 2 | F180: Košice 1 | G180: Košice 2 | H180: Trnava | I180: Nitra | J180: Trenčín | K180: Žilina | L180: Banská Bystrica | M180: Prešov | N180: Total
B181: ADM typ | D181: =INDEX($B$37:$B$41,MATCH((1-D73)*D158,$D$37:$D$41,-1)) -> Žiadny | E181: Žiadny | F181: Žiadny | G181: Žiadny | H181: Žiadny | I181: Žiadny | J181: Žiadny | K181: Žiadny | L181: Žiadny | M181: Žiadny | N181: =COUNTIF(D181:M181,"<>Žiadny") -> 0
B182: Káblová vzdialenosť | C182: km | D182: =IF(D181="Žiadny",0,D65) -> 0 | E182: =IF(E181="Žiadny",0,E65) -> 0 | F182: 0 | G182: 0 | H182: 0 | I182: 0 | J182: 0 | K182: 0 | L182: 0 | M182: 0 | N182: =SUM(D182:M182) -> 0

Sheet 7c. Radiová síť LTE (hidden)
A1: 7b. Dimenzovanie rádiovej časti siete LTE
A3: Popis
A4: Kalkulácia dimenzovania LTE rádiovej siete
A6: Vstupy z predchádzajúcich kalkulácií
B9: Busy hour prevádzka | C9: Jednotka | D9: Hodnota
B10: BHE v súčasnom roku | C10: BHE | D10: ='6. NE Dopyt'!$G$128 -> 
B11: Kapacity planning max load factor - radio network | C11: % | D11: ='0. Hlavné vstupy'!$BD$75 -> 
B12: BHE v plánovanom období | C12: BHE | D12: =D10*(1+'2. Dopyt'!$F$43*$D$15/12) -> 
B13: BHE úprava loading factor | C13: BHE | D13: =$D$12/$D$11 -> 
B14: BH prevádzka v Mbps | C14: Mbps
B15: Plánovacie obdobie | C15: # mesiacov | D15: ='4. Parametre dimenzovania siete'!$C$101 -> 0
B21: Region | C21: Celkové pokrytie - LTE (% celkovej rozlohy) | D21: Celkové pokrytie - LTE (km2)
B22: Aglomerácia | C22: ='0. Hlavné vstupy'!$AO$76 -> 0 | D22: =C22*'4. Parametre dimenzovania siete'!$D$43 -> 0
B23: Mestá | C23: ='0. Hlavné vstupy'!$AO$77 -> 0 | D23: =C23*'4. Parametre dimenzovania siete'!$D$44 -> 0
B24: Vidiek | C24: ='0. Hlavné vstupy'!$AO$78 -> 0 | D24: =C24*'4. Parametre dimenzovania siete'!$D$45 -> 0
B27: Region | C27: Node B maximálny polomer bunky | D27: Node B priemerný polomer bunky
B28: Aglomerácia | C28: ='4. Parametre dimenzovania siete'!I52 -> 0 | D28: ='4. Parametre dimenzovania siete'!$J$52 -> 0
B29: Mestá | C29: ='4. Parametre dimenzovania siete'!I53 -> 0 | D29: ='4. Parametre dimenzovania siete'!$J$52 -> 0
B30: Vidiek | C30: ='4. Parametre dimenzovania siete'!I54 -> 0 | D30: ='4. Parametre dimenzovania siete'!$J$52 -> 0
B31: Dopravné koridory | C31: ='4. Parametre dimenzovania siete'!#REF! ->  | D31: ='4. Parametre dimenzovania siete'!$J$52 -> 0
B32: Rekreačné oblasti | C32: ='4. Parametre dimenzovania siete'!#REF! ->  | D32: ='4. Parametre dimenzovania siete'!$J$52 -> 0
B38: link output to 11. Anualizace

Sheet 9. Ostatné NE
A1: 9. Dimenzovanie hlavných sieťových prvkov chrbticovej časti siete
A3: Popis
A4: Dimenzovanie prepojovacej časti siete
A6: Vstupy z predchádzajúcich kalkulácií
A8: 9.1 Údaje pre dimenzovanie
B10: Zariadenie | C10: Plánovacie obdobie | D10: Plánovaná kapacita max loading faktor
C11: # mesiacov | D11: %
B12: Switching | C12: ='4. Parametre dimenzovania siete'!I133 -> 0 | D12: =I_CapPlan_Switch -> 
B13: SGW, PGW | C13: ='4. Parametre dimenzovania siete'!G140 -> 0 | D13: =$D$12 -> 
B14: ='4. Parametre dimenzovania siete'!B147 -> Home Location Register (HLR) / HSS | C14: ='4. Parametre dimenzovania siete'!G147 -> 0
B15: MME | C15: ='4. Parametre dimenzovania siete'!G149 -> 0
B16: ='4. Parametre dimenzovania siete'!B150 -> Voicemail platform | C16: ='4. Parametre dimenzovania siete'!G150 -> 0
B17: ='4. Parametre dimenzovania siete'!B151 -> SMSC platform | C17: ='4. Parametre dimenzovania siete'!G151 -> 0
B18: ='4. Parametre dimenzovania siete'!B152 -> MMSC platform | C18: ='4. Parametre dimenzovania siete'!G152 -> 0
B19: ='4. Parametre dimenzovania siete'!B153 -> Mobile IN | C19: ='4. Parametre dimenzovania siete'!G153 -> 0
B20: ='4. Parametre dimenzovania siete'!B154 -> SGSN Platform | C20: ='4. Parametre dimenzovania siete'!G154 -> 0
B21: ='4. Parametre dimenzovania siete'!B155 -> GGSN Platform | C21: ='4. Parametre dimenzovania siete'!G155 -> 0
B22: IMS | C22: ='4. Parametre dimenzovania siete'!G156 -> 0
B23: PCRF | C23: ='4. Parametre dimenzovania siete'!G157 -> 0
B25: IP Bandwidth per 1 voice erlang / channel | C25: Mbps
A27: 9.2 Kapacitné údaje prepojovania (MSS a MME)
B29: Parameter | C29: Jednotka | D29: Hodnota
B30: Max Concurrent calls (SCC) | C30: # SCC | D30: ='4. Parametre dimenzovania siete'!D133 -> 
B31: Max BH pokusy o nadviazanie hovoru | C31: # pokusov o nadviazanie hovoru | D31: ='4. Parametre dimenzovania siete'!F133 -> 
B32: Max BHE | C32: # Erlang | D32: ='4. Parametre dimenzovania siete'!E133 -> 
B33: Max Mbps | C33: # Mbps | D33: ='4. Parametre dimenzovania siete'!E135 -> 
B34: Minimálny počet lokalít | C34: # prepojovacích lokalít
A36: 9.3 Údaje dopytu po prepojovaní
B38: Parameter | C38: Jednotka | D38: Hodnota | E38: Medziročný rast | F38: Hodnota v plánovanom období | G38: Hodnota - úprava loading faktor
B39: BH Concurrent calls (súbežné, súčasné hovory) | C39: # SCC | D39: ='4. Parametre dimenzovania siete'!G133 -> 0 | E39: ='2. Dopyt'!$F$43 ->  | F39: =D39*(1+E39*$C$12/12) ->  | G39: =F39/$D$12 -> 
B40: BH pokusy o nadviazanie hovoru | C40: # pokusov o nadviazanie hovoru | D40: =SUM('6. NE Dopyt'!M23:O23)*'6. NE Dopyt'!D120 ->  | E40: ='2. Dopyt'!$F$43 ->  | F40: =D40*(1+E40*$C$12/12) ->  | G40: =F40/$D$12 -> 
B41: Busy hour Mbps | C41: # Mbps | D41: ='6. NE Dopyt'!I128*D25+'6. NE Dopyt'!I132 ->  | E41: ='2. Dopyt'!$F$43 ->  | F41: =D41*(1+E41*$C$12/12) ->  | G41: =F41/$D$12 -> 
A43: 9.4 Mapa zariadenia Core Lokácií
C45: Bratislava 1 | D45: Bratislava 2 | E45: Košice 1 | F45: Košice 2 | G45: Trnava | H45: Nitra | I45: Trenčín | J45: Žilina | K45: Banská Bystrica | L45: Prešov | M45: Celkom
B46: ='4. Parametre dimenzovania siete'!B167 -> Network Center | C46: ='4. Parametre dimenzovania siete'!C167 -> 0 | D46: ='4. Parametre dimenzovania siete'!D167 -> 0 | E46: ='4. Parametre dimenzovania siete'!E167 -> 0 | F46: ='4. Parametre dimenzovania siete'!F167 -> 0 | G46: ='4. Parametre dimenzovania siete'!G167 -> 0 | H46: ='4. Parametre dimenzovania siete'!H167 -> 0 | I46: ='4. Parametre dimenzovania siete'!I167 -> 0 | J46: ='4. Parametre dimenzovania siete'!J167 -> 0 | K46: ='4. Parametre dimenzovania siete'!K167 -> 0 | L46: ='4. Parametre dimenzovania siete'!L167 -> 0 | M46: =SUM(C46:L46) -> 0
B47: ='4. Parametre dimenzovania siete'!B168 -> Switch locations | C47: ='4. Parametre dimenzovania siete'!C168 -> 0 | D47: ='4. Parametre dimenzovania siete'!D168 -> 0 | E47: ='4. Parametre dimenzovania siete'!E168 -> 0 | F47: ='4. Parametre dimenzovania siete'!F168 -> 0 | G47: ='4. Parametre dimenzovania siete'!G168 -> 0 | H47: ='4. Parametre dimenzovania siete'!H168 -> 0 | I47: ='4. Parametre dimenzovania siete'!I168 -> 0 | J47: ='4. Parametre dimenzovania siete'!J168 -> 0 | K47: ='4. Parametre dimenzovania siete'!K168 -> 0 | L47: ='4. Parametre dimenzovania siete'!L168 -> 0 | M47: =SUM(C47:L47) -> 0
B48: ='4. Parametre dimenzovania siete'!B169 -> Home Location Register (HLR) | C48: ='4. Parametre dimenzovania siete'!C169 -> 0 | D48: ='4. Parametre dimenzovania siete'!D169 -> 0 | E48: ='4. Parametre dimenzovania siete'!E169 -> 0 | F48: ='4. Parametre dimenzovania siete'!F169 -> 0 | G48: ='4. Parametre dimenzovania siete'!G169 -> 0 | H48: ='4. Parametre dimenzovania siete'!H169 -> 0 | I48: ='4. Parametre dimenzovania siete'!I169 -> 0 | J48: ='4. Parametre dimenzovania siete'!J169 -> 0 | K48: ='4. Parametre dimenzovania siete'!K169 -> 0 | L48: ='4. Parametre dimenzovania siete'!L169 -> 0 | M48: 0
B49: MME | C49: ='4. Parametre dimenzovania siete'!C170 -> 0 | D49: ='4. Parametre dimenzovania siete'!D170 -> 0 | E49: ='4. Parametre dimenzovania siete'!E170 -> 0 | F49: ='4. Parametre dimenzovania siete'!F170 -> 0 | G49: ='4. Parametre dimenzovania siete'!G170 -> 0 | H49: ='4. Parametre dimenzovania siete'!H170 -> 0 | I49: ='4. Parametre dimenzovania siete'!I170 -> 0 | J49: ='4. Parametre dimenzovania siete'!J170 -> 0 | K49: ='4. Parametre dimenzovania siete'!K170 -> 0 | L49: ='4. Parametre dimenzovania siete'!L170 -> 0 | M49: 0
B50: ='4. Parametre dimenzovania siete'!B174 -> Mobile IN | C50: ='4. Parametre dimenzovania siete'!C171 -> 0 | D50: ='4. Parametre dimenzovania siete'!D171 -> 0 | E50: ='4. Parametre dimenzovania siete'!E171 -> 0 | F50: ='4. Parametre dimenzovania siete'!F171 -> 0 | G50: ='4. Parametre dimenzovania siete'!G171 -> 0 | H50: ='4. Parametre dimenzovania siete'!H171 -> 0 | I50: ='4. Parametre dimenzovania siete'!I171 -> 0 | J50: ='4. Parametre dimenzovania siete'!J171 -> 0 | K50: ='4. Parametre dimenzovania siete'!K171 -> 0 | L50: ='4. Parametre dimenzovania siete'!L171 -> 0 | M50: 0
B51: ='4. Parametre dimenzovania siete'!B171 -> Voicemail platform | C51: ='4. Parametre dimenzovania siete'!C172 -> 0 | D51: ='4. Parametre dimenzovania siete'!D172 -> 0 | E51: ='4. Parametre dimenzovania siete'!E172 -> 0 | F51: ='4. Parametre dimenzovania siete'!F172 -> 0 | G51: ='4. Parametre dimenzovania siete'!G172 -> 0 | H51: ='4. Parametre dimenzovania siete'!H172 -> 0 | I51: ='4. Parametre dimenzovania siete'!I172 -> 0 | J51: ='4. Parametre dimenzovania siete'!J172 -> 0 | K51: ='4. Parametre dimenzovania siete'!K172 -> 0 | L51: ='4. Parametre dimenzovania siete'!L172 -> 0 | M51: 0
B52: ='4. Parametre dimenzovania siete'!B172 -> SMSC platform | C52: ='4. Parametre dimenzovania siete'!C173 -> 0 | D52: ='4. Parametre dimenzovania siete'!D173 -> 0 | E52: ='4. Parametre dimenzovania siete'!E173 -> 0 | F52: ='4. Parametre dimenzovania siete'!F173 -> 0 | G52: ='4. Parametre dimenzovania siete'!G173 -> 0 | H52: ='4. Parametre dimenzovania siete'!H173 -> 0 | I52: ='4. Parametre dimenzovania siete'!I173 -> 0 | J52: ='4. Parametre dimenzovania siete'!J173 -> 0 | K52: ='4. Parametre dimenzovania siete'!K173 -> 0 | L52: ='4. Parametre dimenzovania siete'!L173 -> 0 | M52: 0
B53: ='4. Parametre dimenzovania siete'!B173 -> MMSC platform | C53: ='4. Parametre dimenzovania siete'!C174 -> 0 | D53: ='4. Parametre dimenzovania siete'!D174 -> 0 | E53: ='4. Parametre dimenzovania siete'!E174 -> 0 | F53: ='4. Parametre dimenzovania siete'!F174 -> 0 | G53: ='4. Parametre dimenzovania siete'!G174 -> 0 | H53: ='4. Parametre dimenzovania siete'!H174 -> 0 | I53: ='4. Parametre dimenzovania siete'!I174 -> 0 | J53: ='4. Parametre dimenzovania siete'!J174 -> 0 | K53: ='4. Parametre dimenzovania siete'!K174 -> 0 | L53: ='4. Parametre dimenzovania siete'!L174 -> 0 | M53: 0
B54: ='4. Parametre dimenzovania siete'!B175 -> SGSN Platform | C54: ='4. Parametre dimenzovania siete'!C175 -> 0 | D54: ='4. Parametre dimenzovania siete'!D175 -> 0 | E54: ='4. Parametre dimenzovania siete'!E175 -> 0 | F54: ='4. Parametre dimenzovania siete'!F175 -> 0 | G54: ='4. Parametre dimenzovania siete'!G175 -> 0 | H54: ='4. Parametre dimenzovania siete'!H175 -> 0 | I54: ='4. Parametre dimenzovania siete'!I175 -> 0 | J54: ='4. Parametre dimenzovania siete'!J175 -> 0 | K54: ='4. Parametre dimenzovania siete'!K175 -> 0 | L54: ='4. Parametre dimenzovania siete'!L175 -> 0 | M54: 0
B55: ='4. Parametre dimenzovania siete'!B176 -> GGSN Platform | C55: ='4. Parametre dimenzovania siete'!C176 -> 0 | D55: ='4. Parametre dimenzovania siete'!D176 -> 0 | E55: ='4. Parametre dimenzovania siete'!E176 -> 0 | F55: ='4. Parametre dimenzovania siete'!F176 -> 0 | G55: ='4. Parametre dimenzovania siete'!G176 -> 0 | H55: ='4. Parametre dimenzovania siete'!H176 -> 0 | I55: ='4. Parametre dimenzovania siete'!I176 -> 0 | J55: ='4. Parametre dimenzovania siete'!J176 -> 0 | K55: ='4. Parametre dimenzovania siete'!K176 -> 0 | L55: ='4. Parametre dimenzovania siete'!L176 -> 0 | M55: 0
B56: ='4. Parametre dimenzovania siete'!B177 -> Point Of Interconnect | C56: ='4. Parametre dimenzovania siete'!C177 -> 0 | D56: ='4. Parametre dimenzovania siete'!D177 -> 0 | E56: ='4. Parametre dimenzovania siete'!E177 -> 0 | F56: ='4. Parametre dimenzovania siete'!F177 -> 0 | G56: ='4. Parametre dimenzovania siete'!G177 -> 0 | H56: ='4. Parametre dimenzovania siete'!H177 -> 0 | I56: ='4. Parametre dimenzovania siete'!I177 -> 0 | J56: ='4. Parametre dimenzovania siete'!J177 -> 0 | K56: ='4. Parametre dimenzovania siete'!K177 -> 0 | L56: ='4. Parametre dimenzovania siete'!L177 -> 0 | M56: 0
B57: IMS | C57: ='4. Parametre dimenzovania siete'!C178 -> 0 | D57: ='4. Parametre dimenzovania siete'!D178 -> 0 | E57: ='4. Parametre dimenzovania siete'!E178 -> 0 | F57: ='4. Parametre dimenzovania siete'!F178 -> 0 | G57: ='4. Parametre dimenzovania siete'!G178 -> 0 | H57: ='4. Parametre dimenzovania siete'!H178 -> 0 | I57: ='4. Parametre dimenzovania siete'!I178 -> 0 | J57: ='4. Parametre dimenzovania siete'!J178 -> 0 | K57: ='4. Parametre dimenzovania siete'!K178 -> 0 | L57: ='4. Parametre dimenzovania siete'!L178 -> 0 | M57: 0
B58: PCRF | C58: ='4. Parametre dimenzovania siete'!C179 -> 0 | D58: ='4. Parametre dimenzovania siete'!D179 -> 0 | E58: ='4. Parametre dimenzovania siete'!E179 -> 0 | F58: ='4. Parametre dimenzovania siete'!F179 -> 0 | G58: ='4. Parametre dimenzovania siete'!G179 -> 0 | H58: ='4. Parametre dimenzovania siete'!H179 -> 0 | I58: ='4. Parametre dimenzovania siete'!I179 -> 0 | J58: ='4. Parametre dimenzovania siete'!J179 -> 0 | K58: ='4. Parametre dimenzovania siete'!K179 -> 0 | L58: ='4. Parametre dimenzovania siete'!L179 -> 0 | M58: 0
A60: 9.5 Kapacitné údaje MGW/SGW, PGW
B62: Parameter | C62: Jednotka | D62: Hodnota
B63: Max BH Call Attempts | C63: # BH Call Attempts | D63: ='4. Parametre dimenzovania siete'!C140 -> 
B64: Max. # of BH call attempts | C64: # Erlang | D64: ='4. Parametre dimenzovania siete'!D140 -> 
B65: Max Mbps | C65: # Mbps | D65: ='4. Parametre dimenzovania siete'!D142 -> 
A67: 9.6 Údaje dopytu pre MGW/SGW, PGW
B69: Parameter | C69: Jednotka | D69: Hodnota | E69: Medziročný rast | F69: Hodnota v plánovanom období | G69: Hodnota - úprava loading faktor
B70: Celkom Call attempts v HPH | C70: # BH Call Attempts | D70: ='6. NE Dopyt'!J139 ->  | E70: ='2. Dopyt'!$F$43 ->  | F70: =D70*(1+E70*$C$13/12) ->  | G70: =F70/$D$12 -> 
B71: Celkom Mbps | C71: # Mbps | D71: ='6. NE Dopyt'!J128*$D$25+'6. NE Dopyt'!J132 ->  | E71: ='2. Dopyt'!$F$43 ->  | F71: =D71*(1+E71*$C$13/12) ->  | G71: =F71/$D$12 -> 
B73: Prevádzka na Core Node Uzli | C73: Jednotka | D73: Bratislava 1 | E73: Bratislava 2 | F73: Košice 1 | G73: Košice 2 | H73: Trnava | I73: Nitra | J73: Trenčín | K73: Žilina | L73: Banská Bystrica | M73: Prešov | N73: Celkom
B74: Distribúcia prevádzky | C74: % | D74: ='4. Parametre dimenzovania siete'!C75 ->  | E74: ='4. Parametre dimenzovania siete'!D75 ->  | F74: ='4. Parametre dimenzovania siete'!E75 ->  | G74: ='4. Parametre dimenzovania siete'!F75 ->  | H74: ='4. Parametre dimenzovania siete'!G75 ->  | I74: ='4. Parametre dimenzovania siete'!H75 ->  | J74: ='4. Parametre dimenzovania siete'!I75 ->  | K74: ='4. Parametre dimenzovania siete'!J75 ->  | L74: ='4. Parametre dimenzovania siete'!K75 ->  | M74: ='4. Parametre dimenzovania siete'!L75 ->  | N74: =SUM(D74:M74) -> 
B75: Call attempts | D75: =$G$70*D74 -> 
B76: Mbps na Core Node uzlova lokacia | D76: =$G$71*D74 ->  | N76: =SUM(D76:M76) -> 
A78: 9.7 Ostatné kapacitné údaje
B80: Zariadenie | C80: Jednotka | D80: Hodnota | E80: Minimálny počet platforiem (#)
B81: ='4. Parametre dimenzovania siete'!B147 -> Home Location Register (HLR) / HSS | C81: ='4. Parametre dimenzovania siete'!E148 -> Max # kapacita serveru | D81: ='4. Parametre dimenzovania siete'!F148 -> 0 | E81: ='4. Parametre dimenzovania siete'!D147 -> 0
B82: ='4. Parametre dimenzovania siete'!B150 -> Voicemail platform | C82: ='4. Parametre dimenzovania siete'!E150 -> Max # zákazníkov voicemail | D82: ='4. Parametre dimenzovania siete'!F150 -> 0 | E82: ='4. Parametre dimenzovania siete'!D150 -> 0
B83: MME | C83: Max # užívateľov | D83: ='4. Parametre dimenzovania siete'!F149 -> 0 | E83: ='4. Parametre dimenzovania siete'!D149 -> 0
B84: ='4. Parametre dimenzovania siete'!B151 -> SMSC platform | C84: ='4. Parametre dimenzovania siete'!E151 -> Max # SMS v BH | D84: ='4. Parametre dimenzovania siete'!F151 -> 0 | E84: ='4. Parametre dimenzovania siete'!D151 -> 0
B85: ='4. Parametre dimenzovania siete'!B152 -> MMSC platform | C85: ='4. Parametre dimenzovania siete'!E152 -> Max # správ za sekundu | D85: ='4. Parametre dimenzovania siete'!F152 -> 0 | E85: ='4. Parametre dimenzovania siete'!D152 -> 0
B86: ='4. Parametre dimenzovania siete'!B153 -> Mobile IN | C86: ='4. Parametre dimenzovania siete'!E153 -> Max # užívateľov | D86: ='4. Parametre dimenzovania siete'!F153 -> 0 | E86: ='4. Parametre dimenzovania siete'!D153 -> 0
B87: ='4. Parametre dimenzovania siete'!B154 -> SGSN Platform | C87: ='4. Parametre dimenzovania siete'!E154 -> Max # zákazníkov s dátovými službami | D87: ='4. Parametre dimenzovania siete'!F154 -> 0 | E87: ='4. Parametre dimenzovania siete'!D154 -> 0
B88: ='4. Parametre dimenzovania siete'!B155 -> GGSN Platform | C88: ='4. Parametre dimenzovania siete'!E155 -> Max # zákazníkov s dátovými službami | D88: ='4. Parametre dimenzovania siete'!F155 -> 0 | E88: ='4. Parametre dimenzovania siete'!D155 -> 0
B89: Interconnection
B90: IMS | C90: Max # zákazníkov | D90: ='4. Parametre dimenzovania siete'!F156 -> 0 | E90: ='4. Parametre dimenzovania siete'!D156 -> 0
B91: PCRF | C91: Max # zákazníkov | D91: ='4. Parametre dimenzovania siete'!F157 -> 0 | E91: ='4. Parametre dimenzovania siete'!D157 -> 0
A93: 9.8 Ostatné údaje dopytu
B95: Zariadenie | C95: Jednotka | D95: Hodnota | E95: Medziročný rast | F95: Hodnota v plánovanom období | G95: Hodnota - úprava loading faktor
B96: =B81 -> Home Location Register (HLR) / HSS | C96: Počet užívateľov | D96: ='2. Dopyt'!E13 -> 0 | E96: ='2. Dopyt'!$F$21 ->  | F96: =D96*(1+E96*C14/12) ->  | G96: =F96/D14 -> 
B97: MME | C97: Počet užívateľov | D97: ='2. Dopyt'!E13 -> 0 | E97: ='2. Dopyt'!$F$21 -> 
B98: =B82 -> Voicemail platform | C98: Užívatelia hlasových schránok | D98: ='2. Dopyt'!E14 -> 0 | E98: ='2. Dopyt'!F22 -> 
B99: =B84 -> SMSC platform | C99: BH SMS | D99: =SUM('2. Dopyt'!$E$58:$E$58)*I_Busy_Hour ->  | E99: ='2. Dopyt'!F59 -> 
B100: =B85 -> MMSC platform | C100: Správy za sekundu | D100: ='6. NE Dopyt'!$D$151 ->  | E100: ='2. Dopyt'!F67 -> 
B101: =B86 -> Mobile IN | C101: Užívatelia | D101: ='2. Dopyt'!E10 -> 0 | E101: ='2. Dopyt'!F18 -> 
B102: =B87 -> SGSN Platform | C102: Užívatelia mobilných dátových služieb | D102: ='2. Dopyt'!$E$15 -> 0 | E102: ='2. Dopyt'!$F$23 -> 
B103: =B88 -> GGSN Platform | C103: Užívatelia mobilných dátových služieb | D103: ='2. Dopyt'!$E$15 -> 0 | E103: ='2. Dopyt'!$F$23 -> 
B104: Interconnection
B105: IMS | C105: Počet užívateľov | D105: ='2. Dopyt'!E13 -> 0 | E105: ='2. Dopyt'!F21 ->  | F105: =D105*(1+E105*C22/12) ->  | G105: =F105/D22 -> 
B106: PCRF | C106: Počet užívateľov | D106: ='2. Dopyt'!E13 -> 0 | E106: ='2. Dopyt'!F21 ->  | F106: =D106*(1+E106*C23/12) ->  | G106: =F106/D23 -> 
A109: Výpočet
A111: 9.9 Dimenzovanie Switch (MSS)
B113: Switch | C113: Jednotka | D113: Celkom | E113: Bratislava 1 | F113: Bratislava 2 | G113: Košice 1 | H113: Košice 2 | I113: Trnava | J113: Nitra | K113: Trenčín | L113: Žilina | M113: Banská Bystrica | N113: Prešov
B114: Minimálny požadovaný # switch - na základe SCC | C114: # switching lokácií | D114: =ROUNDUP(G39/D30,0) -> 
B115: Minimálny požadovaný # switch na základe pokusu o nadviazanie hovoru | C115: # switching lokácií | D115: =ROUNDUP(G40/D31,0) -> 
B116: Minimálny požadovaný # switch na základe Mbps | C116: # switching lokácií | D116: =ROUNDUP(G41/D33,0) -> 
B117: Minimálny požadovaný # switch - celkom | C117: # switching lokácií | D117: =D114 ->  | E117: =ROUNDUP($D$117*C47/$M47,0) -> 
A119: 9.10 Dimenzovanie SGW, PGW
B121: Provoz | C121: Jednotka | D121: Hodnota | E121: Bratislava 1 | F121: Bratislava 2 | G121: Košice 1 | H121: Košice 2 | I121: Trnava | J121: Nitra | K121: Trenčín | L121: Žilina | M121: Banská Bystrica | N121: Prešov
B122: Minimálny počet SGWs, PGWs - na základe call attempts | C122: # SGWs, PGWs | D122: =SUM(E122:N122) ->  | E122: =ROUNDUP(D75/$D$65,0) -> 
B123: Minimálny počet SGWs, PGWs - na základe Mbps | C123: # SGWs, PGWs | D123: =SUM(E123:N123) ->  | E123: =ROUNDUP(D76/$D$65,0) ->  | F123: =ROUNDUP(E76/$D$65,0) ->  | G123: =ROUNDUP(F76/$D$65,0) ->  | H123: =ROUNDUP(G76/$D$65,0) ->  | I123: =ROUNDUP(H76/$D$63,0) -> 
B124: Minimum SGWs, PGWs - celkom | C124: # SGWs, PGWs | D124: =MAX(D122:D123) -> 
A126: 9.11 Dimenzovanie ostatných core platform sieťových prvkov
B128: Zariadenie | C128: Jednotka | D128: Celkom požadovaných
B129: HLR požadovaná kapacita | C129: # užívateľov | D129: =ROUNDUP(G96,-6) -> 
B130: MME požadovaná kapacita | C130: # užívateľov | D130: =ROUNDUP(G97,-6) -> 
B131: IMS požadovaná kapacita | C131: # užívateľov | D131: =ROUNDUP(G105,-6) -> 
B132: PCRF požadovaná kapacita | C132: # užívateľov | D132: =ROUNDUP(G106,-6) -> 
E134: Umiestnenie sieťových prvkov podľa lokácií na základe skutočnej topológie
B135: Zariadenie | C135: Jednotka | D135: Celkom požadovaných | E135: Bratislava 1 | F135: Bratislava 2 | G135: Košice 1 | H135: Košice 2 | I135: Trnava | J135: Nitra | K135: Trenčín | L135: Žilina | M135: Banská Bystrica | N135: Prešov
B136: =B96 -> Home Location Register (HLR) / HSS | C136: # | D136: =MAX(E81,ROUNDUP(D129/D81,0)) ->  | E136: =ROUNDUP($D136*C48/$M48,0) -> 
B137: MME | C137: # | D137: =MAX(E83,ROUNDUP(G97/D83,0)) -> 
B138: =B98 -> Voicemail platform | C138: # | D138: =MAX(E82,ROUNDUP(G98/D82,0)) -> 
B139: SMSC platform | C139: # | D139: =MAX(E84,ROUNDUP(G99/D84,0)) -> 
B140: MMSC platform | C140: # | D140: =MAX(E85,ROUNDUP(G100/D85,0)) -> 
B141: Mobile IN | C141: # | D141: =MAX(E86,ROUNDUP(G101/D86,0)) -> 
B142: SGSN Platform | C142: # | D142: =MAX(E87,ROUNDUP(G102/D87,0)) -> 
B143: GGSN Platform | C143: # | D143: =MAX(E88,ROUNDUP(G103/D88,0)) -> 
B144: Interconnection | C144: # | D144: =IF(ISERROR(MAX(E89,ROUNDUP(G104/D89,0))),E89,(MAX(E89,ROUNDUP(G104/D89,0)))) -> 0
B145: IMS | C145: # | D145: =MAX(E90,ROUNDUP(D131/D90,0)) ->  | E145: =ROUNDUP($D145*C57/$M57,0) -> 
B146: PCRF | C146: # | D146: =MAX(E91,ROUNDUP(D132/D91,0)) -> 

Sheet 8. Prístupová sieť
A1: 8. Dimenzovanie prístupovej časti prenosovej siete | N1: OUTPUT
A3: Popis
A4: Výpočet
A6: Vstupy z predchádzajúcich kalkulácií
A8: 8.1 Štatistiky RAN prístupovej siete
B10: Médium prenosového prístupu | C10: Jednotka | D10: Aglomerácia | E10: Mestá | F10: Vidiek
B11: Mikrovlny | C11: % | D11: ='4. Parametre dimenzovania siete'!C264 -> 0 | E11: ='4. Parametre dimenzovania siete'!D264 -> 0 | F11: ='4. Parametre dimenzovania siete'!E264 -> 0
B12: Kábel | C12: % | D12: ='4. Parametre dimenzovania siete'!C265 -> 0 | E12: ='4. Parametre dimenzovania siete'!D265 -> 0 | F12: ='4. Parametre dimenzovania siete'!E265 -> 0
B13: Prenajatá kapacita | C13: % | D13: ='4. Parametre dimenzovania siete'!C266 -> 0 | E13: ='4. Parametre dimenzovania siete'!D266 -> 0 | F13: ='4. Parametre dimenzovania siete'!E266 -> 0
B14: Umiestnenie BTS, NodeB spoločne s BSC, RNC | C14: % | D14: ='4. Parametre dimenzovania siete'!C267 -> 0 | E14: ='4. Parametre dimenzovania siete'!D267 -> 0 | F14: ='4. Parametre dimenzovania siete'!E267 -> 0
B16: Priemer skokov a vzdialenosti | C16: Jednotka | D16: Aglomerácia | E16: Mestá | F16: Vidiek
B17: Priemerný mikro skok na BTS/NodeB spoj | C17: # | D17: ='4. Parametre dimenzovania siete'!C223 ->  | E17: ='4. Parametre dimenzovania siete'!D223 ->  | F17: ='4. Parametre dimenzovania siete'!E223 -> 
B18: Priemerná káblová vzdialenosť BTS/NodeB - BSC/RNC spoje | C18: km | D18: ='4. Parametre dimenzovania siete'!C229 ->  | E18: ='4. Parametre dimenzovania siete'!D229 ->  | F18: ='4. Parametre dimenzovania siete'!E229 -> 
B20: Zdieľaný mikrovlnný prístup k prenosu | C20: Jednotka | D20: Aglomerácia | E20: Mestá | F20: Vidiek
B21: Zdieľané s BSC/RNC - MGW iba | C21: % | D21: ='4. Parametre dimenzovania siete'!C222 ->  | E21: ='4. Parametre dimenzovania siete'!D222 ->  | F21: ='4. Parametre dimenzovania siete'!E222 -> 
B23: Zdieľaný káblový prístup k prenosu | C23: Jednotka | D23: Aglomerácia | E23: Mestá | F23: Vidiek
B24: Zdieľané s BSC/RNC - MGW iba | C24: % | D24: ='4. Parametre dimenzovania siete'!C228 -> 0 | E24: ='4. Parametre dimenzovania siete'!D228 -> 0 | F24: ='4. Parametre dimenzovania siete'!E228 -> 0
A26: 8.2 BTS/NodeB dimenzovanie množstva lokácií
B28: Počet BTS lokácií podľa typu | C28: # BTS / Lokácia | D28: Aglomerácia | E28: Mestá | F28: Vidiek | G28: Územie celkom
B29: BTS GSM 900 | C29: 1 | D29: =MAX('7a. Radiová sieť 2G'!D187-D30,0) ->  | E29: =MAX('7a. Radiová sieť 2G'!E187-E30,0) ->  | F29: =MAX('7a. Radiová sieť 2G'!F187-F30,0) -> 
A30: 3g | B30: BTS GSM 900 + NodeB | C30: 2 | D30: ='7b. Radiová sieť 3G'!D166 ->  | E30: ='7b. Radiová sieť 3G'!E166 ->  | F30: ='7b. Radiová sieť 3G'!F166 ->  | G30: ='7b. Radiová sieť 3G'!G166 -> 
B31: BTS GSM 900 + GSM 1800 | C31: 2 | D31: ='7a. Radiová sieť 2G'!D188 ->  | E31: ='7a. Radiová sieť 2G'!E188 ->  | F31: ='7a. Radiová sieť 2G'!F188 -> 
B32: BTS GSM Dual 900/1800 | C32: 1 | D32: ='7a. Radiová sieť 2G'!D189 ->  | E32: ='7a. Radiová sieť 2G'!E189 ->  | F32: ='7a. Radiová sieť 2G'!F189 ->  | G32: ='7a. Radiová sieť 2G'!G189 -> 
B33: BTS GSM Dual 900/1800 | C33: 2 | D33: ='7a. Radiová sieť 2G'!D190 ->  | E33: ='7a. Radiová sieť 2G'!E190 ->  | F33: ='7a. Radiová sieť 2G'!F190 ->  | G33: ='7a. Radiová sieť 2G'!G190 -> 
B34: BTS GSM Dual 900/1800 | C34: 3 | D34: ='7a. Radiová sieť 2G'!D191 ->  | E34: ='7a. Radiová sieť 2G'!E191 ->  | F34: ='7a. Radiová sieť 2G'!F191 ->  | G34: ='7a. Radiová sieť 2G'!G191 -> 
B35: NodeB | C35: 1 | D35: ='7b. Radiová sieť 3G'!D170 ->  | E35: ='7b. Radiová sieť 3G'!E170 ->  | F35: ='7b. Radiová sieť 3G'!F170 ->  | G35: ='7b. Radiová sieť 3G'!G170 -> 
B36: eNode B
B38: Priemerný počet sektorov / BTS podľa frekvencie | C38: Jednotka | D38: Aglomerácia | E38: Mestá | F38: Vidiek
B39: BTS GSM 900 | C39: # sektorov/BTS | D39: =SUMPRODUCT('7a. Radiová sieť 2G'!D$29:D$31,'7a. Radiová sieť 2G'!D$50:D$52) -> 0 | E39: =SUMPRODUCT('7a. Radiová sieť 2G'!E$29:E$31,'7a. Radiová sieť 2G'!E$50:E$52) -> 0 | F39: =SUMPRODUCT('7a. Radiová sieť 2G'!F$29:F$31,'7a. Radiová sieť 2G'!F$50:F$52) -> 0
B40: BTS GSM 1800 | C40: # sektorov/BTS | D40: =SUMPRODUCT('7a. Radiová sieť 2G'!D$29:D$31,'7a. Radiová sieť 2G'!D$55:D$57) -> 0 | E40: =SUMPRODUCT('7a. Radiová sieť 2G'!E$29:E$31,'7a. Radiová sieť 2G'!E$55:E$57) -> 0 | F40: =SUMPRODUCT('7a. Radiová sieť 2G'!F$29:F$31,'7a. Radiová sieť 2G'!F$55:F$57) -> 0
B41: BTS GSM Dual | C41: # sektorov/BTS | D41: =SUMPRODUCT('7a. Radiová sieť 2G'!D$29:D$31,'7a. Radiová sieť 2G'!D$60:D$62) -> 0 | E41: =SUMPRODUCT('7a. Radiová sieť 2G'!E$29:E$31,'7a. Radiová sieť 2G'!E$60:E$62) -> 0 | F41: =SUMPRODUCT('7a. Radiová sieť 2G'!F$29:F$31,'7a. Radiová sieť 2G'!F$60:F$62) -> 0
B42: NodeB | C42: # sektorov/NodeB | D42: =SUMPRODUCT('7b. Radiová sieť 3G'!D$42:D$44,'7b. Radiová sieť 3G'!D$62:D$64) -> 0 | E42: =SUMPRODUCT('7b. Radiová sieť 3G'!E$42:E$44,'7b. Radiová sieť 3G'!E$62:E$64) -> 0 | F42: =SUMPRODUCT('7b. Radiová sieť 3G'!F$42:F$44,'7b. Radiová sieť 3G'!F$62:F$64) -> 0
B43: eNode B
B45: Priemerná prevádzka na sektor podľa frekvencie | C45: Jednotka | D45: Aglomerácia | E45: Mestá | F45: Vidiek
B46: Dimenzovanie prevádzky na sektor GSM 900 | C46: Erlang | D46: ='7a. Radiová sieť 2G'!D148 ->  | E46: ='7a. Radiová sieť 2G'!E148 ->  | F46: ='7a. Radiová sieť 2G'!F148 ->  | G46: ='7a. Radiová sieť 2G'!G148 -> 
B47: Dimenzovanie prevádzky na sektor GSM 1800 | C47: Erlang | D47: ='7a. Radiová sieť 2G'!D149 ->  | E47: ='7a. Radiová sieť 2G'!E149 ->  | F47: ='7a. Radiová sieť 2G'!F149 ->  | G47: ='7a. Radiová sieť 2G'!G149 -> 
B48: Dimenzovanie prevádzky na sektor GSM Dual | C48: Erlang | D48: =D46+D47 ->  | E48: =E46+E47 -> 
B49: Dimenzovanie prevádzky na sektor NodeB | C49: Erlang | D49: ='7b. Radiová sieť 3G'!D125 ->  | E49: ='7b. Radiová sieť 3G'!E125 ->  | F49: ='7b. Radiová sieť 3G'!F125 ->  | G49: ='7b. Radiová sieť 3G'!G125 -> 0
B50: Dimenzování provozu na sektor eNodeB
A52: 8.3 Mapovanie prevádzky ku Core Nodes
B54: Region | C54: Bratislava 1 | D54: Bratislava 2 | E54: Košice 1 | F54: Košice 2 | G54: Trnava | H54: Nitra | I54: Trenčín | J54: Žilina | K54: Banská Bystrica | L54: Prešov
B55: Geotyp Aglomerácie | C55: ='4. Parametre dimenzovania siete'!C71 -> 0 | D55: ='4. Parametre dimenzovania siete'!D71 -> 0 | E55: ='4. Parametre dimenzovania siete'!E71 -> 0 | F55: ='4. Parametre dimenzovania siete'!F71 -> 0 | G55: ='4. Parametre dimenzovania siete'!G71 -> 0 | H55: ='4. Parametre dimenzovania siete'!H71 -> 0 | I55: ='4. Parametre dimenzovania siete'!I71 -> 0 | J55: ='4. Parametre dimenzovania siete'!J71 -> 0 | K55: ='4. Parametre dimenzovania siete'!K71 -> 0 | L55: ='4. Parametre dimenzovania siete'!L71 -> 0
B56: Geotyp Mestá | C56: ='4. Parametre dimenzovania siete'!C72 -> 0 | D56: ='4. Parametre dimenzovania siete'!D72 -> 0 | E56: ='4. Parametre dimenzovania siete'!E72 -> 0 | F56: ='4. Parametre dimenzovania siete'!F72 -> 0 | G56: ='4. Parametre dimenzovania siete'!G72 -> 0 | H56: ='4. Parametre dimenzovania siete'!H72 -> 0 | I56: ='4. Parametre dimenzovania siete'!I72 -> 0 | J56: ='4. Parametre dimenzovania siete'!J72 -> 0 | K56: ='4. Parametre dimenzovania siete'!K72 -> 0 | L56: ='4. Parametre dimenzovania siete'!L72 -> 0
B57: Geotyp Vidiek | C57: ='4. Parametre dimenzovania siete'!C73 -> 0 | D57: ='4. Parametre dimenzovania siete'!D73 -> 0 | E57: ='4. Parametre dimenzovania siete'!E73 -> 0 | F57: ='4. Parametre dimenzovania siete'!F73 -> 0 | G57: ='4. Parametre dimenzovania siete'!G73 -> 0 | H57: ='4. Parametre dimenzovania siete'!H73 -> 0 | I57: ='4. Parametre dimenzovania siete'!I73 -> 0 | J57: ='4. Parametre dimenzovania siete'!J73 -> 0 | K57: ='4. Parametre dimenzovania siete'!K73 -> 0 | L57: ='4. Parametre dimenzovania siete'!L73 -> 0
A59: 8.4 BSC/RNC/eNode štatistiky prenosu
B61: Rozdelenie BSC/RNC - MGW prenosového média | C61: Jednotka | D61: Bratislava 1 | E61: Bratislava 2 | F61: Košice 1 | G61: Košice 2 | H61: Trnava | I61: Nitra | J61: Trenčín | K61: Žilina | L61: Banská Bystrica | M61: Prešov
B62: Mikrovlny | C62: % | D62: ='4. Parametre dimenzovania siete'!C271 -> 0 | E62: ='4. Parametre dimenzovania siete'!D271 -> 0 | F62: ='4. Parametre dimenzovania siete'!E271 -> 0 | G62: ='4. Parametre dimenzovania siete'!F271 -> 0 | H62: ='4. Parametre dimenzovania siete'!G271 -> 0 | I62: ='4. Parametre dimenzovania siete'!H271 -> 0 | J62: ='4. Parametre dimenzovania siete'!I271 -> 0 | K62: ='4. Parametre dimenzovania siete'!J271 -> 0 | L62: ='4. Parametre dimenzovania siete'!K271 -> 0 | M62: ='4. Parametre dimenzovania siete'!L271 -> 0
B63: Kábel (vrátane dark fibre) | C63: % | D63: ='4. Parametre dimenzovania siete'!C272 -> 0 | E63: ='4. Parametre dimenzovania siete'!D272 -> 0 | F63: ='4. Parametre dimenzovania siete'!E272 -> 0 | G63: ='4. Parametre dimenzovania siete'!F272 -> 0 | H63: ='4. Parametre dimenzovania siete'!G272 -> 0 | I63: ='4. Parametre dimenzovania siete'!H272 -> 0 | J63: ='4. Parametre dimenzovania siete'!I272 -> 0 | K63: ='4. Parametre dimenzovania siete'!J272 -> 0 | L63: ='4. Parametre dimenzovania siete'!K272 -> 0 | M63: ='4. Parametre dimenzovania siete'!L272 -> 0
B64: Prenajatá kapacita | C64: % | D64: ='4. Parametre dimenzovania siete'!C273 -> 0 | E64: ='4. Parametre dimenzovania siete'!D273 -> 0 | F64: ='4. Parametre dimenzovania siete'!E273 -> 0 | G64: ='4. Parametre dimenzovania siete'!F273 -> 0 | H64: ='4. Parametre dimenzovania siete'!G273 -> 0 | I64: ='4. Parametre dimenzovania siete'!H273 -> 0 | J64: ='4. Parametre dimenzovania siete'!I273 -> 0 | K64: ='4. Parametre dimenzovania siete'!J273 -> 0 | L64: ='4. Parametre dimenzovania siete'!K273 -> 0 | M64: ='4. Parametre dimenzovania siete'!L273 -> 0
B65: Kolokácia | C65: % | D65: ='4. Parametre dimenzovania siete'!C274 -> 0 | E65: ='4. Parametre dimenzovania siete'!D274 -> 0 | F65: ='4. Parametre dimenzovania siete'!E274 -> 0 | G65: ='4. Parametre dimenzovania siete'!F274 -> 0 | H65: ='4. Parametre dimenzovania siete'!G274 -> 0 | I65: ='4. Parametre dimenzovania siete'!H274 -> 0 | J65: ='4. Parametre dimenzovania siete'!I274 -> 0 | K65: ='4. Parametre dimenzovania siete'!J274 -> 0 | L65: ='4. Parametre dimenzovania siete'!K274 -> 0 | M65: ='4. Parametre dimenzovania siete'!L274 -> 0
B67: Priemerné mikro skoky na BSC/RNC/eNode - MGW/ PGW, SGW spoj | C67: # | D67: =VLOOKUP(D$61,'4. Parametre dimenzovania siete'!$C$234:$H$243,2,0) -> 0 | E67: =VLOOKUP(E$61,'4. Parametre dimenzovania siete'!$C$234:$H$243,2,0) -> 0 | F67: =VLOOKUP(F$61,'4. Parametre dimenzovania siete'!$C$234:$H$243,2,0) -> 0 | G67: =VLOOKUP(G$61,'4. Parametre dimenzovania siete'!$C$234:$H$243,2,0) -> 0 | H67: =VLOOKUP(H$61,'4. Parametre dimenzovania siete'!$C$234:$H$243,2,0) -> 0 | I67: =VLOOKUP(I$61,'4. Parametre dimenzovania siete'!$C$234:$H$243,2,0) -> 0 | J67: =VLOOKUP(J$61,'4. Parametre dimenzovania siete'!$C$234:$H$243,2,0) -> 0 | K67: =VLOOKUP(K$61,'4. Parametre dimenzovania siete'!$C$234:$H$243,2,0) -> 0 | L67: =VLOOKUP(L$61,'4. Parametre dimenzovania siete'!$C$234:$H$243,2,0) -> 0 | M67: =VLOOKUP(M$61,'4. Parametre dimenzovania siete'!$C$234:$H$243,2,0) -> 0
B69: Priemerná vzdialenosť BSC/RNC/eNode - MGW/ SGW, PGW spoju | C69: km | D69: =VLOOKUP(D$61,'4. Parametre dimenzovania siete'!$C$234:$I$243,3,0) -> 0 | E69: =VLOOKUP(E$61,'4. Parametre dimenzovania siete'!$C$234:$I$243,3,0) -> 0 | F69: =VLOOKUP(F$61,'4. Parametre dimenzovania siete'!$C$234:$I$243,3,0) -> 0 | G69: =VLOOKUP(G$61,'4. Parametre dimenzovania siete'!$C$234:$I$243,3,0) -> 0 | H69: =VLOOKUP(H$61,'4. Parametre dimenzovania siete'!$C$234:$I$243,3,0) -> 0 | I69: =VLOOKUP(I$61,'4. Parametre dimenzovania siete'!$C$234:$I$243,3,0) -> 0 | J69: =VLOOKUP(J$61,'4. Parametre dimenzovania siete'!$C$234:$I$243,3,0) -> 0 | K69: =VLOOKUP(K$61,'4. Parametre dimenzovania siete'!$C$234:$I$243,3,0) -> 0 | L69: =VLOOKUP(L$61,'4. Parametre dimenzovania siete'!$C$234:$I$243,3,0) -> 0 | M69: =VLOOKUP(M$61,'4. Parametre dimenzovania siete'!$C$234:$I$243,3,0) -> 0
A71: 8.5 BSC/RNC/eNode dimenzovanie množstva
B73: Hlavný vstup | C73: Jednotka | D73: Hlavný vstup
B74: Celkom BSC/RNC - MGW prevádzka | C74: BHE | D74: ='6. NE Dopyt'!$N$128+'6. NE Dopyt'!$O$128 -> 
B75: IP Bandwidth per 1 voice erlang / channel | C75: Mbps | D75: 0.095
B76: Celkom BSC/RNC - MGW prevádzka | C76: Mbps | D76: =D75*D74 -> 
B77: Celkom eNodeB (DU) - SGW, PGW prevádzka | C77: Mbps | D77: ='6. NE Dopyt'!P128 -> 
B78: Celkom BSC/RNC/eNodeB - MGW/ SGW, PGW prevádzka | C78: Mbps | D78: =D77+D76 -> 
B79: Plánované využitie spoja (link) | C79: % | D79: =I_CapPlan_Trans_Access -> 
B81: Prevádzka cez Core Node uzly | C81: Jednotka | D81: Bratislava 1 | E81: Bratislava 2 | F81: Košice 1 | G81: Košice 2 | H81: Trnava | I81: Nitra | J81: Trenčín | K81: Žilina | L81: Banská Bystrica | M81: Prešov | N81: Územie celkom
B82: Distribúcia prevádzky | C82: % | D82: ='4. Parametre dimenzovania siete'!C75 ->  | E82: ='4. Parametre dimenzovania siete'!D75 ->  | F82: ='4. Parametre dimenzovania siete'!E75 ->  | G82: ='4. Parametre dimenzovania siete'!F75 ->  | H82: ='4. Parametre dimenzovania siete'!G75 ->  | I82: ='4. Parametre dimenzovania siete'!H75 ->  | J82: ='4. Parametre dimenzovania siete'!I75 ->  | K82: ='4. Parametre dimenzovania siete'!J75 ->  | L82: ='4. Parametre dimenzovania siete'!K75 ->  | M82: ='4. Parametre dimenzovania siete'!L75 ->  | N82: =SUM(D82:M82) -> 
B83: BSC/RNC/eNode prevádzka cez základné lokácie (core) | C83: Mbps | D83: =D82*$D$78 ->  | E83: =E82*$D$78 ->  | N83: =SUM(D83:M83) -> 
B84: BSC/RNC prevádzka cez core lokácie (post utilisation) | C84: Mbps | D84: =D83/$D$79 ->  | E84: =E83/$D$79 ->  | N84: =SUM(D84:M84) -> 
B85: BSC/RNC/DU cez core lokácie | C85: # | D85: ='7a. Radiová sieť 2G'!D213+'7b. Radiová sieť 3G'!D199+'7c. Radiová sieť 4G NEW'!D187 ->  | E85: ='7a. Radiová sieť 2G'!E213+'7b. Radiová sieť 3G'!E199+'7c. Radiová sieť 4G NEW'!E187 ->  | F85: ='7a. Radiová sieť 2G'!F213+'7b. Radiová sieť 3G'!F199+'7c. Radiová sieť 4G NEW'!F187 ->  | G85: ='7a. Radiová sieť 2G'!G213+'7b. Radiová sieť 3G'!G199+'7c. Radiová sieť 4G NEW'!G187 ->  | H85: ='7a. Radiová sieť 2G'!H213+'7b. Radiová sieť 3G'!H199+'7c. Radiová sieť 4G NEW'!H187 ->  | I85: ='7a. Radiová sieť 2G'!I213+'7b. Radiová sieť 3G'!I199+'7c. Radiová sieť 4G NEW'!I187 ->  | J85: ='7a. Radiová sieť 2G'!J213+'7b. Radiová sieť 3G'!J199+'7c. Radiová sieť 4G NEW'!J187 ->  | K85: ='7a. Radiová sieť 2G'!K213+'7b. Radiová sieť 3G'!K199+'7c. Radiová sieť 4G NEW'!K187 ->  | L85: ='7a. Radiová sieť 2G'!L213+'7b. Radiová sieť 3G'!L199+'7c. Radiová sieť 4G NEW'!L187 ->  | M85: ='7a. Radiová sieť 2G'!M213+'7b. Radiová sieť 3G'!M199+'7c. Radiová sieť 4G NEW'!M187 ->  | N85: =SUM(D85:M85) -> 
B86: Prevádzka cez BSC/RNC Core Node uzly | C86: Mbps | D86: =IF(D85=0,0,D84/D85) -> 
A88: 8.6 Charakteristiky spojov (stále dáta) | C88: 2 | D88: 3 | E88: 4 | F88: 5 | G88: 6 | H88: 7 | I88: 8
B90: Údaje pre kapacitu spoja | C90: Meno | D90: Dátová kapacita (Mbit/s) | E90: Počet E1 | F90: Okruhy celkom | G90: Hlasové okruhy | H90: Signalizácia | I90: Erlang
B91: Link STM-256 | C91: =VLOOKUP($B91,I_Link_Capacity,C$88,0) -> STM-256 | D91: 39813.12 | E91: 16128 | F91: 0 | G91: 483840 | H91: 0 | I91: 0
B92: Link STM-64 | C92: STM-64 | D92: 9953.28 | E92: 4032 | F92: 0 | G92: 120960 | H92: 0 | I92: 123379.5
B93: Link STM-16 | C93: STM-16 | D93: 2488.32 | E93: 1008 | F93: 0 | G93: 30240 | H93: 0 | I93: 30810.313
B94: Link STM-4 | C94: STM-4 | D94: 622.08 | E94: 252 | F94: 0 | G94: 7560 | H94: 0 | I94: 7672.773
B95: Link STM-1 | C95: STM-1 | D95: 155.52 | E95: 63 | F95: 0 | G95: 1890 | H95: 0 | I95: 1895.7251
B97: Stále údaje pre kapacitu spojov | C97: Meno | D97: Dátová kapacita (Mbit/s) | E97: Počet E1 | F97: Okruhy celkom | G97: Hlasové okruhy | H97: Signalizácia | I97: Erlang
B98: ='4. Parametre dimenzovania siete'!B290 -> Link 128 Mbit/s | C98: =VLOOKUP($B98,I_Link_Capacity,C$88,0) -> E4 | D98: 139.264 | E98: 64 | F98: 2048 | G98: 1920 | H98: 128 | I98: 1926.1928
B99: ='4. Parametre dimenzovania siete'!B289 -> Link 32 Mbit/s | C99: E3 | D99: 34.368 | E99: 16 | F99: 512 | G99: 480 | H99: 32 | I99: 466.316
B100: ='4. Parametre dimenzovania siete'!B288 -> Link 8 Mbit/s | C100: E2 | D100: 8.448 | E100: 4 | F100: 128 | G100: 120 | H100: 8 | I100: 107.4
B101: ='4. Parametre dimenzovania siete'!B287 -> Link 2 Mbit/s | C101: E1 | D101: 2.048 | E101: 1 | F101: 32 | G101: 30 | H101: 2 | I101: 21.932
A104: Výpočet
A106: 8.7 BTS Backhaul dimenzovanie
A108: 8.7.1 Prevádzka na lokácii (HPH Erlang)
B110: Prevádzka na lokácii | C110: # BTS / Lokácia | D110: Aglomerácia | E110: Mestá | F110: Vidiek
B111: =$B$29 -> BTS GSM 900 | C111: =$C$29 -> 1 | D111: =D39*D46 ->  | E111: =$C111*E39*E46 ->  | F111: =$C111*F39*F46 -> 
B112: =$B$30 -> BTS GSM 900 + NodeB | C112: =$C$30 -> 2 | D112: =D111+D117 ->  | E112: =$C112*E40*E47 ->  | F112: =$C112*F40*F47 -> 
B113: =$B$31 -> BTS GSM 900 + GSM 1800 | C113: =$C$31 -> 2 | D113: =D39*D46+D40*D47 ->  | E113: =E39*E46+E40*E47 -> 
B114: =$B$32 -> BTS GSM Dual 900/1800 | C114: =$C$32 -> 1 | D114: =D41*D48 ->  | E114: =E41*E48 -> 
B115: =$B$33 -> BTS GSM Dual 900/1800 | C115: =$C$33 -> 2 | D115: =D114*2 ->  | E115: =E114*2 -> 
B116: =$B$34 -> BTS GSM Dual 900/1800 | C116: =$C$34 -> 3 | D116: =D114*3 ->  | E116: =E114*3 -> 
B117: =$B$35 -> NodeB | C117: =$C$35 -> 1 | D117: =D42*D49 ->  | E117: =E42*E49 -> 
A119: 8.7.2 Kapacita BTS/NodeB - BSC/RNC spojov na lokácii
B121: Typ lokácie | C121: # BTS / Lokácia | D121: Aglomerácia | E121: Mestá | F121: Vidiek
B122: =$B$29 -> BTS GSM 900 | C122: =$C$29 -> 1 | D122: =INDEX($B$92:$B$101,MATCH(D111,$I$92:$I$101,-1)) ->  | E122: =INDEX($B$92:$B$101,MATCH(E111,$I$92:$I$101,-1)) -> 
B123: =$B$30 -> BTS GSM 900 + NodeB | C123: =$C$30 -> 2 | D123: =INDEX($B$92:$B$101,MATCH(D112,$I$92:$I$101,-1)) -> 
B124: =$B$31 -> BTS GSM 900 + GSM 1800 | C124: =$C$31 -> 2 | D124: =INDEX($B$92:$B$101,MATCH(D113,$I$92:$I$101,-1)) -> 
B125: =$B$32 -> BTS GSM Dual 900/1800 | C125: =$C$32 -> 1 | D125: =INDEX($B$92:$B$101,MATCH(D114,$I$92:$I$101,-1)) -> 
B126: =$B$33 -> BTS GSM Dual 900/1800 | C126: =$C$33 -> 2 | D126: =INDEX($B$92:$B$101,MATCH(D115,$I$92:$I$101,-1)) -> 
B127: =$B$34 -> BTS GSM Dual 900/1800 | C127: =$C$34 -> 3 | D127: =INDEX($B$92:$B$101,MATCH(D116,$I$92:$I$101,-1)) -> 
B128: NodeB | C128: 1 | D128: =INDEX($B$92:$B$101,MATCH(D117,$I$92:$I$101,-1)) -> 
B130: Typ lokácie | C130: # BTS / Lokácia | D130: Aglomerácia | E130: Mestá | F130: Vidiek
B131: =$B$29 -> BTS GSM 900 | C131: =$C$29 -> 1 | D131: =ROUNDUP(D111/VLOOKUP(D122,I_Link_Capacity_E1,8,0),0) ->  | E131: =ROUNDUP(E111/VLOOKUP(E122,I_Link_Capacity_E1,8,0),0) -> 
B132: =$B$30 -> BTS GSM 900 + NodeB | C132: =$C$30 -> 2 | D132: =ROUNDUP(D112/VLOOKUP(D123,I_Link_Capacity_E1,8,0),0) ->  | E132: =ROUNDUP(E112/VLOOKUP(E123,I_Link_Capacity_E1,8,0),0) -> 
B133: =$B$31 -> BTS GSM 900 + GSM 1800 | C133: =$C$31 -> 2 | D133: =ROUNDUP(D113/VLOOKUP(D124,I_Link_Capacity_E1,8,0),0) -> 
B134: =$B$32 -> BTS GSM Dual 900/1800 | C134: =$C$32 -> 1 | D134: =ROUNDUP(D114/VLOOKUP(D125,I_Link_Capacity_E1,8,0),0) -> 
B135: =$B$33 -> BTS GSM Dual 900/1800 | C135: =$C$33 -> 2 | D135: =ROUNDUP(D115/VLOOKUP(D126,I_Link_Capacity_E1,8,0),0) -> 
B136: =$B$34 -> BTS GSM Dual 900/1800 | C136: =$C$34 -> 3 | D136: =ROUNDUP(D116/VLOOKUP(D127,I_Link_Capacity_E1,8,0),0) -> 
B137: NodeB | C137: 1 | D137: =ROUNDUP(D117/VLOOKUP(D128,I_Link_Capacity_E1,8,0),0) ->  | E137: =ROUNDUP(E117/VLOOKUP(E128,I_Link_Capacity_E1,8,0),0) ->  | F137: =ROUNDUP(F117/VLOOKUP(F128,I_Link_Capacity_E1,8,0),0) -> 
A139: 8.7.3 Celkový počet BTS/NodeB - BSC/RNC mikrovlnných spojov
B141: Typ lokácie | C141: Typ lokácie | D141: Aglomerácia | E141: Mestá | F141: Vidiek
B142: =$B$29 -> BTS GSM 900 | C142: =$C$29 -> 1 | D142: =D29*D$11 -> 
B143: =$B$30 -> BTS GSM 900 + NodeB | C143: =$C$30 -> 2 | D143: =D30*D$11 -> 
B144: =$B$31 -> BTS GSM 900 + GSM 1800 | C144: =$C$31 -> 2 | D144: =D31*D$11 -> 
B145: =$B$32 -> BTS GSM Dual 900/1800 | C145: =$C$32 -> 1 | D145: =D32*D$11 -> 
B146: =$B$33 -> BTS GSM Dual 900/1800 | C146: =$C$33 -> 2 | D146: =D33*D$11 -> 
B147: =$B$34 -> BTS GSM Dual 900/1800 | C147: =$C$34 -> 3 | D147: =D34*D$11 -> 
B148: NodeB | C148: 1 | D148: =D35*D$11 -> 
A150: 8.7.4 Celkový počet BTS/NodeB -BSC/RNC mikrovlnných skokov
B152: Typ lokácie | C152: # BTS / Lokácia | D152: Aglomerácia | E152: Mestá | F152: Vidiek
B153: =$B$29 -> BTS GSM 900 | C153: =$C$29 -> 1 | D153: =ROUND(D142*D$17*(1-0),0) ->  | E153: =ROUND(E142*E$17*(1-0),0) ->  | F153: =ROUND(F142*F$17*(1-0),0) -> 
B154: =$B$30 -> BTS GSM 900 + NodeB | C154: =$C$30 -> 2 | D154: =ROUND(D143*D$17,0) -> 
B155: =$B$31 -> BTS GSM 900 + GSM 1800 | C155: =$C$31 -> 2
B156: =$B$32 -> BTS GSM Dual 900/1800 | C156: =$C$32 -> 1
B157: =$B$33 -> BTS GSM Dual 900/1800 | C157: =$C$33 -> 2
B158: =$B$34 -> BTS GSM Dual 900/1800 | C158: =$C$34 -> 3
B159: NodeB | C159: 1
A161: 8.7.5 Celkový počet nainštalovaných BTS- BSC rádiových setov
B163: Typ lokácie | C163: # BTS / Lokácia | D163: Aglomerácia | E163: Mestá | F163: Vidiek | H163: Total
B164: =$B$29 -> BTS GSM 900 | C164: =$C$29 -> 1 | D164: =D153*D131 ->  | H164: =SUM(D164:F164) -> 
B165: =$B$30 -> BTS GSM 900 + NodeB | C165: =$C$30 -> 2 | D165: =D154*D132 -> 
B166: =$B$31 -> BTS GSM 900 + GSM 1800 | C166: =$C$31 -> 2 | D166: =D155*D133 -> 
B167: =$B$32 -> BTS GSM Dual 900/1800 | C167: =$C$32 -> 1 | D167: =D156*D134 -> 
B168: =$B$33 -> BTS GSM Dual 900/1800 | C168: =$C$33 -> 2 | D168: =D157*D135 -> 
B169: =$B$34 -> BTS GSM Dual 900/1800 | C169: =$C$34 -> 3 | D169: =D158*D136 -> 
B170: NodeB | C170: 1 | D170: =D159*D137 -> 
B172: Celkem podľa typu
B173: =B98 -> Link 128 Mbit/s | C173: # rádio lokácií | D173: =SUMIF(D$122:D$128,$B173,D$164:D$170) -> 0 | E173: 0 | F173: 0 | H173: =SUM(D173:F173) -> 0
B174: =B99 -> Link 32 Mbit/s | C174: # rádio lokácií | D174: 0 | E174: 0 | F174: 0 | H174: =SUM(D174:F174) -> 0
B175: =B100 -> Link 8 Mbit/s | C175: # rádio lokácií | D175: 0 | E175: 0 | F175: 0 | H175: =SUM(D175:F175) -> 0
B176: =B101 -> Link 2 Mbit/s | C176: # rádio lokácií | D176: 0 | E176: 0 | F176: 0 | H176: =SUM(D176:F176) -> 0
A179: 8.7.6 Počet a vzdialenosť BTS/NodeB - BSC/RNC káblových spojov - celkom
B181: Typ lokácie | C181: # BTS / Lokácia | D181: Aglomerácia | E181: Mestá | F181: Vidiek
B182: =$B$29 -> BTS GSM 900 | C182: =$C$29 -> 1 | D182: =ROUND(D29*D$12,0) -> 
B183: =$B$30 -> BTS GSM 900 + NodeB | C183: =$C$30 -> 2 | D183: =ROUND(D30*D$12,0) -> 
B184: =$B$31 -> BTS GSM 900 + GSM 1800 | C184: =$C$31 -> 2 | D184: =ROUND(D31*D$12,0) -> 
B185: =$B$32 -> BTS GSM Dual 900/1800 | C185: =$C$32 -> 1 | D185: =ROUND(D32*D$12,0) -> 
B186: =$B$33 -> BTS GSM Dual 900/1800 | C186: =$C$33 -> 2 | D186: =ROUND(D33*D$12,0) -> 
B187: =$B$34 -> BTS GSM Dual 900/1800 | C187: =$C$34 -> 3 | D187: =ROUND(D34*D$12,0) -> 
B188: NodeB | C188: 1 | D188: =ROUND(D35*D$12,0) ->  | E188: =ROUND(E35*E$12,0) -> 
B189: Number of km of fibre deployed for BTS-BSC only | D189: =SUM(D182:D188)*D$18 ->  | E189: =SUM(E182:E188)*E$18 ->  | F189: =SUM(F182:F188)*F$18 -> 
A191: 8.7.7 Kapacita ADM potrebná pre BTS/NodeB lokácie
B193: Typ lokácie | C193: # BTS / Lokácia | D193: Aglomerácia | E193: Mestá | F193: Vidiek | H193: Total
B194: =$B$29 -> BTS GSM 900 | C194: =$C$29 -> 1 | D194: =INDEX($B$92:$B$95,MATCH(D111,$I$92:$I$95,-1)) ->  | H194: =SUM(D194:F194) -> 
B195: =$B$30 -> BTS GSM 900 + NodeB | C195: =$C$30 -> 2 | D195: =INDEX($B$92:$B$95,MATCH(D112,$I$92:$I$95,-1)) -> 
B196: =$B$31 -> BTS GSM 900 + GSM 1800 | C196: =$C$31 -> 2 | D196: =INDEX($B$92:$B$95,MATCH(D113,$I$92:$I$95,-1)) -> 
B197: =$B$32 -> BTS GSM Dual 900/1800 | C197: =$C$32 -> 1 | D197: =INDEX($B$92:$B$95,MATCH(D114,$I$92:$I$95,-1)) -> 
B198: =$B$33 -> BTS GSM Dual 900/1800 | C198: =$C$33 -> 2 | D198: =INDEX($B$92:$B$95,MATCH(D115,$I$92:$I$95,-1)) -> 
B199: =$B$34 -> BTS GSM Dual 900/1800 | C199: =$C$34 -> 3 | D199: =INDEX($B$92:$B$95,MATCH(D116,$I$92:$I$95,-1)) -> 
B200: NodeB | C200: 1 | D200: =INDEX($B$92:$B$95,MATCH(D117,$I$92:$I$95,-1)) -> 
A202: 8.7.8 Počet ADM priradených BTS/NodeB lokácií
B203: Predpoklad 1 ADM na lokácii, keďže každá BTS môže byť spojená mikrovlnným spojom do bodu prepojenia káblom
B204: Typ lokácie | C204: # BTS / Lokácia | D204: Aglomerácia | E204: Mestá | F204: Vidiek | H204: Total
B205: =$B$29 -> BTS GSM 900 | C205: =$C$29 -> 1 | D205: =D182 ->  | H205: =SUM(D205:F205) -> 
B206: =$B$30 -> BTS GSM 900 + NodeB | C206: =$C$30 -> 2 | D206: =D183 -> 
B207: =$B$31 -> BTS GSM 900 + GSM 1800 | C207: =$C$31 -> 2 | D207: =D184 -> 
B208: =$B$32 -> BTS GSM Dual 900/1800 | C208: =$C$32 -> 1 | D208: =D185 -> 
B209: =$B$33 -> BTS GSM Dual 900/1800 | C209: =$C$33 -> 2 | D209: =D186 -> 
B210: =$B$34 -> BTS GSM Dual 900/1800 | C210: =$C$34 -> 3 | D210: =D187 -> 
B211: NodeB | C211: 1 | D211: =D188 ->  | E211: =E188 -> 
B212: Celkom | C212: # ADM | D212: =SUM(D205:D211) ->  | E212: =SUM(E205:E211) ->  | H212: =SUM(H205:H211) -> 
B214: Celkom podľa typu
B215: =B92 -> Link STM-64 | C215: # ADM | D215: =SUMIF(D$194:D$200,$B215,D$205:D$211) -> 0 | E215: =SUMIF(E$194:E$200,$B215,E$205:E$211) -> 0 | F215: 0 | H215: =SUM(D215:F215) -> 0
B216: =B93 -> Link STM-16 | C216: # ADM | D216: =SUMIF(D$194:D$200,$B216,D$205:D$211) -> 0 | E216: 0 | F216: 0 | H216: =SUM(D216:F216) -> 0
B217: =B94 -> Link STM-4 | C217: # ADM | D217: =SUMIF(D$194:D$200,$B217,D$205:D$211) -> 0 | E217: 0 | F217: 0 | H217: =SUM(D217:F217) -> 0
B218: =B95 -> Link STM-1 | C218: # ADM | D218: =SUMIF(D$194:D$200,$B218,D$205:D$211) -> 0 | E218: 0 | F218: 0 | H218: =SUM(D218:F218) -> 0
A221: 8.7.9 Počet BTS-BSC prenajatých spojov
B223: Typ lokácie | C223: # BTS / Lokácia | D223: Aglomerácia | E223: Mestá | F223: Vidiek
B224: =$B$29 -> BTS GSM 900 | C224: =$C$29 -> 1 | D224: =ROUND(D29*D$13,0) -> 
B225: =$B$30 -> BTS GSM 900 + NodeB | C225: =$C$30 -> 2 | D225: =ROUND(D30*D$13,0) -> 
B226: =$B$31 -> BTS GSM 900 + GSM 1800 | C226: =$C$31 -> 2 | D226: =ROUND(D31*D$13,0) -> 
B227: =$B$32 -> BTS GSM Dual 900/1800 | C227: =$C$32 -> 1 | D227: =ROUND(D32*D$13,0) -> 
B228: =$B$33 -> BTS GSM Dual 900/1800 | C228: =$C$33 -> 2 | D228: =ROUND(D33*D$13,0) -> 
B229: =$B$34 -> BTS GSM Dual 900/1800 | C229: =$C$34 -> 3 | D229: =ROUND(D34*D$13,0) -> 
B230: NodeB | C230: 1 | D230: =ROUND(D35*D$13,0) -> 
B232: Spojov celkom na kapacitu
B233: =B98 -> Link 128 Mbit/s | C233: # spojov | D233: =SUMIF(D$122:D$128,$B233,D$224:D$230) -> 0 | E233: 0 | F233: 0 | H233: =SUM(D233:F233) -> 0
B234: =B99 -> Link 32 Mbit/s | C234: # spojov | D234: 0 | E234: 0 | F234: 0 | H234: =SUM(D234:F234) -> 0
B235: =B100 -> Link 8 Mbit/s | C235: # spojov | D235: 0 | E235: 0 | F235: 0 | H235: =SUM(D235:F235) -> 0
B236: =B101 -> Link 2 Mbit/s | C236: # spojov | D236: 0 | E236: 0 | F236: 0 | H236: =SUM(D236:F236) -> 0
A238: 8.7.10 Požadované Km prenajatých spojov (BTS/NodeB - BSC/RNC iba)
B240: Typ lokácie | C240: # BTS / Lokácia | D240: Aglomerácia | E240: Mestá | F240: Vidiek | H240: Total
B241: =$B$29 -> BTS GSM 900 | C241: =$C$29 -> 1 | D241: =D224*D131*D$18 ->  | H241: =SUM(D241:F241) -> 
B242: =$B$30 -> BTS GSM 900 + NodeB | C242: =$C$30 -> 2 | D242: =D225*D132*D$18 -> 
B243: =$B$31 -> BTS GSM 900 + GSM 1800 | C243: =$C$31 -> 2 | D243: =D226*D133*D$18 -> 
B244: =$B$32 -> BTS GSM Dual 900/1800 | C244: =$C$32 -> 1 | D244: =D227*D134*D$18 -> 
B245: =$B$33 -> BTS GSM Dual 900/1800 | C245: =$C$33 -> 2 | D245: =D228*D135*D$18 -> 
B246: =$B$34 -> BTS GSM Dual 900/1800 | C246: =$C$34 -> 3 | D246: =D229*D136*D$18 -> 
B247: NodeB | C247: 1 | D247: =D230*D137*D$18 -> 
B249: Vzdialenosť celkom | C249: km | D249: =SUM(D241:D247) ->  | E249: =SUM(E241:E247) -> 
B251: Celkom km na kapacitu
B252: =B98 -> Link 128 Mbit/s | C252: km | D252: =SUMIF(D$122:D$128,$B252,D$241:D$247) -> 0 | E252: 0 | F252: 0 | H252: =SUM(D252:F252) -> 0
B253: =B99 -> Link 32 Mbit/s | C253: km | D253: 0 | E253: 0 | F253: 0 | H253: =SUM(D253:F253) -> 0
... 104 more rows

Sheet 7c. Radiová sieť 4G NEW
A1: 7c. Dimenzovanie rádiovej časti siete 4G
A3: Popis
A4: Kalkulácie dimenzovania LTE rádiovej siete
A6: Vstupy z predchádzajúcich kalkulácií
A8: 7.1 Údaje pre dimenzovanie
B10: Plánovacie parametre | C10: Jednotka | D10: Hodnota
B11: Kvalita služby (Radio path Grade of Service (GoS): Blocking Probability) | C11: % | D11: ='4. Parametre dimenzovania siete'!F10 -> 
B12: Plánovaná kapacita loading factor | C12: % | D12: ='4. Parametre dimenzovania siete'!F12 -> 
B14: Busy hour prevádzka | C14: Jednotka | D14: Hodnota
B15: BH prevádzka v súčasnom roku | C15: Mbps | D15: ='6. NE Dopyt'!G128 -> 
B16: Plánovacie obdobie | C16: # mesiacov | D16: ='4. Parametre dimenzovania siete'!C101 -> 0
B17: BH v plánovanom období | C17: Mbps | D17: =D15*(1+'2. Dopyt'!F43*D16/12) -> 
B18: BH úprava loading factor | C18: Mbps | D18: =D17/D12 -> 
B20: Spektrum | C20: Jednotka | D20: LTE
B21: Dostupné spektrum | C21: KHz | D21: ='0. Hlavné vstupy'!BE85 -> 
B22: Špeciálna kapacita carrier | C22: KHz | D22: ='4. Parametre dimenzovania siete'!G35 -> 
B24: eNode-B kapacita | C24: Jednotka | D24: LTE
B25: Počet Mbps na sektor eNodeB coverage 10 MHz | C25: Mbps | D25: ='4. Parametre dimenzovania siete'!F22 -> 0
B26: Kapacita na soft handover | C26: % | D26: ='4. Parametre dimenzovania siete'!E23 -> 0
B27: Počet Mbps eNode coverage 10 MHz pre soft handover | C27: Mbps | D27: =D25/(1+D26) -> 0
B28: Počet Mbps na sektor eNodeB capacity (ekvivalent 5 MHz inkrementu šírky kanálov) | C28: Mbps | D28: ='4. Parametre dimenzovania siete'!F26 -> 0
B29: Kapacita na soft handover | C29: % | D29: ='4. Parametre dimenzovania siete'!E23 -> 0
B30: Počet Mbps na sektor eNodeB capacity pre soft handover | C30: Mbps | D30: =D28/(1+D29) -> 0
B32: Kapacita Digital Unit (DU) | C32: Jednotka | D32: LTE
B33: Max dátový objem na DU | C33: mbps | D33: ='4. Parametre dimenzovania siete'!E127 -> 0
B34: Max počet RU na DU | C34: # RU | D34: ='4. Parametre dimenzovania siete'!F127 -> 0
B36: Sektorizácia | C36: Jednotka | D36: Aglomerácie | E36: Mestá | F36: Vidiek | G36: Územie celkom
B37: 1 sektor | C37: # sektorov | D37: 1 | E37: 1 | F37: 1 | G37: 1
B38: 2 sektory | C38: # sektorov | D38: 2 | E38: 2 | F38: 2 | G38: 2
B39: 3+ sektory | C39: # sektorov | D39: 3 | E39: 3 | F39: 3 | G39: 3
B41: Využitie existujúcich lokácií | C41: Jednotka | D41: Aglomerácie | E41: Mestá | F41: Vidiek | G41: Územie celkom
B42: Počet 2G lokácií | C42: # lokácií | D42: ='7a. Radiová sieť 2G'!D195-'7b. Radiová sieť 3G'!D166 ->  | E42: ='7a. Radiová sieť 2G'!E195-'7b. Radiová sieť 3G'!E166 ->  | F42: ='7a. Radiová sieť 2G'!F195-'7b. Radiová sieť 3G'!F166 ->  | G42: =SUM(D42:F42) -> 
B43: Pomer 2G lokácií dostupných pre LTE upgrade | C43: % | D43: 1 | E43: 1 | F43: 1 | G43: =SUMPRODUCT(D42:F42,D43:F43)/SUM(D42:F42) -> 
B45: Využitie existujúcich lokácií | C45: Jednotka | D45: Aglomerácie | E45: Mestá | F45: Vidiek | G45: Územie celkom
B46: Počet 3G lokácií | C46: # lokácií | D46: ='7b. Radiová sieť 3G'!D170 ->  | E46: ='7b. Radiová sieť 3G'!E170 ->  | F46: ='7b. Radiová sieť 3G'!F170 ->  | G46: =SUM(D46:F46) -> 
B47: Pomer 3G lokácií dostupných pre LTE upgrade | C47: % | D47: 1 | E47: 1 | F47: 1 | G47: =SUMPRODUCT(D46:F46,D47:F47)/SUM(D46:F46) -> 
B49: Využitie existujúcich lokácií | C49: Jednotka | D49: Aglomerácie | E49: Mestá | F49: Vidiek | G49: Územie celkom
B50: Počet zdielaných 2G a 3G lokácií | C50: # lokácií | D50: ='7b. Radiová sieť 3G'!D166 ->  | E50: ='7b. Radiová sieť 3G'!E166 ->  | F50: ='7b. Radiová sieť 3G'!F166 ->  | G50: =SUM(D50:F50) -> 
B51: Pomer zdielaných 2G a 3G lokácií dostupných pre LTE upgrade | C51: % | D51: 1 | E51: 1 | F51: 1 | G51: =SUMPRODUCT(D50:F50,D51:F51)/SUM(D50:F50) -> 
A53: 7.2 Rádiové dáta
B55: Údaje | C55: Jednotka | D55: Aglomerácie | E55: Mestá | F55: Vidiek | G55: Územie celkom
B56: Územie celkom | C56: Km2 | D56: =VLOOKUP(D$55,'4. Parametre dimenzovania siete'!$B$43:$D$46,3,0) -> 1180 | E56: =VLOOKUP(E$55,'4. Parametre dimenzovania siete'!$B$43:$D$46,3,0) -> 7404 | F56: =VLOOKUP(F$55,'4. Parametre dimenzovania siete'!$B$43:$D$46,3,0) -> 40452 | G56: =VLOOKUP(G$55,'4. Parametre dimenzovania siete'!$B$43:$D$46,3,0) -> 49036
B57: Pokrytie LTE | C57: % | D57: =VLOOKUP(D55,'4. Parametre dimenzovania siete'!$B$43:$H$45,7,0) ->  | E57: =VLOOKUP(E55,'4. Parametre dimenzovania siete'!$B$43:$H$45,7,0) ->  | F57: =VLOOKUP(F55,'4. Parametre dimenzovania siete'!$B$43:$H$45,7,0) -> 
B58: Územie pokryté LTE | C58: Km2 | D58: =D56*D57 ->  | E58: =E56*E57 ->  | G58: 0
B60: LTE coverage priemerný polomer bunky | C60: Km | D60: =VLOOKUP($D$55,'4. Parametre dimenzovania siete'!$B$52:$J$54,9,0) -> 0 | E60: =VLOOKUP($E$55,'4. Parametre dimenzovania siete'!$B$52:$J$54,9,0) -> 0 | F60: =VLOOKUP($F$55,'4. Parametre dimenzovania siete'!$B$52:$J$54,9,0) -> 0
B62: Distribúcia prevádzky | C62: % | D62: =VLOOKUP(D$55,'4. Parametre dimenzovania siete'!$B$60:$G$62,6,0) ->  | E62: =VLOOKUP(E$55,'4. Parametre dimenzovania siete'!$B$60:$G$62,6,0) ->  | F62: =VLOOKUP(F$55,'4. Parametre dimenzovania siete'!$B$60:$G$62,6,0) -> 
B64: LTE sektorizácia
B65: 1 sektor | C65: % | D65: =VLOOKUP(D$55,'4. Parametre dimenzovania siete'!$B$114:$Q$116,14,0) -> 0 | E65: =VLOOKUP(E$55,'4. Parametre dimenzovania siete'!$B$114:$Q$116,14,0) -> 0 | F65: =VLOOKUP(F$55,'4. Parametre dimenzovania siete'!$B$114:$Q$116,14,0) -> 0
B66: 2 sektory | C66: % | D66: =VLOOKUP(D$55,'4. Parametre dimenzovania siete'!$B$114:$Q$116,15,0) -> 0 | E66: =VLOOKUP(E$55,'4. Parametre dimenzovania siete'!$B$114:$Q$116,15,0) -> 0 | F66: =VLOOKUP(F$55,'4. Parametre dimenzovania siete'!$B$114:$Q$116,15,0) -> 0
B67: 3+ sektory | C67: % | D67: =VLOOKUP(D$55,'4. Parametre dimenzovania siete'!$B$114:$Q$116,16,0) -> 0 | E67: =VLOOKUP(E$55,'4. Parametre dimenzovania siete'!$B$114:$Q$116,16,0) -> 0 | F67: =VLOOKUP(F$55,'4. Parametre dimenzovania siete'!$B$114:$Q$116,16,0) -> 0
B69: Štatistiky lokácií
B70: Počet striech | C70: % | D70: ='4. Parametre dimenzovania siete'!C81 -> 
B71: Počet samostatných pylónov | C71: % | D71: ='4. Parametre dimenzovania siete'!C82 -> 
B74: Štatistiky zdrojov energie lokácií
B75: ='4. Parametre dimenzovania siete'!B161 -> Lokácie základňových staníc napojené na elektrickú sieť | C75: % | D75: ='4. Parametre dimenzovania siete'!C161 -> 
A78: 7.3 Charakteristiky spojov DU - RU | C78: 2 | D78: 3 | E78: 4 | F78: 5 | G78: 6 | H78: 7 | I78: 8
B80: Údaje pre kapacitu spoja | C80: Názov | D80: Datová kapacita (Mbit/s) | E80: Počet E1 | F80: Okruhy celkom | G80: Hlasové okruhy | H80: Signalizácia | I80: Erlang
B81: Link STM-256 | C81: STM-256 | D81: =VLOOKUP($B81,I_Link_Capacity,D$78,0) -> 39813.12 | E81: 16128 | F81: 0 | G81: 483840 | H81: 0 | I81: 0
B82: Link STM-64 | C82: STM-64 | D82: 9953.28 | E82: 4032 | F82: 0 | G82: 120960 | H82: 0 | I82: 123379.5
B83: Link STM-16 | C83: STM-16 | D83: 2488.32 | E83: 1008 | F83: 0 | G83: 30240 | H83: 0 | I83: 30810.313
B84: Link STM-4 | C84: STM-4 | D84: 622.08 | E84: 252 | F84: 0 | G84: 7560 | H84: 0 | I84: 7672.773
B85: Link STM-1 | C85: STM-1 | D85: 155.52 | E85: 63 | F85: 0 | G85: 1890 | H85: 0 | I85: 1895.7251
B87: Stále údajepre kapacitu spojov | C87: Názov | D87: Datová kapacita (Mbit/s) | E87: Počet E1 | F87: Okruhy celkom | G87: Hlasové okruhy | H87: Signalizácia | I87: Erlang
B88: Link 128 Mbit/s | C88: E4 | D88: =VLOOKUP($B88,I_Link_Capacity,D$78,0) -> 139.264 | E88: 64 | F88: 2048 | G88: 1920 | H88: 128 | I88: 1926.1928
B89: Link 32 Mbit/s | C89: E3 | D89: 34.368 | E89: 16 | F89: 512 | G89: 480 | H89: 32 | I89: 466.316
B90: Link 8 Mbit/s | C90: E2 | D90: 8.448 | E90: 4 | F90: 128 | G90: 120 | H90: 8 | I90: 107.4
B91: Link 2 Mbit/s | C91: E1 | D91: 2.048 | E91: 1 | F91: 32 | G91: 30 | H91: 2 | I91: 21.932
B93: Médium prenosového prístupu | C93: Jednotka | D93: Aglomerácia | E93: Mestá | F93: Vidiek
B94: Kábel | C94: % | D94: ='4. Parametre dimenzovania siete'!J263 -> 0 | E94: ='4. Parametre dimenzovania siete'!K263 -> 0 | F94: ='4. Parametre dimenzovania siete'!L263 -> 0
B95: Umiestnenie RU spolu s DU | C95: % | D95: 1 | E95: 1 | F95: 1
B97: Priemer vzdialeností | C97: Jednotka | D97: Aglomerácia | E97: Mestá | F97: Vidiek
B98: Priemerná káblová vzdialenosť DU - RU (rozpočet na 1 RU) | C98: km | D98: ='4. Parametre dimenzovania siete'!J267 ->  | E98: ='4. Parametre dimenzovania siete'!K267 ->  | F98: ='4. Parametre dimenzovania siete'!L267 -> 
A101: Výpočet
A103: 7.3 eNodeB dimenzovanie pokrytia (Rádio Unit - RU)
B105: Koeficient pokrytia (výpočet územia tvaru hexagón) | C105: Hodnota
B106: 1 sektor | C106: 2.6
B107: 2 sektory | C107: 2.6
B108: 3+ sektory | C108: 2.6
B110: Pokrytie eNode-B lokácií | C110: Jednotka | D110: Aglomerácie | E110: Mestá | F110: Vidiek
B111: 1 sektor | C111: Km2 | D111: =$C106*D$60^2 -> 0 | E111: =$C106*E$60^2 -> 0 | F111: 0
B112: 2 sektory | C112: Km2 | D112: =$C107*D$60^2 -> 0 | E112: 0 | F112: 0
B113: 3+ sektory | C113: Km2 | D113: =$C108*D$60^2 -> 0 | E113: 0 | F113: 0
B115: Počet eNode-B potrebných na pokrytie | C115: Jednotka | D115: Aglomerácie | E115: Mestá | F115: Vidiek | G115: Územie celkom
B116: 1 sektor | C116: # eNodeB | D116: =IF(D$58=0,0,ROUNDUP(D$58/D111*D65,0)) ->  | E116: =IF(E$58=0,0,ROUNDUP(E$58/E111*E65,0)) ->  | F116: =IF(F$58=0,0,ROUNDUP(F$58/F111*F65,0)) ->  | G116: =SUM(D116:F116) -> 
B117: 2 sektory | C117: # eNodeB | D117: =IF(D$58=0,0,ROUNDUP(D$58/D112*D66,0)) ->  | E117: =IF(E$58=0,0,ROUNDUP(E$58/E112*E66,0)) ->  | G117: =SUM(D117:F117) -> 
B118: 3+ sektory | C118: # eNodeB | D118: =IF(D$58=0,0,ROUNDUP(D$58/D113*D67,0)) ->  | G118: =SUM(D118:F118) -> 
B119: Celkom | C119: # eNodeB | D119: =SUM(D116:D118) ->  | E119: =SUM(E116:E118) -> 
A121: 7.4 Kapacita z pokrytia
C123: Jednotka | D123: Aglomerácie | E123: Mestá | F123: Vidiek | G123: Územie celkom
B124: Počet pokrytých sektorov | C124: # sektorov | D124: =D116*D$37+D117*D$38+D118*D$39 ->  | E124: =E116*E$37+E117*E$38+E118*E$39 ->  | G124: =SUM(D124:F124) -> 
B125: Mbps dostupné na sektor eNodeB coverage soft handover | C125: Mbps | D125: =$D$27 -> 0 | E125: =$D$27 -> 0 | F125: 0 | G125: =SUM(D125:F125) -> 0
B126: Efektívna kapacita poskytnutá pokrytím siete | C126: Mbps | D126: =D124*D125*3600/8 ->  | E126: =E124*E125*3600/8 ->  | F126: =F124*F125*3600/8 ->  | G126: =SUM(D126:F126) -> 
A128: 7.5 Dodatočná eNode-B dimenzovacia kapacita (Radio Unit - RU)
B130: Kapacitné požiadavky | C130: Jednotka | D130: Aglomerácie | E130: Mestá | F130: Vidiek | G130: Územie celkom
B131: Prevádzka v regióne | C131: Mbps | D131: =$D$18*D62 ->  | E131: =$D$18*E62 ->  | F131: =$D$18*F62 ->  | G131: =SUM(D131:F131) -> 
B132: Dodatočná požadovaná kapacita | C132: Mbps | D132: =MAX(0,D131-D126) ->  | G132: =SUM(D132:F132) -> 
B133: Dodatočne požadované 5 MHz sektory eNodeB capacity | C133: # sektorov capacity | D133: =ROUNDUP(D132/($D$30*3600/8),0) ->  | E133: =ROUNDUP(E132/($D$30),0) ->  | G133: =SUM(D133:F133) -> 
B134: Priemerný počet sektorov z nových lokácií | C134: # sektorov/lokácia | D134: =D37*D65+D38*D66+D39*D67 -> 0 | E134: =E37*E65+E38*E66+E39*E67 -> 0 | F134: =F37*F65+F38*F66+F39*F67 -> 0 | G134: =G37*G65+G39*G67 -> 0
B136: Počet Node-Bs capacity | C136: Jednotka | D136: Aglomerácie | E136: Mestá | F136: Vidiek | G136: Územie celkom
B137: 1 sektor | C137: # eNode-B 15MHz | D137: =IF(ISERROR(ROUNDUP(D65*D$133/D$134/3,0)),0,(ROUNDUP(D65*D$133/D$134/3,0))) -> 0 | E137: =IF(ISERROR(ROUNDUP(E65*E$133/E$134/3,0)),0,(ROUNDUP(E65*E$133/E$134/3,0))) -> 0 | F137: 0 | G137: =ROUND(G65*G$133/G$134,0) -> 
B138: 2 sektory | C138: # eNode-B 15MHz | D138: =IF(ISERROR(ROUNDUP(D66*D$133/D$134/3,0)),0,(ROUNDUP(D66*D$133/D$134/3,0))) -> 0 | E138: 0 | F138: 0
B139: 3+ sektory | C139: # eNode-B 15MHz | D139: =IF(ISERROR(ROUNDUP(D67*D$133/D$134/3,0)),0,(ROUNDUP(D67*D$133/D$134/3,0))) -> 0 | E139: 0 | F139: 0
B140: Celkom | D140: =SUM(D137:D139) -> 0 | E140: =SUM(E137:E139) -> 0 | F140: 0
B142: Celkový počet požadovaných Node-Bs (RU) | C142: Jednotka | D142: Aglomerácie | E142: Mestá | F142: Vidiek | G142: Územie celkom
B143: Požadované eNode-Bs coverage | C143: # eNode-B | D143: =D119 ->  | E143: =E119 ->  | G143: =SUM(D143:F143) -> 
B144: Požadované eNode-Bs capacity | C144: # eNode-B | D144: =D140 -> 0 | E144: =E140 -> 0 | F144: =F140 -> 0 | G144: =SUM(D144:F144) -> 0
B145: Požadované 5 MHz sektory | C145: # eNode-B 5 Mhz sektor | D145: =D133 ->  | E145: =E133 ->  | G145: =SUM(D145:F145) -> 
G146: =SUM(G143:G145) ->  | H146: Output to be costed
A147: 7.9 LTE dimenzovanie lokácií
B148: Predpoklad 1 Node-B na lokáciu
B149: Počet lokácií | C149: Site type | D149: Aglomerácie | E149: Mestá | F149: Vidiek | G149: Územie celkom
B150: Node-B lokácií celkom | C150: # lokácií | D150: =SUM(D143:D145) ->  | E150: =SUM(E143:E145) ->  | F150: =SUM(F143:F145) ->  | G150: =SUM(D150:F150) -> 
B151: eNode-B lokácií celkom | C151: # lokácií | D151: =D143+D144 ->  | E151: =E143+E144 ->  | G151: =SUM(D151:F151) -> 
B152: Lokácie (2G, 3G a zdielané) dostupné pre eNode-B deployment | C152: # lokácií | D152: =D42*D43+D46*D47+D50*D51 ->  | E152: =E42*E43+E46*E47+E50*E51 ->  | G152: =SUM(D152:F152) -> 
B153: Spojené lokácie LTE a iné | C153: # lokácií | D153: =MIN(D151:D152) ->  | E153: =MIN(E151:E152) ->  | G153: =SUM(D153:F153) -> 
B154: Nové LTE lokácie (len LTE) | C154: # lokácií | D154: =MAX(0,D151-D153) ->  | E154: =MAX(0,E151-E153) ->  | G154: =SUM(D154:F154) -> 
B156: 4G (iba) lokácie podľa typu | C156: Jednotka | D156: Aglomerácie | E156: Mestá | F156: Vidiek | G156: Územie celkom
B157: Celkový počet vlastných lokácií | C157: # lokácií | D157: =D154-D158-D159 ->  | G157: =SUM(D157:F157) ->  | H157: Output to be costed
B158: Celkový počet zdielaných lokácií (stožiar) | C158: # lokácií | D158: =ROUND(D$154*$D$71,0) ->  | G158: =SUM(D158:F158) ->  | H158: Output to be costed
G159: =SUM(D159:F159) -> 0
A161: 7.10 LTE dimenzovanie zdrojov energie
B163: Celkový počet požadovaných lokácií (3G only) | C163: Jednotka | D163: Aglomerácie | E163: Mestá | F163: Vidiek | G163: Územie celkom
B164: BTS lokácie napojené na elektrickú sieť | C164: # lokácií | D164: =D$157*$D75 ->  | E164: =E$157*$D75 ->  | F164: =F$157*$D75 ->  | G164: =SUM(D164:F164) ->  | H164: Output to be costed
H165: Output to be costed
H166: Output to be costed
H167: Output to be costed
A170: 7.11 Dimenzovanie Digital Unit (DU)
D172: Regionálna prepojenosť prevádzky na Core Nodes
B173: Región | C173: Jednotka | D173: Bratislava 1 | E173: Bratislava 2 | F173: Košice 1 | G173: Košice 2 | H173: Trnava | I173: Nitra | J173: Trenčín | K173: Žilina | L173: Banská Bystrica | M173: Prešov
B174: Aglomerácie | C174: --->>> | D174: ='4. Parametre dimenzovania siete'!C71 -> 0 | E174: ='4. Parametre dimenzovania siete'!D71 -> 0 | F174: ='4. Parametre dimenzovania siete'!E71 -> 0 | G174: ='4. Parametre dimenzovania siete'!F71 -> 0 | H174: ='4. Parametre dimenzovania siete'!G71 -> 0 | I174: ='4. Parametre dimenzovania siete'!H71 -> 0 | J174: ='4. Parametre dimenzovania siete'!I71 -> 0 | K174: ='4. Parametre dimenzovania siete'!J71 -> 0 | L174: ='4. Parametre dimenzovania siete'!K71 -> 0 | M174: ='4. Parametre dimenzovania siete'!L71 -> 0
B175: Mestá | C175: --->>> | D175: ='4. Parametre dimenzovania siete'!C72 -> 0 | E175: ='4. Parametre dimenzovania siete'!D72 -> 0 | F175: ='4. Parametre dimenzovania siete'!E72 -> 0 | G175: ='4. Parametre dimenzovania siete'!F72 -> 0 | H175: ='4. Parametre dimenzovania siete'!G72 -> 0 | I175: ='4. Parametre dimenzovania siete'!H72 -> 0 | J175: ='4. Parametre dimenzovania siete'!I72 -> 0 | K175: ='4. Parametre dimenzovania siete'!J72 -> 0 | L175: ='4. Parametre dimenzovania siete'!K72 -> 0 | M175: ='4. Parametre dimenzovania siete'!L72 -> 0
B176: Vidiek | C176: --->>> | D176: ='4. Parametre dimenzovania siete'!C73 -> 0 | E176: ='4. Parametre dimenzovania siete'!D73 -> 0 | F176: ='4. Parametre dimenzovania siete'!E73 -> 0 | G176: ='4. Parametre dimenzovania siete'!F73 -> 0 | H176: ='4. Parametre dimenzovania siete'!G73 -> 0 | I176: ='4. Parametre dimenzovania siete'!H73 -> 0 | J176: ='4. Parametre dimenzovania siete'!I73 -> 0 | K176: ='4. Parametre dimenzovania siete'!J73 -> 0 | L176: ='4. Parametre dimenzovania siete'!K73 -> 0 | M176: ='4. Parametre dimenzovania siete'!L73 -> 0
B180: DU dimenzačné ukazovatele | C180: Jednotka | D180: Bratislava 1 | E180: Bratislava 2 | F180: Košice 1 | G180: Košice 2 | H180: Trnava | I180: Nitra | J180: Trenčín | K180: Žilina | L180: Banská Bystrica | M180: Prešov
B181: Počet Mbps na Core Node | C181: Mbps | D181: =$D$18*SUMPRODUCT(TRANSPOSE($D$62:$F$62),D$174:D$176) ->  | E181: =$D$18*SUMPRODUCT(TRANSPOSE($D$62:$F$62),E$174:E$176) ->  | F181: =$D$18*SUMPRODUCT(TRANSPOSE($D$62:$F$62),F$174:F$176) ->  | G181: =$D$18*SUMPRODUCT(TRANSPOSE($D$62:$F$62),G$174:G$176) ->  | H181: =$D$18*SUMPRODUCT(TRANSPOSE($D$62:$F$62),H$174:H$176) ->  | I181: =$D$18*SUMPRODUCT(TRANSPOSE($D$62:$F$62),I$174:I$176) ->  | J181: =$D$18*SUMPRODUCT(TRANSPOSE($D$62:$F$62),J$174:J$176) ->  | K181: =$D$18*SUMPRODUCT(TRANSPOSE($D$62:$F$62),K$174:K$176) ->  | L181: =$D$18*SUMPRODUCT(TRANSPOSE($D$62:$F$62),L$174:L$176) ->  | M181: =$D$18*SUMPRODUCT(TRANSPOSE($D$62:$F$62),M$174:M$176) ->  | N181: =SUM(D181:M181) ->  | R181: Check on real data
B182: Počet Node B na Core Node | C182: # Node B | D182: =SUMPRODUCT(TRANSPOSE($D$143:$F$143),D$174:D$176)+SUMPRODUCT(TRANSPOSE($D$144:$F$144),D$174:D$176) ->  | E182: =SUMPRODUCT(TRANSPOSE($D$143:$F$143),E$174:E$176)+SUMPRODUCT(TRANSPOSE($D$144:$F$144),E$174:E$176) ->  | F182: =SUMPRODUCT(TRANSPOSE($D$143:$F$143),F$174:F$176)+SUMPRODUCT(TRANSPOSE($D$144:$F$144),F$174:F$176) ->  | G182: =SUMPRODUCT(TRANSPOSE($D$143:$F$143),G$174:G$176)+SUMPRODUCT(TRANSPOSE($D$144:$F$144),G$174:G$176) ->  | H182: =SUMPRODUCT(TRANSPOSE($D$143:$F$143),H$174:H$176)+SUMPRODUCT(TRANSPOSE($D$144:$F$144),H$174:H$176) ->  | I182: =SUMPRODUCT(TRANSPOSE($D$143:$F$143),I$174:I$176)+SUMPRODUCT(TRANSPOSE($D$144:$F$144),I$174:I$176) ->  | J182: =SUMPRODUCT(TRANSPOSE($D$143:$F$143),J$174:J$176)+SUMPRODUCT(TRANSPOSE($D$144:$F$144),J$174:J$176) ->  | K182: =SUMPRODUCT(TRANSPOSE($D$143:$F$143),K$174:K$176)+SUMPRODUCT(TRANSPOSE($D$144:$F$144),K$174:K$176) ->  | L182: =SUMPRODUCT(TRANSPOSE($D$143:$F$143),L$174:L$176)+SUMPRODUCT(TRANSPOSE($D$144:$F$144),L$174:L$176) ->  | M182: =SUMPRODUCT(TRANSPOSE($D$143:$F$143),M$174:M$176)+SUMPRODUCT(TRANSPOSE($D$144:$F$144),M$174:M$176) ->  | N182: =SUM(D182:M182) -> 
B184: Celkový počet požadovaných DU | C184: Jednotka | D184: Bratislava 1 | E184: Bratislava 2 | F184: Košice 1 | G184: Košice 2 | H184: Trnava | I184: Nitra | J184: Trenčín | K184: Žilina | L184: Banská Bystrica | M184: Prešov
B185: Počet založený na prevádzke | C185: # DU | D185: =ROUNDUP(D181/($D$33*$D$12),0) ->  | E185: =ROUNDUP(E181/($D$33*$D$12),0) -> 
B186: Počet DU založených kvôli počtu RU | C186: # DU | D186: =IF(D$185*$D$34>=D$182,0,ROUNDUP((D$182-D$185*$D$34)/$D$34,0)) ->  | E186: =IF(E$185*$D$34>=E$182,0,ROUNDUP((E$182-E$185*$D$34)/$D$34,0)) ->  | N186: =SUM(D186:M186) -> 
B187: Počet DU celkom | C187: # DU | D187: =D185+D186 ->  | E187: =E185+E186 ->  | N187: =SUM(D187:M187) -> 
Q188: Output to be costed
A189: 7.12 Dimenzovanie pripojení RU - DU
B190: Predpoklad spojenia medzi DU - RU optickým káblom alebo kolokace
B192: Počet a vzdialenosť kablových prepojení | C192: Aglomerácia | D192: Mestá | E192: Vidiek
B193: eNodeB | C193: =ROUNDUP(D151*D94,0) ->  | D193: =ROUNDUP(E151*E94,0) -> 
B194: Number of km of fibre deployed for DU-RU | C194: =C193*D98 ->  | D194: =D193*E98 -> 
B196: Priemerný počet sektorov / eNodeB | C196: Jednotka | D196: Aglomerácia | E196: Mestá | F196: Vidiek
B197: eNodeB | C197: # sektorov/eNodeB | D197: =SUMPRODUCT($D$37:$D$39,$D$65:$D$67) -> 0 | E197: =SUMPRODUCT($E$37:$E$39,$E$65:$E$67) -> 0 | F197: =SUMPRODUCT($F$37:$F$39,$F$65:$F$67) -> 0
B199: Priemerná prevádzka na sektor podľa frekvencie | C199: Jednotka | D199: Aglomerácia | E199: Mestá | F199: Vidiek
B200: Dimenzovanie prevádzky na sektor eNodeB | C200: Mbps | D200: =IF(D124=0,0,(D131/D124)) ->  | E200: =IF(E124=0,0,(E131/E124)) -> 
B202: Prevádzka na lokacií | C202: Jednotka | D202: Aglomerácia | E202: Mestá | F202: Vidiek
B203: eNodeB | C203: Mbps | D203: =D197*D200 ->  | E203: =E197*E200 -> 
B205: Kapacita ADM potrebná pre DU - RU | C205: Jednotka | D205: Aglomerácia | E205: Mestá | F205: Vidiek
B206: eNodeB | C206: Link | D206: =INDEX($B$81:$B$91,MATCH(D203,$D$81:$D$91,-1)) ->  | E206: =INDEX($B$81:$B$91,MATCH(E203,$D$81:$D$91,-1)) ->  | F206: =INDEX($B$81:$B$91,MATCH(F203,$D$81:$D$91,-1)) -> 
B208: Celkom podľa typu
B209: =B40 -> 0 | C209: # ADM | D209: =SUMIF(D$250,$B209,C$237) -> 0 | E209: =SUMIF(E$250,$B209,D$237) -> 0 | F209: 0 | G209: 0 | H209: 0 | I209: 0 | J209: 0 | K209: 0 | L209: 0 | N209: =SUM(D209:L209) -> 0 | P209: Output to be costed
B210: =B41 -> Využitie existujúcich lokácií | C210: # ADM | D210: =SUMIF(D$250,$B210,C$237) -> 0 | E210: 0 | F210: 0 | G210: 0 | H210: 0 | I210: 0 | J210: 0 | K210: 0 | L210: 0 | N210: =SUM(D210:L210) -> 0 | P210: Output to be costed
B211: =B42 -> Počet 2G lokácií | C211: # ADM | D211: 0 | E211: 0 | F211: 0 | G211: 0 | H211: 0 | I211: 0 | J211: 0 | K211: 0 | L211: 0 | N211: =SUM(D211:L211) -> 0 | P211: Output to be costed
B212: =B43 -> Pomer 2G lokácií dostupných pre LTE upgrade | C212: # ADM | D212: 0 | E212: 0 | F212: 0 | G212: 0 | H212: 0 | I212: 0 | J212: 0 | K212: 0 | L212: 0 | N212: =SUM(D212:L212) -> 0 | P212: Output to be costed
B213: =B44 -> 0 | C213: # ADM | D213: 0 | E213: 0 | F213: 0 | G213: 0 | H213: 0 | I213: 0 | J213: 0 | K213: 0 | L213: 0 | N213: =SUM(D213:L213) -> 0 | P213: Output to be costed
B215: Fibre | C215: km | D215: =SUM(C194:E194) -> 
B216: Vlastný | D216: =D215-D217 ->  | H216: Output to be costed
B217: Prenájom | D217: 0 | H217: Output to be costed

Sheet 7b. Radiová sieť 3G
A1: 7b. Dimenzovanie rádiovej časti siete 3G
A3: Popis
A4: Kalkulácie dimenzovania 3G rádiovej siete
A6: Vstupy z predchádzajúcich kalkulácií
A8: 7.1 Údaje pre dimenzovanie
B10: Plánovacie parametre | C10: Jednotka | D10: Hodnota
B11: Kvalita služby (Radio path Grade of Service (GoS): Blocking Probability) | C11: % | D11: 0.01
B12: Plánovaná kapacita loading factor | C12: % | D12: =IF('A. Výber'!$J$24=1,I_CapPlan_Radio3G-0.1,I_CapPlan_Radio3G) -> 
B13: Pomer Node B HSPA enabled | C13: % | D13: ='4. Parametre dimenzovania siete'!E19 -> 0
B14: UMTS Radio Channel voice rate (bandwidth for 1 voice erlang / channel) | C14: mbps | D14: ='4. Parametre dimenzovania siete'!E20 -> 0
B16: Busy hour prevádzka | C16: Jednotka | D16: Hodnota
B17: BHE v súčasnom roku | C17: BHE | D17: ='6. NE Dopyt'!E128 -> 
B18: Plánovacie obdobie | C18: # mesiacov | D18: ='4. Parametre dimenzovania siete'!C101 -> 0
B19: BHE v plánovanom období | C19: BHE | D19: =D17*(1+'2. Dopyt'!F43*D18/12) -> 
B20: BHE úprava loading factor | C20: BHE | D20: =D19/D12 -> 
B21: BH prevádzka v Mbps (dátový dopyt v erlang je prepočítaný spätne na minúty a náslene na Mbps a je k nej pripočítaný hlasový dopyt v Mbps) | C21: Mbps | D21: =(D20/60*8*('6. NE Dopyt'!D82/'6. NE Dopyt'!D83)/'6. NE Dopyt'!E52+'7b. Radiová sieť 3G'!D20*(1-('6. NE Dopyt'!D82/'6. NE Dopyt'!D83))*'7b. Radiová sieť 3G'!D14) -> 
B23: Spektrum | C23: Jednotka | D23: UMTS
B24: Dostupné spektrum | C24: KHz | D24: ='0. Hlavné vstupy'!BD85 -> 
B25: Špeciálna kapacita carrier | C25: KHz | D25: ='4. Parametre dimenzovania siete'!F35 -> 
B27: Node-B kapacita | C27: Jednotka | D27: UMTS
B28: Max počet kanálov na carrier | C28: # kanálov | D28: ='4. Parametre dimenzovania siete'!E21 -> 0
B29: Kapacita na soft handover | C29: % | D29: ='4. Parametre dimenzovania siete'!E23 -> 0
B30: Max počet kanálov na carrier pre soft handover | C30: # kanálov | D30: =D28/(1+D29) -> 0
B31: Minimálny počet kanálov na Node-B | C31: # kanálov | D31: ='4. Parametre dimenzovania siete'!E25 -> 0
B32: Kanál na Channel Kit | C32: # kanálov | D32: ='4. Parametre dimenzovania siete'!E25 -> 0
B34: RNC kapacita | C34: Jednotka | D34: UMTS
B35: Max dátový objem na RNC | C35: mbps | D35: ='4. Parametre dimenzovania siete'!C127 -> 
B38: Faktory využitia | C38: Jednotka | D38: Aglomerácie | E38: Mestá | F38: Vidiek | G38: Územie celkom
B39: Channel Element faktor využitia | C39: % | D39: ='4. Parametre dimenzovania siete'!$E$28 -> 0 | E39: ='4. Parametre dimenzovania siete'!$E$28 -> 0 | F39: ='4. Parametre dimenzovania siete'!$E$28 -> 0 | G39: ='4. Parametre dimenzovania siete'!$E$28 -> 0
B41: Sektorizácia | C41: Jednotka | D41: Aglomerácie | E41: Mestá | F41: Vidiek | G41: Územie celkom
B42: 1 sektor | C42: # sektorov | D42: 1 | E42: 1 | F42: 1 | G42: 1
B43: 2 sektory | C43: # sektorov | D43: 2 | E43: 2 | F43: 2 | G43: 2
B44: 3+ sektory | C44: # sektorov | D44: 3 | E44: 3 | F44: 3 | G44: 3
B46: Využitie existujúcich lokácií | C46: Jednotka | D46: Aglomerácie | E46: Mestá | F46: Vidiek | G46: Územie celkom
B47: Počet 2G lokácií | C47: # lokácií | D47: ='7a. Radiová sieť 2G'!D195 ->  | E47: ='7a. Radiová sieť 2G'!E195 ->  | F47: ='7a. Radiová sieť 2G'!F195 ->  | G47: =SUM(D47:F47) -> 
B48: Pomer 2G lokácií dostupných pre 3G upgrade | C48: % | D48: 1 | E48: 1 | F48: 1 | G48: =SUMPRODUCT(D47:F47,D48:F48)/SUM(D47:F47) -> 
A50: 7.2 Rádiové dáta
B52: Údaje | C52: Jednotka | D52: Aglomerácie | E52: Mestá | F52: Vidiek | G52: Územie celkom
B53: Územie celkom | C53: Km2 | D53: =VLOOKUP(D$52,'4. Parametre dimenzovania siete'!$B$43:$D$46,3,0) -> 1180 | E53: =VLOOKUP(E$52,'4. Parametre dimenzovania siete'!$B$43:$D$46,3,0) -> 7404 | F53: =VLOOKUP(F$52,'4. Parametre dimenzovania siete'!$B$43:$D$46,3,0) -> 40452 | G53: =VLOOKUP(G$52,'4. Parametre dimenzovania siete'!$B$43:$D$46,3,0) -> 49036
B54: Pokrytie UMTS | C54: % | D54: =VLOOKUP(D$52,'4. Parametre dimenzovania siete'!$B$43:$G$46,6,0) ->  | E54: =VLOOKUP(E$52,'4. Parametre dimenzovania siete'!$B$43:$G$46,6,0) ->  | F54: =VLOOKUP(F$52,'4. Parametre dimenzovania siete'!$B$43:$G$46,6,0) -> 
B55: Územie pokryté UMTS | C55: Km2 | D55: =D53*D54 ->  | E55: =E53*E54 ->  | G55: 0
B57: UMTS priemerný polomer bunky | C57: Km | D57: =VLOOKUP($D$52,'4. Parametre dimenzovania siete'!$B$52:$H$54,7,0) ->  | E57: =VLOOKUP($E$52,'4. Parametre dimenzovania siete'!$B$52:$H$54,7,0) ->  | F57: =VLOOKUP($F$52,'4. Parametre dimenzovania siete'!$B$52:$H$54,7,0) ->  | H57: =VLOOKUP($D$52,'4. Parametre dimenzovania siete'!$B$52:$H$54,7,0) ->  | I57: =VLOOKUP($E$52,'4. Parametre dimenzovania siete'!$B$52:$H$54,7,0) ->  | J57: =VLOOKUP($F$52,'4. Parametre dimenzovania siete'!$B$52:$H$54,7,0) -> 
B59: Distribúcia prevádzky | C59: % | D59: =VLOOKUP(D$52,'4. Parametre dimenzovania siete'!$B$60:$F$63,5,0) ->  | E59: =VLOOKUP(E$52,'4. Parametre dimenzovania siete'!$B$60:$F$63,5,0) ->  | F59: =VLOOKUP(F$52,'4. Parametre dimenzovania siete'!$B$60:$F$63,5,0) -> 
B61: UMTS sektorizácia
B62: 1 sektor | C62: % | D62: =VLOOKUP(D$52,'4. Parametre dimenzovania siete'!$B$114:$N$117,11,0) -> 0 | E62: =VLOOKUP(E$52,'4. Parametre dimenzovania siete'!$B$114:$N$117,11,0) -> 0 | F62: =VLOOKUP(F$52,'4. Parametre dimenzovania siete'!$B$114:$N$117,11,0) -> 0
B63: 2 sektory | C63: % | D63: =VLOOKUP(D$52,'4. Parametre dimenzovania siete'!$B$114:$N$117,12,0) -> 0 | E63: =VLOOKUP(E$52,'4. Parametre dimenzovania siete'!$B$114:$N$117,12,0) -> 0 | F63: =VLOOKUP(F$52,'4. Parametre dimenzovania siete'!$B$114:$N$117,12,0) -> 0
B64: 3+ sektory | C64: % | D64: =VLOOKUP(D$52,'4. Parametre dimenzovania siete'!$B$114:$N$117,13,0) -> 0 | E64: =VLOOKUP(E$52,'4. Parametre dimenzovania siete'!$B$114:$N$117,13,0) -> 0 | F64: =VLOOKUP(F$52,'4. Parametre dimenzovania siete'!$B$114:$N$117,13,0) -> 0
B66: Štatistiky lokácií
B67: Počet striech | C67: % | D67: ='4. Parametre dimenzovania siete'!C81 -> 
B68: Počet samostatných pylónov | C68: % | D68: ='4. Parametre dimenzovania siete'!C82 -> 
B71: Štatistiky zdrojov energie lokácií
B72: ='4. Parametre dimenzovania siete'!B161 -> Lokácie základňových staníc napojené na elektrickú sieť | C72: % | D72: ='4. Parametre dimenzovania siete'!C161 -> 
A74: Výpočet
A76: 7.3 Node B dimenzovanie pokrytia
B78: Koeficient pokrytia (výpočet územia tvaru hexagón) | C78: Hodnota
B79: 1 sektor | C79: 2.6
B80: 2 sektory | C80: 2.6
B81: 3+ sektory | C81: 2.6
B83: Pokrytie Node-B lokácií | C83: Jednotka | D83: Aglomerácie | E83: Mestá | F83: Vidiek
B84: 1 sektor | C84: Km2 | D84: =$C79*D$57^2 ->  | E84: =$C79*E$57^2 -> 
B85: 2 sektory | C85: Km2 | D85: =$C80*D$57^2 -> 
B86: 3+ sektory | C86: Km2 | D86: =$C81*D$57^2 ->  | E86: =$C81*E$57^2 -> 
B88: Počet Node-B potrebných na pokrytie | C88: Jednotka | D88: Aglomerácie | E88: Mestá | F88: Vidiek | G88: Územie celkom
B89: 1 sektor | C89: # NodeB | D89: =IF(D$55=0,0,ROUNDUP(D$55/D84*D62,0)) ->  | E89: =IF(E$55=0,0,ROUNDUP(E$55/E84*E62,0)) ->  | G89: =SUM(D89:F89) -> 
B90: 2 sektory | C90: # NodeB | D90: =IF(D$55=0,0,ROUNDUP(D$55/D85*D63,0)) ->  | G90: =SUM(D90:F90) -> 
B91: 3+ sektory | C91: # NodeB | G91: =SUM(D91:F91) -> 
B92: Celkom | C92: # NodeB | D92: =SUM(D89:D91) ->  | E92: =SUM(E89:E91) -> 
A94: 7.4 Kapacita z pokrytia
C96: Jednotka | D96: Aglomerácie | E96: Mestá | F96: Vidiek | G96: Územie celkom
B97: Počet pokrytých sektorov | C97: # sektorov | D97: =D89*D$42+D90*D$43+D91*D$44 ->  | E97: =E89*E$42+E90*E$43+E91*E$44 ->  | G97: =SUM(D97:F97) -> 
B98: Dostupné Carriers na sektor | C98: # carrier | D98: =$D$24/$D$25 -> 
B99: Kanály na carrier na sektor | C99: # channels/carrier/sektor | D99: =$D$30 -> 0 | E99: =$D$30 -> 0 | F99: 0
B100: Erlang dostupné na carrier na sektor | C100: # Erlangs/carrier/sektor | D100: =INDEX(ErlangTable_nCircuits,MATCH(D99,INDIRECT(HLOOKUP($D$11,'4. Parametre dimenzovania siete'!$D$300:$G$301,2,0)),1)) -> 0 | E100: =INDEX(ErlangTable_nCircuits,MATCH(E99,INDIRECT(HLOOKUP($D$11,'4. Parametre dimenzovania siete'!$D$300:$G$301,2,0)),1)) -> 0 | F100: =INDEX(ErlangTable_nCircuits,MATCH(F99,INDIRECT(HLOOKUP($D$11,'4. Parametre dimenzovania siete'!$D$300:$G$301,2,0)),1)) -> 0 | G100: =SUM(D100:F100) -> 0
B101: Efektívna kapacita poskytnutá pokrytím siete | C101: # Erlang | D101: =D97*D100*D98*D39*$D$12 ->  | E101: =E97*E100*E98*E39*$D$12 ->  | F101: =F97*F100*F98*F39*$D$12 ->  | G101: =SUM(D101:F101) -> 
A103: 7.5 Dodatočná Node-B dimenzovacia kapacita
B105: Kapacitné požiadavky | C105: Jednotka | D105: Aglomerácie | E105: Mestá | F105: Vidiek | G105: Územie celkom
B106: Prevádzka v regióne | C106: # Erlang | D106: =$D$20*D59 ->  | E106: =$D$20*E59 ->  | F106: =$D$20*F59 ->  | G106: =SUM(D106:F106) -> 
B107: Dodatočná požadovaná kapacita | C107: # Erlang | D107: =MAX(0,D106-D101) ->  | G107: =SUM(D107:F107) -> 
B108: Dodatočne požadované sektory | C108: # sektorov | D108: =ROUNDUP(D107/(D100*D98),0) ->  | G108: =SUM(D108:F108) -> 
B109: Priemerný počet sektorov z nových lokácií | C109: # sektorov/lokácia | D109: =D42*D62+D43*D63+D44*D64 -> 0 | E109: =E42*E62+E43*E63+E44*E64 -> 0 | F109: =F42*F62+F43*F63+F44*F64 -> 0 | G109: =G42*G62+G44*G64 -> 0
B111: Počet Node-B požadovaných na kapacitu | C111: Jednotka | D111: Aglomerácie | E111: Mestá | F111: Vidiek | G111: Územie celkom
B112: 1 sektor | C112: # Node-B | D112: =ROUND(D62*D$108/D$109,0) -> 
B113: 2 sektory | C113: # Node-B
B114: 3+ sektory | C114: # Node-B
B116: Celkový počet požadovaných Node-B | C116: Jednotka | D116: Aglomerácie | E116: Mestá | F116: Vidiek | G116: Územie celkom
B117: 1 sektor | C117: # Node-B | D117: =D112+D89 ->  | G117: =SUM(D117:F117) -> 
B118: 2 sektory | C118: # Node-B | G118: =SUM(D118:F118) -> 
B119: 3+ sektory | C119: # Node-B | D119: =D114+D91 ->  | G119: =SUM(D119:F119) -> 
G120: =SUM(G117:G119) ->  | H120: Output to be costed
A122: 7.6 Dimenzovanie Channel Kit
B124: Kapacitné požiadavky | C124: Jednotka | D124: Aglomerácie | E124: Mestá | F124: Vidiek | G124: Územie celkom
B125: BHE na sektor | C125: BHE / Sektor | D125: =IF(D97=0,0,D106/D97) ->  | E125: =IF(E97=0,0,E106/E97) -> 
B126: Channel Elements požadované na sektor (vrátane soft handover) | C126: Channel Elements/sektor | D126: =INDEX(ErlangTable_nCircuits,MATCH(D125,INDIRECT(HLOOKUP($D$11,'4. Parametre dimenzovania siete'!$D$300:$G$301,2,0),1)))*(1+$D$29) ->  | E126: =INDEX(ErlangTable_nCircuits,MATCH(E125,INDIRECT(HLOOKUP($D$11,'4. Parametre dimenzovania siete'!$D$300:$G$301,2,0),1)))*(1+$D$29) ->  | F126: =INDEX(ErlangTable_nCircuits,MATCH(F125,INDIRECT(HLOOKUP($D$11,'4. Parametre dimenzovania siete'!$D$300:$G$301,2,0),1)))*(1+$D$29) -> 
B128: Channel Elements požadované na Node B (vrátane soft handover) | C128: Jednotka | D128: Aglomerácie | E128: Mestá | F128: Vidiek | G128: Územie celkom
B129: 1 sektor | C129: Channel Elements/Node B | D129: =MAX(D$126*D42,$D$31) -> 
B130: 2 sektory | C130: Channel Elements/Node B
B131: 3+ sektory | C131: Channel Elements/Node B
B133: Channel Kit požadované na Node B | C133: Jednotka | D133: Aglomerácie | E133: Mestá | F133: Vidiek | G133: Územie celkom
B134: 1 sektor | C134: Channel Elements/Node B | D134: =D129/$D$32 ->  | G134: =SUM(D134:F134) -> 
B135: 2 sektory | C135: Channel Elements/Node B | G135: =SUM(D135:F135) -> 
B136: 3+ sektory | C136: Channel Elements/Node B | D136: =D131/$D$32 ->  | G136: =SUM(D136:F136) -> 
B138: Celkom požadované Channel Kit | C138: Jednotka | D138: Aglomerácie | E138: Mestá | F138: Vidiek | G138: Územie celkom
B139: 1 sektor | C139: Channel Elements/Node B | D139: =D134*D117 ->  | G139: =SUM(D139:F139) -> 
B140: 2 sektory | C140: Channel Elements/Node B | G140: =SUM(D140:F140) -> 
B141: 3+ sektory | C141: Channel Elements/Node B | D141: =D136*D119 ->  | G141: =SUM(D141:F141) -> 
G142: =SUM(G139:G141) ->  | H142: Output to be costed
A144: 7.7 Dimenzovanie Carrier
B146: Carriers na Node B | C146: Jednotka | D146: Aglomerácie | E146: Mestá | F146: Vidiek | G146: Územie celkom
B147: 1 sektor | C147: Carriers/Node B | D147: =ROUNDUP(D129/$D$28,0) -> 
B148: 2 sektory | C148: Carriers/Node B
B149: 3+ sektory | C149: Carriers/Node B | D149: =ROUNDUP(D131/$D$28,0) -> 
B151: Celkom požadované Carriers | C151: Jednotka | D151: Aglomerácie | E151: Mestá | F151: Vidiek | G151: Územie celkom
B152: 1 sektor | C152: # Carriers | D152: =D147*D117 ->  | G152: =SUM(D152:F152) -> 
B153: 2 sektory | C153: # Carriers | G153: =SUM(D153:F153) -> 
B154: 3+ sektory | C154: # Carriers | D154: =D149*D119 ->  | G154: =SUM(D154:F154) -> 
G155: =SUM(G152:G154) ->  | H155: Output to be costed
A156: 7.8 HSPA dimenzovanie
B158: Carriers na node B | C158: Jednotka | D158: Aglomerácie | E158: Mestá | F158: Vidiek | G158: Územie celkom
B159: Node B umožňujúci HSPA | C159: Carriers/Node B | D159: =ROUND(SUM(D117:D119)*$D$13,0) ->  | G159: =SUM(D159:F159) ->  | H159: Output to be costed
A161: 7.9 3G dimenzovanie lokácií
B162: Predpoklad 1 Node-B na lokáciu
B163: Počet lokácií | C163: Site type | D163: Aglomerácie | E163: Mestá | F163: Vidiek | G163: Územie celkom
B164: Node-B lokácií celkom | C164: # lokácií | D164: =SUM(D117:D119) ->  | G164: =SUM(D164:F164) -> 
B165: 2G lokácie dostupné pre Node-B deployment | C165: # lokácií | D165: =D47*D48 ->  | E165: =E47*E48 ->  | F165: =F47*F48 ->  | G165: =SUM(D165:F165) -> 
B166: Spojené 2G a 3G lokácie | C166: # lokácií | D166: =MIN(D164:D165) ->  | G166: =SUM(D166:F166) -> 
B167: Nové 3G lokácie (iba 3G) | C167: # lokácií | D167: =MAX(0,D164-D166) ->  | G167: =SUM(D167:F167) -> 
B169: 3G (iba) lokácie podľa typu | C169: Jednotka | D169: Aglomerácie | E169: Mestá | F169: Vidiek | G169: Územie celkom
B170: Počet striech | C170: # lokácií | D170: =D167-D171-D172 ->  | G170: =SUM(D170:F170) ->  | H170: Output to be costed
B171: Počet samostatných pylónov | C171: # lokácií | D171: =ROUND(D$167*$D$68,0) ->  | G171: =SUM(D171:F171) ->  | H171: Output to be costed
A174: 7.10 3G dimenzovanie zdrojov energie
B176: Celkový počet požadovaných lokácií (3G only) | C176: Jednotka | D176: Aglomerácie | E176: Mestá | F176: Vidiek | G176: Územie celkom
B177: =B72 -> Lokácie základňových staníc napojené na elektrickú sieť | C177: # lokácií | D177: =D$170*$D72 ->  | E177: =E$170*$D72 ->  | F177: =F$170*$D72 ->  | G177: =SUM(D177:F177) ->  | H177: Output to be costed
H178: Output to be costed
H179: Output to be costed
H180: Output to be costed
A183: 7.11 RNC dimenzovania
D185: Regionálna prepojenosť prevádzky na Core Nodes
B186: Región | C186: Jednotka | D186: Bratislava 1 | E186: Bratislava 2 | F186: Košice 1 | G186: Košice 2 | H186: Trnava | I186: Nitra | J186: Trenčín | K186: Žilina | L186: Banská Bystrica | M186: Prešov
B187: Aglomerácie | C187: --->>> | D187: ='4. Parametre dimenzovania siete'!C71 -> 0 | E187: ='4. Parametre dimenzovania siete'!D71 -> 0 | F187: ='4. Parametre dimenzovania siete'!E71 -> 0 | G187: ='4. Parametre dimenzovania siete'!F71 -> 0 | H187: ='4. Parametre dimenzovania siete'!G71 -> 0 | I187: ='4. Parametre dimenzovania siete'!H71 -> 0 | J187: ='4. Parametre dimenzovania siete'!I71 -> 0 | K187: ='4. Parametre dimenzovania siete'!J71 -> 0 | L187: ='4. Parametre dimenzovania siete'!K71 -> 0 | M187: ='4. Parametre dimenzovania siete'!L71 -> 0
B188: Mestá | C188: --->>> | D188: ='4. Parametre dimenzovania siete'!C72 -> 0 | E188: ='4. Parametre dimenzovania siete'!D72 -> 0 | F188: ='4. Parametre dimenzovania siete'!E72 -> 0 | G188: ='4. Parametre dimenzovania siete'!F72 -> 0 | H188: ='4. Parametre dimenzovania siete'!G72 -> 0 | I188: ='4. Parametre dimenzovania siete'!H72 -> 0 | J188: ='4. Parametre dimenzovania siete'!I72 -> 0 | K188: ='4. Parametre dimenzovania siete'!J72 -> 0 | L188: ='4. Parametre dimenzovania siete'!K72 -> 0 | M188: ='4. Parametre dimenzovania siete'!L72 -> 0
B189: Vidiek | C189: --->>> | D189: ='4. Parametre dimenzovania siete'!C73 -> 0 | E189: ='4. Parametre dimenzovania siete'!D73 -> 0 | F189: ='4. Parametre dimenzovania siete'!E73 -> 0 | G189: ='4. Parametre dimenzovania siete'!F73 -> 0 | H189: ='4. Parametre dimenzovania siete'!G73 -> 0 | I189: ='4. Parametre dimenzovania siete'!H73 -> 0 | J189: ='4. Parametre dimenzovania siete'!I73 -> 0 | K189: ='4. Parametre dimenzovania siete'!J73 -> 0 | L189: ='4. Parametre dimenzovania siete'!K73 -> 0 | M189: ='4. Parametre dimenzovania siete'!L73 -> 0
B193: RNC dimenzačné ukazovatele | C193: Jednotka | D193: Bratislava 1 | E193: Bratislava 2 | F193: Košice 1 | G193: Košice 2 | H193: Trnava | I193: Nitra | J193: Trenčín | K193: Žilina | L193: Banská Bystrica | M193: Prešov
B194: Počet Mbps na Core Node | C194: Mbps | D194: =$D$21*SUMPRODUCT(TRANSPOSE($D$59:$F$59),D$187:D$189) ->  | E194: =$D$21*SUMPRODUCT(TRANSPOSE($D$59:$F$59),E$187:E$189) ->  | F194: =$D$21*SUMPRODUCT(TRANSPOSE($D$59:$F$59),F$187:F$189) ->  | G194: =$D$21*SUMPRODUCT(TRANSPOSE($D$59:$F$59),G$187:G$189) ->  | H194: =$D$21*SUMPRODUCT(TRANSPOSE($D$59:$F$59),H$187:H$189) ->  | I194: =$D$21*SUMPRODUCT(TRANSPOSE($D$59:$F$59),I$187:I$189) ->  | J194: =$D$21*SUMPRODUCT(TRANSPOSE($D$59:$F$59),J$187:J$189) ->  | K194: =$D$21*SUMPRODUCT(TRANSPOSE($D$59:$F$59),K$187:K$189) ->  | L194: =$D$21*SUMPRODUCT(TRANSPOSE($D$59:$F$59),L$187:L$189) ->  | M194: =$D$21*SUMPRODUCT(TRANSPOSE($D$59:$F$59),M$187:M$189) ->  | N194: =SUM(D194:M194) -> 
B195: Počet Node B na Core Node | C195: # Node B | D195: =SUMPRODUCT(TRANSPOSE($D$92:$F$92),D$187:D$189) ->  | E195: =SUMPRODUCT(TRANSPOSE($D$92:$F$92),E$187:E$189) ->  | F195: =SUMPRODUCT(TRANSPOSE($D$92:$F$92),F$187:F$189) ->  | G195: =SUMPRODUCT(TRANSPOSE($D$92:$F$92),G$187:G$189) ->  | H195: =SUMPRODUCT(TRANSPOSE($D$92:$F$92),H$187:H$189) ->  | I195: =SUMPRODUCT(TRANSPOSE($D$92:$F$92),I$187:I$189) ->  | J195: =SUMPRODUCT(TRANSPOSE($D$92:$F$92),J$187:J$189) ->  | K195: =SUMPRODUCT(TRANSPOSE($D$92:$F$92),K$187:K$189) ->  | L195: =SUMPRODUCT(TRANSPOSE($D$92:$F$92),L$187:L$189) ->  | M195: =SUMPRODUCT(TRANSPOSE($D$92:$F$92),M$187:M$189) ->  | N195: =SUM(D195:M195) -> 
B197: Celkový počet požadovaných RNC | C197: Jednotka | D197: Bratislava 1 | E197: Bratislava 2 | F197: Košice 1 | G197: Košice 2 | H197: Trnava | I197: Nitra | J197: Trenčín | K197: Žilina | L197: Banská Bystrica | M197: Prešov
B198: Počet RNC založených na kapacite | C198: # RNC | D198: =ROUNDUP(D194/$D$35*$D$12,0) ->  | N198: =SUM(D198:M198) -> 
B199: Počet RNC celkom | C199: # RNC | D199: =MAX(D198:D198) ->  | N199: =SUM(D199:M199) -> 

Sheet 7a. Radiová sieť 2G
A1: 7a. Dimenzovanie rádiovej časti siete 2G
A3: Popis
A4: Kalkulácia dimenzovania 2G rádiovej siete
A6: Vstupy z predchádzajúcich kalkulácií
A8: 7.1 Údaje pre dimenzovanie
B10: Plánovacie parametre | C10: Jednotka | D10: Hodnota
B11: Radio path Grade of Service (GoS): Blocking Probability | C11: % | D11: 0.01
B12: Plánovaná kapacita loading factor | C12: % | D12: =IF('A. Výber'!J20=1,I_CapPlan_Radio-0.1,I_CapPlan_Radio) -> 
B14: Busy hour prevádzka | C14: Jednotka | D14: Hodnota
B15: BHE v zvolenom roku | C15: BHE | D15: =C_BTS_BHE -> 
B16: Plánovacie obdobie | C16: # mesiacov | D16: ='4. Parametre dimenzovania siete'!C101 -> 0
B17: BHE v plánovanom období | C17: BHE | D17: =D15*(1+'2. Dopyt'!F43*D16/12) -> 
B18: BHE úprava loading factor | C18: BHE | D18: =D17/D12 -> 
B20: Spektrum | C20: Jednotka | D20: Mobile 900 | E20: Mobile 1800 | F20: Pomer
B21: Dostupné spektrum | C21: KHz | D21: ='4. Parametre dimenzovania siete'!D33 ->  | E21: ='4. Parametre dimenzovania siete'!E33 ->  | F21: =E21/SUM(D21:E21) -> 
B22: Kapacita spektra na sektor / carrier | C22: TRX/sektor | D22: ='4. Parametre dimenzovania siete'!D36 ->  | E22: ='4. Parametre dimenzovania siete'!E36 -> 
B23: Fyzická kapacita sektoru / carrier | C23: TRX/sektor | D23: ='4. Parametre dimenzovania siete'!D37 ->  | E23: ='4. Parametre dimenzovania siete'!E37 -> 
B25: TRX faktory využitia | C25: Jednotka | D25: Aglomerácie | E25: Mestá | F25: Vidiek | G25: Celkom územie
B26: TRX využitie | C26: % | D26: ='4. Parametre dimenzovania siete'!C105 -> 0 | E26: ='4. Parametre dimenzovania siete'!C106 -> 0 | F26: ='4. Parametre dimenzovania siete'!C107 -> 0 | G26: =VLOOKUP(G25,'4. Parametre dimenzovania siete'!$B$104:$F$107,5,0) -> 
B28: Sektorizácia | C28: Jednotka | D28: Aglomerácie | E28: Mestá | F28: Vidiek | G28: Celkom územie
B29: 1 sektor | C29: # sektorov | D29: 1 | E29: 1 | F29: 1 | G29: 1
B30: 2 sektory | C30: # sektorov | D30: 2 | E30: 2 | F30: 2 | G30: 2
B31: 3+ sektory | C31: # sektorov | D31: 3 | E31: 3 | F31: 3 | G31: 3
A33: 7.2 Rádiové dáta
B35: Štatistiky | C35: Jednotka | D35: Aglomerácie | E35: Mestá | F35: Vidiek | G35: Celkom územie
B37: Pokrytie
B38: Územie celkom | C38: Km2 | D38: =VLOOKUP(D$35,'4. Parametre dimenzovania siete'!$B$43:$D$46,3,0) -> 1180 | E38: =VLOOKUP(E$35,'4. Parametre dimenzovania siete'!$B$43:$D$46,3,0) -> 7404 | F38: =VLOOKUP(F$35,'4. Parametre dimenzovania siete'!$B$43:$D$46,3,0) -> 40452 | G38: =SUM(D38:F38) -> 49036
B39: Pokrytie GSM900 (vrátane Dual) | C39: % | D39: =VLOOKUP(D$35,'4. Parametre dimenzovania siete'!$B$43:$E$46,4,0) ->  | E39: =VLOOKUP(E$35,'4. Parametre dimenzovania siete'!$B$43:$E$46,4,0) ->  | F39: =VLOOKUP(F$35,'4. Parametre dimenzovania siete'!$B$43:$E$46,4,0) ->  | G39: =(($D$38*D39)+($E$38*E39)+($F$38*F39))/$G$38 -> 
B40: Územie pokryté GSM 900 (vrátane Dual) | C40: Km2 | D40: =D38*D39 ->  | E40: =E38*E39 -> 
B41: Pokrytie GSM1800 (vrátane Dual) | C41: % | D41: =VLOOKUP(D$35,'4. Parametre dimenzovania siete'!$B$43:$G$46,5,0) ->  | E41: =VLOOKUP(E$35,'4. Parametre dimenzovania siete'!$B$43:$G$46,5,0) ->  | F41: =VLOOKUP(F$35,'4. Parametre dimenzovania siete'!$B$43:$G$46,5,0) ->  | G41: =(($D$38*D41)+($E$38*E41)+($F$38*F41))/$G$38 -> 
B42: Územie pokryté GSM 1800 (vrátane Dual) | C42: Km2 | D42: =D38*D41 -> 
B44: Štatistiky základňových staníc (Base stations)
B45: GSM 900 priemerný polomer bunky | C45: Km | D45: =VLOOKUP(D$35,'4. Parametre dimenzovania siete'!$B$52:$E$54,3,0) ->  | E45: =VLOOKUP(E$35,'4. Parametre dimenzovania siete'!$B$52:$E$54,3,0) ->  | F45: =VLOOKUP(F$35,'4. Parametre dimenzovania siete'!$B$52:$E$54,3,0) -> 
B46: GSM 1800 priemerný polomer bunky | C46: Km | D46: =VLOOKUP(D$35,'4. Parametre dimenzovania siete'!$B$52:$F$54,5,0) ->  | E46: =VLOOKUP(E$35,'4. Parametre dimenzovania siete'!$B$52:$F$54,5,0) ->  | F46: =VLOOKUP(F$35,'4. Parametre dimenzovania siete'!$B$52:$F$54,5,0) -> 
B47: Distribúcia prevádzky | C47: % | D47: =VLOOKUP(D$35,'4. Parametre dimenzovania siete'!$B$60:$E$63,4,0) ->  | E47: =VLOOKUP(E35,'4. Parametre dimenzovania siete'!$B$60:$E$63,4,0) ->  | F47: =VLOOKUP(F35,'4. Parametre dimenzovania siete'!$B$60:$E$63,4,0) ->  | G47: =VLOOKUP(G35,'4. Parametre dimenzovania siete'!$B$60:$E$63,4,0) -> 
B49: GSM 900 sektorizácia
B50: 1 sektor | C50: % | D50: =VLOOKUP(D$35,'4. Parametre dimenzovania siete'!$B$114:$O$117,2,0) -> 0 | E50: =VLOOKUP(E$35,'4. Parametre dimenzovania siete'!$B$114:$O$117,2,0) -> 0 | F50: =VLOOKUP(F$35,'4. Parametre dimenzovania siete'!$B$114:$O$117,2,0) -> 0 | G50: =VLOOKUP(G$35,'4. Parametre dimenzovania siete'!$B$114:$O$117,2,0) -> 0
B51: 2 sektory | C51: % | D51: =VLOOKUP(D$35,'4. Parametre dimenzovania siete'!$B$114:$O$117,3,0) -> 0 | E51: =VLOOKUP(E$35,'4. Parametre dimenzovania siete'!$B$114:$O$117,3,0) -> 0 | F51: =VLOOKUP(F$35,'4. Parametre dimenzovania siete'!$B$114:$O$117,3,0) -> 0 | G51: =VLOOKUP(G$35,'4. Parametre dimenzovania siete'!$B$114:$O$117,3,0) -> 0
B52: 3+ sektory | C52: % | D52: =VLOOKUP(D$35,'4. Parametre dimenzovania siete'!$B$114:$O$117,4,0) -> 0 | E52: =VLOOKUP(E$35,'4. Parametre dimenzovania siete'!$B$114:$O$117,4,0) -> 0 | F52: =VLOOKUP(F$35,'4. Parametre dimenzovania siete'!$B$114:$O$117,4,0) -> 0 | G52: =VLOOKUP(G$35,'4. Parametre dimenzovania siete'!$B$114:$O$117,4,0) -> 0
B54: GSM 1800 sektorizácia
B55: 1 sektor | C55: % | D55: =VLOOKUP(D$35,'4. Parametre dimenzovania siete'!$B$114:$O$117,5,0) -> 0 | E55: =VLOOKUP(E$35,'4. Parametre dimenzovania siete'!$B$114:$O$117,5,0) -> 0 | F55: =VLOOKUP(F$35,'4. Parametre dimenzovania siete'!$B$114:$O$117,5,0) -> 0 | G55: =VLOOKUP(G$35,'4. Parametre dimenzovania siete'!$B$114:$O$117,5,0) -> 0
B56: 2 sektory | C56: % | D56: =VLOOKUP(D$35,'4. Parametre dimenzovania siete'!$B$114:$O$117,6,0) -> 0 | E56: =VLOOKUP(E$35,'4. Parametre dimenzovania siete'!$B$114:$O$117,6,0) -> 0 | F56: =VLOOKUP(F$35,'4. Parametre dimenzovania siete'!$B$114:$O$117,6,0) -> 0 | G56: =VLOOKUP(G$35,'4. Parametre dimenzovania siete'!$B$114:$O$117,6,0) -> 0
B57: 3+ sektory | C57: % | D57: =VLOOKUP(D$35,'4. Parametre dimenzovania siete'!$B$114:$O$117,7,0) -> 0 | E57: =VLOOKUP(E$35,'4. Parametre dimenzovania siete'!$B$114:$O$117,7,0) -> 0 | F57: =VLOOKUP(F$35,'4. Parametre dimenzovania siete'!$B$114:$O$117,7,0) -> 0 | G57: =VLOOKUP(G$35,'4. Parametre dimenzovania siete'!$B$114:$O$117,7,0) -> 0
B59: GSM Dual sektorizácia
B60: 1 sektor | C60: % | D60: =VLOOKUP(D$35,'4. Parametre dimenzovania siete'!$B$114:$O$117,8,0) -> 0 | E60: =VLOOKUP(E$35,'4. Parametre dimenzovania siete'!$B$114:$O$117,8,0) -> 0 | F60: =VLOOKUP(F$35,'4. Parametre dimenzovania siete'!$B$114:$O$117,8,0) -> 0 | G60: =VLOOKUP(G$35,'4. Parametre dimenzovania siete'!$B$114:$O$117,8,0) -> 0
B61: 2 sektory | C61: % | D61: =VLOOKUP(D$35,'4. Parametre dimenzovania siete'!$B$114:$O$117,9,0) -> 0 | E61: =VLOOKUP(E$35,'4. Parametre dimenzovania siete'!$B$114:$O$117,9,0) -> 0 | F61: =VLOOKUP(F$35,'4. Parametre dimenzovania siete'!$B$114:$O$117,9,0) -> 0 | G61: =VLOOKUP(G$35,'4. Parametre dimenzovania siete'!$B$114:$O$117,9,0) -> 0
B62: 3+ sektory | C62: % | D62: =VLOOKUP(D$35,'4. Parametre dimenzovania siete'!$B$114:$O$117,10,0) -> 0 | E62: =VLOOKUP(E$35,'4. Parametre dimenzovania siete'!$B$114:$O$117,10,0) -> 0 | F62: =VLOOKUP(F$35,'4. Parametre dimenzovania siete'!$B$114:$O$117,10,0) -> 0 | G62: =VLOOKUP(G$35,'4. Parametre dimenzovania siete'!$B$114:$O$117,10,0) -> 0
B64: Skriňa 900, 1800, Dual split
B65: GSM 900 | C65: % | D65: =VLOOKUP(D$35,'4. Parametre dimenzovania siete'!$B$96:$S$99,15,0) ->  | E65: =VLOOKUP(E$35,'4. Parametre dimenzovania siete'!$B$96:$S$99,15,0) ->  | F65: =VLOOKUP(F$35,'4. Parametre dimenzovania siete'!$B$96:$S$99,15,0) ->  | G65: =VLOOKUP(G$35,'4. Parametre dimenzovania siete'!$B$96:$S$99,15,0) -> 
B66: GSM 1800 | C66: % | D66: =VLOOKUP(D$35,'4. Parametre dimenzovania siete'!$B$96:$S$99,16,0) ->  | E66: =VLOOKUP(E$35,'4. Parametre dimenzovania siete'!$B$96:$S$99,16,0) ->  | F66: =VLOOKUP(F$35,'4. Parametre dimenzovania siete'!$B$96:$S$99,16,0) ->  | G66: =VLOOKUP(G$35,'4. Parametre dimenzovania siete'!$B$96:$S$99,16,0) -> 
B67: GSM Dual 900/1800 | C67: % | D67: =VLOOKUP(D$35,'4. Parametre dimenzovania siete'!$B$96:$S$99,17,0) ->  | E67: =VLOOKUP(E$35,'4. Parametre dimenzovania siete'!$B$96:$S$99,17,0) ->  | F67: =VLOOKUP(F$35,'4. Parametre dimenzovania siete'!$B$96:$S$99,17,0) ->  | G67: =VLOOKUP(G$35,'4. Parametre dimenzovania siete'!$B$96:$S$99,17,0) -> 
B69: # lokácií podľa počtu základňových staníc
B70: Lokácia s 1 skriňou | C70: % | D70: =VLOOKUP(D$35,'4. Parametre dimenzovania siete'!$B$85:$F$88,2,0) -> 0 | E70: =VLOOKUP(E$35,'4. Parametre dimenzovania siete'!$B$85:$F$88,2,0) -> 0 | F70: =VLOOKUP(F$35,'4. Parametre dimenzovania siete'!$B$85:$F$88,2,0) -> 0 | G70: =VLOOKUP(G$35,'4. Parametre dimenzovania siete'!$B$85:$F$88,6,0) -> 
B71: Lokácia s 2 skriňami | C71: % | D71: =VLOOKUP(D$35,'4. Parametre dimenzovania siete'!$B$85:$F$88,3,0) -> 0 | E71: =VLOOKUP(E$35,'4. Parametre dimenzovania siete'!$B$85:$F$88,3,0) -> 0 | F71: =VLOOKUP(F$35,'4. Parametre dimenzovania siete'!$B$85:$F$88,3,0) -> 0 | G71: =VLOOKUP(G$35,'4. Parametre dimenzovania siete'!$B$85:$F$88,7,0) -> 
B72: Lokácia s 3 skriňami | C72: % | D72: =VLOOKUP(D$35,'4. Parametre dimenzovania siete'!$B$85:$F$88,4,0) -> 0 | E72: =VLOOKUP(E$35,'4. Parametre dimenzovania siete'!$B$85:$F$88,4,0) -> 0 | F72: =VLOOKUP(F$35,'4. Parametre dimenzovania siete'!$B$85:$F$88,4,0) -> 0 | G72: =VLOOKUP(G$35,'4. Parametre dimenzovania siete'!$B$85:$F$88,8,0) -> 
B74: Štatistiky lokácií
B75: Počet striech | C75: % | D75: ='4. Parametre dimenzovania siete'!C81 -> 
B76: Počet samostatných pylónov | C76: % | D76: ='4. Parametre dimenzovania siete'!C82 -> 
B79: Štatistiky zdrojov energie lokácií
B80: ='4. Parametre dimenzovania siete'!B161 -> Lokácie základňových staníc napojené na elektrickú sieť | C80: % | D80: ='4. Parametre dimenzovania siete'!C161 -> 
B83: TRX štatistiky | D83: GSM 900 | E83: GSM 1800
B84: Max TRX na BSC | C84: # TRX | D84: ='4. Parametre dimenzovania siete'!$C$124 -> 0
B85: Max TRX na BTS | C85: # TRX | D85: ='4. Parametre dimenzovania siete'!$C$100 -> 0 | E85: ='4. Parametre dimenzovania siete'!D100 -> 0
B87: BSC štatistiky | D87: Regionálna prepojenosť BSC k jednotlivým Core Nodes
B88: Región | C88: Jednotka | D88: Bratislava 1 | E88: Bratislava 2 | F88: Košice 1 | G88: Košice 2 | H88: Trnava | I88: Nitra | J88: Trenčín | K88: Žilina | L88: Banská Bystrica | M88: Prešov
B89: Aglomerácie | C89: --->>> | D89: ='4. Parametre dimenzovania siete'!C71 -> 0 | E89: ='4. Parametre dimenzovania siete'!D71 -> 0 | F89: ='4. Parametre dimenzovania siete'!E71 -> 0 | G89: ='4. Parametre dimenzovania siete'!F71 -> 0 | H89: ='4. Parametre dimenzovania siete'!G71 -> 0 | I89: ='4. Parametre dimenzovania siete'!H71 -> 0 | J89: ='4. Parametre dimenzovania siete'!I71 -> 0 | K89: ='4. Parametre dimenzovania siete'!J71 -> 0 | L89: ='4. Parametre dimenzovania siete'!K71 -> 0 | M89: ='4. Parametre dimenzovania siete'!L71 -> 0
B90: Mestá | C90: --->>> | D90: ='4. Parametre dimenzovania siete'!C72 -> 0 | E90: ='4. Parametre dimenzovania siete'!D72 -> 0 | F90: ='4. Parametre dimenzovania siete'!E72 -> 0 | G90: ='4. Parametre dimenzovania siete'!F72 -> 0 | H90: ='4. Parametre dimenzovania siete'!G72 -> 0 | I90: ='4. Parametre dimenzovania siete'!H72 -> 0 | J90: ='4. Parametre dimenzovania siete'!I72 -> 0 | K90: ='4. Parametre dimenzovania siete'!J72 -> 0 | L90: ='4. Parametre dimenzovania siete'!K72 -> 0 | M90: ='4. Parametre dimenzovania siete'!L72 -> 0
B91: Vidiek | C91: --->>> | D91: ='4. Parametre dimenzovania siete'!C73 -> 0 | E91: ='4. Parametre dimenzovania siete'!D73 -> 0 | F91: ='4. Parametre dimenzovania siete'!E73 -> 0 | G91: ='4. Parametre dimenzovania siete'!F73 -> 0 | H91: ='4. Parametre dimenzovania siete'!G73 -> 0 | I91: ='4. Parametre dimenzovania siete'!H73 -> 0 | J91: ='4. Parametre dimenzovania siete'!I73 -> 0 | K91: ='4. Parametre dimenzovania siete'!J73 -> 0 | L91: ='4. Parametre dimenzovania siete'!K73 -> 0 | M91: ='4. Parametre dimenzovania siete'!L73 -> 0
A94: Výpočet
A96: 7.3 BTS dimenzovanie pokrytia
B98: Koeficient pokrytia (výpočet územia tvaru hexagón) | C98: Hodnota
B99: 1 sektor | C99: 2.6
B100: 2 sektory | C100: 2.6
B101: 3+ sektory | C101: 2.6
B103: Pokrytie BTS GSM900 | C103: Jednotka | D103: Aglomerácie | E103: Mestá | F103: Vidiek
B104: 1 sektor | C104: Km2 | D104: =$C99*D$45^2 ->  | F104: =$C99*F$45^2 -> 
B105: 2 sektory | C105: Km2
B106: 3+ sektory | C106: Km2
B108: Počet BTS900 potrebných na základné pokrytie | C108: Jednotka | D108: Aglomerácie | E108: Mestá | F108: Vidiek | G108: Celkom územie
B109: 1 sektor | C109: # BTS | D109: =IF(D$40=0,0,ROUNDUP(D$40/D104,0)) ->  | E109: =IF(E$40=0,0,ROUNDUP(E$40/E104,0)) ->  | G109: =SUM(D109:F109) -> 
B110: 2 sektory | C110: # BTS | G110: =SUM(D110:F110) -> 0
B111: 3+ sektory | C111: # BTS | G111: =SUM(D111:F111) -> 0
B112: Celkom BTS na základné pokrytie | C112: # BTS | D112: =SUM(D109:D111) ->  | E112: =SUM(E109:E111) ->  | G112: =SUM(D112:F112) -> 
A114: 7.4 Kapacita z pokrytia
D115: GSM 900 | E115: GSM 900 | F115: GSM 900
B116: Kapacita z pokrytia 900 TRX | C116: Jednotka | D116: Aglomerácie | E116: Mestá | F116: Vidiek | G116: Celkom územie
B117: Počet pokrytých sektorov | C117: # sektorov | D117: =D109*D$29+D110*D$30+D111*D$31 ->  | E117: =E109*E$29+E110*E$30+E111*E$31 ->  | F117: =F109*F$29+F110*F$30+F111*F$31 ->  | G117: =SUM(D117:F117) -> 
B118: TRX 900 kapacita na sektor | C118: # TRX | D118: =MIN($D$22:$D$23) ->  | E118: =MIN($D$22:$D$23) -> 
B119: Maximálna Erlang kapacita sektoru | C119: # Erlang | D119: =INDEX('4. Parametre dimenzovania siete'!$B$302:$G$752,MATCH(D$118,'4. Parametre dimenzovania siete'!$C$302:$C$752,0),MATCH($D$11,'4. Parametre dimenzovania siete'!$B$300:$G$300,0)) ->  | E119: =INDEX('4. Parametre dimenzovania siete'!$B$302:$G$752,MATCH(E$118,'4. Parametre dimenzovania siete'!$C$302:$C$752,0),MATCH($D$11,'4. Parametre dimenzovania siete'!$B$300:$G$300,0)) ->  | F119: =INDEX('4. Parametre dimenzovania siete'!$B$302:$G$752,MATCH(F$118,'4. Parametre dimenzovania siete'!$C$302:$C$752,0),MATCH($D$11,'4. Parametre dimenzovania siete'!$B$300:$G$300,0)) -> 
B120: Max kapacita z pokrytia GSM 900 | C120: # Erlang | D120: =D119*D117 ->  | G120: =SUM(D120:F120) -> 
B121: TRX faktor využitia | C121: % | D121: =D$26 -> 0 | E121: =E$26 -> 0 | F121: 0
B122: Efektívna kapacita z pokrytia GSM 900 | C122: # Erlang | D122: =D120*D121 ->  | E122: =E120*E121 ->  | G122: =SUM(D122:F122) -> 
A124: 7.5 Dodatočné BTS GSM1800 dimenzovanie kapacity
B126: Kapacitné požiadavky | C126: Jednotka | D126: Aglomerácie | E126: Mestá | F126: Vidiek | G126: Celkom územie
B127: Prevádzka v regióne | C127: # Erlang | D127: =$D$18*D47 ->  | E127: =$D$18*E47 ->  | G127: =SUM(D127:F127) -> 
B128: Dodatočná požadovaná kapacita | C128: # Erlang | D128: =D127-D122 ->  | E128: =E127-E122 ->  | G128: =SUM(D128:F128) -> 
B129: Dodatočná požadovaná kapacita na základe dopytu | C129: # Erlang | D129: =MAX(0,D128) ->  | E129: =MAX(0,E128) ->  | G129: =SUM(D129:F129) -> 
B130: TRX 1800 kapacita na sektor | C130: # TRX | D130: =ROUND(MIN($E$22,$E$23),0) ->  | E130: =ROUND(MIN($E$22,$E$23),0) ->  | F130: =ROUND(MIN($E$22,$E$23),0) -> 
B131: Max Erlang kapacita sektoru | C131: # Erlang | D131: =INDEX('4. Parametre dimenzovania siete'!$C$302:$G$752,MATCH(D$130,'4. Parametre dimenzovania siete'!$C$302:$C$752,0),MATCH($D$11,'4. Parametre dimenzovania siete'!$C$300:$G$300,0)) ->  | E131: =INDEX('4. Parametre dimenzovania siete'!$C$302:$G$752,MATCH(E$130,'4. Parametre dimenzovania siete'!$C$302:$C$752,0),MATCH($D$11,'4. Parametre dimenzovania siete'!$C$300:$G$300,0)) ->  | F131: =INDEX('4. Parametre dimenzovania siete'!$C$302:$G$752,MATCH(F$130,'4. Parametre dimenzovania siete'!$C$302:$C$752,0),MATCH($D$11,'4. Parametre dimenzovania siete'!$C$300:$G$300,0)) -> 
B132: Počet požadovaných BTS 1800 sektorov na kapacitu | C132: # sectors | D132: =ROUNDUP(D129/D131,0) ->  | G132: =SUM(D132:F132) -> 
B134: Počet požadovaných BTS1800 skríň na kapacitu | C134: Jednotka | D134: Aglomerácie | E134: Mestá | F134: Vidiek | G134: Celkom územie
B135: 1 sektor | C135: # BTS | D135: =IF(D132-D136*3<0,0,D132-D136*3) ->  | G135: =SUM(D135:F135) -> 
B136: 3 sektory | C136: # BTS | D136: =ROUNDUP(IF(D56=1,D132/3,D132/(3+(1-D56)/D56)),0) ->  | E136: =ROUNDUP(IF(E56=1,E132/3,E132/(3+(1-E56)/E56)),0) ->  | F136: =ROUNDUP(IF(F56=1,F132/3,F132/(3+(1-F56)/F56)),0) ->  | G136: =SUM(D136:F136) -> 
B137: Počet požadovaných BTS 1800 na kapacitu | C137: # BTS | D137: =SUM(D135:D136) ->  | G137: =SUM(D137:F137) -> 
B139: Počet Base station celkom | C139: # BTS | D139: =D137+D112 ->  | E139: =E137+E112 ->  | G139: =SUM(D139:F139) -> 
A141: 7.6 TRX dimenzovanie
B143: Celkový počet sektorov | C143: Jednotka | D143: Aglomerácie | E143: Mestá | F143: Vidiek | G143: Celkom územie
B144: BTS GSM 900 | C144: # sektorov | D144: =D117 ->  | E144: =E117 ->  | F144: =F117 ->  | G144: =SUM(D144:F144) -> 
B145: BTS GSM 1800 | C145: # sektorov | D145: =D132 ->  | E145: =E132 ->  | F145: =F132 ->  | G145: =SUM(D145:F145) -> 
B146: Sektorov Celkom | C146: # sektorov | D146: =SUM(D144:D145) ->  | E146: =SUM(E144:E145) ->  | G146: =SUM(D146:F146) -> 
B148: Priemerná prevádzka sektoru GSM900 | C148: # Erlang | D148: =IF(D144=0,0,D122/D144) ->  | E148: =IF(E144=0,0,E122/E144) ->  | F148: =IF(F144=0,0,F122/F144) ->  | G148: =IF(G144=0,0,G122/G144) -> 
B149: Priemerná prevádzka sektoru GSM1800 | C149: # Erlang | D149: =IF(D145=0,0,D129/D145) ->  | E149: =IF(E145=0,0,E129/E145) ->  | F149: =IF(F145=0,0,F129/F145) ->  | G149: =IF(G145=0,0,G129/G145) -> 
B151: TRX 900 na sektor pre naplnenie prevádzkových požiadaviek | C151: # TRX | D151: =IF(D148=0,0,INDEX('4. Parametre dimenzovania siete'!$C$302:$C$752,MATCH(D$148,'4. Parametre dimenzovania siete'!$F$302:$F$752,1)+1)) ->  | E151: =IF(E148=0,0,INDEX('4. Parametre dimenzovania siete'!$C$302:$C$752,MATCH(E$148,'4. Parametre dimenzovania siete'!$F$302:$F$752,1)+1)) ->  | F151: =IF(F148=0,0,INDEX('4. Parametre dimenzovania siete'!$C$302:$C$752,MATCH(F$148,'4. Parametre dimenzovania siete'!$F$302:$F$752,1)+1)) ->  | G151: =IF(G148=0,0,INDEX('4. Parametre dimenzovania siete'!$C$302:$C$752,MATCH(G$148,'4. Parametre dimenzovania siete'!$F$302:$F$752,1)+1)) -> 
B152: TRX 1800 na sektor pre naplnenie prevádzkových požiadaviek | C152: # TRX | D152: =IF(D149=0,0,INDEX('4. Parametre dimenzovania siete'!$C$302:$C$752,MATCH(D$149,'4. Parametre dimenzovania siete'!$F$302:$F$752,1)+1)) ->  | E152: =IF(E149=0,0,INDEX('4. Parametre dimenzovania siete'!$C$302:$C$752,MATCH(E$149,'4. Parametre dimenzovania siete'!$F$302:$F$752,1)+1)) ->  | F152: =IF(F149=0,0,INDEX('4. Parametre dimenzovania siete'!$C$302:$C$752,MATCH(F$149,'4. Parametre dimenzovania siete'!$F$302:$F$752,1)+1)) ->  | G152: =IF(G149=0,0,INDEX('4. Parametre dimenzovania siete'!$C$302:$C$752,MATCH(G$149,'4. Parametre dimenzovania siete'!$F$302:$F$752,1)+1)) -> 
B154: Celkový požadovaný počet TRX 900 | C154: # TRX | D154: =CEILING(D144*D151,1) ->  | E154: =CEILING(E146*E151,1) ->  | G154: =SUM(D154:F154) -> 
B155: Celkový požadovaný počet TRX 1800 | C155: # TRX | D155: =CEILING(D145*D152,1) ->  | E155: =CEILING(E145*E152,1) ->  | G155: =SUM(D155:F155) -> 
B156: Celkový požadovaný počet TRX | C156: # TRX | D156: =SUM(D154:D155) ->  | G156: =SUM(D156:F156) -> 
A158: 7.7 Recalibrácia pre duálny GSM 900/1800
B160: Priemerný počet TRX v skrini | C160: Jednotka | D160: Aglomerácie | E160: Mestá | F160: Vidiek | G160: Celkom územie
B161: BTS GSM 900 | C161: # TRX 900 | D161: =IF(D154=0,0,D154/D112) ->  | E161: =IF(E154=0,0,E154/E112) -> 
B162: BTS GSM 1800 | C162: # TRX 1800 | D162: =IF(D137=0,0,D155/D137) ->  | E162: =IF(E137=0,0,E155/E137) -> 
B163: BTS GSM Dual 900/1800 | C163: # TRX 900 | D163: =D151 ->  | E163: =E151 -> 
B164: BTS GSM Dual 900/1800 | C164: # TRX 1800 | D164: =D152 ->  | E164: =E152 -> 
B166: Pomer Single / Dual skríň | C166: Jednotka | D166: Aglomerácie | E166: Mestá | F166: Vidiek | G166: Celkom územie
B167: GSM 900: Single / Dual pomer | C167: % | D167: =IF(D67=0,1,D65/D67) ->  | E167: =IF(E67=0,1,E65/E67) ->  | G167: =IF(G67=0,1,G65/G67) -> 
B168: GSM 1800: Single / Dual pomer | C168: % | D168: =IF(D67=0,1,D66/D67) ->  | E168: =IF(E67=0,1,E66/E67) ->  | G168: =IF(G67=0,1,G66/G67) -> 
B170: Počet požadovaných base stations skríň | C170: Jednotka | D170: Aglomerácie | E170: Mestá | F170: Vidiek | G170: Celkom územie
B171: BTS GSM 1800 - Dual | C171: # BTS | D171: =IF(D155=0,0,ROUNDUP(D155/(D162*D168+D164),0)) ->  | E171: =IF(E155=0,0,ROUNDUP(E155/(E162*E168+E164),0)) ->  | G171: =SUM(D171:F171) -> 
B172: BTS GSM 1800 - Single | C172: # BTS | D172: =ROUNDUP(D171*D168,0) ->  | E172: =ROUNDUP(E171*E168,0) ->  | G172: =SUM(D172:F172) -> 
B173: BTS GSM 900 - Dual | C173: # BTS | D173: =D171 ->  | G173: =SUM(D173:F173) -> 
B174: BTS GSM 900 - Single | C174: # BTS | D174: =MAX(0,(D154-D173*D163)/D161) ->  | E174: =MAX(0,(E154-E173*E163)/E161) ->  | G174: =SUM(D174:F174) -> 
B176: Počet dimenzovaných base stations skríň | C176: Jednotka | D176: Aglomerácie | E176: Mestá | F176: Vidiek | G176: Celkom územie
B177: GSM 900 | C177: # BTS | D177: =ROUNDUP(D174,0) ->  | G177: =SUM(D177:F177) ->  | H177: =G177/$G$180 -> 
B178: GSM 1800 | C178: # BTS | D178: =ROUNDUP(D172,0) ->  | E178: =ROUNDUP(E172,0) ->  | G178: =SUM(D178:F178) ->  | H178: =G178/$G$180 -> 
B179: GSM Dual 900/1800 | C179: # BTS | D179: =ROUNDUP(D173,0) ->  | E179: =ROUNDUP(E173,0) ->  | G179: =SUM(D179:F179) ->  | H179: =G179/$G$180 -> 
B180: Celkový počet base stations skríň | C180: # BTS | D180: =SUM(D177:D179) ->  | E180: =SUM(E177:E179) ->  | G180: =SUM(D180:F180) -> 
A182: 7.8 Dimenzovanie lokácií
B184: Výber calibrácie pre Dual | C184: ='A. Výber'!$D$26 -> Y
B186: Počet lokácií | C186: Počet BTS/lokácia | D186: Aglomerácie | E186: Mestá | F186: Vidiek | G186: Celkom územie
B187: BTS GSM 900 | C187: 1 | D187: =MAX(0,IF($C$184="Y",D177-D178,D112-D137)) ->  | E187: =MAX(0,IF($C$184="Y",E177-E178,E112-E137)) ->  | F187: =MAX(0,IF($C$184="Y",F177-F178,F112-F137)) ->  | G187: =SUM(D187:F187) -> 
B188: BTS GSM 900 + GSM 1800 | C188: 2 | D188: =IF($C$184="Y",D178,D137) ->  | E188: =IF($C$184="Y",E178,E137) ->  | G188: =SUM(D188:F188) -> 
B189: BTS GSM Dual 900/1800 | C189: 1 | D189: =(D$180-D$187-D$188)*D65 ->  | E189: =(E$180-E$187-E$188)*E65 ->  | G189: =SUM(D189:F189) -> 
B190: BTS GSM Dual 900/1800 | C190: 2 | D190: =(D$180-D$187-D$188)*D66 ->  | G190: =SUM(D190:F190) -> 
B191: BTS GSM Dual 900/1800 | C191: 3 | D191: =(D$180-D$187-D$188)*D67 ->  | G191: =SUM(D191:F191) -> 
G192: =SUM(G187:G191) -> 
B194: Celkový požadovaný počet lokácií | C194: Jednotka | D194: Aglomerácie | E194: Mestá | F194: Vidiek | G194: Celkom územie
B195: Celkový počet požadovaných lokácií | C195: # lokácií | D195: =SUM(D187:D191) ->  | E195: =SUM(E187:E191) ->  | G195: =SUM(D195:F195) -> 
B196: Počet striech | C196: # lokácií | D196: =D195-D197 ->  | E196: =E195-E197 ->  | G196: =SUM(D196:F196) -> 
B197: Počet samostatných pylónov | C197: # lokácií | D197: =ROUND(D195*$D$76,0) ->  | E197: =ROUND(E195*$D$76,0) ->  | F197: =ROUND(F195*$D$76,0) ->  | G197: =SUM(D197:F197) -> 
B200: Celkový počet lokací s pronajmutými pozemky | C200: # lokací | D200: =D196*$D$77 ->  | G200: =SUM(D200:F200) -> 
A202: 7.9 Dimenzovanie zdrojov energie BTS lokácií
B204: Celkový počet požadovaných lokácií | C204: Jednotka | D204: Aglomerácie | E204: Mestá | F204: Vidiek | G204: Celkom územie
B205: =B80 -> Lokácie základňových staníc napojené na elektrickú sieť | C205: # lokácií | D205: =D$195*$D80 ->  | E205: =E$195*$D80 ->  | G205: =SUM(D205:F205) -> 
A207: 7.10 Dimenzovanie BSC
B209: BSC dimenzačné ukazovatele | C209: Jednotka | D209: Bratislava 1 | E209: Bratislava 2 | F209: Košice 1 | G209: Košice 2 | H209: Trnava | I209: Nitra | J209: Trenčín | K209: Žilina | L209: Banská Bystrica | M209: Prešov | O209: Celkom územie
B210: Počet TRX na Core Node | C210: # | D210: =SUMPRODUCT(TRANSPOSE($D$156:$F$156),D$89:D$91) ->  | E210: =SUMPRODUCT(TRANSPOSE($D$156:$F$156),E$89:E$91) ->  | F210: =SUMPRODUCT(TRANSPOSE($D$156:$F$156),F$89:F$91) ->  | G210: =SUMPRODUCT(TRANSPOSE($D$156:$F$156),G$89:G$91) ->  | H210: =SUMPRODUCT(TRANSPOSE($D$156:$F$156),H$89:H$91) ->  | I210: =SUMPRODUCT(TRANSPOSE($D$156:$F$156),I$89:I$91) ->  | J210: =SUMPRODUCT(TRANSPOSE($D$156:$F$156),J$89:J$91) ->  | K210: =SUMPRODUCT(TRANSPOSE($D$156:$F$156),K$89:K$91) ->  | L210: =SUMPRODUCT(TRANSPOSE($D$156:$F$156),L$89:L$91) ->  | M210: =SUMPRODUCT(TRANSPOSE($D$156:$F$156),M$89:M$91) ->  | O210: =SUM(D210:M210) -> 
B212: Celkový požadovaný počet BSC | C212: Jednotka | D212: Bratislava 1 | E212: Bratislava 2 | F212: Košice 1 | G212: Košice 2 | H212: Trnava | I212: Nitra | J212: Trenčín | K212: Žilina | L212: Banská Bystrica | M212: Prešov | O212: Celkom územie
B213: Počet BSC na základe kapacity | C213: # BSC | D213: =ROUNDUP(D210/$D$84,0) ->  | O213: =SUM(D213:M213) -> 

Sheet 6. NE Dopyt
A1: 6. Dopyt po sieťových prvkoch
A3: Popis
A4: Kalkulácia sieťového dopytu
A6: 6.1 Sieťový dopyt po hlasových službách
J7: Obsadenosť minúty | M7: Obsadenosť
C8: Úspešné hovory | D8: Prevádzka | E8: % Drop rate | F8: Priemerná čakacia doba do naviazania hovoru | G8: Neúspešné hovory | H8: Prevádzka mimo konverzácie | I8: Minúty obsadenosti | J8: Prevádzka GSM | K8: Prevádzka UMTS | L8: Prevádzka LTE | M8: Prevádzka GSM | N8: Prevádzka UMTS | O8: Prevádzka LTE
B9: Služba | C9: # hovorov | D9: Hlasové minúty | E9: % | F9: Minút / hovor | G9: Hlasové minúty | H9: Hlasové minúty | I9: Hlasové minúty | J9: Hlasové minúty | K9: Hlasové minúty | L9: Hlasové minúty | M9: # hovorov | N9: # hovorov | O9: # hovorov
B10: ='2. Dopyt'!B29 -> Odchádzajúce - hovory v sieti (on-net) | C10: ='2. Dopyt'!D90 -> 0 | D10: ='2. Dopyt'!E29 -> 0 | E10: ='2. Dopyt'!F90 ->  | F10: ='2. Dopyt'!E90 ->  | G10: =C10/((1-E10)*100)*100*F10 ->  | H10: =C10*F10 ->  | I10: =H10+D10+G10 ->  | J10: =I10*'2. Dopyt'!$E$46 ->  | K10: =I10*'2. Dopyt'!$E$47 ->  | L10: =I10*'2. Dopyt'!$E$48 ->  | M10: =(C10+(G10/F10))*'2. Dopyt'!$E$46 ->  | N10: =(C10+(G10/F10))*'2. Dopyt'!$E$47 ->  | O10: =(C10+G10)*'2. Dopyt'!$E$48 -> 
B11: ='2. Dopyt'!B30 -> Odchádzajúce - hovory do sietí iných mobilných operátorov | C11: ='2. Dopyt'!D91 -> 0 | D11: ='2. Dopyt'!E30 -> 0 | E11: ='2. Dopyt'!F91 ->  | F11: ='2. Dopyt'!E91 ->  | G11: =C11/((1-E11)*100)*100*F11 ->  | H11: =C11*F11 ->  | I11: =H11+D11+G11 ->  | J11: =I11*'2. Dopyt'!$E$46 ->  | K11: =I11*'2. Dopyt'!$E$47 ->  | L11: =I11*'2. Dopyt'!$E$48 ->  | M11: =(C11+(G11/F11))*'2. Dopyt'!$E$46 ->  | N11: =(C11+(G11/F11))*'2. Dopyt'!$E$47 ->  | O11: =(C11+G11)*'2. Dopyt'!$E$48 -> 
B12: ='2. Dopyt'!B31 -> Odchádzajúce - hovory do pevnej siete | C12: ='2. Dopyt'!D92 -> 0 | D12: ='2. Dopyt'!E31 -> 0 | E12: ='2. Dopyt'!F92 ->  | F12: ='2. Dopyt'!E92 ->  | G12: =C12/((1-E12)*100)*100*F12 ->  | J12: =I12*'2. Dopyt'!$E$46 ->  | K12: =I12*'2. Dopyt'!$E$47 ->  | L12: =I12*'2. Dopyt'!$E$48 ->  | M12: =(C12+(G12/F12))*'2. Dopyt'!$E$46 ->  | N12: =(C12+(G12/F12))*'2. Dopyt'!$E$47 ->  | O12: =(C12+G12)*'2. Dopyt'!$E$48 -> 
B13: ='2. Dopyt'!B32 -> Odchádzajúce - hovory do zahraničia | C13: ='2. Dopyt'!D93 -> 0 | D13: ='2. Dopyt'!E32 -> 0 | E13: ='2. Dopyt'!F93 ->  | F13: ='2. Dopyt'!E93 ->  | J13: =I13*'2. Dopyt'!$E$46 ->  | K13: =I13*'2. Dopyt'!$E$47 ->  | L13: =I13*'2. Dopyt'!$E$48 ->  | M13: =(C13+(G13/F13))*'2. Dopyt'!$E$46 ->  | N13: =(C13+(G13/F13))*'2. Dopyt'!$E$47 ->  | O13: =(C13+G13)*'2. Dopyt'!$E$48 -> 
B14: ='2. Dopyt'!B33 -> Odchádzajúce - hovory na tiesňové čísla | C14: ='2. Dopyt'!D94 -> 0 | D14: ='2. Dopyt'!E33 -> 0 | E14: ='2. Dopyt'!F94 ->  | F14: ='2. Dopyt'!E94 ->  | I14: =H14+D14+G14 ->  | J14: =I14*'2. Dopyt'!$E$46 ->  | K14: =I14*'2. Dopyt'!$E$47 ->  | L14: =I14*'2. Dopyt'!$E$48 ->  | M14: =(C14+(G14/F14))*'2. Dopyt'!$E$46 ->  | N14: =(C14+(G14/F14))*'2. Dopyt'!$E$47 ->  | O14: =(C14+G14)*'2. Dopyt'!$E$48 -> 
B15: ='2. Dopyt'!B34 -> Odchádzajúce - hovory do hlasovej schránky | C15: ='2. Dopyt'!D95 -> 0 | D15: ='2. Dopyt'!E34 -> 0 | E15: ='2. Dopyt'!F95 ->  | F15: ='2. Dopyt'!E95 ->  | J15: =I15*'2. Dopyt'!$E$46 ->  | K15: =I15*'2. Dopyt'!$E$47 ->  | L15: =I15*'2. Dopyt'!$E$48 ->  | M15: =(C15+(G15/F15))*'2. Dopyt'!$E$46 ->  | N15: =(C15+(G15/F15))*'2. Dopyt'!$E$47 ->  | O15: =(C15+G15)*'2. Dopyt'!$E$48 -> 
B16: ='2. Dopyt'!B35 -> Odchádzajúce - hovory na bezplatné čísla | C16: ='2. Dopyt'!D96 -> 0 | D16: ='2. Dopyt'!E35 -> 0 | E16: ='2. Dopyt'!F96 ->  | F16: ='2. Dopyt'!E96 ->  | J16: =I16*'2. Dopyt'!$E$46 ->  | K16: =I16*'2. Dopyt'!$E$47 ->  | L16: =I16*'2. Dopyt'!$E$48 ->  | M16: =(C16+(G16/F16))*'2. Dopyt'!$E$46 ->  | N16: =(C16+(G16/F16))*'2. Dopyt'!$E$47 ->  | O16: =(C16+G16)*'2. Dopyt'!$E$48 -> 
B17: ='2. Dopyt'!B36 -> Odchádzajúce - hovory na čísla Premium | C17: ='2. Dopyt'!D97 -> 0 | D17: ='2. Dopyt'!E36 -> 0 | E17: ='2. Dopyt'!F97 ->  | F17: ='2. Dopyt'!E97 ->  | I17: =H17+D17+G17 ->  | J17: =I17*'2. Dopyt'!$E$46 ->  | K17: =I17*'2. Dopyt'!$E$47 ->  | L17: =I17*'2. Dopyt'!$E$48 ->  | M17: =(C17+(G17/F17))*'2. Dopyt'!$E$46 ->  | N17: =(C17+(G17/F17))*'2. Dopyt'!$E$47 ->  | O17: =(C17+G17)*'2. Dopyt'!$E$48 -> 
B18: ='2. Dopyt'!B37 -> Odchádzajúce - prichádzajúci roaming | C18: ='2. Dopyt'!D98 -> 0 | D18: ='2. Dopyt'!E37 -> 0 | E18: ='2. Dopyt'!F98 ->  | F18: ='2. Dopyt'!E98 ->  | J18: =I18*'2. Dopyt'!$E$46 ->  | K18: =I18*'2. Dopyt'!$E$47 ->  | L18: =I18*'2. Dopyt'!$E$48 ->  | M18: =(C18+(G18/F18))*'2. Dopyt'!$E$46 ->  | N18: =(C18+(G18/F18))*'2. Dopyt'!$E$47 ->  | O18: =(C18+G18)*'2. Dopyt'!$E$48 -> 
B19: ='2. Dopyt'!B38 -> Prichádzajúce - hovory od iných mobilných operátorov | C19: ='2. Dopyt'!D99 -> 0 | D19: ='2. Dopyt'!E38 -> 0 | E19: ='2. Dopyt'!F99 ->  | F19: ='2. Dopyt'!E99 ->  | J19: =I19*'2. Dopyt'!$E$46 ->  | K19: =I19*'2. Dopyt'!$E$47 ->  | L19: =I19*'2. Dopyt'!$E$48 ->  | M19: =(C19+(G19/F19))*'2. Dopyt'!$E$46 ->  | N19: =(C19+(G19/F19))*'2. Dopyt'!$E$47 ->  | O19: =(C19+G19)*'2. Dopyt'!$E$48 -> 
B20: ='2. Dopyt'!B39 -> Prichádzajúce - hovory z pevnej siete | C20: ='2. Dopyt'!D100 -> 0 | D20: ='2. Dopyt'!E39 -> 0 | E20: ='2. Dopyt'!F100 ->  | F20: ='2. Dopyt'!E100 ->  | J20: =I20*'2. Dopyt'!$E$46 ->  | K20: =I20*'2. Dopyt'!$E$47 ->  | L20: =I20*'2. Dopyt'!$E$48 ->  | M20: =(C20+(G20/F20))*'2. Dopyt'!$E$46 ->  | N20: =(C20+(G20/F20))*'2. Dopyt'!$E$47 ->  | O20: =(C20+G20)*'2. Dopyt'!$E$48 -> 
B21: ='2. Dopyt'!B40 -> Prichádzajúce - hovory zo zahraničia | C21: ='2. Dopyt'!D101 -> 0 | D21: ='2. Dopyt'!E40 -> 0 | E21: ='2. Dopyt'!F101 ->  | F21: ='2. Dopyt'!E101 ->  | I21: =H21+D21+G21 ->  | J21: =I21*'2. Dopyt'!$E$46 ->  | K21: =I21*'2. Dopyt'!$E$47 ->  | L21: =I21*'2. Dopyt'!$E$48 ->  | M21: =(C21+(G21/F21))*'2. Dopyt'!$E$46 ->  | N21: =(C21+(G21/F21))*'2. Dopyt'!$E$47 ->  | O21: =(C21+G21)*'2. Dopyt'!$E$48 -> 
B22: ='2. Dopyt'!B41 -> Prichádzajúce - prichádzajúci roaming | C22: ='2. Dopyt'!D102 -> 0 | D22: ='2. Dopyt'!E41 -> 0 | E22: ='2. Dopyt'!F102 ->  | F22: ='2. Dopyt'!E102 ->  | J22: =I22*'2. Dopyt'!$E$46 ->  | K22: =I22*'2. Dopyt'!$E$47 ->  | L22: =I22*'2. Dopyt'!$E$48 ->  | M22: =(C22+(G22/F22))*'2. Dopyt'!$E$46 ->  | N22: =(C22+(G22/F22))*'2. Dopyt'!$E$47 ->  | O22: =(C22+G22)*'2. Dopyt'!$E$48 -> 
B23: Celkom | C23: =SUM(C10:C22) -> 0 | D23: =SUM(D10:D22) -> 0 | G23: =SUM(G10:G22) ->  | H23: =SUM(H10:H22) ->  | I23: =SUM(I10:I22) ->  | J23: =SUM(J10:J22) ->  | K23: =SUM(K10:K22) ->  | L23: =I23*'2. Dopyt'!$E$48 ->  | M23: =SUM(M10:M22) ->  | N23: =SUM(N10:N22) ->  | O23: =SUM(O10:O22) -> 
A26: 6.2 Sieťový dopyt po SMS, MMS a mobilných dátach
I27: Obsadenosť minúty
C28: SMS úspešne odoslané & prijaté | D28: Úspešné SMS ako % z celkového počtu | E28: Neúspešné SMS | F28: SMS celkom | G28: Konverzný faktor | H28: Minúty obsadenosti | I28: Prevádzka GSM | J28: Prevádzka 3G | K28: Prevádzka LTE
B29: Služba | C29: # správ | D29: % | E29: # správ | F29: # správ | H29: Ekvivalent hlasových minút | I29: Ekvivalent hlasových minút | J29: Ekvivalent hlasových minút | K29: Ekvivalent hlasových minút
B30: ='2. Dopyt'!B53 -> Odchádzajúce - SMS v rámci siete | C30: ='2. Dopyt'!E53 -> 0 | D30: ='2. Dopyt'!C106 -> 0 | E30: =(1/D30-1)*C30 ->  | F30: =E30+C30 ->  | G30: =I_SMS_Conversion -> 0.0260756193 | H30: =F30*G30 ->  | I30: =H30*'2. Dopyt'!$E$70 ->  | J30: =H30*'2. Dopyt'!$E$71 ->  | K30: =H30*'2. Dopyt'!$E$72 -> 
B31: ='2. Dopyt'!B54 -> Odchádzajúce - SMS do sietí iných mobilných operátorov | C31: ='2. Dopyt'!E54 -> 0 | D31: ='2. Dopyt'!C107 -> 0 | E31: =(1/D31-1)*C31 ->  | F31: =E31+C31 ->  | G31: =I_SMS_Conversion -> 0.0260756193 | H31: =F31*G31 ->  | I31: =H31*'2. Dopyt'!$E$70 ->  | J31: =H31*'2. Dopyt'!$E$71 ->  | K31: =H31*'2. Dopyt'!$E$72 -> 
B32: ='2. Dopyt'!B55 -> Odchádzajúce - SMS do zahraničia | C32: ='2. Dopyt'!E55 -> 0 | D32: ='2. Dopyt'!C108 -> 0 | E32: =(1/D32-1)*C32 ->  | F32: =E32+C32 ->  | G32: =I_SMS_Conversion -> 0.0260756193 | H32: =F32*G32 ->  | I32: =H32*'2. Dopyt'!$E$70 ->  | J32: =H32*'2. Dopyt'!$E$71 ->  | K32: =H32*'2. Dopyt'!$E$72 -> 
B33: ='2. Dopyt'!B56 -> Prichádzajúce - SMS z iných sietí mobilných operátorov | C33: ='2. Dopyt'!E56 -> 0 | D33: ='2. Dopyt'!C109 -> 0 | E33: =(1/D33-1)*C33 ->  | F33: =E33+C33 ->  | G33: =I_SMS_Conversion -> 0.0260756193 | H33: =F33*G33 ->  | I33: =H33*'2. Dopyt'!$E$70 ->  | J33: =H33*'2. Dopyt'!$E$71 ->  | K33: =H33*'2. Dopyt'!$E$72 -> 
B34: ='2. Dopyt'!B57 -> Prichádzajúce - SMS zo zahraničia | C34: ='2. Dopyt'!E57 -> 0 | D34: ='2. Dopyt'!C110 -> 0 | E34: =(1/D34-1)*C34 ->  | F34: =E34+C34 ->  | G34: =I_SMS_Conversion -> 0.0260756193 | H34: =F34*G34 ->  | I34: =H34*'2. Dopyt'!$E$70 ->  | J34: =H34*'2. Dopyt'!$E$71 ->  | K34: =H34*'2. Dopyt'!$E$72 -> 
B35: Celkom | C35: =SUM(C30:C34) -> 0 | E35: =SUM(E30:E34) ->  | F35: =SUM(F30:F34) ->  | H35: =SUM(H30:H34) ->  | I35: =SUM(I30:I34) ->  | J35: =SUM(J30:J34) ->  | K35: =SUM(K30:K34) -> 
I38: Obsadenosť minúty
C39: MMS úspešne odoslané & prijaté | D39: Úspešné MMS ako % z celkového počtu | E39: Neúspešné MMS | F39: MMS celkom | G39: Konverzný faktor | I39: Prevádzka GSM | J39: Prevádzka 3G | K39: Prevádzka LTE (not applicable) | L39: Konverzný faktor LTE
B40: Služba | C40: # správ | D40: % | E40: # správ | F40: # správ | G40: GSM | H40: UMTS | I40: Ekvivalent hlasových minút | J40: Ekvivalent hlasových minút | K40: Ekvivalent hlasových minút | L40: LTE
B41: Odchádzajúce - MMS v rámci siete | C41: ='2. Dopyt'!E61 -> 0 | D41: ='2. Dopyt'!C111 -> 0 | E41: =(1/D41-1)*C41 ->  | F41: =E41+C41 ->  | G41: =I_Data_Conversion -> 6.827 | H41: ='2. Dopyt'!$E$142 -> 2.26 | I41: =F41*'2. Dopyt'!$E$70*G41 ->  | J41: =F41*'2. Dopyt'!$E$71*H41 ->  | K41: =F41*'2. Dopyt'!$E$72*H41 ->  | L41: ='0. Hlavné vstupy'!$BD$81 -> 
B42: Odchádzajúce - MMS do sietí iných mobilných operátorov | C42: ='2. Dopyt'!E62 -> 0 | D42: ='2. Dopyt'!C112 -> 0 | E42: =(1/D42-1)*C42 ->  | F42: =E42+C42 ->  | G42: =I_Data_Conversion -> 6.827 | H42: ='2. Dopyt'!$E$142 -> 2.26 | I42: =F42*'2. Dopyt'!$E$70*G42 ->  | J42: =F42*'2. Dopyt'!$E$71*H42 ->  | K42: =F42*'2. Dopyt'!$E$72*H42 ->  | L42: ='0. Hlavné vstupy'!$BD$81 -> 
B43: Odchádzajúce - MMS do zahraničia | C43: ='2. Dopyt'!E63 -> 0 | D43: ='2. Dopyt'!C113 -> 0 | E43: =(1/D43-1)*C43 ->  | F43: =E43+C43 ->  | G43: =I_Data_Conversion -> 6.827 | H43: ='2. Dopyt'!$E$142 -> 2.26 | I43: =F43*'2. Dopyt'!$E$70*G43 ->  | J43: =F43*'2. Dopyt'!$E$71*H43 ->  | K43: =F43*'2. Dopyt'!$E$72*H43 ->  | L43: ='0. Hlavné vstupy'!$BD$81 -> 
B44: Prichádzajúce - MMS z iných sietí mobilných operátorov | C44: ='2. Dopyt'!E64 -> 0 | D44: ='2. Dopyt'!C114 -> 0 | E44: =(1/D44-1)*C44 ->  | F44: =E44+C44 ->  | G44: =I_Data_Conversion -> 6.827 | H44: ='2. Dopyt'!$E$142 -> 2.26 | I44: =F44*'2. Dopyt'!$E$70*G44 ->  | J44: =F44*'2. Dopyt'!$E$71*H44 ->  | K44: =F44*'2. Dopyt'!$E$72*H44 ->  | L44: ='0. Hlavné vstupy'!$BD$81 -> 
B45: Prichádzajúce - MMS zo zahraničia | C45: ='2. Dopyt'!E65 -> 0 | D45: ='2. Dopyt'!C115 -> 0 | E45: =(1/D45-1)*C45 ->  | F45: =E45+C45 ->  | G45: =I_Data_Conversion -> 6.827 | H45: ='2. Dopyt'!$E$142 -> 2.26 | I45: =F45*'2. Dopyt'!$E$70*G45 ->  | J45: =F45*'2. Dopyt'!$E$71*H45 ->  | K45: =F45*'2. Dopyt'!$E$72*H45 ->  | L45: ='0. Hlavné vstupy'!$BD$81 -> 
B46: Celkom | C46: =SUM(C41:C45) -> 0 | E46: =SUM(E41:E45) ->  | F46: =SUM(F41:F45) ->  | I46: =SUM(I41:I45) ->  | J46: =SUM(J41:J45) ->  | K46: =SUM(K41:K45) -> 
F49: Obsadenosť minúty
C50: Dátový objem | D50: Konverzný faktor | F50: Prevádzka GSM | G50: Prevádzka UMTS | H50: Prevádzka LTE
B51: Služba | C51: MB | D51: GSM | E51: UMTS (LTE) | F51: Ekvivalent hlasových minút | G51: Ekvivalent hlasových minút | H51: MB
B52: ='2. Dopyt'!B77 -> Mobilné dáta | C52: ='2. Dopyt'!E77 -> 0 | D52: =I_Data_Conversion -> 6.827 | E52: ='2. Dopyt'!$E$142 -> 2.26 | F52: =C52*'2. Dopyt'!$E$81*D52 -> 0 | G52: =C52*'2. Dopyt'!$E$82*E52 -> 0 | H52: =C52*'2. Dopyt'!$E$83 -> 0
D53: I_data _conversion
A55: 6.3 Sumarizácia sieťového dopytu
B57: Služba | C57: Ekvivalent hlasových minút | E57: MB (min/konverzny faktor)
C58: GSM | D58: UMTS | E58: LTE | F58: Celkom GSM UMTS
B59: =B10 -> Odchádzajúce - hovory v sieti (on-net) | C59: =J10 ->  | D59: =K10 ->  | E59: =L10*'0. Hlavné vstupy'!$BD$81 ->  | F59: =C59+D59 -> 
B60: =B11 -> Odchádzajúce - hovory do sietí iných mobilných operátorov | C60: =J11 ->  | E60: =L11*'0. Hlavné vstupy'!$BD$81 ->  | F60: =C60+D60 -> 
B61: Odchádzajúce - hovory do pevnej siete | E61: =L12*'0. Hlavné vstupy'!$BD$81 -> 
B62: Odchádzajúce - hovory do zahraničia | E62: =L13*'0. Hlavné vstupy'!$BD$81 -> 
B63: Odchádzajúce - hovory na tiesňové čísla | E63: =L14*'0. Hlavné vstupy'!$BD$81 -> 
B64: Odchádzajúce - hovory do hlasovej schránky | E64: =L15*'0. Hlavné vstupy'!$BD$81 -> 
B65: Odchádzajúce - hovory na bezplatné čísla | E65: =L16*'0. Hlavné vstupy'!$BD$81 -> 
B66: Odchádzajúce - hovory na čísla Premium | E66: =L17*'0. Hlavné vstupy'!$BD$81 -> 
B67: Odchádzajúce - prichádzajúci roaming | E67: =L18*'0. Hlavné vstupy'!$BD$81 -> 
B68: Prichádzajúce - hovory od iných mobilných operátorov | E68: =L19*'0. Hlavné vstupy'!$BD$81 -> 
B69: Prichádzajúce - hovory z pevnej siete | E69: =L20*'0. Hlavné vstupy'!$BD$81 -> 
B70: Prichádzajúce - hovory zo zahraničia | E70: =L21*'0. Hlavné vstupy'!$BD$81 -> 
B71: Prichádzajúce - prichádzajúci roaming | E71: =L22*'0. Hlavné vstupy'!$BD$81 -> 
B72: =B30 -> Odchádzajúce - SMS v rámci siete | C72: =I30 ->  | D72: =J30 ->  | E72: =K30*'0. Hlavné vstupy'!$BD$81 -> 
B73: =B31 -> Odchádzajúce - SMS do sietí iných mobilných operátorov | C73: =I31 ->  | E73: =K31*'0. Hlavné vstupy'!$BD$81 -> 
B74: =B32 -> Odchádzajúce - SMS do zahraničia | E74: =K32*'0. Hlavné vstupy'!$BD$81 -> 
B75: =B33 -> Prichádzajúce - SMS z iných sietí mobilných operátorov | E75: =K33*'0. Hlavné vstupy'!$BD$81 -> 
B76: =B34 -> Prichádzajúce - SMS zo zahraničia | E76: =K34*'0. Hlavné vstupy'!$BD$81 -> 
B77: =B41 -> Odchádzajúce - MMS v rámci siete | C77: =I41 ->  | D77: =J41 ->  | E77: =K41*'0. Hlavné vstupy'!$BD$81 -> 
B78: =B42 -> Odchádzajúce - MMS do sietí iných mobilných operátorov | E78: =K42*'0. Hlavné vstupy'!$BD$81 -> 
B79: Odchádzajúce - MMS do zahraničia | C79: =I43 ->  | D79: =J43 ->  | E79: =K43*'0. Hlavné vstupy'!$BD$81 -> 
B80: Prichádzajúce - MMS z iných sietí mobilných operátorov | C80: =I44 ->  | E80: =K44*'0. Hlavné vstupy'!$BD$81 -> 
B81: Prichádzajúce - MMS zo zahraničia | C81: =I45 ->  | E81: =K45*'0. Hlavné vstupy'!$BD$81 -> 
B82: =B52 -> Mobilné dáta | C82: =F52 -> 0 | D82: =G52 -> 0 | E82: =H52 -> 0 | F82: =C82+D82 -> 0
B83: Celkom | C83: =SUM(C59:C82) ->  | D83: =SUM(D59:D82) ->  | E83: =SUM(E59:E82) ->  | F83: =SUM(F59:F82) -> 
A86: 6.4 Sumarizované smerovacie faktory
C88: Rádiový prístup | H88: Chrbticová sieť | L88: Prenosová sieť | R88: Platforma
B89: Technológie | C89: 2G | E89: 3G | G89: LTE
B90: NE / Služba | C90: BTS | D90: BSC | E90: Node B | F90: RNC | G90: eNode B (RU a DU) | H90: HLR/HSS | I90: MSS/MME | J90: MGW / SGW,PGW | K90: BTS - BSC | L90: Node B - RNC | M90: eNodeB RU - DU | N90: BSC - MGW | O90: RNC - MGW | P90: DU - SGW, PGW | Q90: MGW - MGW / SGW, PGW - SGW, PGW | R90: Mobile voicemail platform | S90: SMSC Platform | T90: MMSC Platform | U90: Intelligent Network | V90: SGSN Platform | W90: GGSN Platform | X90: Interconnection | Y90: IMS | Z90: PCRF
B91: ='3. Smerovacie faktory'!B9 -> Odchádzajúce - hovory v sieti (on-net) | C91: ='3. Smerovacie faktory'!C9 -> 2 | D91: ='3. Smerovacie faktory'!D9 -> 2 | E91: ='3. Smerovacie faktory'!E9 -> 2 | F91: ='3. Smerovacie faktory'!F9 -> 2 | G91: ='3. Smerovacie faktory'!G9 -> 2 | H91: ='3. Smerovacie faktory'!I9 -> 1 | I91: ='3. Smerovacie faktory'!J9 -> 1.5 | J91: ='3. Smerovacie faktory'!K9 -> 1.5 | K91: ='3. Smerovacie faktory'!L9 -> 2 | L91: ='3. Smerovacie faktory'!M9 -> 2 | M91: ='3. Smerovacie faktory'!N9 -> 2 | N91: ='3. Smerovacie faktory'!O9 -> 2 | O91: ='3. Smerovacie faktory'!P9 -> 2 | P91: ='3. Smerovacie faktory'!Q9 -> 2 | Q91: ='3. Smerovacie faktory'!R9 -> 0.5 | R91: ='3. Smerovacie faktory'!T9 -> 0 | S91: ='3. Smerovacie faktory'!U9 -> 0 | T91: ='3. Smerovacie faktory'!V9 -> 0 | U91: ='3. Smerovacie faktory'!W9 -> 1 | V91: ='3. Smerovacie faktory'!X9 -> 0 | W91: ='3. Smerovacie faktory'!Y9 -> 0 | X91: ='3. Smerovacie faktory'!Z9 -> 0 | Y91: ='3. Smerovacie faktory'!AA9 -> 1 | Z91: ='3. Smerovacie faktory'!AB9 -> 1
B92: ='3. Smerovacie faktory'!B10 -> Odchádzajúce - hovory do sietí iných mobilných operátorov | C92: ='3. Smerovacie faktory'!C10 -> 1 | D92: ='3. Smerovacie faktory'!D10 -> 1 | E92: ='3. Smerovacie faktory'!E10 -> 1 | F92: ='3. Smerovacie faktory'!F10 -> 1 | G92: ='3. Smerovacie faktory'!G10 -> 1 | H92: ='3. Smerovacie faktory'!I10 -> 1 | I92: ='3. Smerovacie faktory'!J10 -> 1.5 | J92: ='3. Smerovacie faktory'!K10 -> 1.5 | K92: ='3. Smerovacie faktory'!L10 -> 1 | L92: ='3. Smerovacie faktory'!M10 -> 1 | M92: ='3. Smerovacie faktory'!N10 -> 1 | N92: ='3. Smerovacie faktory'!O10 -> 1 | O92: ='3. Smerovacie faktory'!P10 -> 1 | P92: ='3. Smerovacie faktory'!Q10 -> 1 | Q92: ='3. Smerovacie faktory'!R10 -> 0.5 | R92: ='3. Smerovacie faktory'!T10 -> 0 | S92: ='3. Smerovacie faktory'!U10 -> 0 | T92: ='3. Smerovacie faktory'!V10 -> 0 | U92: ='3. Smerovacie faktory'!W10 -> 1 | V92: ='3. Smerovacie faktory'!X10 -> 0 | W92: ='3. Smerovacie faktory'!Y10 -> 0 | X92: ='3. Smerovacie faktory'!Z10 -> 1 | Y92: ='3. Smerovacie faktory'!AA10 -> 1 | Z92: ='3. Smerovacie faktory'!AB10 -> 1
B93: ='3. Smerovacie faktory'!B11 -> Odchádzajúce - hovory do pevnej siete | C93: ='3. Smerovacie faktory'!C11 -> 1 | D93: ='3. Smerovacie faktory'!D11 -> 1 | E93: ='3. Smerovacie faktory'!E11 -> 1 | F93: ='3. Smerovacie faktory'!F11 -> 1 | G93: ='3. Smerovacie faktory'!G11 -> 1 | H93: ='3. Smerovacie faktory'!I11 -> 1 | I93: ='3. Smerovacie faktory'!J11 -> 1.5 | J93: ='3. Smerovacie faktory'!K11 -> 1.5 | K93: ='3. Smerovacie faktory'!L11 -> 1 | L93: ='3. Smerovacie faktory'!M11 -> 1 | M93: ='3. Smerovacie faktory'!N11 -> 1 | N93: ='3. Smerovacie faktory'!O11 -> 1 | O93: ='3. Smerovacie faktory'!P11 -> 1 | P93: ='3. Smerovacie faktory'!Q11 -> 1 | Q93: ='3. Smerovacie faktory'!R11 -> 0.5 | R93: ='3. Smerovacie faktory'!T11 -> 0 | S93: ='3. Smerovacie faktory'!U11 -> 0 | T93: ='3. Smerovacie faktory'!V11 -> 0 | U93: ='3. Smerovacie faktory'!W11 -> 1 | V93: ='3. Smerovacie faktory'!X11 -> 0 | W93: ='3. Smerovacie faktory'!Y11 -> 0 | X93: ='3. Smerovacie faktory'!Z11 -> 1 | Y93: ='3. Smerovacie faktory'!AA11 -> 1 | Z93: ='3. Smerovacie faktory'!AB11 -> 1
B94: ='3. Smerovacie faktory'!B12 -> Odchádzajúce - hovory do zahraničia | C94: ='3. Smerovacie faktory'!C12 -> 1 | D94: ='3. Smerovacie faktory'!D12 -> 1 | E94: ='3. Smerovacie faktory'!E12 -> 1 | F94: ='3. Smerovacie faktory'!F12 -> 1 | G94: ='3. Smerovacie faktory'!G12 -> 1 | H94: ='3. Smerovacie faktory'!I12 -> 1 | I94: ='3. Smerovacie faktory'!J12 -> 1.5 | J94: ='3. Smerovacie faktory'!K12 -> 1.5 | K94: ='3. Smerovacie faktory'!L12 -> 1 | L94: ='3. Smerovacie faktory'!M12 -> 1 | M94: ='3. Smerovacie faktory'!N12 -> 1 | N94: ='3. Smerovacie faktory'!O12 -> 1 | O94: ='3. Smerovacie faktory'!P12 -> 1 | P94: ='3. Smerovacie faktory'!Q12 -> 1 | Q94: ='3. Smerovacie faktory'!R12 -> 0.5 | R94: ='3. Smerovacie faktory'!T12 -> 0 | S94: ='3. Smerovacie faktory'!U12 -> 0 | T94: ='3. Smerovacie faktory'!V12 -> 0 | U94: ='3. Smerovacie faktory'!W12 -> 1 | V94: ='3. Smerovacie faktory'!X12 -> 0 | W94: ='3. Smerovacie faktory'!Y12 -> 0 | X94: ='3. Smerovacie faktory'!Z12 -> 1 | Y94: ='3. Smerovacie faktory'!AA12 -> 1 | Z94: ='3. Smerovacie faktory'!AB12 -> 1
B95: ='3. Smerovacie faktory'!B13 -> Odchádzajúce - hovory na tiesňové čísla | C95: ='3. Smerovacie faktory'!C13 -> 1 | D95: ='3. Smerovacie faktory'!D13 -> 1 | E95: ='3. Smerovacie faktory'!E13 -> 1 | F95: ='3. Smerovacie faktory'!F13 -> 1 | G95: ='3. Smerovacie faktory'!G13 -> 1 | H95: ='3. Smerovacie faktory'!I13 -> 1 | I95: ='3. Smerovacie faktory'!J13 -> 1.5 | J95: ='3. Smerovacie faktory'!K13 -> 1.5 | K95: ='3. Smerovacie faktory'!L13 -> 1 | L95: ='3. Smerovacie faktory'!M13 -> 1 | M95: ='3. Smerovacie faktory'!N13 -> 1 | N95: ='3. Smerovacie faktory'!O13 -> 1 | O95: ='3. Smerovacie faktory'!P13 -> 1 | P95: ='3. Smerovacie faktory'!Q13 -> 1 | Q95: ='3. Smerovacie faktory'!R13 -> 0.5 | R95: ='3. Smerovacie faktory'!T13 -> 0 | S95: ='3. Smerovacie faktory'!U13 -> 0 | T95: ='3. Smerovacie faktory'!V13 -> 0 | U95: ='3. Smerovacie faktory'!W13 -> 1 | V95: ='3. Smerovacie faktory'!X13 -> 0 | W95: ='3. Smerovacie faktory'!Y13 -> 0 | X95: ='3. Smerovacie faktory'!Z13 -> 1 | Y95: ='3. Smerovacie faktory'!AA13 -> 1 | Z95: ='3. Smerovacie faktory'!AB13 -> 1
B96: ='3. Smerovacie faktory'!B14 -> Odchádzajúce - hovory do hlasovej schránky | C96: ='3. Smerovacie faktory'!C14 -> 1 | D96: ='3. Smerovacie faktory'!D14 -> 1 | E96: ='3. Smerovacie faktory'!E14 -> 1 | F96: ='3. Smerovacie faktory'!F14 -> 1 | G96: ='3. Smerovacie faktory'!G14 -> 1 | H96: ='3. Smerovacie faktory'!I14 -> 1 | I96: ='3. Smerovacie faktory'!J14 -> 1.5 | J96: ='3. Smerovacie faktory'!K14 -> 1.5 | K96: ='3. Smerovacie faktory'!L14 -> 1 | L96: ='3. Smerovacie faktory'!M14 -> 1 | M96: ='3. Smerovacie faktory'!N14 -> 1 | N96: ='3. Smerovacie faktory'!O14 -> 1 | O96: ='3. Smerovacie faktory'!P14 -> 1 | P96: ='3. Smerovacie faktory'!Q14 -> 1 | Q96: ='3. Smerovacie faktory'!R14 -> 0.5 | R96: ='3. Smerovacie faktory'!T14 -> 1 | S96: ='3. Smerovacie faktory'!U14 -> 0 | T96: ='3. Smerovacie faktory'!V14 -> 0 | U96: ='3. Smerovacie faktory'!W14 -> 1 | V96: ='3. Smerovacie faktory'!X14 -> 0 | W96: ='3. Smerovacie faktory'!Y14 -> 0 | X96: ='3. Smerovacie faktory'!Z14 -> 0 | Y96: ='3. Smerovacie faktory'!AA14 -> 1 | Z96: ='3. Smerovacie faktory'!AB14 -> 1
B97: ='3. Smerovacie faktory'!B15 -> Odchádzajúce - hovory na bezplatné čísla | C97: ='3. Smerovacie faktory'!C15 -> 1 | D97: ='3. Smerovacie faktory'!D15 -> 1 | E97: ='3. Smerovacie faktory'!E15 -> 1 | F97: ='3. Smerovacie faktory'!F15 -> 1 | G97: ='3. Smerovacie faktory'!G15 -> 1 | H97: ='3. Smerovacie faktory'!I15 -> 1 | I97: ='3. Smerovacie faktory'!J15 -> 1.5 | J97: ='3. Smerovacie faktory'!K15 -> 1.5 | K97: ='3. Smerovacie faktory'!L15 -> 1 | L97: ='3. Smerovacie faktory'!M15 -> 1 | M97: ='3. Smerovacie faktory'!N15 -> 1 | N97: ='3. Smerovacie faktory'!O15 -> 1 | O97: ='3. Smerovacie faktory'!P15 -> 1 | P97: ='3. Smerovacie faktory'!Q15 -> 1 | Q97: ='3. Smerovacie faktory'!R15 -> 0.5 | R97: ='3. Smerovacie faktory'!T15 -> 0 | S97: ='3. Smerovacie faktory'!U15 -> 0 | T97: ='3. Smerovacie faktory'!V15 -> 0 | U97: ='3. Smerovacie faktory'!W15 -> 1 | V97: ='3. Smerovacie faktory'!X15 -> 0 | W97: ='3. Smerovacie faktory'!Y15 -> 0 | X97: ='3. Smerovacie faktory'!Z15 -> 1 | Y97: ='3. Smerovacie faktory'!AA15 -> 1 | Z97: ='3. Smerovacie faktory'!AB15 -> 1
B98: ='3. Smerovacie faktory'!B16 -> Odchádzajúce - hovory na čísla Premium | C98: ='3. Smerovacie faktory'!C16 -> 1 | D98: ='3. Smerovacie faktory'!D16 -> 1 | E98: ='3. Smerovacie faktory'!E16 -> 1 | F98: ='3. Smerovacie faktory'!F16 -> 1 | G98: ='3. Smerovacie faktory'!G16 -> 1 | H98: ='3. Smerovacie faktory'!I16 -> 1 | I98: ='3. Smerovacie faktory'!J16 -> 1.5 | J98: ='3. Smerovacie faktory'!K16 -> 1.5 | K98: ='3. Smerovacie faktory'!L16 -> 1 | L98: ='3. Smerovacie faktory'!M16 -> 1 | M98: ='3. Smerovacie faktory'!N16 -> 1 | N98: ='3. Smerovacie faktory'!O16 -> 1 | O98: ='3. Smerovacie faktory'!P16 -> 1 | P98: ='3. Smerovacie faktory'!Q16 -> 1 | Q98: ='3. Smerovacie faktory'!R16 -> 0.5 | R98: ='3. Smerovacie faktory'!T16 -> 0 | S98: ='3. Smerovacie faktory'!U16 -> 0 | T98: ='3. Smerovacie faktory'!V16 -> 0 | U98: ='3. Smerovacie faktory'!W16 -> 1 | V98: ='3. Smerovacie faktory'!X16 -> 0 | W98: ='3. Smerovacie faktory'!Y16 -> 0 | X98: ='3. Smerovacie faktory'!Z16 -> 1 | Y98: ='3. Smerovacie faktory'!AA16 -> 1 | Z98: ='3. Smerovacie faktory'!AB16 -> 1
B99: ='3. Smerovacie faktory'!B17 -> Odchádzajúce - prichádzajúci roaming | C99: ='3. Smerovacie faktory'!C17 -> 1 | D99: ='3. Smerovacie faktory'!D17 -> 1 | E99: ='3. Smerovacie faktory'!E17 -> 1 | F99: ='3. Smerovacie faktory'!F17 -> 1 | G99: ='3. Smerovacie faktory'!G17 -> 1 | H99: ='3. Smerovacie faktory'!I17 -> 1 | I99: ='3. Smerovacie faktory'!J17 -> 1.5 | J99: ='3. Smerovacie faktory'!K17 -> 1.5 | K99: ='3. Smerovacie faktory'!L17 -> 1 | L99: ='3. Smerovacie faktory'!M17 -> 1 | M99: ='3. Smerovacie faktory'!N17 -> 1 | N99: ='3. Smerovacie faktory'!O17 -> 1 | O99: ='3. Smerovacie faktory'!P17 -> 1 | P99: ='3. Smerovacie faktory'!Q17 -> 1 | Q99: ='3. Smerovacie faktory'!R17 -> 0.5 | R99: ='3. Smerovacie faktory'!T17 -> 0 | S99: ='3. Smerovacie faktory'!U17 -> 0 | T99: ='3. Smerovacie faktory'!V17 -> 0 | U99: ='3. Smerovacie faktory'!W17 -> 1 | V99: ='3. Smerovacie faktory'!X17 -> 0 | W99: ='3. Smerovacie faktory'!Y17 -> 0 | X99: ='3. Smerovacie faktory'!Z17 -> 1 | Y99: ='3. Smerovacie faktory'!AA17 -> 1 | Z99: ='3. Smerovacie faktory'!AB17 -> 1
B100: ='3. Smerovacie faktory'!B18 -> Prichádzajúce - hovory od iných mobilných operátorov | C100: ='3. Smerovacie faktory'!C18 -> 1 | D100: ='3. Smerovacie faktory'!D18 -> 1 | E100: ='3. Smerovacie faktory'!E18 -> 1 | F100: ='3. Smerovacie faktory'!F18 -> 1 | G100: ='3. Smerovacie faktory'!G18 -> 1 | H100: ='3. Smerovacie faktory'!I18 -> 1 | I100: ='3. Smerovacie faktory'!J18 -> 1.5 | J100: ='3. Smerovacie faktory'!K18 -> 1.5 | K100: ='3. Smerovacie faktory'!L18 -> 1 | L100: ='3. Smerovacie faktory'!M18 -> 1 | M100: ='3. Smerovacie faktory'!N18 -> 1 | N100: ='3. Smerovacie faktory'!O18 -> 1 | O100: ='3. Smerovacie faktory'!P18 -> 1 | P100: ='3. Smerovacie faktory'!Q18 -> 1 | Q100: ='3. Smerovacie faktory'!R18 -> 0.5 | R100: ='3. Smerovacie faktory'!T18 -> 0 | S100: ='3. Smerovacie faktory'!U18 -> 0 | T100: ='3. Smerovacie faktory'!V18 -> 0 | U100: ='3. Smerovacie faktory'!W18 -> 1 | V100: ='3. Smerovacie faktory'!X18 -> 0 | W100: ='3. Smerovacie faktory'!Y18 -> 0 | X100: ='3. Smerovacie faktory'!Z18 -> 1 | Y100: ='3. Smerovacie faktory'!AA18 -> 1 | Z100: ='3. Smerovacie faktory'!AB18 -> 1
B101: ='3. Smerovacie faktory'!B19 -> Prichádzajúce - hovory z pevnej siete | C101: ='3. Smerovacie faktory'!C19 -> 1 | D101: ='3. Smerovacie faktory'!D19 -> 1 | E101: ='3. Smerovacie faktory'!E19 -> 1 | F101: ='3. Smerovacie faktory'!F19 -> 1 | G101: ='3. Smerovacie faktory'!G19 -> 1 | H101: ='3. Smerovacie faktory'!I19 -> 1 | I101: ='3. Smerovacie faktory'!J19 -> 1.5 | J101: ='3. Smerovacie faktory'!K19 -> 1.5 | K101: ='3. Smerovacie faktory'!L19 -> 1 | L101: ='3. Smerovacie faktory'!M19 -> 1 | M101: ='3. Smerovacie faktory'!N19 -> 1 | N101: ='3. Smerovacie faktory'!O19 -> 1 | O101: ='3. Smerovacie faktory'!P19 -> 1 | P101: ='3. Smerovacie faktory'!Q19 -> 1 | Q101: ='3. Smerovacie faktory'!R19 -> 0.5 | R101: ='3. Smerovacie faktory'!T19 -> 0 | S101: ='3. Smerovacie faktory'!U19 -> 0 | T101: ='3. Smerovacie faktory'!V19 -> 0 | U101: ='3. Smerovacie faktory'!W19 -> 1 | V101: ='3. Smerovacie faktory'!X19 -> 0 | W101: ='3. Smerovacie faktory'!Y19 -> 0 | X101: ='3. Smerovacie faktory'!Z19 -> 1 | Y101: ='3. Smerovacie faktory'!AA19 -> 1 | Z101: ='3. Smerovacie faktory'!AB19 -> 1
B102: ='3. Smerovacie faktory'!B20 -> Prichádzajúce - hovory zo zahraničia | C102: ='3. Smerovacie faktory'!C20 -> 1 | D102: ='3. Smerovacie faktory'!D20 -> 1 | E102: ='3. Smerovacie faktory'!E20 -> 1 | F102: ='3. Smerovacie faktory'!F20 -> 1 | G102: ='3. Smerovacie faktory'!G20 -> 1 | H102: ='3. Smerovacie faktory'!I20 -> 1 | I102: ='3. Smerovacie faktory'!J20 -> 1.5 | J102: ='3. Smerovacie faktory'!K20 -> 1.5 | K102: ='3. Smerovacie faktory'!L20 -> 1 | L102: ='3. Smerovacie faktory'!M20 -> 1 | M102: ='3. Smerovacie faktory'!N20 -> 1 | N102: ='3. Smerovacie faktory'!O20 -> 1 | O102: ='3. Smerovacie faktory'!P20 -> 1 | P102: ='3. Smerovacie faktory'!Q20 -> 1 | Q102: ='3. Smerovacie faktory'!R20 -> 0.5 | R102: ='3. Smerovacie faktory'!T20 -> 0 | S102: ='3. Smerovacie faktory'!U20 -> 0 | T102: ='3. Smerovacie faktory'!V20 -> 0 | U102: ='3. Smerovacie faktory'!W20 -> 1 | V102: ='3. Smerovacie faktory'!X20 -> 0 | W102: ='3. Smerovacie faktory'!Y20 -> 0 | X102: ='3. Smerovacie faktory'!Z20 -> 1 | Y102: ='3. Smerovacie faktory'!AA20 -> 1 | Z102: ='3. Smerovacie faktory'!AB20 -> 1
B103: ='3. Smerovacie faktory'!B21 -> Prichádzajúce - prichádzajúci roaming | C103: ='3. Smerovacie faktory'!C21 -> 1 | D103: ='3. Smerovacie faktory'!D21 -> 1 | E103: ='3. Smerovacie faktory'!E21 -> 1 | F103: ='3. Smerovacie faktory'!F21 -> 1 | G103: ='3. Smerovacie faktory'!G21 -> 1 | H103: ='3. Smerovacie faktory'!I21 -> 1 | I103: ='3. Smerovacie faktory'!J21 -> 1.5 | J103: ='3. Smerovacie faktory'!K21 -> 1.5 | K103: ='3. Smerovacie faktory'!L21 -> 1 | L103: ='3. Smerovacie faktory'!M21 -> 1 | M103: ='3. Smerovacie faktory'!N21 -> 1 | N103: ='3. Smerovacie faktory'!O21 -> 1 | O103: ='3. Smerovacie faktory'!P21 -> 1 | P103: ='3. Smerovacie faktory'!Q21 -> 1 | Q103: ='3. Smerovacie faktory'!R21 -> 0.5 | R103: ='3. Smerovacie faktory'!T21 -> 0 | S103: ='3. Smerovacie faktory'!U21 -> 0 | T103: ='3. Smerovacie faktory'!V21 -> 0 | U103: ='3. Smerovacie faktory'!W21 -> 1 | V103: ='3. Smerovacie faktory'!X21 -> 0 | W103: ='3. Smerovacie faktory'!Y21 -> 0 | X103: ='3. Smerovacie faktory'!Z21 -> 1 | Y103: ='3. Smerovacie faktory'!AA21 -> 1 | Z103: ='3. Smerovacie faktory'!AB21 -> 1
B104: ='3. Smerovacie faktory'!B22 -> Odchádzajúce - SMS v rámci siete | C104: ='3. Smerovacie faktory'!C22 -> 2 | D104: ='3. Smerovacie faktory'!D22 -> 2 | E104: ='3. Smerovacie faktory'!E22 -> 2 | F104: ='3. Smerovacie faktory'!F22 -> 2 | G104: ='3. Smerovacie faktory'!G22 -> 2 | H104: ='3. Smerovacie faktory'!I22 -> 1 | I104: ='3. Smerovacie faktory'!J22 -> 1.5 | J104: ='3. Smerovacie faktory'!K22 -> 1.5 | K104: ='3. Smerovacie faktory'!L22 -> 2 | L104: ='3. Smerovacie faktory'!M22 -> 2 | M104: ='3. Smerovacie faktory'!N22 -> 2 | N104: ='3. Smerovacie faktory'!O22 -> 2 | O104: ='3. Smerovacie faktory'!P22 -> 2 | P104: ='3. Smerovacie faktory'!Q22 -> 2 | Q104: ='3. Smerovacie faktory'!R22 -> 0.5 | R104: ='3. Smerovacie faktory'!T22 -> 0 | S104: ='3. Smerovacie faktory'!U22 -> 1 | T104: ='3. Smerovacie faktory'!V22 -> 0 | U104: ='3. Smerovacie faktory'!W22 -> 1 | V104: ='3. Smerovacie faktory'!X22 -> 0 | W104: ='3. Smerovacie faktory'!Y22 -> 0 | X104: ='3. Smerovacie faktory'!Z22 -> 0 | Y104: ='3. Smerovacie faktory'!AA22 -> 0 | Z104: ='3. Smerovacie faktory'!AB22 -> 1
B105: ='3. Smerovacie faktory'!B23 -> Odchádzajúce - SMS do sietí iných mobilných operátorov | C105: ='3. Smerovacie faktory'!C23 -> 1 | D105: ='3. Smerovacie faktory'!D23 -> 1 | E105: ='3. Smerovacie faktory'!E23 -> 1 | F105: ='3. Smerovacie faktory'!F23 -> 1 | G105: ='3. Smerovacie faktory'!G23 -> 1 | H105: ='3. Smerovacie faktory'!I23 -> 1 | I105: ='3. Smerovacie faktory'!J23 -> 1 | J105: ='3. Smerovacie faktory'!K23 -> 0 | K105: ='3. Smerovacie faktory'!L23 -> 1 | L105: ='3. Smerovacie faktory'!M23 -> 1 | M105: ='3. Smerovacie faktory'!N23 -> 1 | N105: ='3. Smerovacie faktory'!O23 -> 1 | O105: ='3. Smerovacie faktory'!P23 -> 1 | P105: ='3. Smerovacie faktory'!Q23 -> 1 | Q105: ='3. Smerovacie faktory'!R23 -> 0 | R105: ='3. Smerovacie faktory'!T23 -> 0 | S105: ='3. Smerovacie faktory'!U23 -> 1 | T105: ='3. Smerovacie faktory'!V23 -> 0 | U105: ='3. Smerovacie faktory'!W23 -> 1 | V105: ='3. Smerovacie faktory'!X23 -> 0 | W105: ='3. Smerovacie faktory'!Y23 -> 0 | X105: ='3. Smerovacie faktory'!Z23 -> 1 | Y105: ='3. Smerovacie faktory'!AA23 -> 0 | Z105: ='3. Smerovacie faktory'!AB23 -> 1
B106: ='3. Smerovacie faktory'!B24 -> Odchádzajúce - SMS do zahraničia | C106: ='3. Smerovacie faktory'!C24 -> 1 | D106: ='3. Smerovacie faktory'!D24 -> 1 | E106: ='3. Smerovacie faktory'!E24 -> 1 | F106: ='3. Smerovacie faktory'!F24 -> 1 | G106: ='3. Smerovacie faktory'!G24 -> 1 | H106: ='3. Smerovacie faktory'!I24 -> 1 | I106: ='3. Smerovacie faktory'!J24 -> 1 | J106: ='3. Smerovacie faktory'!K24 -> 0 | K106: ='3. Smerovacie faktory'!L24 -> 1 | L106: ='3. Smerovacie faktory'!M24 -> 1 | M106: ='3. Smerovacie faktory'!N24 -> 1 | N106: ='3. Smerovacie faktory'!O24 -> 1 | O106: ='3. Smerovacie faktory'!P24 -> 1 | P106: ='3. Smerovacie faktory'!Q24 -> 1 | Q106: ='3. Smerovacie faktory'!R24 -> 0 | R106: ='3. Smerovacie faktory'!T24 -> 0 | S106: ='3. Smerovacie faktory'!U24 -> 1 | T106: ='3. Smerovacie faktory'!V24 -> 0 | U106: ='3. Smerovacie faktory'!W24 -> 1 | V106: ='3. Smerovacie faktory'!X24 -> 0 | W106: ='3. Smerovacie faktory'!Y24 -> 0 | X106: ='3. Smerovacie faktory'!Z24 -> 1 | Y106: ='3. Smerovacie faktory'!AA24 -> 0 | Z106: ='3. Smerovacie faktory'!AB24 -> 1
B107: ='3. Smerovacie faktory'!B25 -> Prichádzajúce - SMS z iných sietí mobilných operátorov | C107: ='3. Smerovacie faktory'!C25 -> 1 | D107: ='3. Smerovacie faktory'!D25 -> 1 | E107: ='3. Smerovacie faktory'!E25 -> 1 | F107: ='3. Smerovacie faktory'!F25 -> 1 | G107: ='3. Smerovacie faktory'!G25 -> 1 | H107: ='3. Smerovacie faktory'!I25 -> 1 | I107: ='3. Smerovacie faktory'!J25 -> 1 | J107: ='3. Smerovacie faktory'!K25 -> 0 | K107: ='3. Smerovacie faktory'!L25 -> 1 | L107: ='3. Smerovacie faktory'!M25 -> 1 | M107: ='3. Smerovacie faktory'!N25 -> 1 | N107: ='3. Smerovacie faktory'!O25 -> 1 | O107: ='3. Smerovacie faktory'!P25 -> 1 | P107: ='3. Smerovacie faktory'!Q25 -> 1 | Q107: ='3. Smerovacie faktory'!R25 -> 0 | R107: ='3. Smerovacie faktory'!T25 -> 0 | S107: ='3. Smerovacie faktory'!U25 -> 1 | T107: ='3. Smerovacie faktory'!V25 -> 0 | U107: ='3. Smerovacie faktory'!W25 -> 0 | V107: ='3. Smerovacie faktory'!X25 -> 0 | W107: ='3. Smerovacie faktory'!Y25 -> 0 | X107: ='3. Smerovacie faktory'!Z25 -> 1 | Y107: ='3. Smerovacie faktory'!AA25 -> 0 | Z107: ='3. Smerovacie faktory'!AB25 -> 1
B108: ='3. Smerovacie faktory'!B26 -> Prichádzajúce - SMS zo zahraničia | C108: ='3. Smerovacie faktory'!C26 -> 1 | D108: ='3. Smerovacie faktory'!D26 -> 1 | E108: ='3. Smerovacie faktory'!E26 -> 1 | F108: ='3. Smerovacie faktory'!F26 -> 1 | G108: ='3. Smerovacie faktory'!G26 -> 1 | H108: ='3. Smerovacie faktory'!I26 -> 1 | I108: ='3. Smerovacie faktory'!J26 -> 1 | J108: ='3. Smerovacie faktory'!K26 -> 0 | K108: ='3. Smerovacie faktory'!L26 -> 1 | L108: ='3. Smerovacie faktory'!M26 -> 1 | M108: ='3. Smerovacie faktory'!N26 -> 1 | N108: ='3. Smerovacie faktory'!O26 -> 1 | O108: ='3. Smerovacie faktory'!P26 -> 1 | P108: ='3. Smerovacie faktory'!Q26 -> 1 | Q108: ='3. Smerovacie faktory'!R26 -> 0 | R108: ='3. Smerovacie faktory'!T26 -> 0 | S108: ='3. Smerovacie faktory'!U26 -> 1 | T108: ='3. Smerovacie faktory'!V26 -> 0 | U108: ='3. Smerovacie faktory'!W26 -> 0 | V108: ='3. Smerovacie faktory'!X26 -> 0 | W108: ='3. Smerovacie faktory'!Y26 -> 0 | X108: ='3. Smerovacie faktory'!Z26 -> 1 | Y108: ='3. Smerovacie faktory'!AA26 -> 0 | Z108: ='3. Smerovacie faktory'!AB26 -> 1
B109: Odchádzajúce - MMS v rámci siete | C109: ='3. Smerovacie faktory'!C27 -> 2 | D109: ='3. Smerovacie faktory'!D27 -> 2 | E109: ='3. Smerovacie faktory'!E27 -> 2 | F109: ='3. Smerovacie faktory'!F27 -> 2 | G109: ='3. Smerovacie faktory'!G27 -> 2 | H109: ='3. Smerovacie faktory'!I27 -> 1 | I109: ='3. Smerovacie faktory'!J27 -> 0 | J109: ='3. Smerovacie faktory'!K27 -> 0 | K109: ='3. Smerovacie faktory'!L27 -> 2 | L109: ='3. Smerovacie faktory'!M27 -> 2 | M109: ='3. Smerovacie faktory'!N27 -> 2 | N109: ='3. Smerovacie faktory'!O27 -> 2 | O109: ='3. Smerovacie faktory'!P27 -> 2 | P109: ='3. Smerovacie faktory'!Q27 -> 2 | Q109: ='3. Smerovacie faktory'!R27 -> 0 | R109: ='3. Smerovacie faktory'!T27 -> 0 | S109: ='3. Smerovacie faktory'!U27 -> 0 | T109: ='3. Smerovacie faktory'!V27 -> 1 | U109: ='3. Smerovacie faktory'!W27 -> 1 | V109: ='3. Smerovacie faktory'!X27 -> 1 | W109: ='3. Smerovacie faktory'!Y27 -> 1 | X109: ='3. Smerovacie faktory'!Z27 -> 0 | Y109: ='3. Smerovacie faktory'!AA27 -> 0 | Z109: ='3. Smerovacie faktory'!AB27 -> 1
B110: Odchádzajúce - MMS do sietí iných mobilných operátorov | C110: ='3. Smerovacie faktory'!C28 -> 1 | D110: ='3. Smerovacie faktory'!D28 -> 1 | E110: ='3. Smerovacie faktory'!E28 -> 1 | F110: ='3. Smerovacie faktory'!F28 -> 1 | G110: ='3. Smerovacie faktory'!G28 -> 1 | H110: ='3. Smerovacie faktory'!I28 -> 1 | I110: ='3. Smerovacie faktory'!J28 -> 0 | J110: ='3. Smerovacie faktory'!K28 -> 0 | K110: ='3. Smerovacie faktory'!L28 -> 1 | L110: ='3. Smerovacie faktory'!M28 -> 1 | M110: ='3. Smerovacie faktory'!N28 -> 1 | N110: ='3. Smerovacie faktory'!O28 -> 1 | O110: ='3. Smerovacie faktory'!P28 -> 1 | P110: ='3. Smerovacie faktory'!Q28 -> 1 | Q110: ='3. Smerovacie faktory'!R28 -> 0 | R110: ='3. Smerovacie faktory'!T28 -> 0 | S110: ='3. Smerovacie faktory'!U28 -> 0 | T110: ='3. Smerovacie faktory'!V28 -> 1 | U110: ='3. Smerovacie faktory'!W28 -> 1 | V110: ='3. Smerovacie faktory'!X28 -> 1 | W110: ='3. Smerovacie faktory'!Y28 -> 1 | X110: ='3. Smerovacie faktory'!Z28 -> 1 | Y110: ='3. Smerovacie faktory'!AA28 -> 0 | Z110: ='3. Smerovacie faktory'!AB28 -> 1
